Workbook

Sheet Instructions
A1: ='DNSP Inputs O & M'!$A$3 -> Citipower
A3: Instructions
A5: This model is to be used for the setting of Public Lighting Tariffs for the Regulatory Period 2016 to 2020 based on forecast inflation rates and Real Pre Tax WACC.
A7: Distributor data input fields are shaded | C7: and located in tabs "DNSP Inputs General" , "DNSP Inputs O & M" and "DNSP Inputs Capex"
A8: NOTE : All Distributor data input fields have been populated with AER Preliminary Decision data in this model.
A12: This model will also to be used for the annual Public Lighting Tariff Approvals in the Regulatory Period 2016 to 2020 based on actual inflation rates and Real Pre Tax WACC.
H70: =G70 -> 0 | I70: =H70 -> 0 | J70: =I70 -> 0 | K70: =J70 -> 0 | L70: =K70 -> 0

Sheet DNSP Inputs General
A1: ='DNSP Inputs O & M'!$A$3 -> Citipower
B2: =D2 -> 2009 | D2: 2009 | E2: 2010 | F2: 2011 | G2: 2012 | H2: 2013 | I2: 2014 | J2: 2015 | K2: 2016 | L2: 2017 | M2: 2018 | N2: 2019 | O2: 2020
A3: Capital Expenditure | B3: Submission Model | D3: Nominal $ - Actual | J3: Real 2015 $ - Forecast
A4: (Net of customer contributions)
A6: Poles and Brackets | B6: 531468.6752 | C6: =B6/B$14 -> 0.2 | D6: =D$15*C6 -> 169386.496 | E6: 393132.521 | F6: 731739.197 | G6: 446549.6698 | H6: 829214.4062 | I6: 582455.9671 | J6: 379678.3537 | K6: ='Capex 2016-2020'!B23 -> 118718.3277 | L6: ='Capex 2016-2020'!C23 -> 118935.8277 | M6: ='Capex 2016-2020'!D23 -> 119286.6117 | N6: ='Capex 2016-2020'!E23 -> 119697.3973 | O6: ='Capex 2016-2020'!F23 -> 120083.2793
A8: Existing Lights
A9: Luminaires | B9: 1528078.735 | C9: =B9/B$14 -> 0.57504 | D9: =D$15*C9 -> 487020.0533 | E9: 180798.5269 | F9: 155610.0815 | G9: 264471.52 | H9: -663200.7381 | I9: 973875.3023 | J9: 634828.0255 | K9: ='Capex 2016-2020'!B13-'Capex 2016-2020'!B30 -> 430781.5355 | L9: ='Capex 2016-2020'!C13-'Capex 2016-2020'!C30 -> 520949.4474 | M9: ='Capex 2016-2020'!D13-'Capex 2016-2020'!D30 -> 561952.2649 | N9: ='Capex 2016-2020'!E13-'Capex 2016-2020'!E30 -> 565082.5304 | O9: ='Capex 2016-2020'!F13-'Capex 2016-2020'!F30 -> 567902.1733
A11: Energy Efficient Lights
A12: Luminaires and Ballasts | B12: 597795.9658 | C12: =B12/B$14 -> 0.22496 | D12: =D$15*C12 -> 190525.9307 | E12: 70729.75205 | F12: 60875.84155 | G12: 103463.2602 | H12: -259449.148 | I12: 380987.3887 | J12: 248349.528 | K12: ='Capex 2016-2020'!B18 -> 81031.16694 | L12: ='Capex 2016-2020'!C18 -> 83616.21699 | M12: ='Capex 2016-2020'!D18 -> 84925.68349 | N12: ='Capex 2016-2020'!E18 -> 86772.08841 | O12: ='Capex 2016-2020'!F18 -> 88648.2423
A14: Total Net Capex | B14: =SUM(B6,B9,B12) -> 2657343.376 | D14: =SUM(D6,D9,D12) -> 846932.48 | E14: =SUM(E6,E9,E12) -> 644660.8 | F14: 948225.12 | G14: 814484.45 | H14: -93435.47993 | I14: 1937318.658 | J14: 1262855.907 | K14: 630531.0302 | L14: 723501.492 | M14: 766164.5601 | N14: 771552.0161 | O14: 776633.6949
D15: 846932.48 | E15: 644660.8
A16: Source : '[Citipower 2008-13 - Category Ananlysis RIN - responses CONSOLIDATED - 2 June 2014 - PUBLIC.xlsx]4.1 Public lighting'!$M$52:$N$52
F17: 2011 | G17: 2012 | H17: 2013 | I17: 2014 | J17: 2015 | K17: 2016 | L17: 2017 | M17: 2018 | N17: 2019 | O17: 2020
A18: Operating and Maintenance Expenditure | F18: Nominal $ - Actual | J18: Real 2015 $ - Forecast
A20: Total O & M | F20: 2230601.628 | G20: 3901658.947 | H20: 3489511.98 | I20: 3246762.454 | J20: 3217853.628 | K20: ='Cashflow Summary'!K83 -> 2429442.585 | L20: ='Cashflow Summary'!L83 -> 2436361.718 | M20: ='Cashflow Summary'!M83 -> 2444959.667 | N20: ='Cashflow Summary'!N83 -> 2465663.761 | O20: ='Cashflow Summary'!O83 -> 2491970.166
A24: WACC
A25: Regulatory Period | B25: 2016 | C25: 2017 | D25: 2018 | E25: 2019 | F25: 2020
A26: Real Pre Tax WACC | B26: 0.04124605966 | C26: 0.04124605966 | D26: 0.04124605966 | E26: 0.04124605966 | F26: 0.04124605966
A29: CPI Index | B29: CPI Index | C29: Actual CPI | D29: F'cast CPI
A30: 2014-09-30 | B30: 106.4
A31: 2015-09-30 | C31: =IF(B31="","",B31/B30-1) ->  | D31: 0.025
A32: 2016-09-30 | D32: 0.025
A33: 2017-09-30 | D33: 0.025
A34: 2018-09-30 | D34: 0.025
A35: 2019-09-30 | D35: 0.025
A39: Number Of Lights | E39: =J$2 -> 2015 | F39: =F$2 -> 2011 | G39: 2012 | H39: 2013 | I39: 2014 | J39: 2015 | K39: 2016 | L39: 2017 | M39: 2018 | N39: 2019 | O39: 2020
E40: Actual Prices | F40: Actual Volumes | J40: Forecast Volumes
A41: Existing Lights | B41: Reference Light | D41: Price Factor
A42: Mercury vapour 80 watt | B42: =A$42 -> Mercury vapour 80 watt | D42: 1 | E42: 69.07 | F42: 19415 | G42: 19158 | H42: 12877 | I42: 7585.4 | J42: 3907.4 | K42: 2657.3252 | L42: 2118.03888 | M42: 1897.671242 | N42: 1700.231368 | O42: 1523.333779
A43: Sodium high pressure 150 watt | B43: =A$43 -> Sodium high pressure 150 watt | D43: 1 | E43: 117.65 | F43: 12492.5 | G43: 12481 | H43: 12502.8 | I43: 12616.8 | J43: 12600 | K43: 12662.72081 | L43: 12725.75384 | M43: 12789.10064 | N43: 12852.76277 | O43: 12916.7418
A44: Sodium high pressure 250 watt | B44: =A$44 -> Sodium high pressure 250 watt | D44: 1 | E44: 119.37 | F44: 4765 | G44: 4783 | H44: 4938.2 | I44: 5246.6 | J44: 5302.4 | K44: 5400.640384 | L44: 5500.70092 | M44: 5602.61533 | N44: 5706.417964 | O44: 5812.143803
A45: Fluorescent 20 watt | B45: =A$42 -> Mercury vapour 80 watt | D45: 1.99 | E45: 137.44 | F45: 39 | G45: 39 | H45: 83 | I45: 78 | J45: 78 | K45: 78 | L45: 78 | M45: 78 | N45: 78 | O45: 78
A46: Fluorescent 40 watt | B46: =A$42 -> Mercury vapour 80 watt | D46: 2 | E46: 136.64 | F46: 0 | G46: 0 | H46: 0 | I46: 149 | J46: 149 | K46: 149 | L46: 149 | M46: 149 | N46: 149 | O46: 149
A47: Mercury vapour 50 watt | B47: =A$42 -> Mercury vapour 80 watt | D47: 1.42 | E47: 98.07 | F47: 584 | G47: 454 | H47: 426 | I47: 377 | J47: 151 | K47: 141.1587115 | L47: 131.95882 | M47: 123.3585232 | N47: 115.3187429 | O47: 107.8029481
A48: Mercury vapour 125 watt | B48: =A$42 -> Mercury vapour 80 watt | D48: 1.58 | E48: 109.12 | F48: 2362 | G48: 1966 | H48: 1786 | I48: 1315 | J48: 1280 | K48: 1208.940076 | L48: 1141.825084 | M48: 1078.436019 | N48: 1018.566033 | O48: 962.0197637
A49: Mercury vapour 250 watt | B49: =A$44 -> Sodium high pressure 250 watt | D49: 0.84 | E49: 100.27 | F49: 977 | G49: 863 | H49: 728 | I49: 587 | J49: 562 | K49: 511.664418 | L49: 465.837147 | M49: 424.1143998 | N49: 386.1285544 | O49: 351.5449146
A50: Mercury vapour 400 watt | B50: =A$44 -> Sodium high pressure 250 watt | D50: 0.85 | E50: 101.47 | F50: 433.5 | G50: 423.5 | H50: 354 | I50: 296 | J50: 280 | K50: 258.4779496 | L50: 238.61018 | M50: 220.269536 | N50: 203.3386358 | O50: 187.7091201
A51: Mercury vapour 700 watt | B51: =A$44 -> Sodium high pressure 250 watt | D51: 1.25 | E51: 149.22 | F51: 4 | G51: 4 | H51: 0 | I51: 0 | J51: 0 | K51: 0 | L51: 0 | M51: 0 | N51: 0 | O51: 0
A52: Sodium high pressure 70 watt | B52: =A$42 -> Mercury vapour 80 watt | D52: 2.12 | E52: 146.42 | F52: 508 | G52: 489 | H52: 479 | I52: 453 | J52: 378 | K52: 372.7424641 | L52: 367.5580543 | M52: 362.4457536 | N52: 357.404559 | O52: 352.4334815
A53: Sodium high pressure 100 watt | B53: =A$43 -> Sodium high pressure 150 watt | D53: 1.02 | E53: 120.01 | F53: 419 | G53: 405 | H53: 376 | I53: 367 | J53: 363 | K53: 349.961109 | L53: 337.3905725 | M53: 325.2715673 | N53: 313.5878745 | O53: 302.3238576
A54: Sodium high pressure 220 watt | B54: =A$44 -> Sodium high pressure 250 watt | D54: 1.002 | E54: 119.61 | F54: 2155 | G54: 2118 | H54: 2009 | I54: 1884 | J54: 1875 | K54: 1814.342427 | L54: 1755.64717 | M54: 1698.850745 | N54: 1643.891725 | O54: 1590.710668
A55: Sodium high pressure 360 watt | B55: =A$44 -> Sodium high pressure 250 watt | D55: 1.02 | E55: 121.76 | F55: 228 | G55: 225.5 | H55: 245 | I55: 233 | J55: 232 | K55: 230.4462492 | L55: 228.9029041 | M55: 227.3698951 | N55: 225.8471531 | O55: 224.3346091
A56: Sodium high pressure 400 watt | B56: =A$44 -> Sodium high pressure 250 watt | D56: 1.1 | E56: 131.31 | F56: 398.5 | G56: 399 | H56: 422 | I56: 421 | J56: 399 | K56: 406.2773462 | L56: 413.6874236 | M56: 421.2326532 | N56: 428.9154999 | O56: 436.7384738
A57: Sodium high pressure 1000 watt | B57: =A$44 -> Sodium high pressure 250 watt | D57: 1.98 | E57: 236.36 | F57: 2 | G57: 2 | H57: 0 | I57: 0 | J57: 0 | K57: 0 | L57: 0 | M57: 0 | N57: 0 | O57: 0
A58: Metal halide 70 watt | B58: =A$42 -> Mercury vapour 80 watt | D58: 2.12 | E58: 225.84 | F58: 1123 | G58: 1142 | H58: 1143 | I58: 1156 | J58: 1138 | K58: 1185.085935 | L58: 1234.1201 | M58: 1285.183104 | N58: 1338.358893 | O58: 1393.734886
A59: Metal halide 100 watt | B59: =A$43 -> Sodium high pressure 150 watt | D59: 1.57 | E59: 184.72 | F59: 236 | G59: 153 | H59: 153 | I59: 154 | J59: 157 | K59: 145.2058528 | L59: 134.2977049 | M59: 124.2089985 | N59: 114.8781755 | O59: 106.2483022
A60: Metal halide 150 watt | B60: =A$43 -> Sodium high pressure 150 watt | D60: 1.58 | E60: 185.89 | F60: 498 | G60: 540 | H60: 315 | I60: 323 | J60: 328 | K60: 314.1150074 | L60: 300.8177985 | M60: 288.0834909 | N60: 275.8882558 | O60: 264.2092729
A61: Metal halide 250 watt | B61: =A$44 -> Sodium high pressure 250 watt | D61: 1.2 | E61: 143.25 | F61: 469 | G61: 473 | H61: 647 | I61: 663 | J61: 678 | K61: 772.9642493 | L61: 881.2296912 | M61: 1004.659361 | N61: 1145.37724 | O61: 1305.804806
A62: Metal halide 400 watt | B62: =A$44 -> Sodium high pressure 250 watt | D62: 1.2 | E62: 143.25 | F62: 1214 | G62: 1206 | H62: 1266 | I62: 1303 | J62: 1300 | K62: 1317.330882 | L62: 1334.89281 | M62: 1352.688864 | N62: 1370.722165 | O62: 1388.995876
A63: Metal halide 1000 watt | B63: =A$44 -> Sodium high pressure 250 watt | D63: 1.79 | E63: 213.68 | F63: 8 | G63: 8 | H63: 6 | I63: 2 | J63: 2 | K63: 2 | L63: 0 | M63: 0 | N63: 0 | O63: 0
A66: Total Existing Lights | F66: =SUM(F42:F65) -> 48330.5 | G66: 47332 | H66: 40756 | I66: 35209.8 | J66: 31159.8 | K66: 29978.39908 | L66: 29538.2691 | M66: 29452.56012 | N66: 29424.63561 | O66: 29453.83036
A68: Energy Efficient Lights | B68: Reference Light | D68: Price Factor
A69: T5 2X14W | B69: =A69 -> T5 2X14W | D69: 1 | E69: 38.15 | F69: 3776 | G69: 4015 | H69: 9387 | I69: 13926 | J69: 13950 | K69: 13671 | L69: 13397.58 | M69: 12459.7494 | N69: 11587.56694 | O69: 10776.43726
A70: T5 2X24W | B70: T5 2X14W | D70: 0.9861275788 | F70: 167 | G70: 660 | H70: 1743 | I70: 2359 | J70: 2361 | K70: 2313.78 | L70: 2267.5044 | M70: 2108.779092 | N70: 1961.164556 | O70: 1823.883037
A71: CF32 | B71: T5 2X14W | D71: 0.9687520325 | F71: 56 | G71: 195 | H71: 225 | I71: 602 | J71: 608 | K71: 595.84 | L71: 583.9232 | M71: 543.048576 | N71: 505.0351757 | O71: 469.6827134
A72: CF42 | B72: T5 2X14W | D72: 0.9687520325 | F72: 33 | G72: 106 | H72: 158 | I72: 228 | J72: 473 | K72: 463.54 | L72: 454.2692 | M72: 422.470356 | N72: 392.8974311 | O72: 365.3946109
A73: Category P LED 18 Watt | B73: Category P LED 18 Watt | D73: 1 | F73: 0 | G73: 0 | H73: 0 | I73: 212 | J73: 3989 | K73: 5239.0748 | L73: 5778.36112 | M73: 6317.64744 | N73: 7581.176928 | O73: 9097.412314
A74: Category P LED 47 Watt | B74: Category P LED 18 Watt | D74: 1 | F74: 0 | G74: 0 | H74: 9 | I74: 78 | J74: 84 | K74: 84 | L74: 84 | M74: 84 | N74: 84 | O74: 84
A76: Total Energy Efficient Lights | F76: =SUM(F69:F75) -> 4032 | G76: 4976 | H76: 11522 | I76: 17405 | J76: 21465 | K76: 22367.2348 | L76: 22565.63792 | M76: 21935.69486 | N76: 22111.84103 | O76: 22616.80993
A78: Total Number of Lights | F78: =SUM(F66,F76) -> 52362.5 | G78: 52308 | H78: 52278 | I78: 52614.8 | J78: 52624.8 | K78: 52345.63388 | L78: 52103.90702 | M78: 51388.25499 | N78: 51536.47664 | O78: 52070.64029

Sheet DNSP Inputs O & M
A1: Public Lighting Cost Build-up Model
A3: Citipower | C3: O & M Data Inputs
C5: Real 2015 $
A7: Input parameters | C7: 2015 | D7: 2016 | E7: 2017 | F7: 2018 | G7: 2019 | H7: 2020
A9: Inputs - all lamps
A11: Labour rate (per hour) | C11: 98.07315243 | D11: 100 | E11: =D11+(D11*0.008) -> 100.8 | F11: =E11+(E11*0.0128) -> 102.09024 | G11: =F11+(F11*0.0148) -> 103.6011756 | H11: =G11+(G11*0.0137) -> 105.0205117
A12: Labour rate for night patrols (per hour) | C12: 112.7841253 | D12: 119.78 | E12: =D12+(D12*0.008) -> 120.73824 | F12: =E12+(E12*0.0128) -> 122.2836895 | G12: =F12+(F12*0.0148) -> 124.0934881 | H12: =G12+(G12*0.0137) -> 125.7935689
A13: Elevated platform vehicle (per hour) - urban MV,urban T5 | C13: 39.70489021 | D13: 40.42 | E13: 40.42 | F13: 40.42 | G13: 40.42 | H13: 40.42
A14: Elevated platform vehicle (per hour) - rural MV, rural T5, S-HP | C14: 51.04914455 | D14: 57.55345553 | E14: 58.79315472 | F14: 59.81315292 | G14: 60.83918751 | H14: 61.90061193
A15: Patrol vehicle (per hour) | C15: 28.8484388 | D15: 25.50745311 | E15: 26.05688266 | F15: 26.50894163 | G15: 26.96367591 | H15: 27.43409482
A16: Number of hours in a day | C16: 8 | D16: 8 | E16: 8 | F16: 8 | G16: 8 | H16: 8
A17: Indirect overheads | C17: 0.25 | D17: 0.25 | E17: 0.25 | F17: 0.25 | G17: 0.25 | H17: 0.25
A21: Inputs - MV80
A23: Depreciation period | B23: years | C23: 20 | D23: =C23 -> 20 | E23: =D23 -> 20 | F23: =E23 -> 20 | G23: =F23 -> 20 | H23: =G23 -> 20
A24: Lamps - bulk change | B24: years | C24: 4 | D24: 4 | E24: 4 | F24: 4 | G24: 4 | H24: 4
A25: PE cells - bulk change | B25: years | C25: 8 | D25: 8 | E25: 8 | F25: 8 | G25: 8 | H25: 8
A26: Proportion of lamps that fail between bulk change | C26: 0.15 | D26: 0.2313269938 | E26: 0.2313269938 | F26: 0.2313269938 | G26: 0.2313269938 | H26: 0.2313269938
A27: Unit cost - lamp | C27: 5.621813062 | D27: 5.694427666 | E27: 5.694427666 | F27: 5.694427666 | G27: 5.694427666 | H27: 5.694427666
A28: Unit cost - PE cell | C28: 22.69637877 | D28: 22.98953839 | E28: 22.98953839 | F28: 22.98953839 | G28: 22.98953839 | H28: 22.98953839
A29: Unit cost - luminaire | C29: 195.0412387 | D29: 197.5605047 | E29: 197.5605047 | F29: 197.5605047 | G29: 197.5605047 | H29: 197.5605047
A30: Unit cost - miscellaneous materials (bulk lamp) | C30: 1.230156031 | D30: 1.246045441 | E30: 1.246045441 | F30: 1.246045441 | G30: 1.246045441 | H30: 1.246045441
A31: Unit cost - miscellaneous materials (repair) | C31: 12.30156031 | D31: 12.46045441 | E31: 12.46045441 | F31: 12.46045441 | G31: 12.46045441 | H31: 12.46045441
A32: Number of men in crew | C32: 2 | D32: 2 | E32: 2 | F32: 2 | G32: 2 | H32: 2
A33: Number of bulk lamp changes in 1 day - urban | C33: 86.4 | D33: 86.4 | E33: 86.4 | F33: 86.4 | G33: 86.4 | H33: 86.4
A34: Number of repairs in 1 day - urban | C34: 28.8 | D34: 28.8 | E34: 28.8 | F34: 28.8 | G34: 28.8 | H34: 28.8
A35: % of repairs - lamps | C35: 0.6 | D35: 0.6 | E35: 0.6 | F35: 0.6 | G35: 0.6 | H35: 0.6
A36: % of repairs - PE cells | C36: 0.5 | D36: 0.5 | E36: 0.5 | F36: 0.5 | G36: 0.5 | H36: 0.5
A37: % of repairs - luminaires | C37: 0.15 | D37: 0.15 | E37: 0.15 | F37: 0.15 | G37: 0.15 | H37: 0.15
A38: % of repairs - other | C38: 0.1 | D38: 0.1 | E38: 0.1 | F38: 0.1 | G38: 0.1 | H38: 0.1
A40: Other Maintenance and Repair costs
A41: Traffic control costs | C41: 4384.938139 | D41: 6464.944997 | E41: 3725.630153 | F41: 3277.525181 | G41: 3000.079126 | H41: 2708.025257
A42: Other costs : Cascading Network | C42: 0 | D42: 1774.253088 | E42: 1444.671754 | F42: 1334.49474 | G42: 1212.292107 | H42: 1093.126313
C43: =SUM(C41:C42) -> 4384.938139 | D43: 8239.198086 | E43: 5170.301907 | F43: 4612.019921 | G43: 4212.371233 | H43: 3801.15157
A44: Number of Lights | C44: ='DNSP Inputs General'!J42 -> 3907.4 | D44: ='DNSP Inputs General'!K42 -> 2657.3252 | E44: ='DNSP Inputs General'!L42 -> 2118.03888 | F44: ='DNSP Inputs General'!M42 -> 1897.671242 | G44: ='DNSP Inputs General'!N42 -> 1700.231368 | H44: ='DNSP Inputs General'!O42 -> 1523.333779
A45: Unit Cost | C45: =IF(C44=0,0,C43/C44) -> 1.122213784 | D45: 3.100560701 | E45: 2.441079791 | F45: 2.430357703 | G45: 2.477528243 | H45: 2.495284765
A49: Inputs - S-HP150
A51: Depreciation period | B51: years | C51: 20 | D51: =C51 -> 20 | E51: =D51 -> 20 | F51: =E51 -> 20 | G51: =F51 -> 20 | H51: =G51 -> 20
A52: Number of patrols per year | C52: 3 | D52: 3 | E52: 3 | F52: 3 | G52: 3 | H52: 3
A53: Lamps - frequency of replacement | B53: years | C53: 5 | D53: 5 | E53: 5 | F53: 5 | G53: 5 | H53: 5
A54: PE cells - frequency of replacement | B54: years | C54: 10 | D54: 10 | E54: 10 | F54: 10 | G54: 10 | H54: 10
A55: Unit cost - lamp | C55: 40.65665683 | D55: 41.18180183 | E55: 41.18180183 | F55: 41.18180183 | G55: 41.18180183 | H55: 41.18180183
A56: Unit cost - PE cell | C56: 22.08130076 | D56: 22.36651567 | E56: 22.36651567 | F56: 22.36651567 | G56: 22.36651567 | H56: 22.36651567
A57: Unit cost - miscellaneous materials | C57: 2.460312062 | D57: 2.492090882 | E57: 2.492090882 | F57: 2.492090882 | G57: 2.492090882 | H57: 2.492090882
A58: Number of men in crew - road patrols | C58: 2 | D58: 2 | E58: 2 | F58: 2 | G58: 2 | H58: 2
A59: Number of men in crew - repairs | C59: 2 | D59: 2 | E59: 2 | F59: 2 | G59: 2 | H59: 2
A60: Number of lamps patrolled in 1 day - urban | C60: 3000 | D60: 3000 | E60: 3000 | F60: 3000 | G60: 3000 | H60: 3000
A61: Number of repairs in 1 day - urban | C61: 19.2 | D61: 19.2 | E61: 19.2 | F61: 19.2 | G61: 19.2 | H61: 19.2
A63: Other Maintenance and Repair costs
A64: Traffic control costs | C64: 70888.69004 | D64: 34322.6167 | E64: 34977.23539 | F64: 35866.3369 | G64: 36506.71991 | H64: 37200.94826
A65: Other costs : Cascading Network | C65: 0 | D65: 19163.08112 | E65: 19437.58437 | F65: 19433.02094 | G65: 19137.66751 | H65: 18737.75501
C66: =SUM(C64:C65) -> 70888.69004 | D66: 53485.69782 | E66: 54414.81976 | F66: 55299.35783 | G66: 55644.38742 | H66: 55938.70326
A67: Number of Lights | C67: ='DNSP Inputs General'!J43 -> 12600 | D67: ='DNSP Inputs General'!K43 -> 12662.72081 | E67: ='DNSP Inputs General'!L43 -> 12725.75384 | F67: ='DNSP Inputs General'!M43 -> 12789.10064 | G67: ='DNSP Inputs General'!N43 -> 12852.76277 | H67: ='DNSP Inputs General'!O43 -> 12916.7418
A68: Unit Cost | C68: =IF(C67=0,0,C66/C67) -> 5.626086511 | D68: 4.223870889 | E68: 4.275960421 | F68: 4.323944223 | G68: 4.329371702 | H68: 4.330713128
A72: Inputs - S-HP250
A74: Depreciation period | B74: years | C74: =C51 -> 20 | D74: 20 | E74: 20 | F74: 20 | G74: 20 | H74: 20
A75: Number of patrols per year | C75: 3 | D75: 3 | E75: 3 | F75: 3 | G75: 3 | H75: 3
A76: Lamps - frequency of replacement | B76: years | C76: 5 | D76: 5 | E76: 5 | F76: 5 | G76: 5 | H76: 5
A77: PE cells - frequency of replacement | B77: years | C77: 10 | D77: 10 | E77: 10 | F77: 10 | G77: 10 | H77: 10
A78: Unit cost - lamp | C78: 40.85348179 | D78: 41.18180183 | E78: 41.18180183 | F78: 41.18180183 | G78: 41.18180183 | H78: 41.18180183
A79: Unit cost - PE cell | C79: 22.08130076 | D79: 22.36651567 | E79: 22.36651567 | F79: 22.36651567 | G79: 22.36651567 | H79: 22.36651567
A80: Unit cost - miscellaneous materials | C80: 2.460312062 | D80: 2.492090882 | E80: 2.492090882 | F80: 2.492090882 | G80: 2.492090882 | H80: 2.492090882
A81: Number of men in crew - road patrols | C81: =C58 -> 2 | D81: 2 | E81: 2 | F81: 2 | G81: 2 | H81: 2
A82: Number of men in crew - repairs | C82: 2 | D82: 2 | E82: 2 | F82: 2 | G82: 2 | H82: 2
A83: Number of lamps patrolled in 1 day - urban | C83: 3000 | D83: 3000 | E83: 3000 | F83: 3000 | G83: 3000 | H83: 3000
A84: Number of repairs in 1 day - urban | C84: 19.2 | D84: 19.2 | E84: 19.2 | F84: 19.2 | G84: 19.2 | H84: 19.2
A86: Other Maintenance and Repair costs
A87: Traffic control costs | C87: 29035.44219 | D87: 14660.26089 | E87: 15141.29687 | F87: 15735.51295 | G87: 16232.40916 | H87: 16764.10853
A88: Other costs : Cascading Network | C88: 0 | D88: 9810.683546 | E88: 10013.20293 | F88: 10256.89878 | G88: 10361.3869 | H88: 10419.60896
C89: =SUM(C87:C88) -> 29035.44219 | D89: 24470.94444 | E89: 25154.49981 | F89: 25992.41173 | G89: 26593.79606 | H89: 27183.71749
A90: Number of Lights | C90: ='DNSP Inputs General'!J$44 -> 5302.4 | D90: ='DNSP Inputs General'!K$44 -> 5400.640384 | E90: ='DNSP Inputs General'!L$44 -> 5500.70092 | F90: ='DNSP Inputs General'!M$44 -> 5602.61533 | G90: ='DNSP Inputs General'!N$44 -> 5706.417964 | H90: ='DNSP Inputs General'!O$44 -> 5812.143803
A91: Unit Cost | C91: =IF(C90=0,0,C89/C90) -> 5.475905663 | D91: 4.531119034 | E91: 4.572962641 | F91: 4.639335418 | G91: 4.660330918 | H91: 4.677055216
A95: Dedicated street lighting poles
A97: Period of inspection | B97: years | C97: 5 | D97: 5 | E97: 5 | F97: 5 | G97: 5 | H97: 5
A98: Pole inspection rate | B98: per day | C98: 72 | D98: 72 | E98: 72 | F98: 72 | G98: 72 | H98: 72
A99: Depreciation of dedicated street lighting pole & bracket | B99: years | C99: 35 | D99: =C99 -> 35 | E99: =D99 -> 35 | F99: =E99 -> 35 | G99: =F99 -> 35 | H99: =G99 -> 35
A100: Proportion of lights on dedicated poles | C100: 0.1963308044 | D100: 0.1963308044 | E100: 0.1963308044 | F100: 0.1963308044 | G100: 0.1963308044 | H100: 0.1963308044
A104: Other direct costs
A105: Call centre
A106: Number of calls | C106: 2400 | D106: 3969.548005 | E106: 4036.410016 | F106: 4104.398233 | G106: 4173.531625 | H106: 4243.829482
A107: Average cost per call $ | C107: 11.34425434 | D107: 11.34425434 | E107: 11.34425434 | F107: 11.34425434 | G107: 11.34425434 | H107: 11.34425434
C108: =C106*C107 -> 27226.21043 | D108: 45031.56221 | E108: 45790.06187 | F108: 46561.33749 | G108: 47345.60428 | H108: 48143.08104
A110: GIS and other | C110: 113442.5434 | D110: 113442.5434 | E110: 113442.5434 | F110: 113442.5434 | G110: 113442.5434 | H110: 113442.5434
A111: Complaints handling | C111: 34032.76303 | D111: 34032.76303 | E111: 34032.76303 | F111: 34032.76303 | G111: 34032.76303 | H111: 34032.76303
A112: Accounts Manager
A115: ENERGY EFFICIENT LIGHTS
A117: Inputs - T5 (2 X 14W)
A119: Depreciation period | B119: years | C119: 20 | D119: =C119 -> 20 | E119: =D119 -> 20 | F119: =E119 -> 20 | G119: =F119 -> 20 | H119: =G119 -> 20
A120: Lamps - bulk change | B120: years | C120: 4 | D120: 4 | E120: 4 | F120: 4 | G120: 4 | H120: 4
A121: PE cells - bulk change | B121: years | C121: 8 | D121: 8 | E121: 8 | F121: 8 | G121: 8 | H121: 8
A122: Ballast unit life | B122: years | C122: 20 | D122: =C122 -> 20 | E122: =D122 -> 20 | F122: =E122 -> 20 | G122: =F122 -> 20 | H122: =G122 -> 20
A123: Proportion of luminaires that fail between bulk change | C123: 0.114 | D123: 0.114 | E123: 0.114 | F123: 0.114 | G123: 0.114 | H123: 0.114
A124: Unit cost - lamp | C124: 9.841248249 | D124: 9.968363529 | E124: 9.968363529 | F124: 9.968363529 | G124: 9.968363529 | H124: 9.968363529
A125: Unit cost - PE cell | C125: 16.60710642 | D125: 16.82161346 | E125: 16.82161346 | F125: 16.82161346 | G125: 16.82161346 | H125: 16.82161346
A126: Unit cost - luminaire | C126: 296.6890316 | D126: 300.5212395 | E126: 300.5212395 | F126: 300.5212395 | G126: 300.5212395 | H126: 300.5212395
A127: Unit cost - miscellaneous materials (bulk lamp) | C127: 1.230156031 | D127: 1.246045441 | E127: 1.246045441 | F127: 1.246045441 | G127: 1.246045441 | H127: 1.246045441
A128: Unit cost - miscellaneous materials (repair) | C128: 12.30156031 | D128: 12.46045441 | E128: 12.46045441 | F128: 12.46045441 | G128: 12.46045441 | H128: 12.46045441
A129: Number of men in crew | C129: 2 | D129: 2 | E129: 2 | F129: 2 | G129: 2 | H129: 2
A130: Number of bulk lamp changes in 1 day - urban | C130: 73.92 | D130: 73.92 | E130: 73.92 | F130: 73.92 | G130: 73.92 | H130: 73.92
A131: Number of repairs in 1 day - urban | C131: 24.96 | D131: 24.96 | E131: 24.96 | F131: 24.96 | G131: 24.96 | H131: 24.96
A132: % of repairs - lamps | C132: 0.6 | D132: 0.6 | E132: 0.6 | F132: 0.6 | G132: 0.6 | H132: 0.6
A133: % of repairs - PE cells | C133: 0.5 | D133: 0.5 | E133: 0.5 | F133: 0.5 | G133: 0.5 | H133: 0.5
A134: % of repairs - luminaires | C134: 0.15 | D134: 0.15 | E134: 0.15 | F134: 0.15 | G134: 0.15 | H134: 0.15
A135: % of repairs - other | C135: 0.1 | D135: 0.1 | E135: 0.1 | F135: 0.1 | G135: 0.1 | H135: 0.1
A137: Other Maintenance and Repair costs
A138: Traffic control costs | C138: 15971.09106 | D138: 18078.92763 | E138: 18380.92576 | F138: 16784.54522 | G138: 15947.48312 | H138: 14941.97664
A139: Other costs : Cascading Network | C139: 0 | D139: 9127.90575 | E139: 9138.220069 | F139: 8762.03932 | G139: 8262.120209 | H139: 7733.043992
C140: =SUM(C138:C139) -> 15971.09106 | D140: 27206.83338 | E140: 27519.14583 | F140: 25546.58454 | G140: 24209.60333 | H140: 22675.02063
A141: Number of Lights | C141: ='DNSP Inputs General'!J$69 -> 13950 | D141: ='DNSP Inputs General'!K$69 -> 13671 | E141: ='DNSP Inputs General'!L$69 -> 13397.58 | F141: ='DNSP Inputs General'!M$69 -> 12459.7494 | G141: ='DNSP Inputs General'!N$69 -> 11587.56694 | H141: ='DNSP Inputs General'!O$69 -> 10776.43726
A142: Unit Cost | C142: =IF(C141=0,0,C140/C141) -> 1.144881079 | D142: 1.990112895 | E142: 2.054038552 | F142: 2.050328921 | G142: 2.089274086 | H142: 2.104129601
A148: Inputs - Category P LED
A150: Depreciation period | B150: years | D150: 20 | E150: =D150 -> 20 | F150: =E150 -> 20 | G150: =F150 -> 20 | H150: =G150 -> 20
A151: PE cells - bulk change | B151: years | D151: 8 | E151: 8 | F151: 8 | G151: 8 | H151: 8
A152: Proportion of luminaires that fail between bulk change | D152: 0.114 | E152: 0.114 | F152: 0.114 | G152: 0.114 | H152: 0.114
A153: Unit cost - PE cell | D153: 16.82161346 | E153: 16.82161346 | F153: 16.82161346 | G153: 16.82161346 | H153: 16.82161346
A154: Unit cost - luminaire | D154: 352.7287516 | E154: 352.7287516 | F154: 352.7287516 | G154: 352.7287516 | H154: 352.7287516
A155: Unit cost - miscellaneous materials (repair) | D155: 12.46045441 | E155: 12.46045441 | F155: 12.46045441 | G155: 12.46045441 | H155: 12.46045441
A156: Number of men in crew | D156: 2 | E156: 2 | F156: 2 | G156: 2 | H156: 2
A157: Number of bulk lamp changes in 1 day - urban | D157: 73.92 | E157: 73.92 | F157: 73.92 | G157: 73.92 | H157: 73.92
A158: Number of repairs in 1 day - urban | D158: 24.96 | E158: 24.96 | F158: 24.96 | G158: 24.96 | H158: 24.96
A159: % of repairs - PE cells | D159: 0.5 | E159: 0.5 | F159: 0.5 | G159: 0.5 | H159: 0.5
A160: % of repairs - luminaires | D160: 0.15 | E160: 0.15 | F160: 0.15 | G160: 0.15 | H160: 0.15
A161: % of repairs - other | D161: 0.1 | E161: 0.1 | F161: 0.1 | G161: 0.1 | H161: 0.1
A163: Other Maintenance and Repair costs
A164: Traffic control costs | D164: 1745.775774 | E164: 4792.610824 | F164: 7633.209169 | G164: 9358.107578 | H164: 11313.6368
A165: Other costs : Cascading Network | D165: 1388.113321 | E165: 1564.009521 | F165: 1762.9936 | G165: 2145.039751 | H165: 2590.553786
C166: =SUM(C164:C165) -> 0 | D166: 3133.889095 | E166: 6356.620345 | F166: 9396.202769 | G166: 11503.14733 | H166: 13904.19059
A167: Number of Lights | C167: ='DNSP Inputs General'!J$73 -> 3989 | D167: ='DNSP Inputs General'!K$73 -> 5239.0748 | E167: ='DNSP Inputs General'!L$73 -> 5778.36112 | F167: ='DNSP Inputs General'!M$73 -> 6317.64744 | G167: ='DNSP Inputs General'!N$73 -> 7581.176928 | H167: ='DNSP Inputs General'!O$73 -> 9097.412314
A168: Unit Cost | C168: =IF(C167=0,0,C166/C167) -> 0 | D168: 0.5981760549 | E168: 1.100073224 | F168: 1.487294576 | G168: 1.517330019 | H168: 1.52836764

Sheet DNSP Inputs Capex
A1: Public Lighting Cost Build-up Model
A3: ='DNSP Inputs O & M'!$A$3 -> Citipower | C3: Capex Data Inputs
C5: Real 2015 $
A7: Input parameters | C7: 2015 | D7: 2016 | E7: 2017 | F7: 2018 | G7: 2019 | H7: 2020
A9: Inputs - all lamps
A11: Labour rate (per hour) | C11: ='DNSP Inputs O & M'!C11 -> 98.07315243 | D11: ='DNSP Inputs O & M'!D11 -> 100 | E11: ='DNSP Inputs O & M'!E11 -> 100.8 | F11: ='DNSP Inputs O & M'!F11 -> 102.09024 | G11: ='DNSP Inputs O & M'!G11 -> 103.6011756 | H11: ='DNSP Inputs O & M'!H11 -> 105.0205117
A12: Elevated platform vehicle (per hour) - urban MV,urban T5 | C12: ='DNSP Inputs O & M'!C13 -> 39.70489021 | D12: ='DNSP Inputs O & M'!D13 -> 40.42 | E12: ='DNSP Inputs O & M'!E13 -> 40.42 | F12: ='DNSP Inputs O & M'!F13 -> 40.42 | G12: ='DNSP Inputs O & M'!G13 -> 40.42 | H12: ='DNSP Inputs O & M'!H13 -> 40.42
A13: Elevated platform vehicle (per hour) - rural MV, rural T5, S-HP | C13: ='DNSP Inputs O & M'!C14 -> 51.04914455 | D13: ='DNSP Inputs O & M'!D14 -> 57.55345553 | E13: ='DNSP Inputs O & M'!E14 -> 58.79315472 | F13: ='DNSP Inputs O & M'!F14 -> 59.81315292 | G13: ='DNSP Inputs O & M'!G14 -> 60.83918751 | H13: ='DNSP Inputs O & M'!H14 -> 61.90061193
A14: Number of hours in a day | C14: ='DNSP Inputs O & M'!C16 -> 8 | D14: ='DNSP Inputs O & M'!D16 -> 8 | E14: ='DNSP Inputs O & M'!E16 -> 8 | F14: ='DNSP Inputs O & M'!F16 -> 8 | G14: ='DNSP Inputs O & M'!G16 -> 8 | H14: ='DNSP Inputs O & M'!H16 -> 8
A18: Inputs - MV80
A20: Unit cost - luminaire | C20: ='DNSP Inputs O & M'!C29 -> 195.0412387 | D20: ='DNSP Inputs O & M'!D29 -> 197.5605047 | E20: ='DNSP Inputs O & M'!E29 -> 197.5605047 | F20: ='DNSP Inputs O & M'!F29 -> 197.5605047 | G20: ='DNSP Inputs O & M'!G29 -> 197.5605047 | H20: ='DNSP Inputs O & M'!H29 -> 197.5605047
A21: Unit cost - miscellaneous materials (bulk lamp) | C21: ='DNSP Inputs O & M'!C30 -> 1.230156031 | D21: ='DNSP Inputs O & M'!D30 -> 1.246045441 | E21: ='DNSP Inputs O & M'!E30 -> 1.246045441 | F21: ='DNSP Inputs O & M'!F30 -> 1.246045441 | G21: ='DNSP Inputs O & M'!G30 -> 1.246045441 | H21: ='DNSP Inputs O & M'!H30 -> 1.246045441
A22: Number of men in crew | C22: ='DNSP Inputs O & M'!C32 -> 2 | D22: ='DNSP Inputs O & M'!D32 -> 2 | E22: ='DNSP Inputs O & M'!E32 -> 2 | F22: ='DNSP Inputs O & M'!F32 -> 2 | G22: ='DNSP Inputs O & M'!G32 -> 2 | H22: ='DNSP Inputs O & M'!H32 -> 2
A23: Number of luminaires replaced per day - urban | C23: 15.36 | D23: 15.36 | E23: 15.36 | F23: 15.36 | G23: 15.36 | H23: 15.36
A25: Other Capex unit costs Describe :……………………… | C25: 0 | D25: 0 | E25: 0 | F25: 0 | G25: 0 | H25: 0
A27: Forecast Quantities to be replaced
A28: Number of luminaires replaced per year - urban | D28: 25.81437169 | E28: 20.83971293 | F28: 19.23041576 | G28: 17.06952934 | H28: 14.91602526
A30: MV80 Lights replaced with T5 Energy Efficient Lights
A31: Number of Lights MV80 replaced with T5 per year | D31: 1250.0748 | E31: 539.28632 | F31: 220.3676383 | G31: 197.4398741 | H31: 176.8975889
A35: Inputs - S-HP150
A37: Unit cost - luminaire | C37: 230.8264777 | D37: 203.4743498 | E37: 203.4743498 | F37: 203.4743498 | G37: 203.4743498 | H37: 203.4743498
A38: Unit cost - miscellaneous materials | C38: ='DNSP Inputs O & M'!C57 -> 2.460312062 | D38: ='DNSP Inputs O & M'!D57 -> 2.492090882 | E38: ='DNSP Inputs O & M'!E57 -> 2.492090882 | F38: ='DNSP Inputs O & M'!F57 -> 2.492090882 | G38: ='DNSP Inputs O & M'!G57 -> 2.492090882 | H38: ='DNSP Inputs O & M'!H57 -> 2.492090882
A39: Number of men in crew | C39: ='DNSP Inputs O & M'!C59 -> 2 | D39: ='DNSP Inputs O & M'!D59 -> 2 | E39: ='DNSP Inputs O & M'!E59 -> 2 | F39: ='DNSP Inputs O & M'!F59 -> 2 | G39: ='DNSP Inputs O & M'!G59 -> 2 | H39: ='DNSP Inputs O & M'!H59 -> 2
A40: Number of luminaires replaced per day - urban | C40: 15.36 | D40: 15.36 | E40: 15.36 | F40: 15.36 | G40: 15.36 | H40: 15.36
A42: Other Capex unit costs Describe :……………………… | C42: 0 | D42: 0 | E42: 0 | F42: 0 | G42: 0 | H42: 0
A44: Forecast Quantities to be replaced
A45: Number of luminaires replaced per year - urban | D45: 273.6545217 | E45: 272.5558321 | F45: 271.4512943 | G45: 270.3409613 | H45: 269.2248877
A49: Inputs - S-HP250
A51: Unit cost - luminaire | C51: 234.2709146 | D51: 206.510633 | E51: 206.510633 | F51: 206.510633 | G51: 206.510633 | H51: 206.510633
A52: Unit cost - miscellaneous materials | C52: ='DNSP Inputs O & M'!C80 -> 2.460312062 | D52: ='DNSP Inputs O & M'!D80 -> 2.492090882 | E52: ='DNSP Inputs O & M'!E80 -> 2.492090882 | F52: ='DNSP Inputs O & M'!F80 -> 2.492090882 | G52: ='DNSP Inputs O & M'!G80 -> 2.492090882 | H52: ='DNSP Inputs O & M'!H80 -> 2.492090882
A53: Number of men in crew | C53: ='DNSP Inputs O & M'!C82 -> 2 | D53: ='DNSP Inputs O & M'!D82 -> 2 | E53: ='DNSP Inputs O & M'!E82 -> 2 | F53: ='DNSP Inputs O & M'!F82 -> 2 | G53: ='DNSP Inputs O & M'!G82 -> 2 | H53: ='DNSP Inputs O & M'!H82 -> 2
A54: Number of luminaires replaced per day - urban | C54: 15.36 | D54: 15.36 | E54: 15.36 | F54: 15.36 | G54: 15.36 | H54: 15.36
A56: Other Capex unit costs Describe :……………………… | C56: 0 | D56: 0 | E56: 0 | F56: 0 | G56: 0 | H56: 0
A58: Forecast Quantities to be replaced
A59: Number of luminaires replaced per year - urban | D59: 116.7134365 | E59: 117.8121261 | F59: 118.9166639 | G59: 120.026997 | H59: 121.1430705
A63: Dedicated street lighting poles
A65: Cost of pole & bracket | C65: 1577.870932 | D65: 1390.898761 | E65: 1390.898761 | F65: 1390.898761 | G65: 1390.898761 | H65: 1390.898761
A66: Number of poles & brackets replaced per day | C66: 3.84 | D66: 3.84 | E66: 3.84 | F66: 3.84 | G66: 3.84 | H66: 3.84
A67: Cost of bracket on non-dedicated poles | C67: 47.85487479 | D67: 42.18424 | E67: 42.18424 | F67: 42.18424 | G67: 42.18424 | H67: 42.18424
A68: Number of brackets replaced per day | C68: 19.2 | D68: 19.2 | E68: 19.2 | F68: 19.2 | G68: 19.2 | H68: 19.2
A70: Other poles & brackets Capex unit costs Describe :………………… | C70: 0 | D70: 0 | E70: 0 | F70: 0 | G70: 0 | H70: 0
A73: Forecast Quantities to be replaced
A74: Number of poles & brackets replaced per year - urban | D74: 61.25 | E74: 61.25 | F74: 61.25 | G74: 61.25 | H74: 61.25
A76: Brackets on non-dedicated poles :
A77: Number of brackets replaced per year - urban | D77: 20 | E77: 20 | F77: 20 | G77: 20 | H77: 20
A81: Luminaire Replacements - Other Light types (excluding T5s)
A82: Number of luminaires replaced per year | D82: 599.8827289 | E82: 599.8827289 | F82: 599.8827289 | G82: 599.8827289 | H82: 599.8827289
A83: Forecast Capex | D83: 453165.7755 | E83: 453165.7755 | F83: 453165.7755 | G83: 453165.7755 | H83: 453165.7755
A87: Inputs - T5 (2 X 14W)
A89: Unit cost - luminaire | C89: ='DNSP Inputs O & M'!C126 -> 296.6890316 | D89: ='DNSP Inputs O & M'!D126 -> 300.5212395 | E89: ='DNSP Inputs O & M'!E126 -> 300.5212395 | F89: ='DNSP Inputs O & M'!F126 -> 300.5212395 | G89: ='DNSP Inputs O & M'!G126 -> 300.5212395 | H89: ='DNSP Inputs O & M'!H126 -> 300.5212395
A90: Unit cost - miscellaneous materials (bulk lamp) | C90: ='DNSP Inputs O & M'!C127 -> 1.230156031 | D90: ='DNSP Inputs O & M'!D127 -> 1.246045441 | E90: ='DNSP Inputs O & M'!E127 -> 1.246045441 | F90: ='DNSP Inputs O & M'!F127 -> 1.246045441 | G90: ='DNSP Inputs O & M'!G127 -> 1.246045441 | H90: ='DNSP Inputs O & M'!H127 -> 1.246045441
A91: Number of men in crew | C91: ='DNSP Inputs O & M'!C129 -> 2 | D91: ='DNSP Inputs O & M'!D129 -> 2 | E91: ='DNSP Inputs O & M'!E129 -> 2 | F91: ='DNSP Inputs O & M'!F129 -> 2 | G91: ='DNSP Inputs O & M'!G129 -> 2 | H91: ='DNSP Inputs O & M'!H129 -> 2
A92: Number of luminaires replaced per day - urban | D92: 15.36 | E92: 15.36 | F92: 15.36 | G92: 15.36 | H92: 15.36
A94: Other Capex unit costs Describe :……………………… | D94: 0 | E94: 0 | F94: 0 | G94: 0 | H94: 0
A96: Forecast Quantities to be replaced
A97: Number of luminaires replaced per year - urban | D97: 132.8058287 | E97: 131.8208668 | F97: 126.263262 | G97: 116.3337636 | H97: 105.5196258
A101: Inputs - Category P LED
A103: Unit cost - luminaire | D103: ='DNSP Inputs O & M'!D154 -> 352.7287516 | E103: ='DNSP Inputs O & M'!E154 -> 352.7287516 | F103: ='DNSP Inputs O & M'!F154 -> 352.7287516 | G103: ='DNSP Inputs O & M'!G154 -> 352.7287516 | H103: ='DNSP Inputs O & M'!H154 -> 352.7287516
A104: Number of men in crew | D104: ='DNSP Inputs O & M'!D156 -> 2 | E104: ='DNSP Inputs O & M'!E156 -> 2 | F104: ='DNSP Inputs O & M'!F156 -> 2 | G104: ='DNSP Inputs O & M'!G156 -> 2 | H104: ='DNSP Inputs O & M'!H156 -> 2
A105: Number of luminaires replaced per day - urban | D105: 15.36 | E105: 15.36 | F105: 15.36 | G105: 15.36 | H105: 15.36
A107: Other Capex unit costs Describe :……………………… | D107: 0 | E107: 0 | F107: 0 | G107: 0 | H107: 0
A109: Forecast Quantities to be replaced
A110: Number of luminaires replaced per year - urban | D110: 50.8945703 | E110: 56.85419096 | F110: 64.02109292 | G110: 76.11147782 | H110: 89.07911962

Sheet PL Tariffs
A1: ='DNSP Inputs O & M'!$A$3 -> Citipower | E1: Global Check | F1: =IF(SUM('Total RAB'!F1,'Depn & WACC Post 2004'!F1,'Cashflow Summary'!F1,'PL Tariff Components'!W1)<1,"Ok","Error") -> Ok
A3: Public Lighting Tariffs | C3: Nominal Prices | J3: Nominal Price Movement | P3: Real Price Movement (Implied X Factor)
C4: Actual
A5: ='DNSP Inputs General'!A$41 -> Existing Lights | C5: ='DNSP Inputs General'!J$2 -> 2015 | D5: ='DNSP Inputs General'!K$2 -> 2016 | E5: ='DNSP Inputs General'!L$2 -> 2017 | F5: ='DNSP Inputs General'!M$2 -> 2018 | G5: ='DNSP Inputs General'!N$2 -> 2019 | H5: ='DNSP Inputs General'!O$2 -> 2020 | J5: =D5 -> 2016 | K5: =E5 -> 2017 | L5: 2018 | M5: 2019 | N5: 2020 | P5: =J5 -> 2016 | Q5: =K5 -> 2017 | R5: 2018 | S5: 2019 | T5: 2020
A6: ='DNSP Inputs General'!A42 -> Mercury vapour 80 watt | C6: ='DNSP Inputs General'!E42 -> 69.07 | D6: ='Charges Summary'!D$31 -> 61.68694619 | E6: ='Charges Summary'!E$31 -> 62.62517998 | F6: ='Charges Summary'!F$31 -> 64.59047425 | G6: ='Charges Summary'!G$31 -> 66.49890251 | H6: ='Charges Summary'!H$31 -> 68.24273365 | J6: =IF(C6=0,"",D6/C6-1) -> -0.1068923384 | K6: =IF(D6=0,"",E6/D6-1) -> 0.01520960021 | L6: =IF(E6=0,"",F6/E6-1) -> 0.03138185431 | M6: =IF(F6=0,"",G6/F6-1) -> 0.02954659002 | N6: =IF(G6=0,"",H6/G6-1) -> 0.02622345746 | P6: =IF(C6=0,"",(D6/'Charges Summary'!D$4)/C6-1) -> -0.1286754521 | Q6: =IF(D6=0,"",(E6/'Charges Summary'!E$4)/(D6/'Charges Summary'!D$4)-1) -> -0.009551609553 | R6: =IF(E6=0,"",(F6/'Charges Summary'!F$4)/(E6/'Charges Summary'!E$4)-1) -> 0.006226199328 | S6: =IF(F6=0,"",(G6/'Charges Summary'!G$4)/(F6/'Charges Summary'!F$4)-1) -> 0.00443569758 | T6: =IF(G6=0,"",(H6/'Charges Summary'!H$4)/(G6/'Charges Summary'!G$4)-1) -> 0.001193617031
A7: ='DNSP Inputs General'!A43 -> Sodium high pressure 150 watt | C7: ='DNSP Inputs General'!E43 -> 117.65 | D7: ='Charges Summary'!D$55 -> 102.612513 | E7: ='Charges Summary'!E$55 -> 105.966076 | F7: ='Charges Summary'!F$55 -> 109.638386 | G7: ='Charges Summary'!G$55 -> 113.2280538 | H7: ='Charges Summary'!H$55 -> 116.7139261 | J7: =IF(C7=0,"",D7/C7-1) -> -0.1278154443 | K7: 0.03268181323 | L7: 0.0346555255 | M7: 0.03274097604 | N7: 0.03078629558 | P7: =IF(C7=0,"",(D7/'Charges Summary'!D$4)/C7-1) -> -0.1490882383 | Q7: =IF(D7=0,"",(E7/'Charges Summary'!E$4)/(D7/'Charges Summary'!D$4)-1) -> 0.007494451936 | R7: =IF(E7=0,"",(F7/'Charges Summary'!F$4)/(E7/'Charges Summary'!E$4)-1) -> 0.009420024878 | S7: =IF(F7=0,"",(G7/'Charges Summary'!G$4)/(F7/'Charges Summary'!F$4)-1) -> 0.007552171744 | T7: =IF(G7=0,"",(H7/'Charges Summary'!H$4)/(G7/'Charges Summary'!G$4)-1) -> 0.005645166422
A8: ='DNSP Inputs General'!A44 -> Sodium high pressure 250 watt | C8: ='DNSP Inputs General'!E44 -> 119.37 | D8: ='Charges Summary'!D$71 -> 104.0356678 | E8: ='Charges Summary'!E$71 -> 107.4269093 | F8: ='Charges Summary'!F$71 -> 111.1747094 | G8: ='Charges Summary'!G$71 -> 114.838358 | H8: ='Charges Summary'!H$71 -> 118.3969577 | J8: -0.1284605191 | K8: 0.03259691143 | L8: 0.03488697659 | M8: 0.03295397557 | N8: 0.03098790086 | P8: =IF(C8=0,"",(D8/'Charges Summary'!D$4)/C8-1) -> -0.1497175796 | Q8: =IF(D8=0,"",(E8/'Charges Summary'!E$4)/(D8/'Charges Summary'!D$4)-1) -> 0.007411620908 | R8: =IF(E8=0,"",(F8/'Charges Summary'!F$4)/(E8/'Charges Summary'!E$4)-1) -> 0.009645830819 | S8: =IF(F8=0,"",(G8/'Charges Summary'!G$4)/(F8/'Charges Summary'!F$4)-1) -> 0.007759976169 | T8: =IF(G8=0,"",(H8/'Charges Summary'!H$4)/(G8/'Charges Summary'!G$4)-1) -> 0.005841854493
A9: ='DNSP Inputs General'!A45 -> Fluorescent 20 watt | C9: ='DNSP Inputs General'!E45 -> 137.44 | D9: =IF('DNSP Inputs General'!$B45='DNSP Inputs General'!$A$42,D$6,IF('DNSP Inputs General'!$B45='DNSP Inputs General'!$A$43,D$7,D$8))*'DNSP Inputs General'!$D45 -> 122.7570229 | E9: =IF('DNSP Inputs General'!$B45='DNSP Inputs General'!$A$42,E$6,IF('DNSP Inputs General'!$B45='DNSP Inputs General'!$A$43,E$7,E$8))*'DNSP Inputs General'!$D45 -> 124.6241082 | F9: =IF('DNSP Inputs General'!$B45='DNSP Inputs General'!$A$42,F$6,IF('DNSP Inputs General'!$B45='DNSP Inputs General'!$A$43,F$7,F$8))*'DNSP Inputs General'!$D45 -> 128.5350438 | G9: =IF('DNSP Inputs General'!$B45='DNSP Inputs General'!$A$42,G$6,IF('DNSP Inputs General'!$B45='DNSP Inputs General'!$A$43,G$7,G$8))*'DNSP Inputs General'!$D45 -> 132.332816 | H9: =IF('DNSP Inputs General'!$B45='DNSP Inputs General'!$A$42,H$6,IF('DNSP Inputs General'!$B45='DNSP Inputs General'!$A$43,H$7,H$8))*'DNSP Inputs General'!$D45 -> 135.80304 | J9: -0.1068319055 | K9: 0.01520960021 | L9: 0.03138185431 | M9: 0.02954659002 | N9: 0.02622345746 | P9: =IF(C9=0,"",(D9/'Charges Summary'!D$4)/C9-1) -> -0.1286164931 | Q9: =IF(D9=0,"",(E9/'Charges Summary'!E$4)/(D9/'Charges Summary'!D$4)-1) -> -0.009551609553 | R9: =IF(E9=0,"",(F9/'Charges Summary'!F$4)/(E9/'Charges Summary'!E$4)-1) -> 0.006226199328 | S9: =IF(F9=0,"",(G9/'Charges Summary'!G$4)/(F9/'Charges Summary'!F$4)-1) -> 0.00443569758 | T9: =IF(G9=0,"",(H9/'Charges Summary'!H$4)/(G9/'Charges Summary'!G$4)-1) -> 0.001193617031
A10: ='DNSP Inputs General'!A46 -> Fluorescent 40 watt | C10: ='DNSP Inputs General'!E46 -> 136.64 | D10: =IF('DNSP Inputs General'!$B46='DNSP Inputs General'!$A$42,D$6,IF('DNSP Inputs General'!$B46='DNSP Inputs General'!$A$43,D$7,D$8))*'DNSP Inputs General'!$D46 -> 123.3738924 | E10: =IF('DNSP Inputs General'!$B46='DNSP Inputs General'!$A$42,E$6,IF('DNSP Inputs General'!$B46='DNSP Inputs General'!$A$43,E$7,E$8))*'DNSP Inputs General'!$D46 -> 125.25036 | F10: =IF('DNSP Inputs General'!$B46='DNSP Inputs General'!$A$42,F$6,IF('DNSP Inputs General'!$B46='DNSP Inputs General'!$A$43,F$7,F$8))*'DNSP Inputs General'!$D46 -> 129.1809485 | G10: =IF('DNSP Inputs General'!$B46='DNSP Inputs General'!$A$42,G$6,IF('DNSP Inputs General'!$B46='DNSP Inputs General'!$A$43,G$7,G$8))*'DNSP Inputs General'!$D46 -> 132.997805 | H10: =IF('DNSP Inputs General'!$B46='DNSP Inputs General'!$A$42,H$6,IF('DNSP Inputs General'!$B46='DNSP Inputs General'!$A$43,H$7,H$8))*'DNSP Inputs General'!$D46 -> 136.4854673 | J10: -0.0970880242 | K10: 0.01520960021 | L10: 0.03138185431 | M10: 0.02954659002 | N10: 0.02622345746 | P10: =IF(C10=0,"",(D10/'Charges Summary'!D$4)/C10-1) -> -0.1191102675 | Q10: =IF(D10=0,"",(E10/'Charges Summary'!E$4)/(D10/'Charges Summary'!D$4)-1) -> -0.009551609553 | R10: =IF(E10=0,"",(F10/'Charges Summary'!F$4)/(E10/'Charges Summary'!E$4)-1) -> 0.006226199328 | S10: =IF(F10=0,"",(G10/'Charges Summary'!G$4)/(F10/'Charges Summary'!F$4)-1) -> 0.00443569758 | T10: =IF(G10=0,"",(H10/'Charges Summary'!H$4)/(G10/'Charges Summary'!G$4)-1) -> 0.001193617031
A11: ='DNSP Inputs General'!A47 -> Mercury vapour 50 watt | C11: ='DNSP Inputs General'!E47 -> 98.07 | D11: =IF('DNSP Inputs General'!$B47='DNSP Inputs General'!$A$42,D$6,IF('DNSP Inputs General'!$B47='DNSP Inputs General'!$A$43,D$7,D$8))*'DNSP Inputs General'!$D47 -> 87.59546358 | E11: =IF('DNSP Inputs General'!$B47='DNSP Inputs General'!$A$42,E$6,IF('DNSP Inputs General'!$B47='DNSP Inputs General'!$A$43,E$7,E$8))*'DNSP Inputs General'!$D47 -> 88.92775557 | F11: =IF('DNSP Inputs General'!$B47='DNSP Inputs General'!$A$42,F$6,IF('DNSP Inputs General'!$B47='DNSP Inputs General'!$A$43,F$7,F$8))*'DNSP Inputs General'!$D47 -> 91.71847344 | G11: =IF('DNSP Inputs General'!$B47='DNSP Inputs General'!$A$42,G$6,IF('DNSP Inputs General'!$B47='DNSP Inputs General'!$A$43,G$7,G$8))*'DNSP Inputs General'!$D47 -> 94.42844157 | H11: =IF('DNSP Inputs General'!$B47='DNSP Inputs General'!$A$42,H$6,IF('DNSP Inputs General'!$B47='DNSP Inputs General'!$A$43,H$7,H$8))*'DNSP Inputs General'!$D47 -> 96.90468179 | J11: -0.1068067341 | K11: 0.01520960021 | L11: 0.03138185431 | M11: 0.02954659002 | N11: 0.02622345746 | P11: =IF(C11=0,"",(D11/'Charges Summary'!D$4)/C11-1) -> -0.1285919357 | Q11: =IF(D11=0,"",(E11/'Charges Summary'!E$4)/(D11/'Charges Summary'!D$4)-1) -> -0.009551609553 | R11: =IF(E11=0,"",(F11/'Charges Summary'!F$4)/(E11/'Charges Summary'!E$4)-1) -> 0.006226199328 | S11: =IF(F11=0,"",(G11/'Charges Summary'!G$4)/(F11/'Charges Summary'!F$4)-1) -> 0.00443569758 | T11: =IF(G11=0,"",(H11/'Charges Summary'!H$4)/(G11/'Charges Summary'!G$4)-1) -> 0.001193617031
A12: ='DNSP Inputs General'!A48 -> Mercury vapour 125 watt | C12: ='DNSP Inputs General'!E48 -> 109.12 | D12: =IF('DNSP Inputs General'!$B48='DNSP Inputs General'!$A$42,D$6,IF('DNSP Inputs General'!$B48='DNSP Inputs General'!$A$43,D$7,D$8))*'DNSP Inputs General'!$D48 -> 97.46537497 | E12: =IF('DNSP Inputs General'!$B48='DNSP Inputs General'!$A$42,E$6,IF('DNSP Inputs General'!$B48='DNSP Inputs General'!$A$43,E$7,E$8))*'DNSP Inputs General'!$D48 -> 98.94778436 | F12: =IF('DNSP Inputs General'!$B48='DNSP Inputs General'!$A$42,F$6,IF('DNSP Inputs General'!$B48='DNSP Inputs General'!$A$43,F$7,F$8))*'DNSP Inputs General'!$D48 -> 102.0529493 | G12: =IF('DNSP Inputs General'!$B48='DNSP Inputs General'!$A$42,G$6,IF('DNSP Inputs General'!$B48='DNSP Inputs General'!$A$43,G$7,G$8))*'DNSP Inputs General'!$D48 -> 105.068266 | H12: =IF('DNSP Inputs General'!$B48='DNSP Inputs General'!$A$42,H$6,IF('DNSP Inputs General'!$B48='DNSP Inputs General'!$A$43,H$7,H$8))*'DNSP Inputs General'!$D48 -> 107.8235192 | J12: -0.1068055812 | K12: 0.01520960021 | L12: 0.03138185431 | M12: 0.02954659002 | N12: 0.02622345746 | P12: =IF(C12=0,"",(D12/'Charges Summary'!D$4)/C12-1) -> -0.128590811 | Q12: =IF(D12=0,"",(E12/'Charges Summary'!E$4)/(D12/'Charges Summary'!D$4)-1) -> -0.009551609553 | R12: =IF(E12=0,"",(F12/'Charges Summary'!F$4)/(E12/'Charges Summary'!E$4)-1) -> 0.006226199328 | S12: =IF(F12=0,"",(G12/'Charges Summary'!G$4)/(F12/'Charges Summary'!F$4)-1) -> 0.00443569758 | T12: =IF(G12=0,"",(H12/'Charges Summary'!H$4)/(G12/'Charges Summary'!G$4)-1) -> 0.001193617031
A13: ='DNSP Inputs General'!A49 -> Mercury vapour 250 watt | C13: ='DNSP Inputs General'!E49 -> 100.27 | D13: =IF('DNSP Inputs General'!$B49='DNSP Inputs General'!$A$42,D$6,IF('DNSP Inputs General'!$B49='DNSP Inputs General'!$A$43,D$7,D$8))*'DNSP Inputs General'!$D49 -> 87.38996098 | E13: =IF('DNSP Inputs General'!$B49='DNSP Inputs General'!$A$42,E$6,IF('DNSP Inputs General'!$B49='DNSP Inputs General'!$A$43,E$7,E$8))*'DNSP Inputs General'!$D49 -> 90.2386038 | F13: =IF('DNSP Inputs General'!$B49='DNSP Inputs General'!$A$42,F$6,IF('DNSP Inputs General'!$B49='DNSP Inputs General'!$A$43,F$7,F$8))*'DNSP Inputs General'!$D49 -> 93.38675586 | G13: =IF('DNSP Inputs General'!$B49='DNSP Inputs General'!$A$42,G$6,IF('DNSP Inputs General'!$B49='DNSP Inputs General'!$A$43,G$7,G$8))*'DNSP Inputs General'!$D49 -> 96.46422073 | H13: =IF('DNSP Inputs General'!$B49='DNSP Inputs General'!$A$42,H$6,IF('DNSP Inputs General'!$B49='DNSP Inputs General'!$A$43,H$7,H$8))*'DNSP Inputs General'!$D49 -> 99.45344444 | J13: -0.1284535656 | K13: 0.03259691143 | L13: 0.03488697659 | M13: 0.03295397557 | N13: 0.03098790086 | P13: =IF(C13=0,"",(D13/'Charges Summary'!D$4)/C13-1) -> -0.1497107957 | Q13: =IF(D13=0,"",(E13/'Charges Summary'!E$4)/(D13/'Charges Summary'!D$4)-1) -> 0.007411620908 | R13: =IF(E13=0,"",(F13/'Charges Summary'!F$4)/(E13/'Charges Summary'!E$4)-1) -> 0.009645830819 | S13: =IF(F13=0,"",(G13/'Charges Summary'!G$4)/(F13/'Charges Summary'!F$4)-1) -> 0.007759976169 | T13: =IF(G13=0,"",(H13/'Charges Summary'!H$4)/(G13/'Charges Summary'!G$4)-1) -> 0.005841854493
A14: ='DNSP Inputs General'!A50 -> Mercury vapour 400 watt | C14: ='DNSP Inputs General'!E50 -> 101.47 | D14: =IF('DNSP Inputs General'!$B50='DNSP Inputs General'!$A$42,D$6,IF('DNSP Inputs General'!$B50='DNSP Inputs General'!$A$43,D$7,D$8))*'DNSP Inputs General'!$D50 -> 88.43031766 | E14: =IF('DNSP Inputs General'!$B50='DNSP Inputs General'!$A$42,E$6,IF('DNSP Inputs General'!$B50='DNSP Inputs General'!$A$43,E$7,E$8))*'DNSP Inputs General'!$D50 -> 91.31287289 | F14: =IF('DNSP Inputs General'!$B50='DNSP Inputs General'!$A$42,F$6,IF('DNSP Inputs General'!$B50='DNSP Inputs General'!$A$43,F$7,F$8))*'DNSP Inputs General'!$D50 -> 94.49850295 | G14: =IF('DNSP Inputs General'!$B50='DNSP Inputs General'!$A$42,G$6,IF('DNSP Inputs General'!$B50='DNSP Inputs General'!$A$43,G$7,G$8))*'DNSP Inputs General'!$D50 -> 97.61260431 | H14: =IF('DNSP Inputs General'!$B50='DNSP Inputs General'!$A$42,H$6,IF('DNSP Inputs General'!$B50='DNSP Inputs General'!$A$43,H$7,H$8))*'DNSP Inputs General'!$D50 -> 100.637414 | J14: -0.1285077593 | K14: 0.03259691143 | L14: 0.03488697659 | M14: 0.03295397557 | N14: 0.03098790086 | P14: =IF(C14=0,"",(D14/'Charges Summary'!D$4)/C14-1) -> -0.1497636677 | Q14: =IF(D14=0,"",(E14/'Charges Summary'!E$4)/(D14/'Charges Summary'!D$4)-1) -> 0.007411620908 | R14: =IF(E14=0,"",(F14/'Charges Summary'!F$4)/(E14/'Charges Summary'!E$4)-1) -> 0.009645830819 | S14: =IF(F14=0,"",(G14/'Charges Summary'!G$4)/(F14/'Charges Summary'!F$4)-1) -> 0.007759976169 | T14: =IF(G14=0,"",(H14/'Charges Summary'!H$4)/(G14/'Charges Summary'!G$4)-1) -> 0.005841854493
A15: ='DNSP Inputs General'!A51 -> Mercury vapour 700 watt | C15: ='DNSP Inputs General'!E51 -> 149.22 | D15: =IF('DNSP Inputs General'!$B51='DNSP Inputs General'!$A$42,D$6,IF('DNSP Inputs General'!$B51='DNSP Inputs General'!$A$43,D$7,D$8))*'DNSP Inputs General'!$D51 -> 130.0445848 | E15: =IF('DNSP Inputs General'!$B51='DNSP Inputs General'!$A$42,E$6,IF('DNSP Inputs General'!$B51='DNSP Inputs General'!$A$43,E$7,E$8))*'DNSP Inputs General'!$D51 -> 134.2836366 | F15: =IF('DNSP Inputs General'!$B51='DNSP Inputs General'!$A$42,F$6,IF('DNSP Inputs General'!$B51='DNSP Inputs General'!$A$43,F$7,F$8))*'DNSP Inputs General'!$D51 -> 138.9683867 | G15: =IF('DNSP Inputs General'!$B51='DNSP Inputs General'!$A$42,G$6,IF('DNSP Inputs General'!$B51='DNSP Inputs General'!$A$43,G$7,G$8))*'DNSP Inputs General'!$D51 -> 143.5479475 | H15: =IF('DNSP Inputs General'!$B51='DNSP Inputs General'!$A$42,H$6,IF('DNSP Inputs General'!$B51='DNSP Inputs General'!$A$43,H$7,H$8))*'DNSP Inputs General'!$D51 -> 147.9961971 | J15: -0.1285043239 | K15: 0.03259691143 | L15: 0.03488697659 | M15: 0.03295397557 | N15: 0.03098790086 | P15: =IF(C15=0,"",(D15/'Charges Summary'!D$4)/C15-1) -> -0.149760316 | Q15: =IF(D15=0,"",(E15/'Charges Summary'!E$4)/(D15/'Charges Summary'!D$4)-1) -> 0.007411620908 | R15: =IF(E15=0,"",(F15/'Charges Summary'!F$4)/(E15/'Charges Summary'!E$4)-1) -> 0.009645830819 | S15: =IF(F15=0,"",(G15/'Charges Summary'!G$4)/(F15/'Charges Summary'!F$4)-1) -> 0.007759976169 | T15: =IF(G15=0,"",(H15/'Charges Summary'!H$4)/(G15/'Charges Summary'!G$4)-1) -> 0.005841854493
A16: ='DNSP Inputs General'!A52 -> Sodium high pressure 70 watt | C16: ='DNSP Inputs General'!E52 -> 146.42 | D16: =IF('DNSP Inputs General'!$B52='DNSP Inputs General'!$A$42,D$6,IF('DNSP Inputs General'!$B52='DNSP Inputs General'!$A$43,D$7,D$8))*'DNSP Inputs General'!$D52 -> 130.7763259 | E16: =IF('DNSP Inputs General'!$B52='DNSP Inputs General'!$A$42,E$6,IF('DNSP Inputs General'!$B52='DNSP Inputs General'!$A$43,E$7,E$8))*'DNSP Inputs General'!$D52 -> 132.7653815 | F16: =IF('DNSP Inputs General'!$B52='DNSP Inputs General'!$A$42,F$6,IF('DNSP Inputs General'!$B52='DNSP Inputs General'!$A$43,F$7,F$8))*'DNSP Inputs General'!$D52 -> 136.9318054 | G16: =IF('DNSP Inputs General'!$B52='DNSP Inputs General'!$A$42,G$6,IF('DNSP Inputs General'!$B52='DNSP Inputs General'!$A$43,G$7,G$8))*'DNSP Inputs General'!$D52 -> 140.9776733 | H16: =IF('DNSP Inputs General'!$B52='DNSP Inputs General'!$A$42,H$6,IF('DNSP Inputs General'!$B52='DNSP Inputs General'!$A$43,H$7,H$8))*'DNSP Inputs General'!$D52 -> 144.6745953 | J16: -0.1068411015 | K16: 0.01520960021 | L16: 0.03138185431 | M16: 0.02954659002 | N16: 0.02622345746 | P16: =IF(C16=0,"",(D16/'Charges Summary'!D$4)/C16-1) -> -0.1286254649 | Q16: =IF(D16=0,"",(E16/'Charges Summary'!E$4)/(D16/'Charges Summary'!D$4)-1) -> -0.009551609553 | R16: =IF(E16=0,"",(F16/'Charges Summary'!F$4)/(E16/'Charges Summary'!E$4)-1) -> 0.006226199328 | S16: =IF(F16=0,"",(G16/'Charges Summary'!G$4)/(F16/'Charges Summary'!F$4)-1) -> 0.00443569758 | T16: =IF(G16=0,"",(H16/'Charges Summary'!H$4)/(G16/'Charges Summary'!G$4)-1) -> 0.001193617031
A17: ='DNSP Inputs General'!A53 -> Sodium high pressure 100 watt | C17: ='DNSP Inputs General'!E53 -> 120.01 | D17: =IF('DNSP Inputs General'!$B53='DNSP Inputs General'!$A$42,D$6,IF('DNSP Inputs General'!$B53='DNSP Inputs General'!$A$43,D$7,D$8))*'DNSP Inputs General'!$D53 -> 104.6647632 | E17: =IF('DNSP Inputs General'!$B53='DNSP Inputs General'!$A$42,E$6,IF('DNSP Inputs General'!$B53='DNSP Inputs General'!$A$43,E$7,E$8))*'DNSP Inputs General'!$D53 -> 108.0853975 | F17: =IF('DNSP Inputs General'!$B53='DNSP Inputs General'!$A$42,F$6,IF('DNSP Inputs General'!$B53='DNSP Inputs General'!$A$43,F$7,F$8))*'DNSP Inputs General'!$D53 -> 111.8311537 | G17: =IF('DNSP Inputs General'!$B53='DNSP Inputs General'!$A$42,G$6,IF('DNSP Inputs General'!$B53='DNSP Inputs General'!$A$43,G$7,G$8))*'DNSP Inputs General'!$D53 -> 115.4926149 | H17: =IF('DNSP Inputs General'!$B53='DNSP Inputs General'!$A$42,H$6,IF('DNSP Inputs General'!$B53='DNSP Inputs General'!$A$43,H$7,H$8))*'DNSP Inputs General'!$D53 -> 119.0482046 | J17: -0.1278663175 | K17: 0.03268181323 | L17: 0.0346555255 | M17: 0.03274097604 | N17: 0.03078629558 | P17: =IF(C17=0,"",(D17/'Charges Summary'!D$4)/C17-1) -> -0.1491378707 | Q17: =IF(D17=0,"",(E17/'Charges Summary'!E$4)/(D17/'Charges Summary'!D$4)-1) -> 0.007494451936 | R17: =IF(E17=0,"",(F17/'Charges Summary'!F$4)/(E17/'Charges Summary'!E$4)-1) -> 0.009420024878 | S17: =IF(F17=0,"",(G17/'Charges Summary'!G$4)/(F17/'Charges Summary'!F$4)-1) -> 0.007552171744 | T17: =IF(G17=0,"",(H17/'Charges Summary'!H$4)/(G17/'Charges Summary'!G$4)-1) -> 0.005645166422
A18: ='DNSP Inputs General'!A54 -> Sodium high pressure 220 watt | C18: ='DNSP Inputs General'!E54 -> 119.61 | D18: =IF('DNSP Inputs General'!$B54='DNSP Inputs General'!$A$42,D$6,IF('DNSP Inputs General'!$B54='DNSP Inputs General'!$A$43,D$7,D$8))*'DNSP Inputs General'!$D54 -> 104.2437392 | E18: =IF('DNSP Inputs General'!$B54='DNSP Inputs General'!$A$42,E$6,IF('DNSP Inputs General'!$B54='DNSP Inputs General'!$A$43,E$7,E$8))*'DNSP Inputs General'!$D54 -> 107.6417631 | F18: =IF('DNSP Inputs General'!$B54='DNSP Inputs General'!$A$42,F$6,IF('DNSP Inputs General'!$B54='DNSP Inputs General'!$A$43,F$7,F$8))*'DNSP Inputs General'!$D54 -> 111.3970588 | G18: =IF('DNSP Inputs General'!$B54='DNSP Inputs General'!$A$42,G$6,IF('DNSP Inputs General'!$B54='DNSP Inputs General'!$A$43,G$7,G$8))*'DNSP Inputs General'!$D54 -> 115.0680347 | H18: =IF('DNSP Inputs General'!$B54='DNSP Inputs General'!$A$42,H$6,IF('DNSP Inputs General'!$B54='DNSP Inputs General'!$A$43,H$7,H$8))*'DNSP Inputs General'!$D54 -> 118.6337516 | J18: -0.1284697001 | K18: 0.03259691143 | L18: 0.03488697659 | M18: 0.03295397557 | N18: 0.03098790086 | P18: =IF(C18=0,"",(D18/'Charges Summary'!D$4)/C18-1) -> -0.1497265367 | Q18: =IF(D18=0,"",(E18/'Charges Summary'!E$4)/(D18/'Charges Summary'!D$4)-1) -> 0.007411620908 | R18: =IF(E18=0,"",(F18/'Charges Summary'!F$4)/(E18/'Charges Summary'!E$4)-1) -> 0.009645830819 | S18: =IF(F18=0,"",(G18/'Charges Summary'!G$4)/(F18/'Charges Summary'!F$4)-1) -> 0.007759976169 | T18: =IF(G18=0,"",(H18/'Charges Summary'!H$4)/(G18/'Charges Summary'!G$4)-1) -> 0.005841854493
A19: ='DNSP Inputs General'!A55 -> Sodium high pressure 360 watt | C19: ='DNSP Inputs General'!E55 -> 121.76 | D19: =IF('DNSP Inputs General'!$B55='DNSP Inputs General'!$A$42,D$6,IF('DNSP Inputs General'!$B55='DNSP Inputs General'!$A$43,D$7,D$8))*'DNSP Inputs General'!$D55 -> 106.1163812 | E19: =IF('DNSP Inputs General'!$B55='DNSP Inputs General'!$A$42,E$6,IF('DNSP Inputs General'!$B55='DNSP Inputs General'!$A$43,E$7,E$8))*'DNSP Inputs General'!$D55 -> 109.5754475 | F19: =IF('DNSP Inputs General'!$B55='DNSP Inputs General'!$A$42,F$6,IF('DNSP Inputs General'!$B55='DNSP Inputs General'!$A$43,F$7,F$8))*'DNSP Inputs General'!$D55 -> 113.3982035 | G19: =IF('DNSP Inputs General'!$B55='DNSP Inputs General'!$A$42,G$6,IF('DNSP Inputs General'!$B55='DNSP Inputs General'!$A$43,G$7,G$8))*'DNSP Inputs General'!$D55 -> 117.1351252 | H19: =IF('DNSP Inputs General'!$B55='DNSP Inputs General'!$A$42,H$6,IF('DNSP Inputs General'!$B55='DNSP Inputs General'!$A$43,H$7,H$8))*'DNSP Inputs General'!$D55 -> 120.7648968 | J19: -0.1284791295 | K19: 0.03259691143 | L19: 0.03488697659 | M19: 0.03295397557 | N19: 0.03098790086 | P19: =IF(C19=0,"",(D19/'Charges Summary'!D$4)/C19-1) -> -0.1497357361 | Q19: =IF(D19=0,"",(E19/'Charges Summary'!E$4)/(D19/'Charges Summary'!D$4)-1) -> 0.007411620908 | R19: =IF(E19=0,"",(F19/'Charges Summary'!F$4)/(E19/'Charges Summary'!E$4)-1) -> 0.009645830819 | S19: =IF(F19=0,"",(G19/'Charges Summary'!G$4)/(F19/'Charges Summary'!F$4)-1) -> 0.007759976169 | T19: =IF(G19=0,"",(H19/'Charges Summary'!H$4)/(G19/'Charges Summary'!G$4)-1) -> 0.005841854493
A20: ='DNSP Inputs General'!A56 -> Sodium high pressure 400 watt | C20: ='DNSP Inputs General'!E56 -> 131.31 | D20: =IF('DNSP Inputs General'!$B56='DNSP Inputs General'!$A$42,D$6,IF('DNSP Inputs General'!$B56='DNSP Inputs General'!$A$43,D$7,D$8))*'DNSP Inputs General'!$D56 -> 114.4392346 | E20: =IF('DNSP Inputs General'!$B56='DNSP Inputs General'!$A$42,E$6,IF('DNSP Inputs General'!$B56='DNSP Inputs General'!$A$43,E$7,E$8))*'DNSP Inputs General'!$D56 -> 118.1696002 | F20: =IF('DNSP Inputs General'!$B56='DNSP Inputs General'!$A$42,F$6,IF('DNSP Inputs General'!$B56='DNSP Inputs General'!$A$43,F$7,F$8))*'DNSP Inputs General'!$D56 -> 122.2921803 | G20: =IF('DNSP Inputs General'!$B56='DNSP Inputs General'!$A$42,G$6,IF('DNSP Inputs General'!$B56='DNSP Inputs General'!$A$43,G$7,G$8))*'DNSP Inputs General'!$D56 -> 126.3221938 | H20: =IF('DNSP Inputs General'!$B56='DNSP Inputs General'!$A$42,H$6,IF('DNSP Inputs General'!$B56='DNSP Inputs General'!$A$43,H$7,H$8))*'DNSP Inputs General'!$D56 -> 130.2366534 | J20: -0.1284804309 | K20: 0.03259691143 | L20: 0.03488697659 | M20: 0.03295397557 | N20: 0.03098790086 | P20: =IF(C20=0,"",(D20/'Charges Summary'!D$4)/C20-1) -> -0.1497370058 | Q20: =IF(D20=0,"",(E20/'Charges Summary'!E$4)/(D20/'Charges Summary'!D$4)-1) -> 0.007411620908 | R20: =IF(E20=0,"",(F20/'Charges Summary'!F$4)/(E20/'Charges Summary'!E$4)-1) -> 0.009645830819 | S20: =IF(F20=0,"",(G20/'Charges Summary'!G$4)/(F20/'Charges Summary'!F$4)-1) -> 0.007759976169 | T20: =IF(G20=0,"",(H20/'Charges Summary'!H$4)/(G20/'Charges Summary'!G$4)-1) -> 0.005841854493
A21: ='DNSP Inputs General'!A57 -> Sodium high pressure 1000 watt | C21: ='DNSP Inputs General'!E57 -> 236.36 | D21: =IF('DNSP Inputs General'!$B57='DNSP Inputs General'!$A$42,D$6,IF('DNSP Inputs General'!$B57='DNSP Inputs General'!$A$43,D$7,D$8))*'DNSP Inputs General'!$D57 -> 205.9906223 | E21: =IF('DNSP Inputs General'!$B57='DNSP Inputs General'!$A$42,E$6,IF('DNSP Inputs General'!$B57='DNSP Inputs General'!$A$43,E$7,E$8))*'DNSP Inputs General'!$D57 -> 212.7052804 | F21: =IF('DNSP Inputs General'!$B57='DNSP Inputs General'!$A$42,F$6,IF('DNSP Inputs General'!$B57='DNSP Inputs General'!$A$43,F$7,F$8))*'DNSP Inputs General'!$D57 -> 220.1259245 | G21: =IF('DNSP Inputs General'!$B57='DNSP Inputs General'!$A$42,G$6,IF('DNSP Inputs General'!$B57='DNSP Inputs General'!$A$43,G$7,G$8))*'DNSP Inputs General'!$D57 -> 227.3799489 | H21: =IF('DNSP Inputs General'!$B57='DNSP Inputs General'!$A$42,H$6,IF('DNSP Inputs General'!$B57='DNSP Inputs General'!$A$43,H$7,H$8))*'DNSP Inputs General'!$D57 -> 234.4259762 | J21: -0.1284878054 | K21: 0.03259691143 | L21: 0.03488697659 | M21: 0.03295397557 | N21: 0.03098790086 | P21: =IF(C21=0,"",(D21/'Charges Summary'!D$4)/C21-1) -> -0.1497442004 | Q21: =IF(D21=0,"",(E21/'Charges Summary'!E$4)/(D21/'Charges Summary'!D$4)-1) -> 0.007411620908 | R21: =IF(E21=0,"",(F21/'Charges Summary'!F$4)/(E21/'Charges Summary'!E$4)-1) -> 0.009645830819 | S21: =IF(F21=0,"",(G21/'Charges Summary'!G$4)/(F21/'Charges Summary'!F$4)-1) -> 0.007759976169 | T21: =IF(G21=0,"",(H21/'Charges Summary'!H$4)/(G21/'Charges Summary'!G$4)-1) -> 0.005841854493
A22: ='DNSP Inputs General'!A58 -> Metal halide 70 watt | C22: ='DNSP Inputs General'!E58 -> 225.84 | D22: =IF('DNSP Inputs General'!$B58='DNSP Inputs General'!$A$42,D$6,IF('DNSP Inputs General'!$B58='DNSP Inputs General'!$A$43,D$7,D$8))*'DNSP Inputs General'!$D58 -> 130.7763259 | E22: =IF('DNSP Inputs General'!$B58='DNSP Inputs General'!$A$42,E$6,IF('DNSP Inputs General'!$B58='DNSP Inputs General'!$A$43,E$7,E$8))*'DNSP Inputs General'!$D58 -> 132.7653815 | F22: =IF('DNSP Inputs General'!$B58='DNSP Inputs General'!$A$42,F$6,IF('DNSP Inputs General'!$B58='DNSP Inputs General'!$A$43,F$7,F$8))*'DNSP Inputs General'!$D58 -> 136.9318054 | G22: =IF('DNSP Inputs General'!$B58='DNSP Inputs General'!$A$42,G$6,IF('DNSP Inputs General'!$B58='DNSP Inputs General'!$A$43,G$7,G$8))*'DNSP Inputs General'!$D58 -> 140.9776733 | H22: =IF('DNSP Inputs General'!$B58='DNSP Inputs General'!$A$42,H$6,IF('DNSP Inputs General'!$B58='DNSP Inputs General'!$A$43,H$7,H$8))*'DNSP Inputs General'!$D58 -> 144.6745953 | J22: -0.4209337322 | K22: 0.01520960021 | L22: 0.03138185431 | M22: 0.02954659002 | N22: 0.02622345746 | P22: =IF(C22=0,"",(D22/'Charges Summary'!D$4)/C22-1) -> -0.4350572997 | Q22: =IF(D22=0,"",(E22/'Charges Summary'!E$4)/(D22/'Charges Summary'!D$4)-1) -> -0.009551609553 | R22: =IF(E22=0,"",(F22/'Charges Summary'!F$4)/(E22/'Charges Summary'!E$4)-1) -> 0.006226199328 | S22: =IF(F22=0,"",(G22/'Charges Summary'!G$4)/(F22/'Charges Summary'!F$4)-1) -> 0.00443569758 | T22: =IF(G22=0,"",(H22/'Charges Summary'!H$4)/(G22/'Charges Summary'!G$4)-1) -> 0.001193617031
A23: ='DNSP Inputs General'!A59 -> Metal halide 100 watt | C23: ='DNSP Inputs General'!E59 -> 184.72 | D23: =IF('DNSP Inputs General'!$B59='DNSP Inputs General'!$A$42,D$6,IF('DNSP Inputs General'!$B59='DNSP Inputs General'!$A$43,D$7,D$8))*'DNSP Inputs General'!$D59 -> 161.1016454 | E23: =IF('DNSP Inputs General'!$B59='DNSP Inputs General'!$A$42,E$6,IF('DNSP Inputs General'!$B59='DNSP Inputs General'!$A$43,E$7,E$8))*'DNSP Inputs General'!$D59 -> 166.3667393 | F23: =IF('DNSP Inputs General'!$B59='DNSP Inputs General'!$A$42,F$6,IF('DNSP Inputs General'!$B59='DNSP Inputs General'!$A$43,F$7,F$8))*'DNSP Inputs General'!$D59 -> 172.132266 | G23: =IF('DNSP Inputs General'!$B59='DNSP Inputs General'!$A$42,G$6,IF('DNSP Inputs General'!$B59='DNSP Inputs General'!$A$43,G$7,G$8))*'DNSP Inputs General'!$D59 -> 177.7680444 | H23: =IF('DNSP Inputs General'!$B59='DNSP Inputs General'!$A$42,H$6,IF('DNSP Inputs General'!$B59='DNSP Inputs General'!$A$43,H$7,H$8))*'DNSP Inputs General'!$D59 -> 183.240864 | J23: -0.1278603 | K23: 0.03268181323 | L23: 0.0346555255 | M23: 0.03274097604 | N23: 0.03078629558 | P23: =IF(C23=0,"",(D23/'Charges Summary'!D$4)/C23-1) -> -0.149132 | Q23: =IF(D23=0,"",(E23/'Charges Summary'!E$4)/(D23/'Charges Summary'!D$4)-1) -> 0.007494451936 | R23: =IF(E23=0,"",(F23/'Charges Summary'!F$4)/(E23/'Charges Summary'!E$4)-1) -> 0.009420024878 | S23: =IF(F23=0,"",(G23/'Charges Summary'!G$4)/(F23/'Charges Summary'!F$4)-1) -> 0.007552171744 | T23: =IF(G23=0,"",(H23/'Charges Summary'!H$4)/(G23/'Charges Summary'!G$4)-1) -> 0.005645166422
A24: ='DNSP Inputs General'!A60 -> Metal halide 150 watt | C24: ='DNSP Inputs General'!E60 -> 185.89 | D24: =IF('DNSP Inputs General'!$B60='DNSP Inputs General'!$A$42,D$6,IF('DNSP Inputs General'!$B60='DNSP Inputs General'!$A$43,D$7,D$8))*'DNSP Inputs General'!$D60 -> 162.1277705 | E24: =IF('DNSP Inputs General'!$B60='DNSP Inputs General'!$A$42,E$6,IF('DNSP Inputs General'!$B60='DNSP Inputs General'!$A$43,E$7,E$8))*'DNSP Inputs General'!$D60 -> 167.4264 | F24: =IF('DNSP Inputs General'!$B60='DNSP Inputs General'!$A$42,F$6,IF('DNSP Inputs General'!$B60='DNSP Inputs General'!$A$43,F$7,F$8))*'DNSP Inputs General'!$D60 -> 173.2286499 | G24: =IF('DNSP Inputs General'!$B60='DNSP Inputs General'!$A$42,G$6,IF('DNSP Inputs General'!$B60='DNSP Inputs General'!$A$43,G$7,G$8))*'DNSP Inputs General'!$D60 -> 178.900325 | H24: =IF('DNSP Inputs General'!$B60='DNSP Inputs General'!$A$42,H$6,IF('DNSP Inputs General'!$B60='DNSP Inputs General'!$A$43,H$7,H$8))*'DNSP Inputs General'!$D60 -> 184.4080033 | J24: -0.1278295201 | K24: 0.03268181323 | L24: 0.0346555255 | M24: 0.03274097604 | N24: 0.03078629558 | P24: =IF(C24=0,"",(D24/'Charges Summary'!D$4)/C24-1) -> -0.1491019708 | Q24: =IF(D24=0,"",(E24/'Charges Summary'!E$4)/(D24/'Charges Summary'!D$4)-1) -> 0.007494451936 | R24: =IF(E24=0,"",(F24/'Charges Summary'!F$4)/(E24/'Charges Summary'!E$4)-1) -> 0.009420024878 | S24: =IF(F24=0,"",(G24/'Charges Summary'!G$4)/(F24/'Charges Summary'!F$4)-1) -> 0.007552171744 | T24: =IF(G24=0,"",(H24/'Charges Summary'!H$4)/(G24/'Charges Summary'!G$4)-1) -> 0.005645166422
A25: ='DNSP Inputs General'!A61 -> Metal halide 250 watt | C25: ='DNSP Inputs General'!E61 -> 143.25 | D25: =IF('DNSP Inputs General'!$B61='DNSP Inputs General'!$A$42,D$6,IF('DNSP Inputs General'!$B61='DNSP Inputs General'!$A$43,D$7,D$8))*'DNSP Inputs General'!$D61 -> 124.8428014 | E25: =IF('DNSP Inputs General'!$B61='DNSP Inputs General'!$A$42,E$6,IF('DNSP Inputs General'!$B61='DNSP Inputs General'!$A$43,E$7,E$8))*'DNSP Inputs General'!$D61 -> 128.9122911 | F25: =IF('DNSP Inputs General'!$B61='DNSP Inputs General'!$A$42,F$6,IF('DNSP Inputs General'!$B61='DNSP Inputs General'!$A$43,F$7,F$8))*'DNSP Inputs General'!$D61 -> 133.4096512 | G25: =IF('DNSP Inputs General'!$B61='DNSP Inputs General'!$A$42,G$6,IF('DNSP Inputs General'!$B61='DNSP Inputs General'!$A$43,G$7,G$8))*'DNSP Inputs General'!$D61 -> 137.8060296 | H25: =IF('DNSP Inputs General'!$B61='DNSP Inputs General'!$A$42,H$6,IF('DNSP Inputs General'!$B61='DNSP Inputs General'!$A$43,H$7,H$8))*'DNSP Inputs General'!$D61 -> 142.0763492 | J25: -0.1284970234 | K25: 0.03259691143 | L25: 0.03488697659 | M25: 0.03295397557 | N25: 0.03098790086 | P25: =IF(C25=0,"",(D25/'Charges Summary'!D$4)/C25-1) -> -0.1497531935 | Q25: =IF(D25=0,"",(E25/'Charges Summary'!E$4)/(D25/'Charges Summary'!D$4)-1) -> 0.007411620908 | R25: =IF(E25=0,"",(F25/'Charges Summary'!F$4)/(E25/'Charges Summary'!E$4)-1) -> 0.009645830819 | S25: =IF(F25=0,"",(G25/'Charges Summary'!G$4)/(F25/'Charges Summary'!F$4)-1) -> 0.007759976169 | T25: =IF(G25=0,"",(H25/'Charges Summary'!H$4)/(G25/'Charges Summary'!G$4)-1) -> 0.005841854493
A26: ='DNSP Inputs General'!A62 -> Metal halide 400 watt | C26: ='DNSP Inputs General'!E62 -> 143.25 | D26: =IF('DNSP Inputs General'!$B62='DNSP Inputs General'!$A$42,D$6,IF('DNSP Inputs General'!$B62='DNSP Inputs General'!$A$43,D$7,D$8))*'DNSP Inputs General'!$D62 -> 124.8428014 | E26: =IF('DNSP Inputs General'!$B62='DNSP Inputs General'!$A$42,E$6,IF('DNSP Inputs General'!$B62='DNSP Inputs General'!$A$43,E$7,E$8))*'DNSP Inputs General'!$D62 -> 128.9122911 | F26: =IF('DNSP Inputs General'!$B62='DNSP Inputs General'!$A$42,F$6,IF('DNSP Inputs General'!$B62='DNSP Inputs General'!$A$43,F$7,F$8))*'DNSP Inputs General'!$D62 -> 133.4096512 | G26: =IF('DNSP Inputs General'!$B62='DNSP Inputs General'!$A$42,G$6,IF('DNSP Inputs General'!$B62='DNSP Inputs General'!$A$43,G$7,G$8))*'DNSP Inputs General'!$D62 -> 137.8060296 | H26: =IF('DNSP Inputs General'!$B62='DNSP Inputs General'!$A$42,H$6,IF('DNSP Inputs General'!$B62='DNSP Inputs General'!$A$43,H$7,H$8))*'DNSP Inputs General'!$D62 -> 142.0763492 | J26: -0.1284970234 | K26: 0.03259691143 | L26: 0.03488697659 | M26: 0.03295397557 | N26: 0.03098790086 | P26: =IF(C26=0,"",(D26/'Charges Summary'!D$4)/C26-1) -> -0.1497531935 | Q26: =IF(D26=0,"",(E26/'Charges Summary'!E$4)/(D26/'Charges Summary'!D$4)-1) -> 0.007411620908 | R26: =IF(E26=0,"",(F26/'Charges Summary'!F$4)/(E26/'Charges Summary'!E$4)-1) -> 0.009645830819 | S26: =IF(F26=0,"",(G26/'Charges Summary'!G$4)/(F26/'Charges Summary'!F$4)-1) -> 0.007759976169 | T26: =IF(G26=0,"",(H26/'Charges Summary'!H$4)/(G26/'Charges Summary'!G$4)-1) -> 0.005841854493
A27: ='DNSP Inputs General'!A63 -> Metal halide 1000 watt | C27: ='DNSP Inputs General'!E63 -> 213.68 | D27: =IF('DNSP Inputs General'!$B63='DNSP Inputs General'!$A$42,D$6,IF('DNSP Inputs General'!$B63='DNSP Inputs General'!$A$43,D$7,D$8))*'DNSP Inputs General'!$D63 -> 186.2238454 | E27: =IF('DNSP Inputs General'!$B63='DNSP Inputs General'!$A$42,E$6,IF('DNSP Inputs General'!$B63='DNSP Inputs General'!$A$43,E$7,E$8))*'DNSP Inputs General'!$D63 -> 192.2941676 | F27: =IF('DNSP Inputs General'!$B63='DNSP Inputs General'!$A$42,F$6,IF('DNSP Inputs General'!$B63='DNSP Inputs General'!$A$43,F$7,F$8))*'DNSP Inputs General'!$D63 -> 199.0027297 | G27: =IF('DNSP Inputs General'!$B63='DNSP Inputs General'!$A$42,G$6,IF('DNSP Inputs General'!$B63='DNSP Inputs General'!$A$43,G$7,G$8))*'DNSP Inputs General'!$D63 -> 205.5606608 | H27: =IF('DNSP Inputs General'!$B63='DNSP Inputs General'!$A$42,H$6,IF('DNSP Inputs General'!$B63='DNSP Inputs General'!$A$43,H$7,H$8))*'DNSP Inputs General'!$D63 -> 211.9305542 | J27: -0.1284919252 | K27: 0.03259691143 | L27: 0.03488697659 | M27: 0.03295397557 | N27: 0.03098790086 | P27: =IF(C27=0,"",(D27/'Charges Summary'!D$4)/C27-1) -> -0.1497482197 | Q27: =IF(D27=0,"",(E27/'Charges Summary'!E$4)/(D27/'Charges Summary'!D$4)-1) -> 0.007411620908 | R27: =IF(E27=0,"",(F27/'Charges Summary'!F$4)/(E27/'Charges Summary'!E$4)-1) -> 0.009645830819 | S27: =IF(F27=0,"",(G27/'Charges Summary'!G$4)/(F27/'Charges Summary'!F$4)-1) -> 0.007759976169 | T27: =IF(G27=0,"",(H27/'Charges Summary'!H$4)/(G27/'Charges Summary'!G$4)-1) -> 0.005841854493
A30: ='DNSP Inputs General'!A$68 -> Energy Efficient Lights
A31: ='DNSP Inputs General'!A69 -> T5 2X14W | C31: ='DNSP Inputs General'!E69 -> 38.15 | D31: ='Charges Summary'!D$89 -> 40.6380729 | E31: ='Charges Summary'!E$89 -> 41.82426004 | F31: ='Charges Summary'!F$89 -> 43.27977218 | G31: ='Charges Summary'!G$89 -> 44.46568487 | H31: ='Charges Summary'!H$89 -> 45.46520902 | J31: =IF(C31=0,"",D31/C31-1) -> 0.06521816245 | K31: =IF(D31=0,"",E31/D31-1) -> 0.02918905991 | L31: =IF(E31=0,"",F31/E31-1) -> 0.03480066673 | M31: =IF(F31=0,"",G31/F31-1) -> 0.02740108447 | N31: =IF(G31=0,"",H31/G31-1) -> 0.02247855061 | P31: =IF(C31=0,"",(D31/'Charges Summary'!D$4)/C31-1) -> 0.03923723166 | Q31: =IF(D31=0,"",(E31/'Charges Summary'!E$4)/(D31/'Charges Summary'!D$4)-1) -> 0.004086887713 | R31: =IF(E31=0,"",(F31/'Charges Summary'!F$4)/(E31/'Charges Summary'!E$4)-1) -> 0.009561626081 | S31: =IF(F31=0,"",(G31/'Charges Summary'!G$4)/(F31/'Charges Summary'!F$4)-1) -> 0.002342521435 | T31: =IF(G31=0,"",(H31/'Charges Summary'!H$4)/(G31/'Charges Summary'!G$4)-1) -> -0.00245995062
A32: ='DNSP Inputs General'!A70 -> T5 2X24W | D32: ='DNSP Inputs General'!$D70*D$31 -> 40.07432444 | E32: ='DNSP Inputs General'!$D70*E$31 -> 41.24405629 | F32: ='DNSP Inputs General'!$D70*F$31 -> 42.67937695 | G32: ='DNSP Inputs General'!$D70*G$31 -> 43.84883816 | H32: ='DNSP Inputs General'!$D70*H$31 -> 44.83449649 | J32: =IF(C32=0,"",D32/C32-1) ->  | K32: =IF(D32=0,"",E32/D32-1) -> 0.02918905991 | L32: =IF(E32=0,"",F32/E32-1) -> 0.03480066673 | M32: =IF(F32=0,"",G32/F32-1) -> 0.02740108447 | N32: =IF(G32=0,"",H32/G32-1) -> 0.02247855061 | P32: =IF(C32=0,"",(D32/'Charges Summary'!D$4)/C32-1) ->  | Q32: =IF(D32=0,"",(E32/'Charges Summary'!E$4)/(D32/'Charges Summary'!D$4)-1) -> 0.004086887713 | R32: =IF(E32=0,"",(F32/'Charges Summary'!F$4)/(E32/'Charges Summary'!E$4)-1) -> 0.009561626081 | S32: =IF(F32=0,"",(G32/'Charges Summary'!G$4)/(F32/'Charges Summary'!F$4)-1) -> 0.002342521435 | T32: =IF(G32=0,"",(H32/'Charges Summary'!H$4)/(G32/'Charges Summary'!G$4)-1) -> -0.00245995062
A33: ='DNSP Inputs General'!A71 -> CF32 | D33: ='DNSP Inputs General'!$D71*D$31 -> 39.36821572 | E33: ='DNSP Inputs General'!$D71*E$31 -> 40.51733692 | F33: ='DNSP Inputs General'!$D71*F$31 -> 41.92736726 | G33: ='DNSP Inputs General'!$D71*G$31 -> 43.0762226 | H33: ='DNSP Inputs General'!$D71*H$31 -> 44.04451365 | K33: 0.02918905991 | L33: 0.03480066673 | M33: 0.02740108447 | N33: 0.02247855061 | P33: =IF(C33=0,"",(D33/'Charges Summary'!D$4)/C33-1) ->  | Q33: =IF(D33=0,"",(E33/'Charges Summary'!E$4)/(D33/'Charges Summary'!D$4)-1) -> 0.004086887713 | R33: =IF(E33=0,"",(F33/'Charges Summary'!F$4)/(E33/'Charges Summary'!E$4)-1) -> 0.009561626081 | S33: =IF(F33=0,"",(G33/'Charges Summary'!G$4)/(F33/'Charges Summary'!F$4)-1) -> 0.002342521435 | T33: =IF(G33=0,"",(H33/'Charges Summary'!H$4)/(G33/'Charges Summary'!G$4)-1) -> -0.00245995062
A34: ='DNSP Inputs General'!A72 -> CF42 | D34: ='DNSP Inputs General'!$D72*D$31 -> 39.36821572 | E34: ='DNSP Inputs General'!$D72*E$31 -> 40.51733692 | F34: ='DNSP Inputs General'!$D72*F$31 -> 41.92736726 | G34: ='DNSP Inputs General'!$D72*G$31 -> 43.0762226 | H34: ='DNSP Inputs General'!$D72*H$31 -> 44.04451365 | K34: 0.02918905991 | L34: 0.03480066673 | M34: 0.02740108447 | N34: 0.02247855061 | P34: =IF(C34=0,"",(D34/'Charges Summary'!D$4)/C34-1) ->  | Q34: =IF(D34=0,"",(E34/'Charges Summary'!E$4)/(D34/'Charges Summary'!D$4)-1) -> 0.004086887713 | R34: =IF(E34=0,"",(F34/'Charges Summary'!F$4)/(E34/'Charges Summary'!E$4)-1) -> 0.009561626081 | S34: =IF(F34=0,"",(G34/'Charges Summary'!G$4)/(F34/'Charges Summary'!F$4)-1) -> 0.002342521435 | T34: =IF(G34=0,"",(H34/'Charges Summary'!H$4)/(G34/'Charges Summary'!G$4)-1) -> -0.00245995062
A35: ='DNSP Inputs General'!A73 -> Category P LED 18 Watt | D35: ='Charges Summary'!D$107 -> 26.80123907 | E35: ='Charges Summary'!E$107 -> 28.1887568 | F35: ='Charges Summary'!F$107 -> 29.79198829 | G35: ='Charges Summary'!G$107 -> 30.54120766 | H35: ='Charges Summary'!H$107 -> 31.08974298 | K35: 0.05177065626 | L35: 0.05687485601 | M35: 0.02514835091 | N35: 0.0179604988 | P35: =IF(C35=0,"",(D35/'Charges Summary'!D$4)/C35-1) ->  | Q35: =IF(D35=0,"",(E35/'Charges Summary'!E$4)/(D35/'Charges Summary'!D$4)-1) -> 0.02611771342 | R35: =IF(E35=0,"",(F35/'Charges Summary'!F$4)/(E35/'Charges Summary'!E$4)-1) -> 0.0310974205 | S35: =IF(F35=0,"",(G35/'Charges Summary'!G$4)/(F35/'Charges Summary'!F$4)-1) -> 0.0001447325953 | T35: =IF(G35=0,"",(H35/'Charges Summary'!H$4)/(G35/'Charges Summary'!G$4)-1) -> -0.006867806048
A36: ='DNSP Inputs General'!A74 -> Category P LED 47 Watt | D36: ='DNSP Inputs General'!$D74*D$35 -> 26.80123907 | E36: ='DNSP Inputs General'!$D74*E$35 -> 28.1887568 | F36: ='DNSP Inputs General'!$D74*F$35 -> 29.79198829 | G36: ='DNSP Inputs General'!$D74*G$35 -> 30.54120766 | H36: ='DNSP Inputs General'!$D74*H$35 -> 31.08974298 | J36: =IF(C36=0,"",D36/C36-1) ->  | K36: =IF(D36=0,"",E36/D36-1) -> 0.05177065626 | L36: =IF(E36=0,"",F36/E36-1) -> 0.05687485601 | M36: =IF(F36=0,"",G36/F36-1) -> 0.02514835091 | N36: =IF(G36=0,"",H36/G36-1) -> 0.0179604988 | P36: =IF(C36=0,"",(D36/'Charges Summary'!D$4)/C36-1) ->  | Q36: =IF(D36=0,"",(E36/'Charges Summary'!E$4)/(D36/'Charges Summary'!D$4)-1) -> 0.02611771342 | R36: =IF(E36=0,"",(F36/'Charges Summary'!F$4)/(E36/'Charges Summary'!E$4)-1) -> 0.0310974205 | S36: =IF(F36=0,"",(G36/'Charges Summary'!G$4)/(F36/'Charges Summary'!F$4)-1) -> 0.0001447325953 | T36: =IF(G36=0,"",(H36/'Charges Summary'!H$4)/(G36/'Charges Summary'!G$4)-1) -> -0.006867806048

Sheet PL Tariff Components
A1: ='DNSP Inputs O & M'!$A$3 -> Citipower | E1: Global Check | F1: =IF(SUM('Total RAB'!F1,'Depn & WACC Post 2004'!F1,'Cashflow Summary'!F1,W1)<1,"Ok","Error") -> Ok | V1: Check | W1: =SUM(V6:Z36) -> 8.864020629e-13
A3: Public Lighting Tariffs | C3: Nominal Prices | J3: Operations, maintenance and repair Tariff | P3: Replacement Tariff | V3: Check
C4: Actual
A5: ='DNSP Inputs General'!A$41 -> Existing Lights | C5: ='DNSP Inputs General'!J$2 -> 2015 | D5: ='DNSP Inputs General'!K$2 -> 2016 | E5: ='DNSP Inputs General'!L$2 -> 2017 | F5: ='DNSP Inputs General'!M$2 -> 2018 | G5: ='DNSP Inputs General'!N$2 -> 2019 | H5: ='DNSP Inputs General'!O$2 -> 2020 | J5: =D5 -> 2016 | K5: =E5 -> 2017 | L5: 2018 | M5: 2019 | N5: 2020 | P5: =J5 -> 2016 | Q5: =K5 -> 2017 | R5: 2018 | S5: 2019 | T5: 2020 | V5: =P5 -> 2016 | W5: =Q5 -> 2017 | X5: 2018 | Y5: 2019 | Z5: 2020
A6: ='DNSP Inputs General'!A42 -> Mercury vapour 80 watt | C6: ='DNSP Inputs General'!E42 -> 69.07 | D6: ='Charges Summary'!D$31 -> 61.68694619 | E6: ='Charges Summary'!E$31 -> 62.62517998 | F6: ='Charges Summary'!F$31 -> 64.59047425 | G6: ='Charges Summary'!G$31 -> 66.49890251 | H6: ='Charges Summary'!H$31 -> 68.24273365 | J6: =SUM('Charges Summary'!D25,'Charges Summary'!D8) -> 30.80220975 | K6: =SUM('Charges Summary'!E25,'Charges Summary'!E8) -> 30.83925604 | L6: =SUM('Charges Summary'!F25,'Charges Summary'!F8) -> 31.83011849 | M6: =SUM('Charges Summary'!G25,'Charges Summary'!G8) -> 32.89039791 | N6: =SUM('Charges Summary'!H25,'Charges Summary'!H8) -> 33.89889256 | P6: =SUM('Charges Summary'!D27,'Charges Summary'!D11) -> 30.88473644 | Q6: =SUM('Charges Summary'!E27,'Charges Summary'!E11) -> 31.78592393 | R6: =SUM('Charges Summary'!F27,'Charges Summary'!F11) -> 32.76035576 | S6: =SUM('Charges Summary'!G27,'Charges Summary'!G11) -> 33.60850461 | T6: =SUM('Charges Summary'!H27,'Charges Summary'!H11) -> 34.3438411 | V6: =ABS(D6-J6-P6) -> 3.552713679e-15 | W6: =ABS(E6-K6-Q6) -> 0 | X6: 0 | Y6: 0 | Z6: 7.105427358e-15
A7: ='DNSP Inputs General'!A43 -> Sodium high pressure 150 watt | C7: ='DNSP Inputs General'!E43 -> 117.65 | D7: ='Charges Summary'!D$55 -> 102.612513 | E7: ='Charges Summary'!E$55 -> 105.966076 | F7: ='Charges Summary'!F$55 -> 109.638386 | G7: ='Charges Summary'!G$55 -> 113.2280538 | H7: ='Charges Summary'!H$55 -> 116.7139261 | J7: =SUM('Charges Summary'!D49,'Charges Summary'!D8) -> 67.90585092 | K7: =SUM('Charges Summary'!E49,'Charges Summary'!E8) -> 70.20492997 | L7: =SUM('Charges Summary'!F49,'Charges Summary'!F8) -> 72.75065335 | M7: =SUM('Charges Summary'!G49,'Charges Summary'!G8) -> 75.33667009 | N7: =SUM('Charges Summary'!H49,'Charges Summary'!H8) -> 77.94035772 | P7: =SUM('Charges Summary'!D51,'Charges Summary'!D11) -> 34.70666206 | Q7: =SUM('Charges Summary'!E51,'Charges Summary'!E11) -> 35.761146 | R7: =SUM('Charges Summary'!F51,'Charges Summary'!F11) -> 36.88773266 | S7: =SUM('Charges Summary'!G51,'Charges Summary'!G11) -> 37.89138369 | T7: =SUM('Charges Summary'!H51,'Charges Summary'!H11) -> 38.7735684 | V7: =ABS(D7-J7-P7) -> 7.105427358e-15 | W7: 7.105427358e-15 | X7: 0 | Y7: 7.105427358e-15 | Z7: 0
A8: ='DNSP Inputs General'!A44 -> Sodium high pressure 250 watt | C8: ='DNSP Inputs General'!E44 -> 119.37 | D8: ='Charges Summary'!D$71 -> 104.0356678 | E8: ='Charges Summary'!E$71 -> 107.4269093 | F8: ='Charges Summary'!F$71 -> 111.1747094 | G8: ='Charges Summary'!G$71 -> 114.838358 | H8: ='Charges Summary'!H$71 -> 118.3969577 | J8: =SUM('Charges Summary'!D65,'Charges Summary'!D8) -> 68.29951261 | K8: =SUM('Charges Summary'!E65,'Charges Summary'!E8) -> 70.59497741 | L8: =SUM('Charges Summary'!F65,'Charges Summary'!F8) -> 73.17520563 | M8: =SUM('Charges Summary'!G65,'Charges Summary'!G8) -> 75.7933164 | N8: =SUM('Charges Summary'!H65,'Charges Summary'!H8) -> 78.43017557 | P8: =SUM('Charges Summary'!D67,'Charges Summary'!D11) -> 35.73615523 | Q8: =SUM('Charges Summary'!E67,'Charges Summary'!E11) -> 36.83193187 | R8: =SUM('Charges Summary'!F67,'Charges Summary'!F11) -> 37.99950372 | S8: =SUM('Charges Summary'!G67,'Charges Summary'!G11) -> 39.04504161 | T8: =SUM('Charges Summary'!H67,'Charges Summary'!H11) -> 39.96678209 | V8: 0 | W8: 0 | X8: 0 | Y8: 7.105427358e-15 | Z8: 7.105427358e-15
A9: ='DNSP Inputs General'!A45 -> Fluorescent 20 watt | C9: ='DNSP Inputs General'!E45 -> 137.44 | D9: =IF('DNSP Inputs General'!$B45='DNSP Inputs General'!$A$42,D$6,IF('DNSP Inputs General'!$B45='DNSP Inputs General'!$A$43,D$7,D$8))*'DNSP Inputs General'!$D45 -> 122.7570229 | E9: =IF('DNSP Inputs General'!$B45='DNSP Inputs General'!$A$42,E$6,IF('DNSP Inputs General'!$B45='DNSP Inputs General'!$A$43,E$7,E$8))*'DNSP Inputs General'!$D45 -> 124.6241082 | F9: =IF('DNSP Inputs General'!$B45='DNSP Inputs General'!$A$42,F$6,IF('DNSP Inputs General'!$B45='DNSP Inputs General'!$A$43,F$7,F$8))*'DNSP Inputs General'!$D45 -> 128.5350438 | G9: =IF('DNSP Inputs General'!$B45='DNSP Inputs General'!$A$42,G$6,IF('DNSP Inputs General'!$B45='DNSP Inputs General'!$A$43,G$7,G$8))*'DNSP Inputs General'!$D45 -> 132.332816 | H9: =IF('DNSP Inputs General'!$B45='DNSP Inputs General'!$A$42,H$6,IF('DNSP Inputs General'!$B45='DNSP Inputs General'!$A$43,H$7,H$8))*'DNSP Inputs General'!$D45 -> 135.80304 | J9: =IF('DNSP Inputs General'!$B45='DNSP Inputs General'!$A$42,J$6,IF('DNSP Inputs General'!$B45='DNSP Inputs General'!$A$43,J$7,J$8))*'DNSP Inputs General'!$D45 -> 61.2963974 | K9: =IF('DNSP Inputs General'!$B45='DNSP Inputs General'!$A$42,K$6,IF('DNSP Inputs General'!$B45='DNSP Inputs General'!$A$43,K$7,K$8))*'DNSP Inputs General'!$D45 -> 61.37011952 | L9: =IF('DNSP Inputs General'!$B45='DNSP Inputs General'!$A$42,L$6,IF('DNSP Inputs General'!$B45='DNSP Inputs General'!$A$43,L$7,L$8))*'DNSP Inputs General'!$D45 -> 63.34193579 | M9: =IF('DNSP Inputs General'!$B45='DNSP Inputs General'!$A$42,M$6,IF('DNSP Inputs General'!$B45='DNSP Inputs General'!$A$43,M$7,M$8))*'DNSP Inputs General'!$D45 -> 65.45189183 | N9: =IF('DNSP Inputs General'!$B45='DNSP Inputs General'!$A$42,N$6,IF('DNSP Inputs General'!$B45='DNSP Inputs General'!$A$43,N$7,N$8))*'DNSP Inputs General'!$D45 -> 67.45879619 | P9: =IF('DNSP Inputs General'!$B45='DNSP Inputs General'!$A$42,P$6,IF('DNSP Inputs General'!$B45='DNSP Inputs General'!$A$43,P$7,P$8))*'DNSP Inputs General'!$D45 -> 61.46062551 | Q9: =IF('DNSP Inputs General'!$B45='DNSP Inputs General'!$A$42,Q$6,IF('DNSP Inputs General'!$B45='DNSP Inputs General'!$A$43,Q$7,Q$8))*'DNSP Inputs General'!$D45 -> 63.25398863 | R9: =IF('DNSP Inputs General'!$B45='DNSP Inputs General'!$A$42,R$6,IF('DNSP Inputs General'!$B45='DNSP Inputs General'!$A$43,R$7,R$8))*'DNSP Inputs General'!$D45 -> 65.19310796 | S9: =IF('DNSP Inputs General'!$B45='DNSP Inputs General'!$A$42,S$6,IF('DNSP Inputs General'!$B45='DNSP Inputs General'!$A$43,S$7,S$8))*'DNSP Inputs General'!$D45 -> 66.88092417 | T9: =IF('DNSP Inputs General'!$B45='DNSP Inputs General'!$A$42,T$6,IF('DNSP Inputs General'!$B45='DNSP Inputs General'!$A$43,T$7,T$8))*'DNSP Inputs General'!$D45 -> 68.34424378 | V9: 7.105427358e-15 | W9: 7.105427358e-15 | X9: 0 | Y9: 0 | Z9: 2.842170943e-14
A10: ='DNSP Inputs General'!A46 -> Fluorescent 40 watt | C10: ='DNSP Inputs General'!E46 -> 136.64 | D10: =IF('DNSP Inputs General'!$B46='DNSP Inputs General'!$A$42,D$6,IF('DNSP Inputs General'!$B46='DNSP Inputs General'!$A$43,D$7,D$8))*'DNSP Inputs General'!$D46 -> 123.3738924 | E10: =IF('DNSP Inputs General'!$B46='DNSP Inputs General'!$A$42,E$6,IF('DNSP Inputs General'!$B46='DNSP Inputs General'!$A$43,E$7,E$8))*'DNSP Inputs General'!$D46 -> 125.25036 | F10: =IF('DNSP Inputs General'!$B46='DNSP Inputs General'!$A$42,F$6,IF('DNSP Inputs General'!$B46='DNSP Inputs General'!$A$43,F$7,F$8))*'DNSP Inputs General'!$D46 -> 129.1809485 | G10: =IF('DNSP Inputs General'!$B46='DNSP Inputs General'!$A$42,G$6,IF('DNSP Inputs General'!$B46='DNSP Inputs General'!$A$43,G$7,G$8))*'DNSP Inputs General'!$D46 -> 132.997805 | H10: =IF('DNSP Inputs General'!$B46='DNSP Inputs General'!$A$42,H$6,IF('DNSP Inputs General'!$B46='DNSP Inputs General'!$A$43,H$7,H$8))*'DNSP Inputs General'!$D46 -> 136.4854673 | J10: =IF('DNSP Inputs General'!$B46='DNSP Inputs General'!$A$42,J$6,IF('DNSP Inputs General'!$B46='DNSP Inputs General'!$A$43,J$7,J$8))*'DNSP Inputs General'!$D46 -> 61.6044195 | K10: =IF('DNSP Inputs General'!$B46='DNSP Inputs General'!$A$42,K$6,IF('DNSP Inputs General'!$B46='DNSP Inputs General'!$A$43,K$7,K$8))*'DNSP Inputs General'!$D46 -> 61.67851209 | L10: =IF('DNSP Inputs General'!$B46='DNSP Inputs General'!$A$42,L$6,IF('DNSP Inputs General'!$B46='DNSP Inputs General'!$A$43,L$7,L$8))*'DNSP Inputs General'!$D46 -> 63.66023698 | M10: =IF('DNSP Inputs General'!$B46='DNSP Inputs General'!$A$42,M$6,IF('DNSP Inputs General'!$B46='DNSP Inputs General'!$A$43,M$7,M$8))*'DNSP Inputs General'!$D46 -> 65.78079581 | N10: =IF('DNSP Inputs General'!$B46='DNSP Inputs General'!$A$42,N$6,IF('DNSP Inputs General'!$B46='DNSP Inputs General'!$A$43,N$7,N$8))*'DNSP Inputs General'!$D46 -> 67.79778511 | P10: =IF('DNSP Inputs General'!$B46='DNSP Inputs General'!$A$42,P$6,IF('DNSP Inputs General'!$B46='DNSP Inputs General'!$A$43,P$7,P$8))*'DNSP Inputs General'!$D46 -> 61.76947287 | Q10: =IF('DNSP Inputs General'!$B46='DNSP Inputs General'!$A$42,Q$6,IF('DNSP Inputs General'!$B46='DNSP Inputs General'!$A$43,Q$7,Q$8))*'DNSP Inputs General'!$D46 -> 63.57184787 | R10: =IF('DNSP Inputs General'!$B46='DNSP Inputs General'!$A$42,R$6,IF('DNSP Inputs General'!$B46='DNSP Inputs General'!$A$43,R$7,R$8))*'DNSP Inputs General'!$D46 -> 65.52071152 | S10: =IF('DNSP Inputs General'!$B46='DNSP Inputs General'!$A$42,S$6,IF('DNSP Inputs General'!$B46='DNSP Inputs General'!$A$43,S$7,S$8))*'DNSP Inputs General'!$D46 -> 67.21700921 | T10: =IF('DNSP Inputs General'!$B46='DNSP Inputs General'!$A$42,T$6,IF('DNSP Inputs General'!$B46='DNSP Inputs General'!$A$43,T$7,T$8))*'DNSP Inputs General'!$D46 -> 68.68768219 | V10: 7.105427358e-15 | W10: 0 | X10: 0 | Y10: 0 | Z10: 1.421085472e-14
A11: ='DNSP Inputs General'!A47 -> Mercury vapour 50 watt | C11: ='DNSP Inputs General'!E47 -> 98.07 | D11: =IF('DNSP Inputs General'!$B47='DNSP Inputs General'!$A$42,D$6,IF('DNSP Inputs General'!$B47='DNSP Inputs General'!$A$43,D$7,D$8))*'DNSP Inputs General'!$D47 -> 87.59546358 | E11: =IF('DNSP Inputs General'!$B47='DNSP Inputs General'!$A$42,E$6,IF('DNSP Inputs General'!$B47='DNSP Inputs General'!$A$43,E$7,E$8))*'DNSP Inputs General'!$D47 -> 88.92775557 | F11: =IF('DNSP Inputs General'!$B47='DNSP Inputs General'!$A$42,F$6,IF('DNSP Inputs General'!$B47='DNSP Inputs General'!$A$43,F$7,F$8))*'DNSP Inputs General'!$D47 -> 91.71847344 | G11: =IF('DNSP Inputs General'!$B47='DNSP Inputs General'!$A$42,G$6,IF('DNSP Inputs General'!$B47='DNSP Inputs General'!$A$43,G$7,G$8))*'DNSP Inputs General'!$D47 -> 94.42844157 | H11: =IF('DNSP Inputs General'!$B47='DNSP Inputs General'!$A$42,H$6,IF('DNSP Inputs General'!$B47='DNSP Inputs General'!$A$43,H$7,H$8))*'DNSP Inputs General'!$D47 -> 96.90468179 | J11: =IF('DNSP Inputs General'!$B47='DNSP Inputs General'!$A$42,J$6,IF('DNSP Inputs General'!$B47='DNSP Inputs General'!$A$43,J$7,J$8))*'DNSP Inputs General'!$D47 -> 43.73913784 | K11: =IF('DNSP Inputs General'!$B47='DNSP Inputs General'!$A$42,K$6,IF('DNSP Inputs General'!$B47='DNSP Inputs General'!$A$43,K$7,K$8))*'DNSP Inputs General'!$D47 -> 43.79174358 | L11: =IF('DNSP Inputs General'!$B47='DNSP Inputs General'!$A$42,L$6,IF('DNSP Inputs General'!$B47='DNSP Inputs General'!$A$43,L$7,L$8))*'DNSP Inputs General'!$D47 -> 45.19876826 | M11: =IF('DNSP Inputs General'!$B47='DNSP Inputs General'!$A$42,M$6,IF('DNSP Inputs General'!$B47='DNSP Inputs General'!$A$43,M$7,M$8))*'DNSP Inputs General'!$D47 -> 46.70436503 | N11: =IF('DNSP Inputs General'!$B47='DNSP Inputs General'!$A$42,N$6,IF('DNSP Inputs General'!$B47='DNSP Inputs General'!$A$43,N$7,N$8))*'DNSP Inputs General'!$D47 -> 48.13642743 | P11: =IF('DNSP Inputs General'!$B47='DNSP Inputs General'!$A$42,P$6,IF('DNSP Inputs General'!$B47='DNSP Inputs General'!$A$43,P$7,P$8))*'DNSP Inputs General'!$D47 -> 43.85632574 | Q11: =IF('DNSP Inputs General'!$B47='DNSP Inputs General'!$A$42,Q$6,IF('DNSP Inputs General'!$B47='DNSP Inputs General'!$A$43,Q$7,Q$8))*'DNSP Inputs General'!$D47 -> 45.13601199 | R11: =IF('DNSP Inputs General'!$B47='DNSP Inputs General'!$A$42,R$6,IF('DNSP Inputs General'!$B47='DNSP Inputs General'!$A$43,R$7,R$8))*'DNSP Inputs General'!$D47 -> 46.51970518 | S11: =IF('DNSP Inputs General'!$B47='DNSP Inputs General'!$A$42,S$6,IF('DNSP Inputs General'!$B47='DNSP Inputs General'!$A$43,S$7,S$8))*'DNSP Inputs General'!$D47 -> 47.72407654 | T11: =IF('DNSP Inputs General'!$B47='DNSP Inputs General'!$A$42,T$6,IF('DNSP Inputs General'!$B47='DNSP Inputs General'!$A$43,T$7,T$8))*'DNSP Inputs General'!$D47 -> 48.76825436 | V11: 7.105427358e-15 | W11: 7.105427358e-15 | X11: 7.105427358e-15 | Y11: 7.105427358e-15 | Z11: 1.421085472e-14
A12: ='DNSP Inputs General'!A48 -> Mercury vapour 125 watt | C12: ='DNSP Inputs General'!E48 -> 109.12 | D12: =IF('DNSP Inputs General'!$B48='DNSP Inputs General'!$A$42,D$6,IF('DNSP Inputs General'!$B48='DNSP Inputs General'!$A$43,D$7,D$8))*'DNSP Inputs General'!$D48 -> 97.46537497 | E12: =IF('DNSP Inputs General'!$B48='DNSP Inputs General'!$A$42,E$6,IF('DNSP Inputs General'!$B48='DNSP Inputs General'!$A$43,E$7,E$8))*'DNSP Inputs General'!$D48 -> 98.94778436 | F12: =IF('DNSP Inputs General'!$B48='DNSP Inputs General'!$A$42,F$6,IF('DNSP Inputs General'!$B48='DNSP Inputs General'!$A$43,F$7,F$8))*'DNSP Inputs General'!$D48 -> 102.0529493 | G12: =IF('DNSP Inputs General'!$B48='DNSP Inputs General'!$A$42,G$6,IF('DNSP Inputs General'!$B48='DNSP Inputs General'!$A$43,G$7,G$8))*'DNSP Inputs General'!$D48 -> 105.068266 | H12: =IF('DNSP Inputs General'!$B48='DNSP Inputs General'!$A$42,H$6,IF('DNSP Inputs General'!$B48='DNSP Inputs General'!$A$43,H$7,H$8))*'DNSP Inputs General'!$D48 -> 107.8235192 | J12: =IF('DNSP Inputs General'!$B48='DNSP Inputs General'!$A$42,J$6,IF('DNSP Inputs General'!$B48='DNSP Inputs General'!$A$43,J$7,J$8))*'DNSP Inputs General'!$D48 -> 48.6674914 | K12: =IF('DNSP Inputs General'!$B48='DNSP Inputs General'!$A$42,K$6,IF('DNSP Inputs General'!$B48='DNSP Inputs General'!$A$43,K$7,K$8))*'DNSP Inputs General'!$D48 -> 48.72602455 | L12: =IF('DNSP Inputs General'!$B48='DNSP Inputs General'!$A$42,L$6,IF('DNSP Inputs General'!$B48='DNSP Inputs General'!$A$43,L$7,L$8))*'DNSP Inputs General'!$D48 -> 50.29158721 | M12: =IF('DNSP Inputs General'!$B48='DNSP Inputs General'!$A$42,M$6,IF('DNSP Inputs General'!$B48='DNSP Inputs General'!$A$43,M$7,M$8))*'DNSP Inputs General'!$D48 -> 51.96682869 | N12: =IF('DNSP Inputs General'!$B48='DNSP Inputs General'!$A$42,N$6,IF('DNSP Inputs General'!$B48='DNSP Inputs General'!$A$43,N$7,N$8))*'DNSP Inputs General'!$D48 -> 53.56025024 | P12: =IF('DNSP Inputs General'!$B48='DNSP Inputs General'!$A$42,P$6,IF('DNSP Inputs General'!$B48='DNSP Inputs General'!$A$43,P$7,P$8))*'DNSP Inputs General'!$D48 -> 48.79788357 | Q12: =IF('DNSP Inputs General'!$B48='DNSP Inputs General'!$A$42,Q$6,IF('DNSP Inputs General'!$B48='DNSP Inputs General'!$A$43,Q$7,Q$8))*'DNSP Inputs General'!$D48 -> 50.22175981 | R12: =IF('DNSP Inputs General'!$B48='DNSP Inputs General'!$A$42,R$6,IF('DNSP Inputs General'!$B48='DNSP Inputs General'!$A$43,R$7,R$8))*'DNSP Inputs General'!$D48 -> 51.7613621 | S12: =IF('DNSP Inputs General'!$B48='DNSP Inputs General'!$A$42,S$6,IF('DNSP Inputs General'!$B48='DNSP Inputs General'!$A$43,S$7,S$8))*'DNSP Inputs General'!$D48 -> 53.10143728 | T12: =IF('DNSP Inputs General'!$B48='DNSP Inputs General'!$A$42,T$6,IF('DNSP Inputs General'!$B48='DNSP Inputs General'!$A$43,T$7,T$8))*'DNSP Inputs General'!$D48 -> 54.26326893 | V12: 0 | W12: 0 | X12: 0 | Y12: 7.105427358e-15 | Z12: 7.105427358e-15
A13: ='DNSP Inputs General'!A49 -> Mercury vapour 250 watt | C13: ='DNSP Inputs General'!E49 -> 100.27 | D13: =IF('DNSP Inputs General'!$B49='DNSP Inputs General'!$A$42,D$6,IF('DNSP Inputs General'!$B49='DNSP Inputs General'!$A$43,D$7,D$8))*'DNSP Inputs General'!$D49 -> 87.38996098 | E13: =IF('DNSP Inputs General'!$B49='DNSP Inputs General'!$A$42,E$6,IF('DNSP Inputs General'!$B49='DNSP Inputs General'!$A$43,E$7,E$8))*'DNSP Inputs General'!$D49 -> 90.2386038 | F13: =IF('DNSP Inputs General'!$B49='DNSP Inputs General'!$A$42,F$6,IF('DNSP Inputs General'!$B49='DNSP Inputs General'!$A$43,F$7,F$8))*'DNSP Inputs General'!$D49 -> 93.38675586 | G13: =IF('DNSP Inputs General'!$B49='DNSP Inputs General'!$A$42,G$6,IF('DNSP Inputs General'!$B49='DNSP Inputs General'!$A$43,G$7,G$8))*'DNSP Inputs General'!$D49 -> 96.46422073 | H13: =IF('DNSP Inputs General'!$B49='DNSP Inputs General'!$A$42,H$6,IF('DNSP Inputs General'!$B49='DNSP Inputs General'!$A$43,H$7,H$8))*'DNSP Inputs General'!$D49 -> 99.45344444 | J13: =IF('DNSP Inputs General'!$B49='DNSP Inputs General'!$A$42,J$6,IF('DNSP Inputs General'!$B49='DNSP Inputs General'!$A$43,J$7,J$8))*'DNSP Inputs General'!$D49 -> 57.37159059 | K13: =IF('DNSP Inputs General'!$B49='DNSP Inputs General'!$A$42,K$6,IF('DNSP Inputs General'!$B49='DNSP Inputs General'!$A$43,K$7,K$8))*'DNSP Inputs General'!$D49 -> 59.29978103 | L13: =IF('DNSP Inputs General'!$B49='DNSP Inputs General'!$A$42,L$6,IF('DNSP Inputs General'!$B49='DNSP Inputs General'!$A$43,L$7,L$8))*'DNSP Inputs General'!$D49 -> 61.46717273 | M13: =IF('DNSP Inputs General'!$B49='DNSP Inputs General'!$A$42,M$6,IF('DNSP Inputs General'!$B49='DNSP Inputs General'!$A$43,M$7,M$8))*'DNSP Inputs General'!$D49 -> 63.66638578 | N13: =IF('DNSP Inputs General'!$B49='DNSP Inputs General'!$A$42,N$6,IF('DNSP Inputs General'!$B49='DNSP Inputs General'!$A$43,N$7,N$8))*'DNSP Inputs General'!$D49 -> 65.88134748 | P13: =IF('DNSP Inputs General'!$B49='DNSP Inputs General'!$A$42,P$6,IF('DNSP Inputs General'!$B49='DNSP Inputs General'!$A$43,P$7,P$8))*'DNSP Inputs General'!$D49 -> 30.01837039 | Q13: =IF('DNSP Inputs General'!$B49='DNSP Inputs General'!$A$42,Q$6,IF('DNSP Inputs General'!$B49='DNSP Inputs General'!$A$43,Q$7,Q$8))*'DNSP Inputs General'!$D49 -> 30.93882277 | R13: =IF('DNSP Inputs General'!$B49='DNSP Inputs General'!$A$42,R$6,IF('DNSP Inputs General'!$B49='DNSP Inputs General'!$A$43,R$7,R$8))*'DNSP Inputs General'!$D49 -> 31.91958313 | S13: =IF('DNSP Inputs General'!$B49='DNSP Inputs General'!$A$42,S$6,IF('DNSP Inputs General'!$B49='DNSP Inputs General'!$A$43,S$7,S$8))*'DNSP Inputs General'!$D49 -> 32.79783495 | T13: =IF('DNSP Inputs General'!$B49='DNSP Inputs General'!$A$42,T$6,IF('DNSP Inputs General'!$B49='DNSP Inputs General'!$A$43,T$7,T$8))*'DNSP Inputs General'!$D49 -> 33.57209696 | V13: 0 | W13: 3.552713679e-15 | X13: 3.552713679e-15 | Y13: 7.105427358e-15 | Z13: 7.105427358e-15
A14: ='DNSP Inputs General'!A50 -> Mercury vapour 400 watt | C14: ='DNSP Inputs General'!E50 -> 101.47 | D14: =IF('DNSP Inputs General'!$B50='DNSP Inputs General'!$A$42,D$6,IF('DNSP Inputs General'!$B50='DNSP Inputs General'!$A$43,D$7,D$8))*'DNSP Inputs General'!$D50 -> 88.43031766 | E14: =IF('DNSP Inputs General'!$B50='DNSP Inputs General'!$A$42,E$6,IF('DNSP Inputs General'!$B50='DNSP Inputs General'!$A$43,E$7,E$8))*'DNSP Inputs General'!$D50 -> 91.31287289 | F14: =IF('DNSP Inputs General'!$B50='DNSP Inputs General'!$A$42,F$6,IF('DNSP Inputs General'!$B50='DNSP Inputs General'!$A$43,F$7,F$8))*'DNSP Inputs General'!$D50 -> 94.49850295 | G14: =IF('DNSP Inputs General'!$B50='DNSP Inputs General'!$A$42,G$6,IF('DNSP Inputs General'!$B50='DNSP Inputs General'!$A$43,G$7,G$8))*'DNSP Inputs General'!$D50 -> 97.61260431 | H14: =IF('DNSP Inputs General'!$B50='DNSP Inputs General'!$A$42,H$6,IF('DNSP Inputs General'!$B50='DNSP Inputs General'!$A$43,H$7,H$8))*'DNSP Inputs General'!$D50 -> 100.637414 | J14: =IF('DNSP Inputs General'!$B50='DNSP Inputs General'!$A$42,J$6,IF('DNSP Inputs General'!$B50='DNSP Inputs General'!$A$43,J$7,J$8))*'DNSP Inputs General'!$D50 -> 58.05458572 | K14: =IF('DNSP Inputs General'!$B50='DNSP Inputs General'!$A$42,K$6,IF('DNSP Inputs General'!$B50='DNSP Inputs General'!$A$43,K$7,K$8))*'DNSP Inputs General'!$D50 -> 60.0057308 | L14: =IF('DNSP Inputs General'!$B50='DNSP Inputs General'!$A$42,L$6,IF('DNSP Inputs General'!$B50='DNSP Inputs General'!$A$43,L$7,L$8))*'DNSP Inputs General'!$D50 -> 62.19892478 | M14: =IF('DNSP Inputs General'!$B50='DNSP Inputs General'!$A$42,M$6,IF('DNSP Inputs General'!$B50='DNSP Inputs General'!$A$43,M$7,M$8))*'DNSP Inputs General'!$D50 -> 64.42431894 | N14: =IF('DNSP Inputs General'!$B50='DNSP Inputs General'!$A$42,N$6,IF('DNSP Inputs General'!$B50='DNSP Inputs General'!$A$43,N$7,N$8))*'DNSP Inputs General'!$D50 -> 66.66564924 | P14: =IF('DNSP Inputs General'!$B50='DNSP Inputs General'!$A$42,P$6,IF('DNSP Inputs General'!$B50='DNSP Inputs General'!$A$43,P$7,P$8))*'DNSP Inputs General'!$D50 -> 30.37573194 | Q14: =IF('DNSP Inputs General'!$B50='DNSP Inputs General'!$A$42,Q$6,IF('DNSP Inputs General'!$B50='DNSP Inputs General'!$A$43,Q$7,Q$8))*'DNSP Inputs General'!$D50 -> 31.30714209 | R14: =IF('DNSP Inputs General'!$B50='DNSP Inputs General'!$A$42,R$6,IF('DNSP Inputs General'!$B50='DNSP Inputs General'!$A$43,R$7,R$8))*'DNSP Inputs General'!$D50 -> 32.29957817 | S14: =IF('DNSP Inputs General'!$B50='DNSP Inputs General'!$A$42,S$6,IF('DNSP Inputs General'!$B50='DNSP Inputs General'!$A$43,S$7,S$8))*'DNSP Inputs General'!$D50 -> 33.18828537 | T14: =IF('DNSP Inputs General'!$B50='DNSP Inputs General'!$A$42,T$6,IF('DNSP Inputs General'!$B50='DNSP Inputs General'!$A$43,T$7,T$8))*'DNSP Inputs General'!$D50 -> 33.97176478 | V14: 3.552713679e-15 | W14: 0 | X14: 0 | Y14: 1.421085472e-14 | Z14: 7.105427358e-15
A15: ='DNSP Inputs General'!A51 -> Mercury vapour 700 watt | C15: ='DNSP Inputs General'!E51 -> 149.22 | D15: =IF('DNSP Inputs General'!$B51='DNSP Inputs General'!$A$42,D$6,IF('DNSP Inputs General'!$B51='DNSP Inputs General'!$A$43,D$7,D$8))*'DNSP Inputs General'!$D51 -> 130.0445848 | E15: =IF('DNSP Inputs General'!$B51='DNSP Inputs General'!$A$42,E$6,IF('DNSP Inputs General'!$B51='DNSP Inputs General'!$A$43,E$7,E$8))*'DNSP Inputs General'!$D51 -> 134.2836366 | F15: =IF('DNSP Inputs General'!$B51='DNSP Inputs General'!$A$42,F$6,IF('DNSP Inputs General'!$B51='DNSP Inputs General'!$A$43,F$7,F$8))*'DNSP Inputs General'!$D51 -> 138.9683867 | G15: =IF('DNSP Inputs General'!$B51='DNSP Inputs General'!$A$42,G$6,IF('DNSP Inputs General'!$B51='DNSP Inputs General'!$A$43,G$7,G$8))*'DNSP Inputs General'!$D51 -> 143.5479475 | H15: =IF('DNSP Inputs General'!$B51='DNSP Inputs General'!$A$42,H$6,IF('DNSP Inputs General'!$B51='DNSP Inputs General'!$A$43,H$7,H$8))*'DNSP Inputs General'!$D51 -> 147.9961971 | J15: =IF('DNSP Inputs General'!$B51='DNSP Inputs General'!$A$42,J$6,IF('DNSP Inputs General'!$B51='DNSP Inputs General'!$A$43,J$7,J$8))*'DNSP Inputs General'!$D51 -> 85.37439076 | K15: =IF('DNSP Inputs General'!$B51='DNSP Inputs General'!$A$42,K$6,IF('DNSP Inputs General'!$B51='DNSP Inputs General'!$A$43,K$7,K$8))*'DNSP Inputs General'!$D51 -> 88.24372177 | L15: =IF('DNSP Inputs General'!$B51='DNSP Inputs General'!$A$42,L$6,IF('DNSP Inputs General'!$B51='DNSP Inputs General'!$A$43,L$7,L$8))*'DNSP Inputs General'!$D51 -> 91.46900704 | M15: =IF('DNSP Inputs General'!$B51='DNSP Inputs General'!$A$42,M$6,IF('DNSP Inputs General'!$B51='DNSP Inputs General'!$A$43,M$7,M$8))*'DNSP Inputs General'!$D51 -> 94.7416455 | N15: =IF('DNSP Inputs General'!$B51='DNSP Inputs General'!$A$42,N$6,IF('DNSP Inputs General'!$B51='DNSP Inputs General'!$A$43,N$7,N$8))*'DNSP Inputs General'!$D51 -> 98.03771946 | P15: =IF('DNSP Inputs General'!$B51='DNSP Inputs General'!$A$42,P$6,IF('DNSP Inputs General'!$B51='DNSP Inputs General'!$A$43,P$7,P$8))*'DNSP Inputs General'!$D51 -> 44.67019403 | Q15: =IF('DNSP Inputs General'!$B51='DNSP Inputs General'!$A$42,Q$6,IF('DNSP Inputs General'!$B51='DNSP Inputs General'!$A$43,Q$7,Q$8))*'DNSP Inputs General'!$D51 -> 46.03991484 | R15: =IF('DNSP Inputs General'!$B51='DNSP Inputs General'!$A$42,R$6,IF('DNSP Inputs General'!$B51='DNSP Inputs General'!$A$43,R$7,R$8))*'DNSP Inputs General'!$D51 -> 47.49937966 | S15: =IF('DNSP Inputs General'!$B51='DNSP Inputs General'!$A$42,S$6,IF('DNSP Inputs General'!$B51='DNSP Inputs General'!$A$43,S$7,S$8))*'DNSP Inputs General'!$D51 -> 48.80630201 | T15: =IF('DNSP Inputs General'!$B51='DNSP Inputs General'!$A$42,T$6,IF('DNSP Inputs General'!$B51='DNSP Inputs General'!$A$43,T$7,T$8))*'DNSP Inputs General'!$D51 -> 49.95847761 | V15: 1.421085472e-14 | W15: 7.105427358e-15 | X15: 1.421085472e-14 | Y15: 0 | Z15: 2.131628207e-14
A16: ='DNSP Inputs General'!A52 -> Sodium high pressure 70 watt | C16: ='DNSP Inputs General'!E52 -> 146.42 | D16: =IF('DNSP Inputs General'!$B52='DNSP Inputs General'!$A$42,D$6,IF('DNSP Inputs General'!$B52='DNSP Inputs General'!$A$43,D$7,D$8))*'DNSP Inputs General'!$D52 -> 130.7763259 | E16: =IF('DNSP Inputs General'!$B52='DNSP Inputs General'!$A$42,E$6,IF('DNSP Inputs General'!$B52='DNSP Inputs General'!$A$43,E$7,E$8))*'DNSP Inputs General'!$D52 -> 132.7653815 | F16: =IF('DNSP Inputs General'!$B52='DNSP Inputs General'!$A$42,F$6,IF('DNSP Inputs General'!$B52='DNSP Inputs General'!$A$43,F$7,F$8))*'DNSP Inputs General'!$D52 -> 136.9318054 | G16: =IF('DNSP Inputs General'!$B52='DNSP Inputs General'!$A$42,G$6,IF('DNSP Inputs General'!$B52='DNSP Inputs General'!$A$43,G$7,G$8))*'DNSP Inputs General'!$D52 -> 140.9776733 | H16: =IF('DNSP Inputs General'!$B52='DNSP Inputs General'!$A$42,H$6,IF('DNSP Inputs General'!$B52='DNSP Inputs General'!$A$43,H$7,H$8))*'DNSP Inputs General'!$D52 -> 144.6745953 | J16: =IF('DNSP Inputs General'!$B52='DNSP Inputs General'!$A$42,J$6,IF('DNSP Inputs General'!$B52='DNSP Inputs General'!$A$43,J$7,J$8))*'DNSP Inputs General'!$D52 -> 65.30068467 | K16: =IF('DNSP Inputs General'!$B52='DNSP Inputs General'!$A$42,K$6,IF('DNSP Inputs General'!$B52='DNSP Inputs General'!$A$43,K$7,K$8))*'DNSP Inputs General'!$D52 -> 65.37922281 | L16: =IF('DNSP Inputs General'!$B52='DNSP Inputs General'!$A$42,L$6,IF('DNSP Inputs General'!$B52='DNSP Inputs General'!$A$43,L$7,L$8))*'DNSP Inputs General'!$D52 -> 67.4798512 | M16: =IF('DNSP Inputs General'!$B52='DNSP Inputs General'!$A$42,M$6,IF('DNSP Inputs General'!$B52='DNSP Inputs General'!$A$43,M$7,M$8))*'DNSP Inputs General'!$D52 -> 69.72764356 | N16: =IF('DNSP Inputs General'!$B52='DNSP Inputs General'!$A$42,N$6,IF('DNSP Inputs General'!$B52='DNSP Inputs General'!$A$43,N$7,N$8))*'DNSP Inputs General'!$D52 -> 71.86565222 | P16: =IF('DNSP Inputs General'!$B52='DNSP Inputs General'!$A$42,P$6,IF('DNSP Inputs General'!$B52='DNSP Inputs General'!$A$43,P$7,P$8))*'DNSP Inputs General'!$D52 -> 65.47564125 | Q16: =IF('DNSP Inputs General'!$B52='DNSP Inputs General'!$A$42,Q$6,IF('DNSP Inputs General'!$B52='DNSP Inputs General'!$A$43,Q$7,Q$8))*'DNSP Inputs General'!$D52 -> 67.38615874 | R16: =IF('DNSP Inputs General'!$B52='DNSP Inputs General'!$A$42,R$6,IF('DNSP Inputs General'!$B52='DNSP Inputs General'!$A$43,R$7,R$8))*'DNSP Inputs General'!$D52 -> 69.45195421 | S16: =IF('DNSP Inputs General'!$B52='DNSP Inputs General'!$A$42,S$6,IF('DNSP Inputs General'!$B52='DNSP Inputs General'!$A$43,S$7,S$8))*'DNSP Inputs General'!$D52 -> 71.25002976 | T16: =IF('DNSP Inputs General'!$B52='DNSP Inputs General'!$A$42,T$6,IF('DNSP Inputs General'!$B52='DNSP Inputs General'!$A$43,T$7,T$8))*'DNSP Inputs General'!$D52 -> 72.80894313 | V16: 1.421085472e-14 | W16: 1.421085472e-14 | X16: 1.421085472e-14 | Y16: 0 | Z16: 2.842170943e-14
A17: ='DNSP Inputs General'!A53 -> Sodium high pressure 100 watt | C17: ='DNSP Inputs General'!E53 -> 120.01 | D17: =IF('DNSP Inputs General'!$B53='DNSP Inputs General'!$A$42,D$6,IF('DNSP Inputs General'!$B53='DNSP Inputs General'!$A$43,D$7,D$8))*'DNSP Inputs General'!$D53 -> 104.6647632 | E17: =IF('DNSP Inputs General'!$B53='DNSP Inputs General'!$A$42,E$6,IF('DNSP Inputs General'!$B53='DNSP Inputs General'!$A$43,E$7,E$8))*'DNSP Inputs General'!$D53 -> 108.0853975 | F17: =IF('DNSP Inputs General'!$B53='DNSP Inputs General'!$A$42,F$6,IF('DNSP Inputs General'!$B53='DNSP Inputs General'!$A$43,F$7,F$8))*'DNSP Inputs General'!$D53 -> 111.8311537 | G17: =IF('DNSP Inputs General'!$B53='DNSP Inputs General'!$A$42,G$6,IF('DNSP Inputs General'!$B53='DNSP Inputs General'!$A$43,G$7,G$8))*'DNSP Inputs General'!$D53 -> 115.4926149 | H17: =IF('DNSP Inputs General'!$B53='DNSP Inputs General'!$A$42,H$6,IF('DNSP Inputs General'!$B53='DNSP Inputs General'!$A$43,H$7,H$8))*'DNSP Inputs General'!$D53 -> 119.0482046 | J17: =IF('DNSP Inputs General'!$B53='DNSP Inputs General'!$A$42,J$6,IF('DNSP Inputs General'!$B53='DNSP Inputs General'!$A$43,J$7,J$8))*'DNSP Inputs General'!$D53 -> 69.26396794 | K17: =IF('DNSP Inputs General'!$B53='DNSP Inputs General'!$A$42,K$6,IF('DNSP Inputs General'!$B53='DNSP Inputs General'!$A$43,K$7,K$8))*'DNSP Inputs General'!$D53 -> 71.60902856 | L17: =IF('DNSP Inputs General'!$B53='DNSP Inputs General'!$A$42,L$6,IF('DNSP Inputs General'!$B53='DNSP Inputs General'!$A$43,L$7,L$8))*'DNSP Inputs General'!$D53 -> 74.20566642 | M17: =IF('DNSP Inputs General'!$B53='DNSP Inputs General'!$A$42,M$6,IF('DNSP Inputs General'!$B53='DNSP Inputs General'!$A$43,M$7,M$8))*'DNSP Inputs General'!$D53 -> 76.8434035 | N17: =IF('DNSP Inputs General'!$B53='DNSP Inputs General'!$A$42,N$6,IF('DNSP Inputs General'!$B53='DNSP Inputs General'!$A$43,N$7,N$8))*'DNSP Inputs General'!$D53 -> 79.49916487 | P17: =IF('DNSP Inputs General'!$B53='DNSP Inputs General'!$A$42,P$6,IF('DNSP Inputs General'!$B53='DNSP Inputs General'!$A$43,P$7,P$8))*'DNSP Inputs General'!$D53 -> 35.4007953 | Q17: =IF('DNSP Inputs General'!$B53='DNSP Inputs General'!$A$42,Q$6,IF('DNSP Inputs General'!$B53='DNSP Inputs General'!$A$43,Q$7,Q$8))*'DNSP Inputs General'!$D53 -> 36.47636892 | R17: =IF('DNSP Inputs General'!$B53='DNSP Inputs General'!$A$42,R$6,IF('DNSP Inputs General'!$B53='DNSP Inputs General'!$A$43,R$7,R$8))*'DNSP Inputs General'!$D53 -> 37.62548731 | S17: =IF('DNSP Inputs General'!$B53='DNSP Inputs General'!$A$42,S$6,IF('DNSP Inputs General'!$B53='DNSP Inputs General'!$A$43,S$7,S$8))*'DNSP Inputs General'!$D53 -> 38.64921136 | T17: =IF('DNSP Inputs General'!$B53='DNSP Inputs General'!$A$42,T$6,IF('DNSP Inputs General'!$B53='DNSP Inputs General'!$A$43,T$7,T$8))*'DNSP Inputs General'!$D53 -> 39.54903976 | V17: 0 | W17: 7.105427358e-15 | X17: 0 | Y17: 1.421085472e-14 | Z17: 7.105427358e-15
A18: ='DNSP Inputs General'!A54 -> Sodium high pressure 220 watt | C18: ='DNSP Inputs General'!E54 -> 119.61 | D18: =IF('DNSP Inputs General'!$B54='DNSP Inputs General'!$A$42,D$6,IF('DNSP Inputs General'!$B54='DNSP Inputs General'!$A$43,D$7,D$8))*'DNSP Inputs General'!$D54 -> 104.2437392 | E18: =IF('DNSP Inputs General'!$B54='DNSP Inputs General'!$A$42,E$6,IF('DNSP Inputs General'!$B54='DNSP Inputs General'!$A$43,E$7,E$8))*'DNSP Inputs General'!$D54 -> 107.6417631 | F18: =IF('DNSP Inputs General'!$B54='DNSP Inputs General'!$A$42,F$6,IF('DNSP Inputs General'!$B54='DNSP Inputs General'!$A$43,F$7,F$8))*'DNSP Inputs General'!$D54 -> 111.3970588 | G18: =IF('DNSP Inputs General'!$B54='DNSP Inputs General'!$A$42,G$6,IF('DNSP Inputs General'!$B54='DNSP Inputs General'!$A$43,G$7,G$8))*'DNSP Inputs General'!$D54 -> 115.0680347 | H18: =IF('DNSP Inputs General'!$B54='DNSP Inputs General'!$A$42,H$6,IF('DNSP Inputs General'!$B54='DNSP Inputs General'!$A$43,H$7,H$8))*'DNSP Inputs General'!$D54 -> 118.6337516 | J18: =IF('DNSP Inputs General'!$B54='DNSP Inputs General'!$A$42,J$6,IF('DNSP Inputs General'!$B54='DNSP Inputs General'!$A$43,J$7,J$8))*'DNSP Inputs General'!$D54 -> 68.43611163 | K18: =IF('DNSP Inputs General'!$B54='DNSP Inputs General'!$A$42,K$6,IF('DNSP Inputs General'!$B54='DNSP Inputs General'!$A$43,K$7,K$8))*'DNSP Inputs General'!$D54 -> 70.73616737 | L18: =IF('DNSP Inputs General'!$B54='DNSP Inputs General'!$A$42,L$6,IF('DNSP Inputs General'!$B54='DNSP Inputs General'!$A$43,L$7,L$8))*'DNSP Inputs General'!$D54 -> 73.32155604 | M18: =IF('DNSP Inputs General'!$B54='DNSP Inputs General'!$A$42,M$6,IF('DNSP Inputs General'!$B54='DNSP Inputs General'!$A$43,M$7,M$8))*'DNSP Inputs General'!$D54 -> 75.94490304 | N18: =IF('DNSP Inputs General'!$B54='DNSP Inputs General'!$A$42,N$6,IF('DNSP Inputs General'!$B54='DNSP Inputs General'!$A$43,N$7,N$8))*'DNSP Inputs General'!$D54 -> 78.58703592 | P18: =IF('DNSP Inputs General'!$B54='DNSP Inputs General'!$A$42,P$6,IF('DNSP Inputs General'!$B54='DNSP Inputs General'!$A$43,P$7,P$8))*'DNSP Inputs General'!$D54 -> 35.80762754 | Q18: =IF('DNSP Inputs General'!$B54='DNSP Inputs General'!$A$42,Q$6,IF('DNSP Inputs General'!$B54='DNSP Inputs General'!$A$43,Q$7,Q$8))*'DNSP Inputs General'!$D54 -> 36.90559574 | R18: =IF('DNSP Inputs General'!$B54='DNSP Inputs General'!$A$42,R$6,IF('DNSP Inputs General'!$B54='DNSP Inputs General'!$A$43,R$7,R$8))*'DNSP Inputs General'!$D54 -> 38.07550273 | S18: =IF('DNSP Inputs General'!$B54='DNSP Inputs General'!$A$42,S$6,IF('DNSP Inputs General'!$B54='DNSP Inputs General'!$A$43,S$7,S$8))*'DNSP Inputs General'!$D54 -> 39.12313169 | T18: =IF('DNSP Inputs General'!$B54='DNSP Inputs General'!$A$42,T$6,IF('DNSP Inputs General'!$B54='DNSP Inputs General'!$A$43,T$7,T$8))*'DNSP Inputs General'!$D54 -> 40.04671565 | V18: 7.105427358e-15 | W18: 0 | X18: 7.105427358e-15 | Y18: 1.421085472e-14 | Z18: 2.131628207e-14
A19: ='DNSP Inputs General'!A55 -> Sodium high pressure 360 watt | C19: ='DNSP Inputs General'!E55 -> 121.76 | D19: =IF('DNSP Inputs General'!$B55='DNSP Inputs General'!$A$42,D$6,IF('DNSP Inputs General'!$B55='DNSP Inputs General'!$A$43,D$7,D$8))*'DNSP Inputs General'!$D55 -> 106.1163812 | E19: =IF('DNSP Inputs General'!$B55='DNSP Inputs General'!$A$42,E$6,IF('DNSP Inputs General'!$B55='DNSP Inputs General'!$A$43,E$7,E$8))*'DNSP Inputs General'!$D55 -> 109.5754475 | F19: =IF('DNSP Inputs General'!$B55='DNSP Inputs General'!$A$42,F$6,IF('DNSP Inputs General'!$B55='DNSP Inputs General'!$A$43,F$7,F$8))*'DNSP Inputs General'!$D55 -> 113.3982035 | G19: =IF('DNSP Inputs General'!$B55='DNSP Inputs General'!$A$42,G$6,IF('DNSP Inputs General'!$B55='DNSP Inputs General'!$A$43,G$7,G$8))*'DNSP Inputs General'!$D55 -> 117.1351252 | H19: =IF('DNSP Inputs General'!$B55='DNSP Inputs General'!$A$42,H$6,IF('DNSP Inputs General'!$B55='DNSP Inputs General'!$A$43,H$7,H$8))*'DNSP Inputs General'!$D55 -> 120.7648968 | J19: =IF('DNSP Inputs General'!$B55='DNSP Inputs General'!$A$42,J$6,IF('DNSP Inputs General'!$B55='DNSP Inputs General'!$A$43,J$7,J$8))*'DNSP Inputs General'!$D55 -> 69.66550286 | K19: =IF('DNSP Inputs General'!$B55='DNSP Inputs General'!$A$42,K$6,IF('DNSP Inputs General'!$B55='DNSP Inputs General'!$A$43,K$7,K$8))*'DNSP Inputs General'!$D55 -> 72.00687696 | L19: =IF('DNSP Inputs General'!$B55='DNSP Inputs General'!$A$42,L$6,IF('DNSP Inputs General'!$B55='DNSP Inputs General'!$A$43,L$7,L$8))*'DNSP Inputs General'!$D55 -> 74.63870974 | M19: =IF('DNSP Inputs General'!$B55='DNSP Inputs General'!$A$42,M$6,IF('DNSP Inputs General'!$B55='DNSP Inputs General'!$A$43,M$7,M$8))*'DNSP Inputs General'!$D55 -> 77.30918273 | N19: =IF('DNSP Inputs General'!$B55='DNSP Inputs General'!$A$42,N$6,IF('DNSP Inputs General'!$B55='DNSP Inputs General'!$A$43,N$7,N$8))*'DNSP Inputs General'!$D55 -> 79.99877908 | P19: =IF('DNSP Inputs General'!$B55='DNSP Inputs General'!$A$42,P$6,IF('DNSP Inputs General'!$B55='DNSP Inputs General'!$A$43,P$7,P$8))*'DNSP Inputs General'!$D55 -> 36.45087833 | Q19: =IF('DNSP Inputs General'!$B55='DNSP Inputs General'!$A$42,Q$6,IF('DNSP Inputs General'!$B55='DNSP Inputs General'!$A$43,Q$7,Q$8))*'DNSP Inputs General'!$D55 -> 37.56857051 | R19: =IF('DNSP Inputs General'!$B55='DNSP Inputs General'!$A$42,R$6,IF('DNSP Inputs General'!$B55='DNSP Inputs General'!$A$43,R$7,R$8))*'DNSP Inputs General'!$D55 -> 38.7594938 | S19: =IF('DNSP Inputs General'!$B55='DNSP Inputs General'!$A$42,S$6,IF('DNSP Inputs General'!$B55='DNSP Inputs General'!$A$43,S$7,S$8))*'DNSP Inputs General'!$D55 -> 39.82594244 | T19: =IF('DNSP Inputs General'!$B55='DNSP Inputs General'!$A$42,T$6,IF('DNSP Inputs General'!$B55='DNSP Inputs General'!$A$43,T$7,T$8))*'DNSP Inputs General'!$D55 -> 40.76611773 | V19: 7.105427358e-15 | W19: 7.105427358e-15 | X19: 0 | Y19: 0 | Z19: 0
A20: ='DNSP Inputs General'!A56 -> Sodium high pressure 400 watt | C20: ='DNSP Inputs General'!E56 -> 131.31 | D20: =IF('DNSP Inputs General'!$B56='DNSP Inputs General'!$A$42,D$6,IF('DNSP Inputs General'!$B56='DNSP Inputs General'!$A$43,D$7,D$8))*'DNSP Inputs General'!$D56 -> 114.4392346 | E20: =IF('DNSP Inputs General'!$B56='DNSP Inputs General'!$A$42,E$6,IF('DNSP Inputs General'!$B56='DNSP Inputs General'!$A$43,E$7,E$8))*'DNSP Inputs General'!$D56 -> 118.1696002 | F20: =IF('DNSP Inputs General'!$B56='DNSP Inputs General'!$A$42,F$6,IF('DNSP Inputs General'!$B56='DNSP Inputs General'!$A$43,F$7,F$8))*'DNSP Inputs General'!$D56 -> 122.2921803 | G20: =IF('DNSP Inputs General'!$B56='DNSP Inputs General'!$A$42,G$6,IF('DNSP Inputs General'!$B56='DNSP Inputs General'!$A$43,G$7,G$8))*'DNSP Inputs General'!$D56 -> 126.3221938 | H20: =IF('DNSP Inputs General'!$B56='DNSP Inputs General'!$A$42,H$6,IF('DNSP Inputs General'!$B56='DNSP Inputs General'!$A$43,H$7,H$8))*'DNSP Inputs General'!$D56 -> 130.2366534 | J20: =IF('DNSP Inputs General'!$B56='DNSP Inputs General'!$A$42,J$6,IF('DNSP Inputs General'!$B56='DNSP Inputs General'!$A$43,J$7,J$8))*'DNSP Inputs General'!$D56 -> 75.12946387 | K20: =IF('DNSP Inputs General'!$B56='DNSP Inputs General'!$A$42,K$6,IF('DNSP Inputs General'!$B56='DNSP Inputs General'!$A$43,K$7,K$8))*'DNSP Inputs General'!$D56 -> 77.65447515 | L20: =IF('DNSP Inputs General'!$B56='DNSP Inputs General'!$A$42,L$6,IF('DNSP Inputs General'!$B56='DNSP Inputs General'!$A$43,L$7,L$8))*'DNSP Inputs General'!$D56 -> 80.49272619 | M20: =IF('DNSP Inputs General'!$B56='DNSP Inputs General'!$A$42,M$6,IF('DNSP Inputs General'!$B56='DNSP Inputs General'!$A$43,M$7,M$8))*'DNSP Inputs General'!$D56 -> 83.37264804 | N20: =IF('DNSP Inputs General'!$B56='DNSP Inputs General'!$A$42,N$6,IF('DNSP Inputs General'!$B56='DNSP Inputs General'!$A$43,N$7,N$8))*'DNSP Inputs General'!$D56 -> 86.27319313 | P20: =IF('DNSP Inputs General'!$B56='DNSP Inputs General'!$A$42,P$6,IF('DNSP Inputs General'!$B56='DNSP Inputs General'!$A$43,P$7,P$8))*'DNSP Inputs General'!$D56 -> 39.30977075 | Q20: =IF('DNSP Inputs General'!$B56='DNSP Inputs General'!$A$42,Q$6,IF('DNSP Inputs General'!$B56='DNSP Inputs General'!$A$43,Q$7,Q$8))*'DNSP Inputs General'!$D56 -> 40.51512506 | R20: =IF('DNSP Inputs General'!$B56='DNSP Inputs General'!$A$42,R$6,IF('DNSP Inputs General'!$B56='DNSP Inputs General'!$A$43,R$7,R$8))*'DNSP Inputs General'!$D56 -> 41.7994541 | S20: =IF('DNSP Inputs General'!$B56='DNSP Inputs General'!$A$42,S$6,IF('DNSP Inputs General'!$B56='DNSP Inputs General'!$A$43,S$7,S$8))*'DNSP Inputs General'!$D56 -> 42.94954577 | T20: =IF('DNSP Inputs General'!$B56='DNSP Inputs General'!$A$42,T$6,IF('DNSP Inputs General'!$B56='DNSP Inputs General'!$A$43,T$7,T$8))*'DNSP Inputs General'!$D56 -> 43.9634603 | V20: 0 | W20: 0 | X20: 7.105427358e-15 | Y20: 1.421085472e-14 | Z20: 2.131628207e-14
A21: ='DNSP Inputs General'!A57 -> Sodium high pressure 1000 watt | C21: ='DNSP Inputs General'!E57 -> 236.36 | D21: =IF('DNSP Inputs General'!$B57='DNSP Inputs General'!$A$42,D$6,IF('DNSP Inputs General'!$B57='DNSP Inputs General'!$A$43,D$7,D$8))*'DNSP Inputs General'!$D57 -> 205.9906223 | E21: =IF('DNSP Inputs General'!$B57='DNSP Inputs General'!$A$42,E$6,IF('DNSP Inputs General'!$B57='DNSP Inputs General'!$A$43,E$7,E$8))*'DNSP Inputs General'!$D57 -> 212.7052804 | F21: =IF('DNSP Inputs General'!$B57='DNSP Inputs General'!$A$42,F$6,IF('DNSP Inputs General'!$B57='DNSP Inputs General'!$A$43,F$7,F$8))*'DNSP Inputs General'!$D57 -> 220.1259245 | G21: =IF('DNSP Inputs General'!$B57='DNSP Inputs General'!$A$42,G$6,IF('DNSP Inputs General'!$B57='DNSP Inputs General'!$A$43,G$7,G$8))*'DNSP Inputs General'!$D57 -> 227.3799489 | H21: =IF('DNSP Inputs General'!$B57='DNSP Inputs General'!$A$42,H$6,IF('DNSP Inputs General'!$B57='DNSP Inputs General'!$A$43,H$7,H$8))*'DNSP Inputs General'!$D57 -> 234.4259762 | J21: =IF('DNSP Inputs General'!$B57='DNSP Inputs General'!$A$42,J$6,IF('DNSP Inputs General'!$B57='DNSP Inputs General'!$A$43,J$7,J$8))*'DNSP Inputs General'!$D57 -> 135.233035 | K21: =IF('DNSP Inputs General'!$B57='DNSP Inputs General'!$A$42,K$6,IF('DNSP Inputs General'!$B57='DNSP Inputs General'!$A$43,K$7,K$8))*'DNSP Inputs General'!$D57 -> 139.7780553 | L21: =IF('DNSP Inputs General'!$B57='DNSP Inputs General'!$A$42,L$6,IF('DNSP Inputs General'!$B57='DNSP Inputs General'!$A$43,L$7,L$8))*'DNSP Inputs General'!$D57 -> 144.8869071 | M21: =IF('DNSP Inputs General'!$B57='DNSP Inputs General'!$A$42,M$6,IF('DNSP Inputs General'!$B57='DNSP Inputs General'!$A$43,M$7,M$8))*'DNSP Inputs General'!$D57 -> 150.0707665 | N21: =IF('DNSP Inputs General'!$B57='DNSP Inputs General'!$A$42,N$6,IF('DNSP Inputs General'!$B57='DNSP Inputs General'!$A$43,N$7,N$8))*'DNSP Inputs General'!$D57 -> 155.2917476 | P21: =IF('DNSP Inputs General'!$B57='DNSP Inputs General'!$A$42,P$6,IF('DNSP Inputs General'!$B57='DNSP Inputs General'!$A$43,P$7,P$8))*'DNSP Inputs General'!$D57 -> 70.75758735 | Q21: =IF('DNSP Inputs General'!$B57='DNSP Inputs General'!$A$42,Q$6,IF('DNSP Inputs General'!$B57='DNSP Inputs General'!$A$43,Q$7,Q$8))*'DNSP Inputs General'!$D57 -> 72.92722511 | R21: =IF('DNSP Inputs General'!$B57='DNSP Inputs General'!$A$42,R$6,IF('DNSP Inputs General'!$B57='DNSP Inputs General'!$A$43,R$7,R$8))*'DNSP Inputs General'!$D57 -> 75.23901737 | S21: =IF('DNSP Inputs General'!$B57='DNSP Inputs General'!$A$42,S$6,IF('DNSP Inputs General'!$B57='DNSP Inputs General'!$A$43,S$7,S$8))*'DNSP Inputs General'!$D57 -> 77.30918238 | T21: =IF('DNSP Inputs General'!$B57='DNSP Inputs General'!$A$42,T$6,IF('DNSP Inputs General'!$B57='DNSP Inputs General'!$A$43,T$7,T$8))*'DNSP Inputs General'!$D57 -> 79.13422854 | V21: 1.421085472e-14 | W21: 1.421085472e-14 | X21: 0 | Y21: 1.421085472e-14 | Z21: 1.421085472e-14
A22: ='DNSP Inputs General'!A58 -> Metal halide 70 watt | C22: ='DNSP Inputs General'!E58 -> 225.84 | D22: =IF('DNSP Inputs General'!$B58='DNSP Inputs General'!$A$42,D$6,IF('DNSP Inputs General'!$B58='DNSP Inputs General'!$A$43,D$7,D$8))*'DNSP Inputs General'!$D58 -> 130.7763259 | E22: =IF('DNSP Inputs General'!$B58='DNSP Inputs General'!$A$42,E$6,IF('DNSP Inputs General'!$B58='DNSP Inputs General'!$A$43,E$7,E$8))*'DNSP Inputs General'!$D58 -> 132.7653815 | F22: =IF('DNSP Inputs General'!$B58='DNSP Inputs General'!$A$42,F$6,IF('DNSP Inputs General'!$B58='DNSP Inputs General'!$A$43,F$7,F$8))*'DNSP Inputs General'!$D58 -> 136.9318054 | G22: =IF('DNSP Inputs General'!$B58='DNSP Inputs General'!$A$42,G$6,IF('DNSP Inputs General'!$B58='DNSP Inputs General'!$A$43,G$7,G$8))*'DNSP Inputs General'!$D58 -> 140.9776733 | H22: =IF('DNSP Inputs General'!$B58='DNSP Inputs General'!$A$42,H$6,IF('DNSP Inputs General'!$B58='DNSP Inputs General'!$A$43,H$7,H$8))*'DNSP Inputs General'!$D58 -> 144.6745953 | J22: =IF('DNSP Inputs General'!$B58='DNSP Inputs General'!$A$42,J$6,IF('DNSP Inputs General'!$B58='DNSP Inputs General'!$A$43,J$7,J$8))*'DNSP Inputs General'!$D58 -> 65.30068467 | K22: =IF('DNSP Inputs General'!$B58='DNSP Inputs General'!$A$42,K$6,IF('DNSP Inputs General'!$B58='DNSP Inputs General'!$A$43,K$7,K$8))*'DNSP Inputs General'!$D58 -> 65.37922281 | L22: =IF('DNSP Inputs General'!$B58='DNSP Inputs General'!$A$42,L$6,IF('DNSP Inputs General'!$B58='DNSP Inputs General'!$A$43,L$7,L$8))*'DNSP Inputs General'!$D58 -> 67.4798512 | M22: =IF('DNSP Inputs General'!$B58='DNSP Inputs General'!$A$42,M$6,IF('DNSP Inputs General'!$B58='DNSP Inputs General'!$A$43,M$7,M$8))*'DNSP Inputs General'!$D58 -> 69.72764356 | N22: =IF('DNSP Inputs General'!$B58='DNSP Inputs General'!$A$42,N$6,IF('DNSP Inputs General'!$B58='DNSP Inputs General'!$A$43,N$7,N$8))*'DNSP Inputs General'!$D58 -> 71.86565222 | P22: =IF('DNSP Inputs General'!$B58='DNSP Inputs General'!$A$42,P$6,IF('DNSP Inputs General'!$B58='DNSP Inputs General'!$A$43,P$7,P$8))*'DNSP Inputs General'!$D58 -> 65.47564125 | Q22: =IF('DNSP Inputs General'!$B58='DNSP Inputs General'!$A$42,Q$6,IF('DNSP Inputs General'!$B58='DNSP Inputs General'!$A$43,Q$7,Q$8))*'DNSP Inputs General'!$D58 -> 67.38615874 | R22: =IF('DNSP Inputs General'!$B58='DNSP Inputs General'!$A$42,R$6,IF('DNSP Inputs General'!$B58='DNSP Inputs General'!$A$43,R$7,R$8))*'DNSP Inputs General'!$D58 -> 69.45195421 | S22: =IF('DNSP Inputs General'!$B58='DNSP Inputs General'!$A$42,S$6,IF('DNSP Inputs General'!$B58='DNSP Inputs General'!$A$43,S$7,S$8))*'DNSP Inputs General'!$D58 -> 71.25002976 | T22: =IF('DNSP Inputs General'!$B58='DNSP Inputs General'!$A$42,T$6,IF('DNSP Inputs General'!$B58='DNSP Inputs General'!$A$43,T$7,T$8))*'DNSP Inputs General'!$D58 -> 72.80894313 | V22: 1.421085472e-14 | W22: 1.421085472e-14 | X22: 1.421085472e-14 | Y22: 0 | Z22: 2.842170943e-14
A23: ='DNSP Inputs General'!A59 -> Metal halide 100 watt | C23: ='DNSP Inputs General'!E59 -> 184.72 | D23: =IF('DNSP Inputs General'!$B59='DNSP Inputs General'!$A$42,D$6,IF('DNSP Inputs General'!$B59='DNSP Inputs General'!$A$43,D$7,D$8))*'DNSP Inputs General'!$D59 -> 161.1016454 | E23: =IF('DNSP Inputs General'!$B59='DNSP Inputs General'!$A$42,E$6,IF('DNSP Inputs General'!$B59='DNSP Inputs General'!$A$43,E$7,E$8))*'DNSP Inputs General'!$D59 -> 166.3667393 | F23: =IF('DNSP Inputs General'!$B59='DNSP Inputs General'!$A$42,F$6,IF('DNSP Inputs General'!$B59='DNSP Inputs General'!$A$43,F$7,F$8))*'DNSP Inputs General'!$D59 -> 172.132266 | G23: =IF('DNSP Inputs General'!$B59='DNSP Inputs General'!$A$42,G$6,IF('DNSP Inputs General'!$B59='DNSP Inputs General'!$A$43,G$7,G$8))*'DNSP Inputs General'!$D59 -> 177.7680444 | H23: =IF('DNSP Inputs General'!$B59='DNSP Inputs General'!$A$42,H$6,IF('DNSP Inputs General'!$B59='DNSP Inputs General'!$A$43,H$7,H$8))*'DNSP Inputs General'!$D59 -> 183.240864 | J23: =IF('DNSP Inputs General'!$B59='DNSP Inputs General'!$A$42,J$6,IF('DNSP Inputs General'!$B59='DNSP Inputs General'!$A$43,J$7,J$8))*'DNSP Inputs General'!$D59 -> 106.6121859 | K23: =IF('DNSP Inputs General'!$B59='DNSP Inputs General'!$A$42,K$6,IF('DNSP Inputs General'!$B59='DNSP Inputs General'!$A$43,K$7,K$8))*'DNSP Inputs General'!$D59 -> 110.22174 | L23: =IF('DNSP Inputs General'!$B59='DNSP Inputs General'!$A$42,L$6,IF('DNSP Inputs General'!$B59='DNSP Inputs General'!$A$43,L$7,L$8))*'DNSP Inputs General'!$D59 -> 114.2185258 | M23: =IF('DNSP Inputs General'!$B59='DNSP Inputs General'!$A$42,M$6,IF('DNSP Inputs General'!$B59='DNSP Inputs General'!$A$43,M$7,M$8))*'DNSP Inputs General'!$D59 -> 118.278572 | N23: =IF('DNSP Inputs General'!$B59='DNSP Inputs General'!$A$42,N$6,IF('DNSP Inputs General'!$B59='DNSP Inputs General'!$A$43,N$7,N$8))*'DNSP Inputs General'!$D59 -> 122.3663616 | P23: =IF('DNSP Inputs General'!$B59='DNSP Inputs General'!$A$42,P$6,IF('DNSP Inputs General'!$B59='DNSP Inputs General'!$A$43,P$7,P$8))*'DNSP Inputs General'!$D59 -> 54.48945943 | Q23: =IF('DNSP Inputs General'!$B59='DNSP Inputs General'!$A$42,Q$6,IF('DNSP Inputs General'!$B59='DNSP Inputs General'!$A$43,Q$7,Q$8))*'DNSP Inputs General'!$D59 -> 56.14499922 | R23: =IF('DNSP Inputs General'!$B59='DNSP Inputs General'!$A$42,R$6,IF('DNSP Inputs General'!$B59='DNSP Inputs General'!$A$43,R$7,R$8))*'DNSP Inputs General'!$D59 -> 57.91374027 | S23: =IF('DNSP Inputs General'!$B59='DNSP Inputs General'!$A$42,S$6,IF('DNSP Inputs General'!$B59='DNSP Inputs General'!$A$43,S$7,S$8))*'DNSP Inputs General'!$D59 -> 59.48947239 | T23: =IF('DNSP Inputs General'!$B59='DNSP Inputs General'!$A$42,T$6,IF('DNSP Inputs General'!$B59='DNSP Inputs General'!$A$43,T$7,T$8))*'DNSP Inputs General'!$D59 -> 60.87450238 | V23: 1.421085472e-14 | W23: 7.105427358e-15 | X23: 7.105427358e-15 | Y23: 0 | Z23: 7.105427358e-15
A24: ='DNSP Inputs General'!A60 -> Metal halide 150 watt | C24: ='DNSP Inputs General'!E60 -> 185.89 | D24: =IF('DNSP Inputs General'!$B60='DNSP Inputs General'!$A$42,D$6,IF('DNSP Inputs General'!$B60='DNSP Inputs General'!$A$43,D$7,D$8))*'DNSP Inputs General'!$D60 -> 162.1277705 | E24: =IF('DNSP Inputs General'!$B60='DNSP Inputs General'!$A$42,E$6,IF('DNSP Inputs General'!$B60='DNSP Inputs General'!$A$43,E$7,E$8))*'DNSP Inputs General'!$D60 -> 167.4264 | F24: =IF('DNSP Inputs General'!$B60='DNSP Inputs General'!$A$42,F$6,IF('DNSP Inputs General'!$B60='DNSP Inputs General'!$A$43,F$7,F$8))*'DNSP Inputs General'!$D60 -> 173.2286499 | G24: =IF('DNSP Inputs General'!$B60='DNSP Inputs General'!$A$42,G$6,IF('DNSP Inputs General'!$B60='DNSP Inputs General'!$A$43,G$7,G$8))*'DNSP Inputs General'!$D60 -> 178.900325 | H24: =IF('DNSP Inputs General'!$B60='DNSP Inputs General'!$A$42,H$6,IF('DNSP Inputs General'!$B60='DNSP Inputs General'!$A$43,H$7,H$8))*'DNSP Inputs General'!$D60 -> 184.4080033 | J24: =IF('DNSP Inputs General'!$B60='DNSP Inputs General'!$A$42,J$6,IF('DNSP Inputs General'!$B60='DNSP Inputs General'!$A$43,J$7,J$8))*'DNSP Inputs General'!$D60 -> 107.2912445 | K24: =IF('DNSP Inputs General'!$B60='DNSP Inputs General'!$A$42,K$6,IF('DNSP Inputs General'!$B60='DNSP Inputs General'!$A$43,K$7,K$8))*'DNSP Inputs General'!$D60 -> 110.9237893 | L24: =IF('DNSP Inputs General'!$B60='DNSP Inputs General'!$A$42,L$6,IF('DNSP Inputs General'!$B60='DNSP Inputs General'!$A$43,L$7,L$8))*'DNSP Inputs General'!$D60 -> 114.9460323 | M24: =IF('DNSP Inputs General'!$B60='DNSP Inputs General'!$A$42,M$6,IF('DNSP Inputs General'!$B60='DNSP Inputs General'!$A$43,M$7,M$8))*'DNSP Inputs General'!$D60 -> 119.0319387 | N24: =IF('DNSP Inputs General'!$B60='DNSP Inputs General'!$A$42,N$6,IF('DNSP Inputs General'!$B60='DNSP Inputs General'!$A$43,N$7,N$8))*'DNSP Inputs General'!$D60 -> 123.1457652 | P24: =IF('DNSP Inputs General'!$B60='DNSP Inputs General'!$A$42,P$6,IF('DNSP Inputs General'!$B60='DNSP Inputs General'!$A$43,P$7,P$8))*'DNSP Inputs General'!$D60 -> 54.83652605 | Q24: =IF('DNSP Inputs General'!$B60='DNSP Inputs General'!$A$42,Q$6,IF('DNSP Inputs General'!$B60='DNSP Inputs General'!$A$43,Q$7,Q$8))*'DNSP Inputs General'!$D60 -> 56.50261068 | R24: =IF('DNSP Inputs General'!$B60='DNSP Inputs General'!$A$42,R$6,IF('DNSP Inputs General'!$B60='DNSP Inputs General'!$A$43,R$7,R$8))*'DNSP Inputs General'!$D60 -> 58.2826176 | S24: =IF('DNSP Inputs General'!$B60='DNSP Inputs General'!$A$42,S$6,IF('DNSP Inputs General'!$B60='DNSP Inputs General'!$A$43,S$7,S$8))*'DNSP Inputs General'!$D60 -> 59.86838623 | T24: =IF('DNSP Inputs General'!$B60='DNSP Inputs General'!$A$42,T$6,IF('DNSP Inputs General'!$B60='DNSP Inputs General'!$A$43,T$7,T$8))*'DNSP Inputs General'!$D60 -> 61.26223806 | V24: 7.105427358e-15 | W24: 0 | X24: 7.105427358e-15 | Y24: 0 | Z24: 7.105427358e-15
A25: ='DNSP Inputs General'!A61 -> Metal halide 250 watt | C25: ='DNSP Inputs General'!E61 -> 143.25 | D25: =IF('DNSP Inputs General'!$B61='DNSP Inputs General'!$A$42,D$6,IF('DNSP Inputs General'!$B61='DNSP Inputs General'!$A$43,D$7,D$8))*'DNSP Inputs General'!$D61 -> 124.8428014 | E25: =IF('DNSP Inputs General'!$B61='DNSP Inputs General'!$A$42,E$6,IF('DNSP Inputs General'!$B61='DNSP Inputs General'!$A$43,E$7,E$8))*'DNSP Inputs General'!$D61 -> 128.9122911 | F25: =IF('DNSP Inputs General'!$B61='DNSP Inputs General'!$A$42,F$6,IF('DNSP Inputs General'!$B61='DNSP Inputs General'!$A$43,F$7,F$8))*'DNSP Inputs General'!$D61 -> 133.4096512 | G25: =IF('DNSP Inputs General'!$B61='DNSP Inputs General'!$A$42,G$6,IF('DNSP Inputs General'!$B61='DNSP Inputs General'!$A$43,G$7,G$8))*'DNSP Inputs General'!$D61 -> 137.8060296 | H25: =IF('DNSP Inputs General'!$B61='DNSP Inputs General'!$A$42,H$6,IF('DNSP Inputs General'!$B61='DNSP Inputs General'!$A$43,H$7,H$8))*'DNSP Inputs General'!$D61 -> 142.0763492 | J25: =IF('DNSP Inputs General'!$B61='DNSP Inputs General'!$A$42,J$6,IF('DNSP Inputs General'!$B61='DNSP Inputs General'!$A$43,J$7,J$8))*'DNSP Inputs General'!$D61 -> 81.95941513 | K25: =IF('DNSP Inputs General'!$B61='DNSP Inputs General'!$A$42,K$6,IF('DNSP Inputs General'!$B61='DNSP Inputs General'!$A$43,K$7,K$8))*'DNSP Inputs General'!$D61 -> 84.7139729 | L25: =IF('DNSP Inputs General'!$B61='DNSP Inputs General'!$A$42,L$6,IF('DNSP Inputs General'!$B61='DNSP Inputs General'!$A$43,L$7,L$8))*'DNSP Inputs General'!$D61 -> 87.81024676 | M25: =IF('DNSP Inputs General'!$B61='DNSP Inputs General'!$A$42,M$6,IF('DNSP Inputs General'!$B61='DNSP Inputs General'!$A$43,M$7,M$8))*'DNSP Inputs General'!$D61 -> 90.95197968 | N25: =IF('DNSP Inputs General'!$B61='DNSP Inputs General'!$A$42,N$6,IF('DNSP Inputs General'!$B61='DNSP Inputs General'!$A$43,N$7,N$8))*'DNSP Inputs General'!$D61 -> 94.11621069 | P25: =IF('DNSP Inputs General'!$B61='DNSP Inputs General'!$A$42,P$6,IF('DNSP Inputs General'!$B61='DNSP Inputs General'!$A$43,P$7,P$8))*'DNSP Inputs General'!$D61 -> 42.88338627 | Q25: =IF('DNSP Inputs General'!$B61='DNSP Inputs General'!$A$42,Q$6,IF('DNSP Inputs General'!$B61='DNSP Inputs General'!$A$43,Q$7,Q$8))*'DNSP Inputs General'!$D61 -> 44.19831825 | R25: =IF('DNSP Inputs General'!$B61='DNSP Inputs General'!$A$42,R$6,IF('DNSP Inputs General'!$B61='DNSP Inputs General'!$A$43,R$7,R$8))*'DNSP Inputs General'!$D61 -> 45.59940447 | S25: =IF('DNSP Inputs General'!$B61='DNSP Inputs General'!$A$42,S$6,IF('DNSP Inputs General'!$B61='DNSP Inputs General'!$A$43,S$7,S$8))*'DNSP Inputs General'!$D61 -> 46.85404993 | T25: =IF('DNSP Inputs General'!$B61='DNSP Inputs General'!$A$42,T$6,IF('DNSP Inputs General'!$B61='DNSP Inputs General'!$A$43,T$7,T$8))*'DNSP Inputs General'!$D61 -> 47.96013851 | V25: =ABS(D25-J25-P25) -> 7.105427358e-15 | W25: 1.421085472e-14 | X25: 0 | Y25: 1.421085472e-14 | Z25: 7.105427358e-15
A26: ='DNSP Inputs General'!A62 -> Metal halide 400 watt | C26: ='DNSP Inputs General'!E62 -> 143.25 | D26: =IF('DNSP Inputs General'!$B62='DNSP Inputs General'!$A$42,D$6,IF('DNSP Inputs General'!$B62='DNSP Inputs General'!$A$43,D$7,D$8))*'DNSP Inputs General'!$D62 -> 124.8428014 | E26: =IF('DNSP Inputs General'!$B62='DNSP Inputs General'!$A$42,E$6,IF('DNSP Inputs General'!$B62='DNSP Inputs General'!$A$43,E$7,E$8))*'DNSP Inputs General'!$D62 -> 128.9122911 | F26: =IF('DNSP Inputs General'!$B62='DNSP Inputs General'!$A$42,F$6,IF('DNSP Inputs General'!$B62='DNSP Inputs General'!$A$43,F$7,F$8))*'DNSP Inputs General'!$D62 -> 133.4096512 | G26: =IF('DNSP Inputs General'!$B62='DNSP Inputs General'!$A$42,G$6,IF('DNSP Inputs General'!$B62='DNSP Inputs General'!$A$43,G$7,G$8))*'DNSP Inputs General'!$D62 -> 137.8060296 | H26: =IF('DNSP Inputs General'!$B62='DNSP Inputs General'!$A$42,H$6,IF('DNSP Inputs General'!$B62='DNSP Inputs General'!$A$43,H$7,H$8))*'DNSP Inputs General'!$D62 -> 142.0763492 | J26: =IF('DNSP Inputs General'!$B62='DNSP Inputs General'!$A$42,J$6,IF('DNSP Inputs General'!$B62='DNSP Inputs General'!$A$43,J$7,J$8))*'DNSP Inputs General'!$D62 -> 81.95941513 | K26: =IF('DNSP Inputs General'!$B62='DNSP Inputs General'!$A$42,K$6,IF('DNSP Inputs General'!$B62='DNSP Inputs General'!$A$43,K$7,K$8))*'DNSP Inputs General'!$D62 -> 84.7139729 | L26: =IF('DNSP Inputs General'!$B62='DNSP Inputs General'!$A$42,L$6,IF('DNSP Inputs General'!$B62='DNSP Inputs General'!$A$43,L$7,L$8))*'DNSP Inputs General'!$D62 -> 87.81024676 | M26: =IF('DNSP Inputs General'!$B62='DNSP Inputs General'!$A$42,M$6,IF('DNSP Inputs General'!$B62='DNSP Inputs General'!$A$43,M$7,M$8))*'DNSP Inputs General'!$D62 -> 90.95197968 | N26: =IF('DNSP Inputs General'!$B62='DNSP Inputs General'!$A$42,N$6,IF('DNSP Inputs General'!$B62='DNSP Inputs General'!$A$43,N$7,N$8))*'DNSP Inputs General'!$D62 -> 94.11621069 | P26: =IF('DNSP Inputs General'!$B62='DNSP Inputs General'!$A$42,P$6,IF('DNSP Inputs General'!$B62='DNSP Inputs General'!$A$43,P$7,P$8))*'DNSP Inputs General'!$D62 -> 42.88338627 | Q26: =IF('DNSP Inputs General'!$B62='DNSP Inputs General'!$A$42,Q$6,IF('DNSP Inputs General'!$B62='DNSP Inputs General'!$A$43,Q$7,Q$8))*'DNSP Inputs General'!$D62 -> 44.19831825 | R26: =IF('DNSP Inputs General'!$B62='DNSP Inputs General'!$A$42,R$6,IF('DNSP Inputs General'!$B62='DNSP Inputs General'!$A$43,R$7,R$8))*'DNSP Inputs General'!$D62 -> 45.59940447 | S26: =IF('DNSP Inputs General'!$B62='DNSP Inputs General'!$A$42,S$6,IF('DNSP Inputs General'!$B62='DNSP Inputs General'!$A$43,S$7,S$8))*'DNSP Inputs General'!$D62 -> 46.85404993 | T26: =IF('DNSP Inputs General'!$B62='DNSP Inputs General'!$A$42,T$6,IF('DNSP Inputs General'!$B62='DNSP Inputs General'!$A$43,T$7,T$8))*'DNSP Inputs General'!$D62 -> 47.96013851 | V26: 7.105427358e-15 | W26: 1.421085472e-14 | X26: 0 | Y26: 1.421085472e-14 | Z26: 7.105427358e-15
A27: ='DNSP Inputs General'!A63 -> Metal halide 1000 watt | C27: ='DNSP Inputs General'!E63 -> 213.68 | D27: =IF('DNSP Inputs General'!$B63='DNSP Inputs General'!$A$42,D$6,IF('DNSP Inputs General'!$B63='DNSP Inputs General'!$A$43,D$7,D$8))*'DNSP Inputs General'!$D63 -> 186.2238454 | E27: =IF('DNSP Inputs General'!$B63='DNSP Inputs General'!$A$42,E$6,IF('DNSP Inputs General'!$B63='DNSP Inputs General'!$A$43,E$7,E$8))*'DNSP Inputs General'!$D63 -> 192.2941676 | F27: =IF('DNSP Inputs General'!$B63='DNSP Inputs General'!$A$42,F$6,IF('DNSP Inputs General'!$B63='DNSP Inputs General'!$A$43,F$7,F$8))*'DNSP Inputs General'!$D63 -> 199.0027297 | G27: =IF('DNSP Inputs General'!$B63='DNSP Inputs General'!$A$42,G$6,IF('DNSP Inputs General'!$B63='DNSP Inputs General'!$A$43,G$7,G$8))*'DNSP Inputs General'!$D63 -> 205.5606608 | H27: =IF('DNSP Inputs General'!$B63='DNSP Inputs General'!$A$42,H$6,IF('DNSP Inputs General'!$B63='DNSP Inputs General'!$A$43,H$7,H$8))*'DNSP Inputs General'!$D63 -> 211.9305542 | J27: =IF('DNSP Inputs General'!$B63='DNSP Inputs General'!$A$42,J$6,IF('DNSP Inputs General'!$B63='DNSP Inputs General'!$A$43,J$7,J$8))*'DNSP Inputs General'!$D63 -> 122.2561276 | K27: =IF('DNSP Inputs General'!$B63='DNSP Inputs General'!$A$42,K$6,IF('DNSP Inputs General'!$B63='DNSP Inputs General'!$A$43,K$7,K$8))*'DNSP Inputs General'!$D63 -> 126.3650096 | L27: =IF('DNSP Inputs General'!$B63='DNSP Inputs General'!$A$42,L$6,IF('DNSP Inputs General'!$B63='DNSP Inputs General'!$A$43,L$7,L$8))*'DNSP Inputs General'!$D63 -> 130.9836181 | M27: =IF('DNSP Inputs General'!$B63='DNSP Inputs General'!$A$42,M$6,IF('DNSP Inputs General'!$B63='DNSP Inputs General'!$A$43,M$7,M$8))*'DNSP Inputs General'!$D63 -> 135.6700364 | N27: =IF('DNSP Inputs General'!$B63='DNSP Inputs General'!$A$42,N$6,IF('DNSP Inputs General'!$B63='DNSP Inputs General'!$A$43,N$7,N$8))*'DNSP Inputs General'!$D63 -> 140.3900143 | P27: =IF('DNSP Inputs General'!$B63='DNSP Inputs General'!$A$42,P$6,IF('DNSP Inputs General'!$B63='DNSP Inputs General'!$A$43,P$7,P$8))*'DNSP Inputs General'!$D63 -> 63.96771786 | Q27: =IF('DNSP Inputs General'!$B63='DNSP Inputs General'!$A$42,Q$6,IF('DNSP Inputs General'!$B63='DNSP Inputs General'!$A$43,Q$7,Q$8))*'DNSP Inputs General'!$D63 -> 65.92915805 | R27: =IF('DNSP Inputs General'!$B63='DNSP Inputs General'!$A$42,R$6,IF('DNSP Inputs General'!$B63='DNSP Inputs General'!$A$43,R$7,R$8))*'DNSP Inputs General'!$D63 -> 68.01911167 | S27: =IF('DNSP Inputs General'!$B63='DNSP Inputs General'!$A$42,S$6,IF('DNSP Inputs General'!$B63='DNSP Inputs General'!$A$43,S$7,S$8))*'DNSP Inputs General'!$D63 -> 69.89062448 | T27: =IF('DNSP Inputs General'!$B63='DNSP Inputs General'!$A$42,T$6,IF('DNSP Inputs General'!$B63='DNSP Inputs General'!$A$43,T$7,T$8))*'DNSP Inputs General'!$D63 -> 71.54053994 | V27: 1.421085472e-14 | W27: 0 | X27: 1.421085472e-14 | Y27: 2.842170943e-14 | Z27: 0
A30: ='DNSP Inputs General'!A$68 -> Energy Efficient Lights
A31: ='DNSP Inputs General'!A69 -> T5 2X14W | C31: ='DNSP Inputs General'!E69 -> 38.15 | D31: ='Charges Summary'!D$89 -> 40.6380729 | E31: ='Charges Summary'!E$89 -> 41.82426004 | F31: ='Charges Summary'!F$89 -> 43.27977218 | G31: ='Charges Summary'!G$89 -> 44.46568487 | H31: ='Charges Summary'!H$89 -> 45.46520902 | J31: =SUM('Charges Summary'!D83,'Charges Summary'!D8) -> 27.62087785 | K31: =SUM('Charges Summary'!E83,'Charges Summary'!E8) -> 28.52372031 | L31: =SUM('Charges Summary'!F83,'Charges Summary'!F8) -> 29.45835301 | M31: =SUM('Charges Summary'!G83,'Charges Summary'!G8) -> 30.43864955 | N31: =SUM('Charges Summary'!H83,'Charges Summary'!H8) -> 31.37275494 | P31: =SUM('Charges Summary'!D85,'Charges Summary'!D11) -> 13.01719505 | Q31: =SUM('Charges Summary'!E85,'Charges Summary'!E11) -> 13.30053973 | R31: =SUM('Charges Summary'!F85,'Charges Summary'!F11) -> 13.82141917 | S31: =SUM('Charges Summary'!G85,'Charges Summary'!G11) -> 14.02703532 | T31: =SUM('Charges Summary'!H85,'Charges Summary'!H11) -> 14.09245408 | V31: =ABS(D31-J31-P31) -> 1.776356839e-15 | W31: 5.329070518e-15 | X31: 1.776356839e-15 | Y31: 3.552713679e-15 | Z31: 3.552713679e-15
A32: ='DNSP Inputs General'!A70 -> T5 2X24W | D32: ='DNSP Inputs General'!$D70*D$31 -> 40.07432444 | E32: ='DNSP Inputs General'!$D70*E$31 -> 41.24405629 | F32: ='DNSP Inputs General'!$D70*F$31 -> 42.67937695 | G32: ='DNSP Inputs General'!$D70*G$31 -> 43.84883816 | H32: ='DNSP Inputs General'!$D70*H$31 -> 44.83449649 | J32: ='DNSP Inputs General'!$D70*J$31 -> 27.2377094 | K32: ='DNSP Inputs General'!$D70*K$31 -> 28.12802725 | L32: ='DNSP Inputs General'!$D70*L$31 -> 29.04969433 | M32: ='DNSP Inputs General'!$D70*M$31 -> 30.01639178 | N32: ='DNSP Inputs General'!$D70*N$31 -> 30.93753887 | P32: ='DNSP Inputs General'!$D70*P$31 -> 12.83661504 | Q32: ='DNSP Inputs General'!$D70*Q$31 -> 13.11602904 | R32: ='DNSP Inputs General'!$D70*R$31 -> 13.62968262 | S32: ='DNSP Inputs General'!$D70*S$31 -> 13.83244638 | T32: ='DNSP Inputs General'!$D70*T$31 -> 13.89695762 | V32: 0 | W32: 3.552713679e-15 | X32: 3.552713679e-15 | Y32: 5.329070518e-15 | Z32: 5.329070518e-15
A33: ='DNSP Inputs General'!A71 -> CF32 | D33: ='DNSP Inputs General'!$D71*D$31 -> 39.36821572 | E33: ='DNSP Inputs General'!$D71*E$31 -> 40.51733692 | F33: ='DNSP Inputs General'!$D71*F$31 -> 41.92736726 | G33: ='DNSP Inputs General'!$D71*G$31 -> 43.0762226 | H33: ='DNSP Inputs General'!$D71*H$31 -> 44.04451365 | J33: ='DNSP Inputs General'!$D71*J$31 -> 26.75778155 | K33: ='DNSP Inputs General'!$D71*K$31 -> 27.63241203 | L33: ='DNSP Inputs General'!$D71*L$31 -> 28.53783935 | M33: ='DNSP Inputs General'!$D71*M$31 -> 29.48750362 | N33: ='DNSP Inputs General'!$D71*N$31 -> 30.39242012 | P33: ='DNSP Inputs General'!$D71*P$31 -> 12.61043416 | Q33: ='DNSP Inputs General'!$D71*Q$31 -> 12.8849249 | R33: ='DNSP Inputs General'!$D71*R$31 -> 13.38952791 | S33: ='DNSP Inputs General'!$D71*S$31 -> 13.58871898 | T33: ='DNSP Inputs General'!$D71*T$31 -> 13.65209353 | V33: 1.776356839e-15 | W33: 3.552713679e-15 | X33: 3.552713679e-15 | Y33: 1.776356839e-15 | Z33: 5.329070518e-15
A34: ='DNSP Inputs General'!A72 -> CF42 | D34: ='DNSP Inputs General'!$D72*D$31 -> 39.36821572 | E34: ='DNSP Inputs General'!$D72*E$31 -> 40.51733692 | F34: ='DNSP Inputs General'!$D72*F$31 -> 41.92736726 | G34: ='DNSP Inputs General'!$D72*G$31 -> 43.0762226 | H34: ='DNSP Inputs General'!$D72*H$31 -> 44.04451365 | J34: ='DNSP Inputs General'!$D72*J$31 -> 26.75778155 | K34: ='DNSP Inputs General'!$D72*K$31 -> 27.63241203 | L34: ='DNSP Inputs General'!$D72*L$31 -> 28.53783935 | M34: ='DNSP Inputs General'!$D72*M$31 -> 29.48750362 | N34: ='DNSP Inputs General'!$D72*N$31 -> 30.39242012 | P34: ='DNSP Inputs General'!$D72*P$31 -> 12.61043416 | Q34: ='DNSP Inputs General'!$D72*Q$31 -> 12.8849249 | R34: ='DNSP Inputs General'!$D72*R$31 -> 13.38952791 | S34: ='DNSP Inputs General'!$D72*S$31 -> 13.58871898 | T34: ='DNSP Inputs General'!$D72*T$31 -> 13.65209353 | V34: 1.776356839e-15 | W34: 3.552713679e-15 | X34: 3.552713679e-15 | Y34: 1.776356839e-15 | Z34: 5.329070518e-15
A35: ='DNSP Inputs General'!A73 -> Category P LED 18 Watt | D35: ='Charges Summary'!D$107 -> 26.80123907 | E35: ='Charges Summary'!E$107 -> 28.1887568 | F35: ='Charges Summary'!F$107 -> 29.79198829 | G35: ='Charges Summary'!G$107 -> 30.54120766 | H35: ='Charges Summary'!H$107 -> 31.08974298 | J35: =SUM('Charges Summary'!D101,'Charges Summary'!D8) -> 13.11850702 | K35: =SUM('Charges Summary'!E101,'Charges Summary'!E8) -> 14.1788183 | L35: =SUM('Charges Summary'!F101,'Charges Summary'!F8) -> 15.18989347 | M35: =SUM('Charges Summary'!G101,'Charges Summary'!G8) -> 15.69174861 | N35: =SUM('Charges Summary'!H101,'Charges Summary'!H8) -> 16.14640988 | P35: =SUM('Charges Summary'!D103,'Charges Summary'!D11) -> 13.68273205 | Q35: =SUM('Charges Summary'!E103,'Charges Summary'!E11) -> 14.0099385 | R35: =SUM('Charges Summary'!F103,'Charges Summary'!F11) -> 14.60209481 | S35: =SUM('Charges Summary'!G103,'Charges Summary'!G11) -> 14.84945905 | T35: =SUM('Charges Summary'!H103,'Charges Summary'!H11) -> 14.94333311 | V35: 1.776356839e-15 | W35: 1.776356839e-15 | X35: 1.776356839e-15 | Y35: 1.776356839e-15 | Z35: 1.776356839e-15
A36: ='DNSP Inputs General'!A74 -> Category P LED 47 Watt | D36: ='DNSP Inputs General'!$D74*D$35 -> 26.80123907 | E36: ='DNSP Inputs General'!$D74*E$35 -> 28.1887568 | F36: ='DNSP Inputs General'!$D74*F$35 -> 29.79198829 | G36: ='DNSP Inputs General'!$D74*G$35 -> 30.54120766 | H36: ='DNSP Inputs General'!$D74*H$35 -> 31.08974298 | J36: ='DNSP Inputs General'!$D74*J$35 -> 13.11850702 | K36: ='DNSP Inputs General'!$D74*K$35 -> 14.1788183 | L36: ='DNSP Inputs General'!$D74*L$35 -> 15.18989347 | M36: ='DNSP Inputs General'!$D74*M$35 -> 15.69174861 | N36: ='DNSP Inputs General'!$D74*N$35 -> 16.14640988 | P36: ='DNSP Inputs General'!$D74*P$35 -> 13.68273205 | Q36: ='DNSP Inputs General'!$D74*Q$35 -> 14.0099385 | R36: ='DNSP Inputs General'!$D74*R$35 -> 14.60209481 | S36: ='DNSP Inputs General'!$D74*S$35 -> 14.84945905 | T36: ='DNSP Inputs General'!$D74*T$35 -> 14.94333311 | V36: =ABS(D36-J36-P36) -> 1.776356839e-15 | W36: =ABS(E36-K36-Q36) -> 1.776356839e-15 | X36: =ABS(F36-L36-R36) -> 1.776356839e-15 | Y36: =ABS(G36-M36-S36) -> 1.776356839e-15 | Z36: =ABS(H36-N36-T36) -> 1.776356839e-15

Sheet Cashflow Summary
A1: ='DNSP Inputs O & M'!$A$3 -> Citipower | E1: Check | F1: =SUM(C129,C135,C158) -> 9.313225746e-09
C2: ='DNSP Inputs General'!J$2 -> 2015 | D2: ='DNSP Inputs General'!K$2 -> 2016 | E2: ='DNSP Inputs General'!L$2 -> 2017 | F2: ='DNSP Inputs General'!M$2 -> 2018 | G2: ='DNSP Inputs General'!N$2 -> 2019 | H2: ='DNSP Inputs General'!O$2 -> 2020 | J2: =C2 -> 2015 | K2: =D2 -> 2016 | L2: 2017 | M2: 2018 | N2: 2019 | O2: 2020
A4: Public Lighting - Revenue | C4: Revenue - Nominal | J4: Revenue - Real 2015 $
C5: =C$2 -> 2015 | D5: =D$2 -> 2016 | E5: 2017 | F5: 2018 | G5: 2019 | H5: 2020 | J5: =J$2 -> 2015 | K5: 2016 | L5: 2017 | M5: 2018 | N5: 2019 | O5: 2020
A6: ='DNSP Inputs General'!A$41 -> Existing Lights
A7: ='DNSP Inputs General'!A$42 -> Mercury vapour 80 watt | C7: =IF('PL Tariffs'!C6=0,"",'DNSP Inputs General'!J42*'PL Tariffs'!C6) -> 269884.118 | D7: ='DNSP Inputs General'!K42*'PL Tariffs'!D6 -> 163922.2766 | E7: ='DNSP Inputs General'!L42*'PL Tariffs'!E6 -> 132642.5661 | F7: ='DNSP Inputs General'!M42*'PL Tariffs'!F6 -> 122571.4855 | G7: ='DNSP Inputs General'!N42*'PL Tariffs'!G6 -> 113063.52 | H7: ='DNSP Inputs General'!O42*'PL Tariffs'!H6 -> 103956.4613 | J7: =C7 -> 269884.118 | K7: =D7/'Charges Summary'!D$4 -> 159924.1723 | L7: =E7/'Charges Summary'!E$4 -> 126251.1039 | M7: =F7/'Charges Summary'!F$4 -> 113819.8092 | N7: =G7/'Charges Summary'!G$4 -> 102429.9688 | O7: =H7/'Charges Summary'!H$4 -> 91882.36407
A8: ='DNSP Inputs General'!A$43 -> Sodium high pressure 150 watt | C8: =IF('PL Tariffs'!C7=0,"",'DNSP Inputs General'!J43*'PL Tariffs'!C7) -> 1482390 | D8: ='DNSP Inputs General'!K43*'PL Tariffs'!D7 -> 1299353.604 | E8: ='DNSP Inputs General'!L43*'PL Tariffs'!E7 -> 1348498.198 | F8: ='DNSP Inputs General'!M43*'PL Tariffs'!F7 -> 1402176.353 | G8: ='DNSP Inputs General'!N43*'PL Tariffs'!G7 -> 1455293.314 | H8: ='DNSP Inputs General'!O43*'PL Tariffs'!H7 -> 1507563.648 | J8: =C8 -> 1482390 | K8: =D8/'Charges Summary'!D$4 -> 1267662.053 | L8: =E8/'Charges Summary'!E$4 -> 1283519.999 | M8: =F8/'Charges Summary'!F$4 -> 1302060.135 | N8: =G8/'Charges Summary'!G$4 -> 1318423.916 | O8: =H8/'Charges Summary'!H$4 -> 1332466.594
A9: ='DNSP Inputs General'!A$44 -> Sodium high pressure 250 watt | C9: =IF('PL Tariffs'!C8=0,"",'DNSP Inputs General'!J44*'PL Tariffs'!C8) -> 632947.488 | D9: ='DNSP Inputs General'!K44*'PL Tariffs'!D8 -> 561859.2291 | E9: ='DNSP Inputs General'!L44*'PL Tariffs'!E8 -> 590923.2987 | F9: ='DNSP Inputs General'!M44*'PL Tariffs'!F8 -> 622869.131 | G9: ='DNSP Inputs General'!N44*'PL Tariffs'!G8 -> 655315.6691 | H9: ='DNSP Inputs General'!O44*'PL Tariffs'!H8 -> 688140.1438 | J9: 632947.488 | K9: =D9/'Charges Summary'!D$4 -> 548155.3454 | L9: =E9/'Charges Summary'!E$4 -> 562449.3028 | M9: =F9/'Charges Summary'!F$4 -> 578395.9081 | N9: =G9/'Charges Summary'!G$4 -> 593683.6529 | O9: =H9/'Charges Summary'!H$4 -> 608215.6166
A10: ='DNSP Inputs General'!A$45 -> Fluorescent 20 watt | C10: =IF('PL Tariffs'!C9=0,"",'DNSP Inputs General'!J45*'PL Tariffs'!C9) -> 10720.32 | D10: ='DNSP Inputs General'!K45*'PL Tariffs'!D9 -> 9575.047787 | E10: ='DNSP Inputs General'!L45*'PL Tariffs'!E9 -> 9720.680436 | F10: ='DNSP Inputs General'!M45*'PL Tariffs'!F9 -> 10025.73341 | G10: ='DNSP Inputs General'!N45*'PL Tariffs'!G9 -> 10321.95965 | H10: ='DNSP Inputs General'!O45*'PL Tariffs'!H9 -> 10592.63712 | J10: 10720.32 | K10: =D10/'Charges Summary'!D$4 -> 9341.510036 | L10: =E10/'Charges Summary'!E$4 -> 9252.28358 | M10: =F10/'Charges Summary'!F$4 -> 9309.890141 | N10: =G10/'Charges Summary'!G$4 -> 9351.185999 | O10: =H10/'Charges Summary'!H$4 -> 9362.347734
A11: ='DNSP Inputs General'!A$46 -> Fluorescent 40 watt | C11: =IF('PL Tariffs'!C10=0,"",'DNSP Inputs General'!J46*'PL Tariffs'!C10) -> 20359.36 | D11: ='DNSP Inputs General'!K46*'PL Tariffs'!D10 -> 18382.70996 | E11: ='DNSP Inputs General'!L46*'PL Tariffs'!E10 -> 18662.30363 | F11: ='DNSP Inputs General'!M46*'PL Tariffs'!F10 -> 19247.96133 | G11: ='DNSP Inputs General'!N46*'PL Tariffs'!G10 -> 19816.67295 | H11: ='DNSP Inputs General'!O46*'PL Tariffs'!H10 -> 20336.33463 | J11: 20359.36 | K11: =D11/'Charges Summary'!D$4 -> 17934.35118 | L11: =E11/'Charges Summary'!E$4 -> 17763.04926 | M11: =F11/'Charges Summary'!F$4 -> 17873.64555 | N11: =G11/'Charges Summary'!G$4 -> 17952.92764 | O11: =H11/'Charges Summary'!H$4 -> 17974.35656
A12: ='DNSP Inputs General'!A$47 -> Mercury vapour 50 watt | C12: =IF('PL Tariffs'!C11=0,"",'DNSP Inputs General'!J47*'PL Tariffs'!C11) -> 14808.57 | D12: ='DNSP Inputs General'!K47*'PL Tariffs'!D11 -> 12364.86277 | E12: ='DNSP Inputs General'!L47*'PL Tariffs'!E11 -> 11734.80169 | F12: ='DNSP Inputs General'!M47*'PL Tariffs'!F11 -> 11314.25543 | G12: ='DNSP Inputs General'!N47*'PL Tariffs'!G11 -> 10889.36918 | H12: ='DNSP Inputs General'!O47*'PL Tariffs'!H11 -> 10446.61038 | J12: 14808.57 | K12: =D12/'Charges Summary'!D$4 -> 12063.28075 | L12: =E12/'Charges Summary'!E$4 -> 11169.35319 | M12: =F12/'Charges Summary'!F$4 -> 10506.41093 | N12: =G12/'Charges Summary'!G$4 -> 9865.231026 | O12: =H12/'Charges Summary'!H$4 -> 9233.281372
A13: ='DNSP Inputs General'!A$48 -> Mercury vapour 125 watt | C13: =IF('PL Tariffs'!C12=0,"",'DNSP Inputs General'!J48*'PL Tariffs'!C12) -> 139673.6 | D13: ='DNSP Inputs General'!K48*'PL Tariffs'!D12 -> 117829.7978 | E13: ='DNSP Inputs General'!L48*'PL Tariffs'!E12 -> 112981.0622 | F13: ='DNSP Inputs General'!M48*'PL Tariffs'!F12 -> 110057.5764 | G13: ='DNSP Inputs General'!N48*'PL Tariffs'!G12 -> 107018.9669 | H13: ='DNSP Inputs General'!O48*'PL Tariffs'!H12 -> 103728.3564 | J13: 139673.6 | K13: =D13/'Charges Summary'!D$4 -> 114955.9003 | L13: =E13/'Charges Summary'!E$4 -> 107537.0015 | M13: =F13/'Charges Summary'!F$4 -> 102199.4006 | N13: =G13/'Charges Summary'!G$4 -> 96953.90205 | O13: =H13/'Charges Summary'!H$4 -> 91680.75258
A14: ='DNSP Inputs General'!A$49 -> Mercury vapour 250 watt | C14: =IF('PL Tariffs'!C13=0,"",'DNSP Inputs General'!J49*'PL Tariffs'!C13) -> 56351.74 | D14: ='DNSP Inputs General'!K49*'PL Tariffs'!D13 -> 44714.33352 | E14: ='DNSP Inputs General'!L49*'PL Tariffs'!E13 -> 42036.49374 | F14: ='DNSP Inputs General'!M49*'PL Tariffs'!F13 -> 39606.66791 | G14: ='DNSP Inputs General'!N49*'PL Tariffs'!G13 -> 37247.5901 | H14: ='DNSP Inputs General'!O49*'PL Tariffs'!H13 -> 34962.35263 | J14: 56351.74 | K14: =D14/'Charges Summary'!D$4 -> 43623.74002 | L14: =E14/'Charges Summary'!E$4 -> 40010.93991 | M14: =F14/'Charges Summary'!F$4 -> 36778.72849 | N14: =G14/'Charges Summary'!G$4 -> 33744.47827 | O14: =H14/'Charges Summary'!H$4 -> 30901.62528
A15: ='DNSP Inputs General'!A$50 -> Mercury vapour 400 watt | C15: =IF('PL Tariffs'!C14=0,"",'DNSP Inputs General'!J50*'PL Tariffs'!C14) -> 28411.6 | D15: ='DNSP Inputs General'!K50*'PL Tariffs'!D14 -> 22857.28719 | E15: ='DNSP Inputs General'!L50*'PL Tariffs'!E14 -> 21788.18104 | F15: ='DNSP Inputs General'!M50*'PL Tariffs'!F14 -> 20815.1414 | G15: ='DNSP Inputs General'!N50*'PL Tariffs'!G14 -> 19848.41379 | H15: ='DNSP Inputs General'!O50*'PL Tariffs'!H14 -> 18890.56044 | J15: 28411.6 | K15: =D15/'Charges Summary'!D$4 -> 22299.79238 | L15: =E15/'Charges Summary'!E$4 -> 20738.30438 | M15: =F15/'Charges Summary'!F$4 -> 19328.92804 | N15: =G15/'Charges Summary'!G$4 -> 17981.68327 | O15: =H15/'Charges Summary'!H$4 -> 16696.50284
A16: ='DNSP Inputs General'!A$51 -> Mercury vapour 700 watt | C16: =IF('PL Tariffs'!C15=0,"",'DNSP Inputs General'!J51*'PL Tariffs'!C15) -> 0 | D16: ='DNSP Inputs General'!K51*'PL Tariffs'!D15 -> 0 | E16: ='DNSP Inputs General'!L51*'PL Tariffs'!E15 -> 0 | F16: ='DNSP Inputs General'!M51*'PL Tariffs'!F15 -> 0 | G16: ='DNSP Inputs General'!N51*'PL Tariffs'!G15 -> 0 | H16: ='DNSP Inputs General'!O51*'PL Tariffs'!H15 -> 0 | J16: 0 | K16: =D16/'Charges Summary'!D$4 -> 0 | L16: =E16/'Charges Summary'!E$4 -> 0 | M16: =F16/'Charges Summary'!F$4 -> 0 | N16: =G16/'Charges Summary'!G$4 -> 0 | O16: =H16/'Charges Summary'!H$4 -> 0
A17: ='DNSP Inputs General'!A$52 -> Sodium high pressure 70 watt | C17: =IF('PL Tariffs'!C16=0,"",'DNSP Inputs General'!J52*'PL Tariffs'!C16) -> 55346.76 | D17: ='DNSP Inputs General'!K52*'PL Tariffs'!D16 -> 48745.88997 | E17: ='DNSP Inputs General'!L52*'PL Tariffs'!E16 -> 48798.98533 | F17: ='DNSP Inputs General'!M52*'PL Tariffs'!F16 -> 49630.35141 | G17: ='DNSP Inputs General'!N52*'PL Tariffs'!G16 -> 50386.06317 | H17: ='DNSP Inputs General'!O52*'PL Tariffs'!H16 -> 50988.17133 | J17: 55346.76 | K17: =D17/'Charges Summary'!D$4 -> 47556.96582 | L17: =E17/'Charges Summary'!E$4 -> 46447.57675 | M17: =F17/'Charges Summary'!F$4 -> 46086.71508 | N17: =G17/'Charges Summary'!G$4 -> 45647.28642 | O17: =H17/'Charges Summary'!H$4 -> 45066.11384
A18: ='DNSP Inputs General'!A$53 -> Sodium high pressure 100 watt | C18: =IF('PL Tariffs'!C17=0,"",'DNSP Inputs General'!J53*'PL Tariffs'!C17) -> 43563.63 | D18: ='DNSP Inputs General'!K53*'PL Tariffs'!D17 -> 36628.59662 | E18: ='DNSP Inputs General'!L53*'PL Tariffs'!E17 -> 36466.99414 | F18: ='DNSP Inputs General'!M53*'PL Tariffs'!F17 -> 36375.49465 | G18: ='DNSP Inputs General'!N53*'PL Tariffs'!G17 -> 36217.08361 | H18: ='DNSP Inputs General'!O53*'PL Tariffs'!H17 -> 35991.11247 | J18: 43563.63 | K18: =D18/'Charges Summary'!D$4 -> 35735.21621 | L18: =E18/'Charges Summary'!E$4 -> 34709.81001 | M18: =F18/'Charges Summary'!F$4 -> 33778.2629 | N18: =G18/'Charges Summary'!G$4 -> 32810.89025 | O18: =H18/'Charges Summary'!H$4 -> 31810.89907
A19: ='DNSP Inputs General'!A$54 -> Sodium high pressure 220 watt | C19: =IF('PL Tariffs'!C18=0,"",'DNSP Inputs General'!J54*'PL Tariffs'!C18) -> 224268.75 | D19: ='DNSP Inputs General'!K54*'PL Tariffs'!D18 -> 189133.8387 | E19: ='DNSP Inputs General'!L54*'PL Tariffs'!E18 -> 188980.9567 | F19: ='DNSP Inputs General'!M54*'PL Tariffs'!F18 -> 189246.9763 | G19: ='DNSP Inputs General'!N54*'PL Tariffs'!G18 -> 189159.3901 | H19: ='DNSP Inputs General'!O54*'PL Tariffs'!H18 -> 188711.9742 | J19: 224268.75 | K19: =D19/'Charges Summary'!D$4 -> 184520.8183 | L19: =E19/'Charges Summary'!E$4 -> 179874.7952 | M19: =F19/'Charges Summary'!F$4 -> 175734.6307 | N19: =G19/'Charges Summary'!G$4 -> 171369.0714 | O19: =H19/'Charges Summary'!H$4 -> 166793.8875
A20: ='DNSP Inputs General'!A$55 -> Sodium high pressure 360 watt | C20: =IF('PL Tariffs'!C19=0,"",'DNSP Inputs General'!J55*'PL Tariffs'!C19) -> 28248.32 | D20: ='DNSP Inputs General'!K55*'PL Tariffs'!D19 -> 24454.12202 | E20: ='DNSP Inputs General'!L55*'PL Tariffs'!E19 -> 25082.13814 | F20: ='DNSP Inputs General'!M55*'PL Tariffs'!F19 -> 25783.33765 | G20: ='DNSP Inputs General'!N55*'PL Tariffs'!G19 -> 26454.63454 | H20: ='DNSP Inputs General'!O55*'PL Tariffs'!H19 -> 27091.74592 | J20: 28248.32 | K20: =D20/'Charges Summary'!D$4 -> 23857.68002 | L20: =E20/'Charges Summary'!E$4 -> 23873.54017 | M20: =F20/'Charges Summary'!F$4 -> 23942.39215 | N20: =G20/'Charges Summary'!G$4 -> 23966.59322 | O20: =H20/'Charges Summary'!H$4 -> 23945.15579
A21: ='DNSP Inputs General'!A$56 -> Sodium high pressure 400 watt | C21: =IF('PL Tariffs'!C20=0,"",'DNSP Inputs General'!J56*'PL Tariffs'!C20) -> 52392.69 | D21: ='DNSP Inputs General'!K56*'PL Tariffs'!D20 -> 46494.06854 | E21: ='DNSP Inputs General'!L56*'PL Tariffs'!E20 -> 48885.27746 | F21: ='DNSP Inputs General'!M56*'PL Tariffs'!F20 -> 51513.45957 | G21: ='DNSP Inputs General'!N56*'PL Tariffs'!G20 -> 54181.54691 | H21: ='DNSP Inputs General'!O56*'PL Tariffs'!H20 -> 56879.35725 | J21: 52392.69 | K21: =D21/'Charges Summary'!D$4 -> 45360.06687 | L21: =E21/'Charges Summary'!E$4 -> 46529.71085 | M21: =F21/'Charges Summary'!F$4 -> 47835.36821 | N21: =G21/'Charges Summary'!G$4 -> 49085.80736 | O21: =H21/'Charges Summary'!H$4 -> 50273.06379
A22: ='DNSP Inputs General'!A$57 -> Sodium high pressure 1000 watt | C22: =IF('PL Tariffs'!C21=0,"",'DNSP Inputs General'!J57*'PL Tariffs'!C21) -> 0 | D22: ='DNSP Inputs General'!K57*'PL Tariffs'!D21 -> 0 | E22: ='DNSP Inputs General'!L57*'PL Tariffs'!E21 -> 0 | F22: ='DNSP Inputs General'!M57*'PL Tariffs'!F21 -> 0 | G22: ='DNSP Inputs General'!N57*'PL Tariffs'!G21 -> 0 | H22: ='DNSP Inputs General'!O57*'PL Tariffs'!H21 -> 0 | J22: 0 | K22: =D22/'Charges Summary'!D$4 -> 0 | L22: =E22/'Charges Summary'!E$4 -> 0 | M22: =F22/'Charges Summary'!F$4 -> 0 | N22: =G22/'Charges Summary'!G$4 -> 0 | O22: =H22/'Charges Summary'!H$4 -> 0
A23: ='DNSP Inputs General'!A$58 -> Metal halide 70 watt | C23: =IF('PL Tariffs'!C22=0,"",'DNSP Inputs General'!J58*'PL Tariffs'!C22) -> 257005.92 | D23: ='DNSP Inputs General'!K58*'PL Tariffs'!D22 -> 154981.1845 | E23: ='DNSP Inputs General'!L58*'PL Tariffs'!E22 -> 163848.4259 | F23: ='DNSP Inputs General'!M58*'PL Tariffs'!F22 -> 175982.4427 | G23: ='DNSP Inputs General'!N58*'PL Tariffs'!G22 -> 188678.7228 | H23: ='DNSP Inputs General'!O58*'PL Tariffs'!H22 -> 201638.0307 | J23: 257005.92 | K23: =D23/'Charges Summary'!D$4 -> 151201.1556 | L23: =E23/'Charges Summary'!E$4 -> 155953.2906 | M23: =F23/'Charges Summary'!F$4 -> 163417.1926 | N23: =G23/'Charges Summary'!G$4 -> 170933.6106 | O23: =H23/'Charges Summary'!H$4 -> 178218.6379
A24: ='DNSP Inputs General'!A$59 -> Metal halide 100 watt | C24: =IF('PL Tariffs'!C23=0,"",'DNSP Inputs General'!J59*'PL Tariffs'!C23) -> 29001.04 | D24: ='DNSP Inputs General'!K59*'PL Tariffs'!D23 -> 23392.9018 | E24: ='DNSP Inputs General'!L59*'PL Tariffs'!E23 -> 22342.67126 | F24: ='DNSP Inputs General'!M59*'PL Tariffs'!F23 -> 21380.37638 | G24: ='DNSP Inputs General'!N59*'PL Tariffs'!G23 -> 20421.66861 | H24: ='DNSP Inputs General'!O59*'PL Tariffs'!H23 -> 19469.03069 | J24: 29001.04 | K24: =D24/'Charges Summary'!D$4 -> 22822.34322 | L24: =E24/'Charges Summary'!E$4 -> 21266.07616 | M24: =F24/'Charges Summary'!F$4 -> 19853.80491 | N24: =G24/'Charges Summary'!G$4 -> 18501.02384 | O24: =H24/'Charges Summary'!H$4 -> 17207.78625
A25: ='DNSP Inputs General'!A$60 -> Metal halide 150 watt | C25: =IF('PL Tariffs'!C24=0,"",'DNSP Inputs General'!J60*'PL Tariffs'!C24) -> 60971.92 | D25: ='DNSP Inputs General'!K60*'PL Tariffs'!D24 -> 50926.76584 | E25: ='DNSP Inputs General'!L60*'PL Tariffs'!E24 -> 50364.84106 | F25: ='DNSP Inputs General'!M60*'PL Tariffs'!F24 -> 49904.31419 | G25: ='DNSP Inputs General'!N60*'PL Tariffs'!G24 -> 49356.49861 | H25: ='DNSP Inputs General'!O60*'PL Tariffs'!H24 -> 48722.30446 | J25: 60971.92 | K25: =D25/'Charges Summary'!D$4 -> 49684.6496 | L25: =E25/'Charges Summary'!E$4 -> 47937.98079 | M25: =F25/'Charges Summary'!F$4 -> 46341.11676 | N25: =G25/'Charges Summary'!G$4 -> 44714.55174 | O25: =H25/'Charges Summary'!H$4 -> 43063.4177
A26: ='DNSP Inputs General'!A$61 -> Metal halide 250 watt | C26: =IF('PL Tariffs'!C25=0,"",'DNSP Inputs General'!J61*'PL Tariffs'!C25) -> 97123.5 | D26: ='DNSP Inputs General'!K61*'PL Tariffs'!D25 -> 96499.02226 | E26: ='DNSP Inputs General'!L61*'PL Tariffs'!E25 -> 113601.3385 | F26: ='DNSP Inputs General'!M61*'PL Tariffs'!F25 -> 134031.2549 | G26: ='DNSP Inputs General'!N61*'PL Tariffs'!G25 -> 157839.8898 | H26: ='DNSP Inputs General'!O61*'PL Tariffs'!H25 -> 185523.9796 | J26: 97123.5 | K26: =D26/'Charges Summary'!D$4 -> 94145.38757 | L26: =E26/'Charges Summary'!E$4 -> 108127.3894 | M26: =F26/'Charges Summary'!F$4 -> 124461.3444 | N26: =G26/'Charges Summary'!G$4 -> 142995.15 | O26: =H26/'Charges Summary'!H$4 -> 163976.1648
A27: ='DNSP Inputs General'!A$62 -> Metal halide 400 watt | C27: =IF('PL Tariffs'!C26=0,"",'DNSP Inputs General'!J62*'PL Tariffs'!C26) -> 186225 | D27: ='DNSP Inputs General'!K62*'PL Tariffs'!D26 -> 164459.2777 | E27: ='DNSP Inputs General'!L62*'PL Tariffs'!E26 -> 172084.0906 | F27: ='DNSP Inputs General'!M62*'PL Tariffs'!F26 -> 180461.7496 | G27: ='DNSP Inputs General'!N62*'PL Tariffs'!G26 -> 188893.7793 | H27: ='DNSP Inputs General'!O62*'PL Tariffs'!H26 -> 197343.4631 | J27: 186225 | K27: =D27/'Charges Summary'!D$4 -> 160448.0758 | L27: =E27/'Charges Summary'!E$4 -> 163792.1148 | M27: =F27/'Charges Summary'!F$4 -> 167576.6743 | N27: =G27/'Charges Summary'!G$4 -> 171128.4411 | O27: =H27/'Charges Summary'!H$4 -> 174422.866
A28: ='DNSP Inputs General'!A$63 -> Metal halide 1000 watt | C28: =IF('PL Tariffs'!C27=0,"",'DNSP Inputs General'!J63*'PL Tariffs'!C27) -> 427.36 | D28: ='DNSP Inputs General'!K63*'PL Tariffs'!D27 -> 372.4476908 | E28: ='DNSP Inputs General'!L63*'PL Tariffs'!E27 -> 0 | F28: ='DNSP Inputs General'!M63*'PL Tariffs'!F27 -> 0 | G28: ='DNSP Inputs General'!N63*'PL Tariffs'!G27 -> 0 | H28: ='DNSP Inputs General'!O63*'PL Tariffs'!H27 -> 0 | J28: 427.36 | K28: =D28/'Charges Summary'!D$4 -> 363.3636008 | L28: =E28/'Charges Summary'!E$4 -> 0 | M28: =F28/'Charges Summary'!F$4 -> 0 | N28: =G28/'Charges Summary'!G$4 -> 0 | O28: =H28/'Charges Summary'!H$4 -> 0
A31: ='DNSP Inputs General'!A$68 -> Energy Efficient Lights
A32: ='DNSP Inputs General'!A$69 -> T5 2X14W | C32: =IF('PL Tariffs'!C31=0,"",'DNSP Inputs General'!J69*'PL Tariffs'!C31) -> 532192.5 | D32: ='DNSP Inputs General'!K69*'PL Tariffs'!D31 -> 555563.0946 | E32: ='DNSP Inputs General'!L69*'PL Tariffs'!E31 -> 560343.8699 | F32: ='DNSP Inputs General'!M69*'PL Tariffs'!F31 -> 539255.1154 | G32: ='DNSP Inputs General'!N69*'PL Tariffs'!G31 -> 515249.1001 | H32: ='DNSP Inputs General'!O69*'PL Tariffs'!H31 -> 489952.9723 | J32: =C32 -> 532192.5 | K32: =D32/'Charges Summary'!D$4 -> 542012.7752 | L32: =E32/'Charges Summary'!E$4 -> 533343.3621 | M32: =F32/'Charges Summary'!F$4 -> 500751.9825 | N32: =G32/'Charges Summary'!G$4 -> 466790.2544 | O32: =H32/'Charges Summary'!H$4 -> 433047.0353
A33: ='DNSP Inputs General'!B$70 -> T5 2X14W | C33: =IF('PL Tariffs'!C32=0,"",'DNSP Inputs General'!J70*'PL Tariffs'!C32) ->  | D33: ='DNSP Inputs General'!K70*'PL Tariffs'!D32 -> 92723.17039 | E33: ='DNSP Inputs General'!L70*'PL Tariffs'!E32 -> 93521.07912 | F33: ='DNSP Inputs General'!M70*'PL Tariffs'!F32 -> 90001.37777 | G33: ='DNSP Inputs General'!N70*'PL Tariffs'!G32 -> 85994.78721 | H33: ='DNSP Inputs General'!O70*'PL Tariffs'!H32 -> 81772.87761 | J33: =C33 ->  | K33: =D33/'Charges Summary'!D$4 -> 90461.62965 | L33: =E33/'Charges Summary'!E$4 -> 89014.70945 | M33: =F33/'Charges Summary'!F$4 -> 83575.22638 | N33: =G33/'Charges Summary'!G$4 -> 77907.03292 | O33: =H33/'Charges Summary'!H$4 -> 72275.30848
A34: ='DNSP Inputs General'!B$71 -> T5 2X14W | C34: =IF('PL Tariffs'!C33=0,"",'DNSP Inputs General'!J71*'PL Tariffs'!C33) ->  | D34: ='DNSP Inputs General'!K71*'PL Tariffs'!D33 -> 23457.15765 | E34: ='DNSP Inputs General'!L71*'PL Tariffs'!E33 -> 23659.01303 | F34: ='DNSP Inputs General'!M71*'PL Tariffs'!F33 -> 22768.59709 | G34: ='DNSP Inputs General'!N71*'PL Tariffs'!G33 -> 21755.00765 | H34: ='DNSP Inputs General'!O71*'PL Tariffs'!H33 -> 20686.94668 | K34: =D34/'Charges Summary'!D$4 -> 22885.03186 | L34: =E34/'Charges Summary'!E$4 -> 22518.9892 | M34: =F34/'Charges Summary'!F$4 -> 21142.90584 | N34: =G34/'Charges Summary'!G$4 -> 19708.9632 | O34: =H34/'Charges Summary'!H$4 -> 18284.24652
A35: ='DNSP Inputs General'!B$72 -> T5 2X14W | C35: =IF('PL Tariffs'!C34=0,"",'DNSP Inputs General'!J72*'PL Tariffs'!C34) ->  | D35: ='DNSP Inputs General'!K72*'PL Tariffs'!D34 -> 18248.74271 | E35: ='DNSP Inputs General'!L72*'PL Tariffs'!E34 -> 18405.77823 | F35: ='DNSP Inputs General'!M72*'PL Tariffs'!F34 -> 17713.06977 | G35: ='DNSP Inputs General'!N72*'PL Tariffs'!G34 -> 16924.5372 | H35: ='DNSP Inputs General'!O72*'PL Tariffs'!H34 -> 16093.62793 | K35: =D35/'Charges Summary'!D$4 -> 17803.65143 | L35: =E35/'Charges Summary'!E$4 -> 17518.88469 | M35: =F35/'Charges Summary'!F$4 -> 16448.34616 | N35: =G35/'Charges Summary'!G$4 -> 15332.79539 | O35: =H35/'Charges Summary'!H$4 -> 14224.42205
A36: ='DNSP Inputs General'!B$73 -> Category P LED 18 Watt | C36: =IF('PL Tariffs'!C35=0,"",'DNSP Inputs General'!J73*'PL Tariffs'!C35) ->  | D36: ='DNSP Inputs General'!K73*'PL Tariffs'!D35 -> 140413.6962 | E36: ='DNSP Inputs General'!L73*'PL Tariffs'!E35 -> 162884.8163 | F36: ='DNSP Inputs General'!M73*'PL Tariffs'!F35 -> 188215.2785 | G36: ='DNSP Inputs General'!N73*'PL Tariffs'!G35 -> 231538.2989 | H36: ='DNSP Inputs General'!O73*'PL Tariffs'!H35 -> 282836.2107 | K36: =D36/'Charges Summary'!D$4 -> 136988.9719 | L36: =E36/'Charges Summary'!E$4 -> 155036.1131 | M36: =F36/'Charges Summary'!F$4 -> 174776.5968 | N36: =G36/'Charges Summary'!G$4 -> 209762.2712 | O36: =H36/'Charges Summary'!H$4 -> 249985.9975
A37: ='DNSP Inputs General'!B$74 -> Category P LED 18 Watt | C37: =IF('PL Tariffs'!C36=0,"",'DNSP Inputs General'!J74*'PL Tariffs'!C36) ->  | D37: ='DNSP Inputs General'!K74*'PL Tariffs'!D36 -> 2251.304082 | E37: ='DNSP Inputs General'!L74*'PL Tariffs'!E36 -> 2367.855571 | F37: ='DNSP Inputs General'!M74*'PL Tariffs'!F36 -> 2502.527016 | G37: ='DNSP Inputs General'!N74*'PL Tariffs'!G36 -> 2565.461444 | H37: ='DNSP Inputs General'!O74*'PL Tariffs'!H36 -> 2611.538411 | K37: =D37/'Charges Summary'!D$4 -> 2196.394226 | L37: =E37/'Charges Summary'!E$4 -> 2253.759021 | M37: =F37/'Charges Summary'!F$4 -> 2323.845113 | N37: =G37/'Charges Summary'!G$4 -> 2324.181449 | O37: =H37/'Charges Summary'!H$4 -> 2308.219422
A39: Total Revenue | C39: =IF(SUM(C7:C38)=0,"",SUM(C7:C38)) -> 4222314.186 | D39: =SUM(D7:D38) -> 3919604.43 | E39: =SUM(E7:E38) -> 4020625.717 | F39: =SUM(F7:F38) -> 4133450.028 | G39: =SUM(G7:G38) -> 4264431.945 | H39: =SUM(H7:H38) -> 4404930.448 | J39: =IF(SUM(J7:J38)=0,"",SUM(J7:J38)) -> 4222314.186 | K39: =SUM(K7:K38) -> 3824004.322 | L39: =SUM(L7:L38) -> 3826889.439 | M39: =SUM(M7:M38) -> 3838319.261 | N39: =SUM(N7:N38) -> 3863364.871 | O39: =SUM(O7:O38) -> 3893316.663
A42: Public Lighting - O & M | D42: Forecast O & M - Nominal | K42: Forecast O & M - Real 2015 $
D43: =D$2 -> 2016 | E43: 2017 | F43: 2018 | G43: 2019 | H43: 2020 | K43: =K$2 -> 2016 | L43: 2017 | M43: 2018 | N43: 2019 | O43: 2020
A45: Unit cost
A46: ='DNSP Inputs General'!A$42 -> Mercury vapour 80 watt | D46: =SUM('Charges Summary'!D25,'Charges Summary'!D8) -> 30.80220975 | E46: =SUM('Charges Summary'!E25,'Charges Summary'!E8) -> 30.83925604 | F46: =SUM('Charges Summary'!F25,'Charges Summary'!F8) -> 31.83011849 | G46: =SUM('Charges Summary'!G25,'Charges Summary'!G8) -> 32.89039791 | H46: =SUM('Charges Summary'!H25,'Charges Summary'!H8) -> 33.89889256
A47: ='DNSP Inputs General'!A$43 -> Sodium high pressure 150 watt | D47: =SUM('Charges Summary'!D49,'Charges Summary'!D8) -> 67.90585092 | E47: =SUM('Charges Summary'!E49,'Charges Summary'!E8) -> 70.20492997 | F47: =SUM('Charges Summary'!F49,'Charges Summary'!F8) -> 72.75065335 | G47: =SUM('Charges Summary'!G49,'Charges Summary'!G8) -> 75.33667009 | H47: =SUM('Charges Summary'!H49,'Charges Summary'!H8) -> 77.94035772
A48: ='DNSP Inputs General'!A$44 -> Sodium high pressure 250 watt | D48: =SUM('Charges Summary'!D65,'Charges Summary'!D8) -> 68.29951261 | E48: =SUM('Charges Summary'!E65,'Charges Summary'!E8) -> 70.59497741 | F48: =SUM('Charges Summary'!F65,'Charges Summary'!F8) -> 73.17520563 | G48: =SUM('Charges Summary'!G65,'Charges Summary'!G8) -> 75.7933164 | H48: =SUM('Charges Summary'!H65,'Charges Summary'!H8) -> 78.43017557
A50: ='DNSP Inputs General'!A$41 -> Existing Lights
A51: ='DNSP Inputs General'!A$42 -> Mercury vapour 80 watt | D51: =D46*'DNSP Inputs General'!K42 -> 81851.48818 | E51: =E46*'DNSP Inputs General'!L42 -> 65318.74333 | F51: =F46*'DNSP Inputs General'!M42 -> 60403.10048 | G51: =G46*'DNSP Inputs General'!N42 -> 55921.28621 | H51: =H46*'DNSP Inputs General'!O42 -> 51639.32809 | K51: =D51/'Charges Summary'!D$4 -> 79855.11042 | L51: =E51/'Charges Summary'!E$4 -> 62171.32024 | M51: =F51/'Charges Summary'!F$4 -> 56090.28352 | N51: =G51/'Charges Summary'!G$4 -> 50661.9253 | O51: =H51/'Charges Summary'!H$4 -> 45641.64154
A52: ='DNSP Inputs General'!A$43 -> Sodium high pressure 150 watt | D52: =D47*'DNSP Inputs General'!K43 -> 859872.8319 | E52: =E47*'DNSP Inputs General'!L43 -> 893410.6573 | F52: =F47*'DNSP Inputs General'!M43 -> 930415.4274 | G52: =G47*'DNSP Inputs General'!N43 -> 968284.3484 | H52: =H47*'DNSP Inputs General'!O43 -> 1006735.476 | K52: =D52/'Charges Summary'!D$4 -> 838900.3238 | L52: =E52/'Charges Summary'!E$4 -> 850361.1253 | M52: =F52/'Charges Summary'!F$4 -> 863983.2178 | N52: =G52/'Charges Summary'!G$4 -> 877217.8298 | O52: =H52/'Charges Summary'!H$4 -> 889807.467
A53: ='DNSP Inputs General'!A$44 -> Sodium high pressure 250 watt | D53: =D48*'DNSP Inputs General'!K44 -> 368861.106 | E53: =E48*'DNSP Inputs General'!L44 -> 388321.8572 | F53: =F48*'DNSP Inputs General'!M44 -> 409972.5289 | G53: =G48*'DNSP Inputs General'!N44 -> 432508.3422 | H53: =H48*'DNSP Inputs General'!O44 -> 455847.4589 | K53: =D53/'Charges Summary'!D$4 -> 359864.4937 | L53: =E53/'Charges Summary'!E$4 -> 369610.334 | M53: =F53/'Charges Summary'!F$4 -> 380700.2488 | N53: =G53/'Charges Summary'!G$4 -> 391831.2115 | O53: =H53/'Charges Summary'!H$4 -> 402902.7311
A54: ='DNSP Inputs General'!A$45 -> Fluorescent 20 watt | D54: =IF('DNSP Inputs General'!$B45='DNSP Inputs General'!$A$42,D$46,IF('DNSP Inputs General'!$B45='DNSP Inputs General'!$A$43,D$47,D$48))*'DNSP Inputs General'!$D45*'DNSP Inputs General'!K45 -> 4781.118997 | E54: =IF('DNSP Inputs General'!$B45='DNSP Inputs General'!$A$42,E$46,IF('DNSP Inputs General'!$B45='DNSP Inputs General'!$A$43,E$47,E$48))*'DNSP Inputs General'!$D45*'DNSP Inputs General'!L45 -> 4786.869323 | F54: =IF('DNSP Inputs General'!$B45='DNSP Inputs General'!$A$42,F$46,IF('DNSP Inputs General'!$B45='DNSP Inputs General'!$A$43,F$47,F$48))*'DNSP Inputs General'!$D45*'DNSP Inputs General'!M45 -> 4940.670992 | G54: =IF('DNSP Inputs General'!$B45='DNSP Inputs General'!$A$42,G$46,IF('DNSP Inputs General'!$B45='DNSP Inputs General'!$A$43,G$47,G$48))*'DNSP Inputs General'!$D45*'DNSP Inputs General'!N45 -> 5105.247563 | H54: =IF('DNSP Inputs General'!$B45='DNSP Inputs General'!$A$42,H$46,IF('DNSP Inputs General'!$B45='DNSP Inputs General'!$A$43,H$47,H$48))*'DNSP Inputs General'!$D45*'DNSP Inputs General'!O45 -> 5261.786102 | K54: =D54/'Charges Summary'!D$4 -> 4664.506339 | L54: =E54/'Charges Summary'!E$4 -> 4556.211134 | M54: =F54/'Charges Summary'!F$4 -> 4587.904173 | N54: =G54/'Charges Summary'!G$4 -> 4625.102322 | O54: =H54/'Charges Summary'!H$4 -> 4650.652207
A55: ='DNSP Inputs General'!A$46 -> Fluorescent 40 watt | D55: =IF('DNSP Inputs General'!$B46='DNSP Inputs General'!$A$42,D$46,IF('DNSP Inputs General'!$B46='DNSP Inputs General'!$A$43,D$47,D$48))*'DNSP Inputs General'!$D46*'DNSP Inputs General'!K46 -> 9179.058505 | E55: =IF('DNSP Inputs General'!$B46='DNSP Inputs General'!$A$42,E$46,IF('DNSP Inputs General'!$B46='DNSP Inputs General'!$A$43,E$47,E$48))*'DNSP Inputs General'!$D46*'DNSP Inputs General'!L46 -> 9190.098301 | F55: =IF('DNSP Inputs General'!$B46='DNSP Inputs General'!$A$42,F$46,IF('DNSP Inputs General'!$B46='DNSP Inputs General'!$A$43,F$47,F$48))*'DNSP Inputs General'!$D46*'DNSP Inputs General'!M46 -> 9485.37531 | G55: =IF('DNSP Inputs General'!$B46='DNSP Inputs General'!$A$42,G$46,IF('DNSP Inputs General'!$B46='DNSP Inputs General'!$A$43,G$47,G$48))*'DNSP Inputs General'!$D46*'DNSP Inputs General'!N46 -> 9801.338576 | H55: =IF('DNSP Inputs General'!$B46='DNSP Inputs General'!$A$42,H$46,IF('DNSP Inputs General'!$B46='DNSP Inputs General'!$A$43,H$47,H$48))*'DNSP Inputs General'!$D46*'DNSP Inputs General'!O46 -> 10101.86998 | K55: =D55/'Charges Summary'!D$4 -> 8955.17903 | L55: =E55/'Charges Summary'!E$4 -> 8747.267865 | M55: =F55/'Charges Summary'!F$4 -> 8808.113925 | N55: =G55/'Charges Summary'!G$4 -> 8879.529003 | O55: =H55/'Charges Summary'!H$4 -> 8928.581096
A56: ='DNSP Inputs General'!A$47 -> Mercury vapour 50 watt | D56: =IF('DNSP Inputs General'!$B47='DNSP Inputs General'!$A$42,D$46,IF('DNSP Inputs General'!$B47='DNSP Inputs General'!$A$43,D$47,D$48))*'DNSP Inputs General'!$D47*'DNSP Inputs General'!K47 -> 6174.160339 | E56: =IF('DNSP Inputs General'!$B47='DNSP Inputs General'!$A$42,E$46,IF('DNSP Inputs General'!$B47='DNSP Inputs General'!$A$43,E$47,E$48))*'DNSP Inputs General'!$D47*'DNSP Inputs General'!L47 -> 5778.706809 | F56: =IF('DNSP Inputs General'!$B47='DNSP Inputs General'!$A$42,F$46,IF('DNSP Inputs General'!$B47='DNSP Inputs General'!$A$43,F$47,F$48))*'DNSP Inputs General'!$D47*'DNSP Inputs General'!M47 -> 5575.653301 | G56: =IF('DNSP Inputs General'!$B47='DNSP Inputs General'!$A$42,G$46,IF('DNSP Inputs General'!$B47='DNSP Inputs General'!$A$43,G$47,G$48))*'DNSP Inputs General'!$D47*'DNSP Inputs General'!N47 -> 5385.888663 | H56: =IF('DNSP Inputs General'!$B47='DNSP Inputs General'!$A$42,H$46,IF('DNSP Inputs General'!$B47='DNSP Inputs General'!$A$43,H$47,H$48))*'DNSP Inputs General'!$D47*'DNSP Inputs General'!O47 -> 5189.248786 | K56: =D56/'Charges Summary'!D$4 -> 6023.571062 | L56: =E56/'Charges Summary'!E$4 -> 5500.256332 | M56: =F56/'Charges Summary'!F$4 -> 5177.548371 | N56: =G56/'Charges Summary'!G$4 -> 4879.349307 | O56: =H56/'Charges Summary'!H$4 -> 4586.539789
A57: ='DNSP Inputs General'!A$48 -> Mercury vapour 125 watt | D57: =IF('DNSP Inputs General'!$B48='DNSP Inputs General'!$A$42,D$46,IF('DNSP Inputs General'!$B48='DNSP Inputs General'!$A$43,D$47,D$48))*'DNSP Inputs General'!$D48*'DNSP Inputs General'!K48 -> 58836.08076 | E57: =IF('DNSP Inputs General'!$B48='DNSP Inputs General'!$A$42,E$46,IF('DNSP Inputs General'!$B48='DNSP Inputs General'!$A$43,E$47,E$48))*'DNSP Inputs General'!$D48*'DNSP Inputs General'!L48 -> 55636.59707 | F57: =IF('DNSP Inputs General'!$B48='DNSP Inputs General'!$A$42,F$46,IF('DNSP Inputs General'!$B48='DNSP Inputs General'!$A$43,F$47,F$48))*'DNSP Inputs General'!$D48*'DNSP Inputs General'!M48 -> 54236.25909 | G57: =IF('DNSP Inputs General'!$B48='DNSP Inputs General'!$A$42,G$46,IF('DNSP Inputs General'!$B48='DNSP Inputs General'!$A$43,G$47,G$48))*'DNSP Inputs General'!$D48*'DNSP Inputs General'!N48 -> 52931.64655 | H57: =IF('DNSP Inputs General'!$B48='DNSP Inputs General'!$A$42,H$46,IF('DNSP Inputs General'!$B48='DNSP Inputs General'!$A$43,H$47,H$48))*'DNSP Inputs General'!$D48*'DNSP Inputs General'!O48 -> 51526.01928 | K57: =D57/'Charges Summary'!D$4 -> 57401.0544 | L57: =E57/'Charges Summary'!E$4 -> 52955.71405 | M57: =F57/'Charges Summary'!F$4 -> 50363.75824 | N57: =G57/'Charges Summary'!G$4 -> 47953.45933 | O57: =H57/'Charges Summary'!H$4 -> 45541.49306
A58: ='DNSP Inputs General'!A$49 -> Mercury vapour 250 watt | D58: =IF('DNSP Inputs General'!$B49='DNSP Inputs General'!$A$42,D$46,IF('DNSP Inputs General'!$B49='DNSP Inputs General'!$A$43,D$47,D$48))*'DNSP Inputs General'!$D49*'DNSP Inputs General'!K49 -> 29355.00151 | E58: =IF('DNSP Inputs General'!$B49='DNSP Inputs General'!$A$42,E$46,IF('DNSP Inputs General'!$B49='DNSP Inputs General'!$A$43,E$47,E$48))*'DNSP Inputs General'!$D49*'DNSP Inputs General'!L49 -> 27624.04081 | F58: =IF('DNSP Inputs General'!$B49='DNSP Inputs General'!$A$42,F$46,IF('DNSP Inputs General'!$B49='DNSP Inputs General'!$A$43,F$47,F$48))*'DNSP Inputs General'!$D49*'DNSP Inputs General'!M49 -> 26069.11307 | G58: =IF('DNSP Inputs General'!$B49='DNSP Inputs General'!$A$42,G$46,IF('DNSP Inputs General'!$B49='DNSP Inputs General'!$A$43,G$47,G$48))*'DNSP Inputs General'!$D49*'DNSP Inputs General'!N49 -> 24583.4095 | H58: =IF('DNSP Inputs General'!$B49='DNSP Inputs General'!$A$42,H$46,IF('DNSP Inputs General'!$B49='DNSP Inputs General'!$A$43,H$47,H$48))*'DNSP Inputs General'!$D49*'DNSP Inputs General'!O49 -> 23160.25268 | K58: =D58/'Charges Summary'!D$4 -> 28639.02586 | L58: =E58/'Charges Summary'!E$4 -> 26292.95973 | M58: =F58/'Charges Summary'!F$4 -> 24207.76304 | N58: =G58/'Charges Summary'!G$4 -> 22271.35569 | O58: =H58/'Charges Summary'!H$4 -> 20470.28863
A59: ='DNSP Inputs General'!A$50 -> Mercury vapour 400 watt | D59: =IF('DNSP Inputs General'!$B50='DNSP Inputs General'!$A$42,D$46,IF('DNSP Inputs General'!$B50='DNSP Inputs General'!$A$43,D$47,D$48))*'DNSP Inputs General'!$D50*'DNSP Inputs General'!K50 -> 15005.83028 | E59: =IF('DNSP Inputs General'!$B50='DNSP Inputs General'!$A$42,E$46,IF('DNSP Inputs General'!$B50='DNSP Inputs General'!$A$43,E$47,E$48))*'DNSP Inputs General'!$D50*'DNSP Inputs General'!L50 -> 14317.97823 | F59: =IF('DNSP Inputs General'!$B50='DNSP Inputs General'!$A$42,F$46,IF('DNSP Inputs General'!$B50='DNSP Inputs General'!$A$43,F$47,F$48))*'DNSP Inputs General'!$D50*'DNSP Inputs General'!M50 -> 13700.5283 | G59: =IF('DNSP Inputs General'!$B50='DNSP Inputs General'!$A$42,G$46,IF('DNSP Inputs General'!$B50='DNSP Inputs General'!$A$43,G$47,G$48))*'DNSP Inputs General'!$D50*'DNSP Inputs General'!N50 -> 13099.95312 | H59: =IF('DNSP Inputs General'!$B50='DNSP Inputs General'!$A$42,H$46,IF('DNSP Inputs General'!$B50='DNSP Inputs General'!$A$43,H$47,H$48))*'DNSP Inputs General'!$D50*'DNSP Inputs General'!O50 -> 12513.75036 | K59: =D59/'Charges Summary'!D$4 -> 14639.83442 | L59: =E59/'Charges Summary'!E$4 -> 13628.0578 | M59: =F59/'Charges Summary'!F$4 -> 12722.30251 | N59: =G59/'Charges Summary'!G$4 -> 11867.91098 | O59: =H59/'Charges Summary'!H$4 -> 11060.33191
A60: ='DNSP Inputs General'!A$51 -> Mercury vapour 700 watt | D60: =IF('DNSP Inputs General'!$B51='DNSP Inputs General'!$A$42,D$46,IF('DNSP Inputs General'!$B51='DNSP Inputs General'!$A$43,D$47,D$48))*'DNSP Inputs General'!$D51*'DNSP Inputs General'!K51 -> 0 | E60: =IF('DNSP Inputs General'!$B51='DNSP Inputs General'!$A$42,E$46,IF('DNSP Inputs General'!$B51='DNSP Inputs General'!$A$43,E$47,E$48))*'DNSP Inputs General'!$D51*'DNSP Inputs General'!L51 -> 0 | F60: =IF('DNSP Inputs General'!$B51='DNSP Inputs General'!$A$42,F$46,IF('DNSP Inputs General'!$B51='DNSP Inputs General'!$A$43,F$47,F$48))*'DNSP Inputs General'!$D51*'DNSP Inputs General'!M51 -> 0 | G60: =IF('DNSP Inputs General'!$B51='DNSP Inputs General'!$A$42,G$46,IF('DNSP Inputs General'!$B51='DNSP Inputs General'!$A$43,G$47,G$48))*'DNSP Inputs General'!$D51*'DNSP Inputs General'!N51 -> 0 | H60: =IF('DNSP Inputs General'!$B51='DNSP Inputs General'!$A$42,H$46,IF('DNSP Inputs General'!$B51='DNSP Inputs General'!$A$43,H$47,H$48))*'DNSP Inputs General'!$D51*'DNSP Inputs General'!O51 -> 0 | K60: =D60/'Charges Summary'!D$4 -> 0 | L60: =E60/'Charges Summary'!E$4 -> 0 | M60: =F60/'Charges Summary'!F$4 -> 0 | N60: =G60/'Charges Summary'!G$4 -> 0 | O60: =H60/'Charges Summary'!H$4 -> 0
A61: ='DNSP Inputs General'!A$52 -> Sodium high pressure 70 watt | D61: =IF('DNSP Inputs General'!$B52='DNSP Inputs General'!$A$42,D$46,IF('DNSP Inputs General'!$B52='DNSP Inputs General'!$A$43,D$47,D$48))*'DNSP Inputs General'!$D52*'DNSP Inputs General'!K52 -> 24340.33811 | E61: =IF('DNSP Inputs General'!$B52='DNSP Inputs General'!$A$42,E$46,IF('DNSP Inputs General'!$B52='DNSP Inputs General'!$A$43,E$47,E$48))*'DNSP Inputs General'!$D52*'DNSP Inputs General'!L52 -> 24030.65993 | F61: =IF('DNSP Inputs General'!$B52='DNSP Inputs General'!$A$42,F$46,IF('DNSP Inputs General'!$B52='DNSP Inputs General'!$A$43,F$47,F$48))*'DNSP Inputs General'!$D52*'DNSP Inputs General'!M52 -> 24457.78552 | G61: =IF('DNSP Inputs General'!$B52='DNSP Inputs General'!$A$42,G$46,IF('DNSP Inputs General'!$B52='DNSP Inputs General'!$A$43,G$47,G$48))*'DNSP Inputs General'!$D52*'DNSP Inputs General'!N52 -> 24920.9777 | H61: =IF('DNSP Inputs General'!$B52='DNSP Inputs General'!$A$42,H$46,IF('DNSP Inputs General'!$B52='DNSP Inputs General'!$A$43,H$47,H$48))*'DNSP Inputs General'!$D52*'DNSP Inputs General'!O52 -> 25327.86201 | K61: =D61/'Charges Summary'!D$4 -> 23746.67133 | L61: =E61/'Charges Summary'!E$4 -> 22872.72807 | M61: =F61/'Charges Summary'!F$4 -> 22711.48523 | N61: =G61/'Charges Summary'!G$4 -> 22577.17582 | O61: =H61/'Charges Summary'!H$4 -> 22386.13944
A62: ='DNSP Inputs General'!A$53 -> Sodium high pressure 100 watt | D62: =IF('DNSP Inputs General'!$B53='DNSP Inputs General'!$A$42,D$46,IF('DNSP Inputs General'!$B53='DNSP Inputs General'!$A$43,D$47,D$48))*'DNSP Inputs General'!$D53*'DNSP Inputs General'!K53 -> 24239.69504 | E62: =IF('DNSP Inputs General'!$B53='DNSP Inputs General'!$A$42,E$46,IF('DNSP Inputs General'!$B53='DNSP Inputs General'!$A$43,E$47,E$48))*'DNSP Inputs General'!$D53*'DNSP Inputs General'!L53 -> 24160.21115 | F62: =IF('DNSP Inputs General'!$B53='DNSP Inputs General'!$A$42,F$46,IF('DNSP Inputs General'!$B53='DNSP Inputs General'!$A$43,F$47,F$48))*'DNSP Inputs General'!$D53*'DNSP Inputs General'!M53 -> 24136.99342 | G62: =IF('DNSP Inputs General'!$B53='DNSP Inputs General'!$A$42,G$46,IF('DNSP Inputs General'!$B53='DNSP Inputs General'!$A$43,G$47,G$48))*'DNSP Inputs General'!$D53*'DNSP Inputs General'!N53 -> 24097.15957 | H62: =IF('DNSP Inputs General'!$B53='DNSP Inputs General'!$A$42,H$46,IF('DNSP Inputs General'!$B53='DNSP Inputs General'!$A$43,H$47,H$48))*'DNSP Inputs General'!$D53*'DNSP Inputs General'!O53 -> 24034.4942 | K62: =D62/'Charges Summary'!D$4 -> 23648.48296 | L62: =E62/'Charges Summary'!E$4 -> 22996.03678 | M62: =F62/'Charges Summary'!F$4 -> 22413.59787 | N62: =G62/'Charges Summary'!G$4 -> 21830.83725 | O62: =H62/'Charges Summary'!H$4 -> 21242.99075
A63: ='DNSP Inputs General'!A$54 -> Sodium high pressure 220 watt | D63: =IF('DNSP Inputs General'!$B54='DNSP Inputs General'!$A$42,D$46,IF('DNSP Inputs General'!$B54='DNSP Inputs General'!$A$43,D$47,D$48))*'DNSP Inputs General'!$D54*'DNSP Inputs General'!K54 -> 124166.5409 | E63: =IF('DNSP Inputs General'!$B54='DNSP Inputs General'!$A$42,E$46,IF('DNSP Inputs General'!$B54='DNSP Inputs General'!$A$43,E$47,E$48))*'DNSP Inputs General'!$D54*'DNSP Inputs General'!L54 -> 124187.752 | F63: =IF('DNSP Inputs General'!$B54='DNSP Inputs General'!$A$42,F$46,IF('DNSP Inputs General'!$B54='DNSP Inputs General'!$A$43,F$47,F$48))*'DNSP Inputs General'!$D54*'DNSP Inputs General'!M54 -> 124562.3801 | G63: =IF('DNSP Inputs General'!$B54='DNSP Inputs General'!$A$42,G$46,IF('DNSP Inputs General'!$B54='DNSP Inputs General'!$A$43,G$47,G$48))*'DNSP Inputs General'!$D54*'DNSP Inputs General'!N54 -> 124845.1977 | H63: =IF('DNSP Inputs General'!$B54='DNSP Inputs General'!$A$42,H$46,IF('DNSP Inputs General'!$B54='DNSP Inputs General'!$A$43,H$47,H$48))*'DNSP Inputs General'!$D54*'DNSP Inputs General'!O54 -> 125009.2364 | K63: =D63/'Charges Summary'!D$4 -> 121138.0887 | L63: =E63/'Charges Summary'!E$4 -> 118203.6902 | M63: =F63/'Charges Summary'!F$4 -> 115668.5528 | N63: =G63/'Charges Summary'!G$4 -> 113103.5873 | O63: =H63/'Charges Summary'!H$4 -> 110489.9496
A64: ='DNSP Inputs General'!A$55 -> Sodium high pressure 360 watt | D64: =IF('DNSP Inputs General'!$B55='DNSP Inputs General'!$A$42,D$46,IF('DNSP Inputs General'!$B55='DNSP Inputs General'!$A$43,D$47,D$48))*'DNSP Inputs General'!$D55*'DNSP Inputs General'!K55 -> 16054.15383 | E64: =IF('DNSP Inputs General'!$B55='DNSP Inputs General'!$A$42,E$46,IF('DNSP Inputs General'!$B55='DNSP Inputs General'!$A$43,E$47,E$48))*'DNSP Inputs General'!$D55*'DNSP Inputs General'!L55 -> 16482.58325 | F64: =IF('DNSP Inputs General'!$B55='DNSP Inputs General'!$A$42,F$46,IF('DNSP Inputs General'!$B55='DNSP Inputs General'!$A$43,F$47,F$48))*'DNSP Inputs General'!$D55*'DNSP Inputs General'!M55 -> 16970.59561 | G64: =IF('DNSP Inputs General'!$B55='DNSP Inputs General'!$A$42,G$46,IF('DNSP Inputs General'!$B55='DNSP Inputs General'!$A$43,G$47,G$48))*'DNSP Inputs General'!$D55*'DNSP Inputs General'!N55 -> 17460.05883 | H64: =IF('DNSP Inputs General'!$B55='DNSP Inputs General'!$A$42,H$46,IF('DNSP Inputs General'!$B55='DNSP Inputs General'!$A$43,H$47,H$48))*'DNSP Inputs General'!$D55*'DNSP Inputs General'!O55 -> 17946.49483 | K64: =D64/'Charges Summary'!D$4 -> 15662.5891 | L64: =E64/'Charges Summary'!E$4 -> 15688.36003 | M64: =F64/'Charges Summary'!F$4 -> 15758.88508 | N64: =G64/'Charges Summary'!G$4 -> 15817.95155 | O64: =H64/'Charges Summary'!H$4 -> 15862.08641
A65: ='DNSP Inputs General'!A$56 -> Sodium high pressure 400 watt | D65: =IF('DNSP Inputs General'!$B56='DNSP Inputs General'!$A$42,D$46,IF('DNSP Inputs General'!$B56='DNSP Inputs General'!$A$43,D$47,D$48))*'DNSP Inputs General'!$D56*'DNSP Inputs General'!K56 -> 30523.3992 | E65: =IF('DNSP Inputs General'!$B56='DNSP Inputs General'!$A$42,E$46,IF('DNSP Inputs General'!$B56='DNSP Inputs General'!$A$43,E$47,E$48))*'DNSP Inputs General'!$D56*'DNSP Inputs General'!L56 -> 32124.67976 | F65: =IF('DNSP Inputs General'!$B56='DNSP Inputs General'!$A$42,F$46,IF('DNSP Inputs General'!$B56='DNSP Inputs General'!$A$43,F$47,F$48))*'DNSP Inputs General'!$D56*'DNSP Inputs General'!M56 -> 33906.16462 | G65: =IF('DNSP Inputs General'!$B56='DNSP Inputs General'!$A$42,G$46,IF('DNSP Inputs General'!$B56='DNSP Inputs General'!$A$43,G$47,G$48))*'DNSP Inputs General'!$D56*'DNSP Inputs General'!N56 -> 35759.82102 | H65: =IF('DNSP Inputs General'!$B56='DNSP Inputs General'!$A$42,H$46,IF('DNSP Inputs General'!$B56='DNSP Inputs General'!$A$43,H$47,H$48))*'DNSP Inputs General'!$D56*'DNSP Inputs General'!O56 -> 37678.8227 | K65: =D65/'Charges Summary'!D$4 -> 29778.92605 | L65: =E65/'Charges Summary'!E$4 -> 30576.73267 | M65: =F65/'Charges Summary'!F$4 -> 31485.24449 | N65: =G65/'Charges Summary'!G$4 -> 32396.63291 | O65: =H65/'Charges Summary'!H$4 -> 33302.58899
A66: ='DNSP Inputs General'!A$57 -> Sodium high pressure 1000 watt | D66: =IF('DNSP Inputs General'!$B57='DNSP Inputs General'!$A$42,D$46,IF('DNSP Inputs General'!$B57='DNSP Inputs General'!$A$43,D$47,D$48))*'DNSP Inputs General'!$D57*'DNSP Inputs General'!K57 -> 0 | E66: =IF('DNSP Inputs General'!$B57='DNSP Inputs General'!$A$42,E$46,IF('DNSP Inputs General'!$B57='DNSP Inputs General'!$A$43,E$47,E$48))*'DNSP Inputs General'!$D57*'DNSP Inputs General'!L57 -> 0 | F66: =IF('DNSP Inputs General'!$B57='DNSP Inputs General'!$A$42,F$46,IF('DNSP Inputs General'!$B57='DNSP Inputs General'!$A$43,F$47,F$48))*'DNSP Inputs General'!$D57*'DNSP Inputs General'!M57 -> 0 | G66: =IF('DNSP Inputs General'!$B57='DNSP Inputs General'!$A$42,G$46,IF('DNSP Inputs General'!$B57='DNSP Inputs General'!$A$43,G$47,G$48))*'DNSP Inputs General'!$D57*'DNSP Inputs General'!N57 -> 0 | H66: =IF('DNSP Inputs General'!$B57='DNSP Inputs General'!$A$42,H$46,IF('DNSP Inputs General'!$B57='DNSP Inputs General'!$A$43,H$47,H$48))*'DNSP Inputs General'!$D57*'DNSP Inputs General'!O57 -> 0 | K66: =D66/'Charges Summary'!D$4 -> 0 | L66: =E66/'Charges Summary'!E$4 -> 0 | M66: =F66/'Charges Summary'!F$4 -> 0 | N66: =G66/'Charges Summary'!G$4 -> 0 | O66: =H66/'Charges Summary'!H$4 -> 0
A67: ='DNSP Inputs General'!A$58 -> Metal halide 70 watt | D67: =IF('DNSP Inputs General'!$B58='DNSP Inputs General'!$A$42,D$46,IF('DNSP Inputs General'!$B58='DNSP Inputs General'!$A$43,D$47,D$48))*'DNSP Inputs General'!$D58*'DNSP Inputs General'!K58 -> 77386.92295 | E67: =IF('DNSP Inputs General'!$B58='DNSP Inputs General'!$A$42,E$46,IF('DNSP Inputs General'!$B58='DNSP Inputs General'!$A$43,E$47,E$48))*'DNSP Inputs General'!$D58*'DNSP Inputs General'!L58 -> 80685.81297 | F67: =IF('DNSP Inputs General'!$B58='DNSP Inputs General'!$A$42,F$46,IF('DNSP Inputs General'!$B58='DNSP Inputs General'!$A$43,F$47,F$48))*'DNSP Inputs General'!$D58*'DNSP Inputs General'!M58 -> 86723.96461 | G67: =IF('DNSP Inputs General'!$B58='DNSP Inputs General'!$A$42,G$46,IF('DNSP Inputs General'!$B58='DNSP Inputs General'!$A$43,G$47,G$48))*'DNSP Inputs General'!$D58*'DNSP Inputs General'!N58 -> 93320.61186 | H67: =IF('DNSP Inputs General'!$B58='DNSP Inputs General'!$A$42,H$46,IF('DNSP Inputs General'!$B58='DNSP Inputs General'!$A$43,H$47,H$48))*'DNSP Inputs General'!$D58*'DNSP Inputs General'!O58 -> 100161.6666 | K67: =D67/'Charges Summary'!D$4 -> 75499.43702 | L67: =E67/'Charges Summary'!E$4 -> 76797.91835 | M67: =F67/'Charges Summary'!F$4 -> 80531.82245 | N67: =G67/'Charges Summary'!G$4 -> 84543.86849 | O67: =H67/'Charges Summary'!H$4 -> 88528.31848
A68: ='DNSP Inputs General'!A$59 -> Metal halide 100 watt | D68: =IF('DNSP Inputs General'!$B59='DNSP Inputs General'!$A$42,D$46,IF('DNSP Inputs General'!$B59='DNSP Inputs General'!$A$43,D$47,D$48))*'DNSP Inputs General'!$D59*'DNSP Inputs General'!K59 -> 15480.71338 | E68: =IF('DNSP Inputs General'!$B59='DNSP Inputs General'!$A$42,E$46,IF('DNSP Inputs General'!$B59='DNSP Inputs General'!$A$43,E$47,E$48))*'DNSP Inputs General'!$D59*'DNSP Inputs General'!L59 -> 14802.52672 | F68: =IF('DNSP Inputs General'!$B59='DNSP Inputs General'!$A$42,F$46,IF('DNSP Inputs General'!$B59='DNSP Inputs General'!$A$43,F$47,F$48))*'DNSP Inputs General'!$D59*'DNSP Inputs General'!M59 -> 14186.9687 | G68: =IF('DNSP Inputs General'!$B59='DNSP Inputs General'!$A$42,G$46,IF('DNSP Inputs General'!$B59='DNSP Inputs General'!$A$43,G$47,G$48))*'DNSP Inputs General'!$D59*'DNSP Inputs General'!N59 -> 13587.62656 | H68: =IF('DNSP Inputs General'!$B59='DNSP Inputs General'!$A$42,H$46,IF('DNSP Inputs General'!$B59='DNSP Inputs General'!$A$43,H$47,H$48))*'DNSP Inputs General'!$D59*'DNSP Inputs General'!O59 -> 13001.21816 | K68: =D68/'Charges Summary'!D$4 -> 15103.135 | L68: =E68/'Charges Summary'!E$4 -> 14089.25804 | M68: =F68/'Charges Summary'!F$4 -> 13174.01078 | N68: =G68/'Charges Summary'!G$4 -> 12309.71904 | O68: =H68/'Charges Summary'!H$4 -> 11491.18242
A69: ='DNSP Inputs General'!A$60 -> Metal halide 150 watt | D69: =IF('DNSP Inputs General'!$B60='DNSP Inputs General'!$A$42,D$46,IF('DNSP Inputs General'!$B60='DNSP Inputs General'!$A$43,D$47,D$48))*'DNSP Inputs General'!$D60*'DNSP Inputs General'!K60 -> 33701.79005 | E69: =IF('DNSP Inputs General'!$B60='DNSP Inputs General'!$A$42,E$46,IF('DNSP Inputs General'!$B60='DNSP Inputs General'!$A$43,E$47,E$48))*'DNSP Inputs General'!$D60*'DNSP Inputs General'!L60 -> 33367.85011 | F69: =IF('DNSP Inputs General'!$B60='DNSP Inputs General'!$A$42,F$46,IF('DNSP Inputs General'!$B60='DNSP Inputs General'!$A$43,F$47,F$48))*'DNSP Inputs General'!$D60*'DNSP Inputs General'!M60 -> 33114.05425 | G69: =IF('DNSP Inputs General'!$B60='DNSP Inputs General'!$A$42,G$46,IF('DNSP Inputs General'!$B60='DNSP Inputs General'!$A$43,G$47,G$48))*'DNSP Inputs General'!$D60*'DNSP Inputs General'!N60 -> 32839.51396 | H69: =IF('DNSP Inputs General'!$B60='DNSP Inputs General'!$A$42,H$46,IF('DNSP Inputs General'!$B60='DNSP Inputs General'!$A$43,H$47,H$48))*'DNSP Inputs General'!$D60*'DNSP Inputs General'!O60 -> 32536.25308 | K69: =D69/'Charges Summary'!D$4 -> 32879.79517 | L69: =E69/'Charges Summary'!E$4 -> 31760.00011 | M69: =F69/'Charges Summary'!F$4 -> 30749.69127 | N69: =G69/'Charges Summary'!G$4 -> 29750.97885 | O69: =H69/'Charges Summary'!H$4 -> 28757.30679
A70: ='DNSP Inputs General'!A$61 -> Metal halide 250 watt | D70: =IF('DNSP Inputs General'!$B61='DNSP Inputs General'!$A$42,D$46,IF('DNSP Inputs General'!$B61='DNSP Inputs General'!$A$43,D$47,D$48))*'DNSP Inputs General'!$D61*'DNSP Inputs General'!K61 -> 63351.69778 | E70: =IF('DNSP Inputs General'!$B61='DNSP Inputs General'!$A$42,E$46,IF('DNSP Inputs General'!$B61='DNSP Inputs General'!$A$43,E$47,E$48))*'DNSP Inputs General'!$D61*'DNSP Inputs General'!L61 -> 74652.46817 | F70: =IF('DNSP Inputs General'!$B61='DNSP Inputs General'!$A$42,F$46,IF('DNSP Inputs General'!$B61='DNSP Inputs General'!$A$43,F$47,F$48))*'DNSP Inputs General'!$D61*'DNSP Inputs General'!M61 -> 88219.38638 | G70: =IF('DNSP Inputs General'!$B61='DNSP Inputs General'!$A$42,G$46,IF('DNSP Inputs General'!$B61='DNSP Inputs General'!$A$43,G$47,G$48))*'DNSP Inputs General'!$D61*'DNSP Inputs General'!N61 -> 104174.3275 | H70: =IF('DNSP Inputs General'!$B61='DNSP Inputs General'!$A$42,H$46,IF('DNSP Inputs General'!$B61='DNSP Inputs General'!$A$43,H$47,H$48))*'DNSP Inputs General'!$D61*'DNSP Inputs General'!O61 -> 122897.4002 | K70: =D70/'Charges Summary'!D$4 -> 61806.53442 | L70: =E70/'Charges Summary'!E$4 -> 71055.29392 | M70: =F70/'Charges Summary'!F$4 -> 81920.47023 | N70: =G70/'Charges Summary'!G$4 -> 94376.79913 | O70: =H70/'Charges Summary'!H$4 -> 108623.3941
A71: ='DNSP Inputs General'!A$62 -> Metal halide 400 watt | D71: =IF('DNSP Inputs General'!$B62='DNSP Inputs General'!$A$42,D$46,IF('DNSP Inputs General'!$B62='DNSP Inputs General'!$A$43,D$47,D$48))*'DNSP Inputs General'!$D62*'DNSP Inputs General'!K62 -> 107967.6686 | E71: =IF('DNSP Inputs General'!$B62='DNSP Inputs General'!$A$42,E$46,IF('DNSP Inputs General'!$B62='DNSP Inputs General'!$A$43,E$47,E$48))*'DNSP Inputs General'!$D62*'DNSP Inputs General'!L62 -> 113084.0733 | F71: =IF('DNSP Inputs General'!$B62='DNSP Inputs General'!$A$42,F$46,IF('DNSP Inputs General'!$B62='DNSP Inputs General'!$A$43,F$47,F$48))*'DNSP Inputs General'!$D62*'DNSP Inputs General'!M62 -> 118779.9429 | G71: =IF('DNSP Inputs General'!$B62='DNSP Inputs General'!$A$42,G$46,IF('DNSP Inputs General'!$B62='DNSP Inputs General'!$A$43,G$47,G$48))*'DNSP Inputs General'!$D62*'DNSP Inputs General'!N62 -> 124669.8945 | H71: =IF('DNSP Inputs General'!$B62='DNSP Inputs General'!$A$42,H$46,IF('DNSP Inputs General'!$B62='DNSP Inputs General'!$A$43,H$47,H$48))*'DNSP Inputs General'!$D62*'DNSP Inputs General'!O62 -> 130727.0285 | K71: =D71/'Charges Summary'!D$4 -> 105334.3109 | L71: =E71/'Charges Summary'!E$4 -> 107635.049 | M71: =F71/'Charges Summary'!F$4 -> 110298.985 | N71: =G71/'Charges Summary'!G$4 -> 112944.7713 | O71: =H71/'Charges Summary'!H$4 -> 115543.6447
A72: ='DNSP Inputs General'!A$63 -> Metal halide 1000 watt | D72: =IF('DNSP Inputs General'!$B63='DNSP Inputs General'!$A$42,D$46,IF('DNSP Inputs General'!$B63='DNSP Inputs General'!$A$43,D$47,D$48))*'DNSP Inputs General'!$D63*'DNSP Inputs General'!K63 -> 244.5122551 | E72: =IF('DNSP Inputs General'!$B63='DNSP Inputs General'!$A$42,E$46,IF('DNSP Inputs General'!$B63='DNSP Inputs General'!$A$43,E$47,E$48))*'DNSP Inputs General'!$D63*'DNSP Inputs General'!L63 -> 0 | F72: =IF('DNSP Inputs General'!$B63='DNSP Inputs General'!$A$42,F$46,IF('DNSP Inputs General'!$B63='DNSP Inputs General'!$A$43,F$47,F$48))*'DNSP Inputs General'!$D63*'DNSP Inputs General'!M63 -> 0 | G72: =IF('DNSP Inputs General'!$B63='DNSP Inputs General'!$A$42,G$46,IF('DNSP Inputs General'!$B63='DNSP Inputs General'!$A$43,G$47,G$48))*'DNSP Inputs General'!$D63*'DNSP Inputs General'!N63 -> 0 | H72: =IF('DNSP Inputs General'!$B63='DNSP Inputs General'!$A$42,H$46,IF('DNSP Inputs General'!$B63='DNSP Inputs General'!$A$43,H$47,H$48))*'DNSP Inputs General'!$D63*'DNSP Inputs General'!O63 -> 0 | K72: =D72/'Charges Summary'!D$4 -> 238.5485416 | L72: =E72/'Charges Summary'!E$4 -> 0 | M72: =F72/'Charges Summary'!F$4 -> 0 | N72: =G72/'Charges Summary'!G$4 -> 0 | O72: =H72/'Charges Summary'!H$4 -> 0
A75: ='DNSP Inputs General'!A$68 -> Energy Efficient Lights
A76: ='DNSP Inputs General'!A$69 -> T5 2X14W | D76: =SUM('Charges Summary'!D83,'Charges Summary'!D8)*'DNSP Inputs General'!$D69*'DNSP Inputs General'!K69 -> 377605.021 | E76: =SUM('Charges Summary'!E83,'Charges Summary'!E8)*'DNSP Inputs General'!$D69*'DNSP Inputs General'!L69 -> 382148.8248 | F76: =SUM('Charges Summary'!F83,'Charges Summary'!F8)*'DNSP Inputs General'!$D69*'DNSP Inputs General'!M69 -> 367043.6962 | G76: =SUM('Charges Summary'!G83,'Charges Summary'!G8)*'DNSP Inputs General'!$D69*'DNSP Inputs General'!N69 -> 352709.8893 | H76: =SUM('Charges Summary'!H83,'Charges Summary'!H8)*'DNSP Inputs General'!$D69*'DNSP Inputs General'!O69 -> 338086.5252 | K76: =D76/'Charges Summary'!D$4 -> 368395.1425 | L76: =E76/'Charges Summary'!E$4 -> 363734.7529 | M76: =F76/'Charges Summary'!F$4 -> 340836.5601 | N76: =G76/'Charges Summary'!G$4 -> 319537.7516 | O76: =H76/'Charges Summary'!H$4 -> 298819.2249
A77: ='DNSP Inputs General'!B$70 -> T5 2X14W | D77: =SUM('Charges Summary'!D$83,'Charges Summary'!D$8)*'DNSP Inputs General'!$D70*'DNSP Inputs General'!K70 -> 63022.06725 | E77: =SUM('Charges Summary'!E$83,'Charges Summary'!E$8)*'DNSP Inputs General'!$D70*'DNSP Inputs General'!L70 -> 63780.42556 | F77: =SUM('Charges Summary'!F$83,'Charges Summary'!F$8)*'DNSP Inputs General'!$D70*'DNSP Inputs General'!M70 -> 61259.38803 | G77: =SUM('Charges Summary'!G$83,'Charges Summary'!G$8)*'DNSP Inputs General'!$D70*'DNSP Inputs General'!N70 -> 58867.08365 | H77: =SUM('Charges Summary'!H$83,'Charges Summary'!H$8)*'DNSP Inputs General'!$D70*'DNSP Inputs General'!O70 -> 56426.45235 | K77: =D77/'Charges Summary'!D$4 -> 61484.94365 | L77: =E77/'Charges Summary'!E$4 -> 60707.12724 | M77: =F77/'Charges Summary'!F$4 -> 56885.43164 | N77: =G77/'Charges Summary'!G$4 -> 53330.67239 | O77: =H77/'Charges Summary'!H$4 -> 49872.76184
A78: ='DNSP Inputs General'!B$71 -> T5 2X14W | D78: =SUM('Charges Summary'!D$83,'Charges Summary'!D$8)*'DNSP Inputs General'!$D71*'DNSP Inputs General'!K71 -> 15943.35656 | E78: =SUM('Charges Summary'!E$83,'Charges Summary'!E$8)*'DNSP Inputs General'!$D71*'DNSP Inputs General'!L71 -> 16135.20646 | F78: =SUM('Charges Summary'!F$83,'Charges Summary'!F$8)*'DNSP Inputs General'!$D71*'DNSP Inputs General'!M71 -> 15497.43302 | G78: =SUM('Charges Summary'!G$83,'Charges Summary'!G$8)*'DNSP Inputs General'!$D71*'DNSP Inputs General'!N71 -> 14892.22657 | H78: =SUM('Charges Summary'!H$83,'Charges Summary'!H$8)*'DNSP Inputs General'!$D71*'DNSP Inputs General'!O71 -> 14274.79435 | K78: =D78/'Charges Summary'!D$4 -> 15554.49421 | L78: =E78/'Charges Summary'!E$4 -> 15357.72179 | M78: =F78/'Charges Summary'!F$4 -> 14390.90717 | N78: =G78/'Charges Summary'!G$4 -> 13491.62226 | O78: =H78/'Charges Summary'!H$4 -> 12616.83819
A79: ='DNSP Inputs General'!B$72 -> T5 2X14W | D79: =SUM('Charges Summary'!D$83,'Charges Summary'!D$8)*'DNSP Inputs General'!$D72*'DNSP Inputs General'!K72 -> 12403.30206 | E79: =SUM('Charges Summary'!E$83,'Charges Summary'!E$8)*'DNSP Inputs General'!$D72*'DNSP Inputs General'!L72 -> 12552.55371 | F79: =SUM('Charges Summary'!F$83,'Charges Summary'!F$8)*'DNSP Inputs General'!$D72*'DNSP Inputs General'!M72 -> 12056.39115 | G79: =SUM('Charges Summary'!G$83,'Charges Summary'!G$8)*'DNSP Inputs General'!$D72*'DNSP Inputs General'!N72 -> 11585.56442 | H79: =SUM('Charges Summary'!H$83,'Charges Summary'!H$8)*'DNSP Inputs General'!$D72*'DNSP Inputs General'!O72 -> 11105.22652 | K79: =D79/'Charges Summary'!D$4 -> 12100.7825 | L79: =E79/'Charges Summary'!E$4 -> 11947.70133 | M79: =F79/'Charges Summary'!F$4 -> 11195.55772 | N79: =G79/'Charges Summary'!G$4 -> 10495.94956 | O79: =H79/'Charges Summary'!H$4 -> 9815.402077
A80: ='DNSP Inputs General'!B$73 -> Category P LED 18 Watt | D80: =SUM('Charges Summary'!D101,'Charges Summary'!D8)*'DNSP Inputs General'!$D73*'DNSP Inputs General'!K73 -> 68728.83954 | E80: =SUM('Charges Summary'!E101,'Charges Summary'!E8)*'DNSP Inputs General'!$D73*'DNSP Inputs General'!L73 -> 81930.3324 | F80: =SUM('Charges Summary'!F101,'Charges Summary'!F8)*'DNSP Inputs General'!$D73*'DNSP Inputs General'!M73 -> 95964.3916 | G80: =SUM('Charges Summary'!G101,'Charges Summary'!G8)*'DNSP Inputs General'!$D73*'DNSP Inputs General'!N73 -> 118961.9226 | H80: =SUM('Charges Summary'!H101,'Charges Summary'!H8)*'DNSP Inputs General'!$D73*'DNSP Inputs General'!O73 -> 146890.548 | K80: =D80/'Charges Summary'!D$4 -> 67052.52638 | L80: =E80/'Charges Summary'!E$4 -> 77982.46986 | M80: =F80/'Charges Summary'!F$4 -> 89112.47751 | N80: =G80/'Charges Summary'!G$4 -> 107773.6304 | O80: =H80/'Charges Summary'!H$4 -> 129829.8407
A81: ='DNSP Inputs General'!B$74 -> Category P LED 18 Watt | D81: =SUM('Charges Summary'!D101,'Charges Summary'!D8)*'DNSP Inputs General'!$D74*'DNSP Inputs General'!K74 -> 1101.95459 | E81: =SUM('Charges Summary'!E101,'Charges Summary'!E8)*'DNSP Inputs General'!$D74*'DNSP Inputs General'!L74 -> 1191.020737 | F81: =SUM('Charges Summary'!F101,'Charges Summary'!F8)*'DNSP Inputs General'!$D74*'DNSP Inputs General'!M74 -> 1275.951052 | G81: =SUM('Charges Summary'!G101,'Charges Summary'!G8)*'DNSP Inputs General'!$D74*'DNSP Inputs General'!N74 -> 1318.106884 | H81: =SUM('Charges Summary'!H101,'Charges Summary'!H8)*'DNSP Inputs General'!$D74*'DNSP Inputs General'!O74 -> 1356.29843 | K81: =D81/'Charges Summary'!D$4 -> 1075.077648 | L81: =E81/'Charges Summary'!E$4 -> 1133.630684 | M81: =F81/'Charges Summary'!F$4 -> 1184.847395 | N81: =G81/'Charges Summary'!G$4 -> 1194.139781 | O81: =H81/'Charges Summary'!H$4 -> 1198.770182
A83: Total O & M | D83: =SUM(D51:D82) -> 2490178.65 | E83: =SUM(E51:E82) -> 2559702.529 | F83: =SUM(F51:F82) -> 2632954.144 | G83: =SUM(G51:G82) -> 2721631.443 | H83: =SUM(H51:H82) -> 2819435.512 | K83: =SUM(K51:K82) -> 2429442.585 | L83: =SUM(L51:L82) -> 2436361.718 | M83: =SUM(M51:M82) -> 2444959.667 | N83: =SUM(N51:N82) -> 2465663.761 | O83: =SUM(O51:O82) -> 2491970.166
A86: Public Lighting - Capital Charge | D86: Capital Charge - Nominal | K86: Capital Charge - Real 2015 $
D87: =D$2 -> 2016 | E87: 2017 | F87: 2018 | G87: 2019 | H87: 2020 | K87: =K$2 -> 2016 | L87: 2017 | M87: 2018 | N87: 2019 | O87: 2020
A89: Unit cost
A90: ='DNSP Inputs General'!A$42 -> Mercury vapour 80 watt | D90: =SUM('Charges Summary'!D27,'Charges Summary'!D11) -> 30.88473644 | E90: =SUM('Charges Summary'!E27,'Charges Summary'!E11) -> 31.78592393 | F90: =SUM('Charges Summary'!F27,'Charges Summary'!F11) -> 32.76035576 | G90: =SUM('Charges Summary'!G27,'Charges Summary'!G11) -> 33.60850461 | H90: =SUM('Charges Summary'!H27,'Charges Summary'!H11) -> 34.3438411
A91: ='DNSP Inputs General'!A$43 -> Sodium high pressure 150 watt | D91: =SUM('Charges Summary'!D51,'Charges Summary'!D11) -> 34.70666206 | E91: =SUM('Charges Summary'!E51,'Charges Summary'!E11) -> 35.761146 | F91: =SUM('Charges Summary'!F51,'Charges Summary'!F11) -> 36.88773266 | G91: =SUM('Charges Summary'!G51,'Charges Summary'!G11) -> 37.89138369 | H91: =SUM('Charges Summary'!H51,'Charges Summary'!H11) -> 38.7735684
A92: ='DNSP Inputs General'!A$44 -> Sodium high pressure 250 watt | D92: =SUM('Charges Summary'!D67,'Charges Summary'!D11) -> 35.73615523 | E92: =SUM('Charges Summary'!E67,'Charges Summary'!E11) -> 36.83193187 | F92: =SUM('Charges Summary'!F67,'Charges Summary'!F11) -> 37.99950372 | G92: =SUM('Charges Summary'!G67,'Charges Summary'!G11) -> 39.04504161 | H92: =SUM('Charges Summary'!H67,'Charges Summary'!H11) -> 39.96678209
A94: ='DNSP Inputs General'!A$41 -> Existing Lights
A95: ='DNSP Inputs General'!A$42 -> Mercury vapour 80 watt | D95: =D90*'DNSP Inputs General'!K42 -> 82070.78843 | E95: =E90*'DNSP Inputs General'!L42 -> 67323.82273 | F95: =F90*'DNSP Inputs General'!M42 -> 62168.38499 | G95: =G90*'DNSP Inputs General'!N42 -> 57142.23375 | H95: =H90*'DNSP Inputs General'!O42 -> 52317.13323 | K95: =D95/'Charges Summary'!D$4 -> 80069.06188 | L95: =E95/'Charges Summary'!E$4 -> 64079.78368 | M95: =F95/'Charges Summary'!F$4 -> 57729.52568 | N95: =G95/'Charges Summary'!G$4 -> 51768.04351 | O95: =H95/'Charges Summary'!H$4 -> 46240.72252
A96: ='DNSP Inputs General'!A$43 -> Sodium high pressure 150 watt | D96: =D91*'DNSP Inputs General'!K43 -> 439480.772 | E96: =E91*'DNSP Inputs General'!L43 -> 455087.5411 | F96: =F91*'DNSP Inputs General'!M43 -> 471760.9254 | G96: =G91*'DNSP Inputs General'!N43 -> 487008.9655 | H96: =H91*'DNSP Inputs General'!O43 -> 500828.1714 | K96: =D96/'Charges Summary'!D$4 -> 428761.7288 | L96: =E96/'Charges Summary'!E$4 -> 433158.8732 | M96: =F96/'Charges Summary'!F$4 -> 438076.9174 | N96: =G96/'Charges Summary'!G$4 -> 441206.0863 | O96: =H96/'Charges Summary'!H$4 -> 442659.1267
A97: ='DNSP Inputs General'!A$44 -> Sodium high pressure 250 watt | D97: =D92*'DNSP Inputs General'!K44 -> 192998.1231 | E97: =E92*'DNSP Inputs General'!L44 -> 202601.4415 | F97: =F92*'DNSP Inputs General'!M44 -> 212896.6021 | G97: =G92*'DNSP Inputs General'!N44 -> 222807.3268 | H97: =H92*'DNSP Inputs General'!O44 -> 232292.6849 | K97: =D97/'Charges Summary'!D$4 -> 188290.8518 | L97: =E97/'Charges Summary'!E$4 -> 192838.9687 | M97: =F97/'Charges Summary'!F$4 -> 197695.6593 | N97: =G97/'Charges Summary'!G$4 -> 201852.4414 | O97: =H97/'Charges Summary'!H$4 -> 205312.8855
A98: ='DNSP Inputs General'!A$45 -> Fluorescent 20 watt | D98: =IF('DNSP Inputs General'!$B45='DNSP Inputs General'!$A$42,D$90,IF('DNSP Inputs General'!$B45='DNSP Inputs General'!$A$43,D$91,D$92))*'DNSP Inputs General'!$D45*'DNSP Inputs General'!K45 -> 4793.92879 | E98: =IF('DNSP Inputs General'!$B45='DNSP Inputs General'!$A$42,E$90,IF('DNSP Inputs General'!$B45='DNSP Inputs General'!$A$43,E$91,E$92))*'DNSP Inputs General'!$D45*'DNSP Inputs General'!L45 -> 4933.811113 | F98: =IF('DNSP Inputs General'!$B45='DNSP Inputs General'!$A$42,F$90,IF('DNSP Inputs General'!$B45='DNSP Inputs General'!$A$43,F$91,F$92))*'DNSP Inputs General'!$D45*'DNSP Inputs General'!M45 -> 5085.062421 | G98: =IF('DNSP Inputs General'!$B45='DNSP Inputs General'!$A$42,G$90,IF('DNSP Inputs General'!$B45='DNSP Inputs General'!$A$43,G$91,G$92))*'DNSP Inputs General'!$D45*'DNSP Inputs General'!N45 -> 5216.712085 | H98: =IF('DNSP Inputs General'!$B45='DNSP Inputs General'!$A$42,H$90,IF('DNSP Inputs General'!$B45='DNSP Inputs General'!$A$43,H$91,H$92))*'DNSP Inputs General'!$D45*'DNSP Inputs General'!O45 -> 5330.851015 | K98: =D98/'Charges Summary'!D$4 -> 4677.003697 | L98: =E98/'Charges Summary'!E$4 -> 4696.072445 | M98: =F98/'Charges Summary'!F$4 -> 4721.985969 | N98: =G98/'Charges Summary'!G$4 -> 4726.083677 | O98: =H98/'Charges Summary'!H$4 -> 4711.695526
A99: ='DNSP Inputs General'!A$46 -> Fluorescent 40 watt | D99: =IF('DNSP Inputs General'!$B46='DNSP Inputs General'!$A$42,D$90,IF('DNSP Inputs General'!$B46='DNSP Inputs General'!$A$43,D$91,D$92))*'DNSP Inputs General'!$D46*'DNSP Inputs General'!K46 -> 9203.651458 | E99: =IF('DNSP Inputs General'!$B46='DNSP Inputs General'!$A$42,E$90,IF('DNSP Inputs General'!$B46='DNSP Inputs General'!$A$43,E$91,E$92))*'DNSP Inputs General'!$D46*'DNSP Inputs General'!L46 -> 9472.205332 | F99: =IF('DNSP Inputs General'!$B46='DNSP Inputs General'!$A$42,F$90,IF('DNSP Inputs General'!$B46='DNSP Inputs General'!$A$43,F$91,F$92))*'DNSP Inputs General'!$D46*'DNSP Inputs General'!M46 -> 9762.586017 | G99: =IF('DNSP Inputs General'!$B46='DNSP Inputs General'!$A$42,G$90,IF('DNSP Inputs General'!$B46='DNSP Inputs General'!$A$43,G$91,G$92))*'DNSP Inputs General'!$D46*'DNSP Inputs General'!N46 -> 10015.33437 | H99: =IF('DNSP Inputs General'!$B46='DNSP Inputs General'!$A$42,H$90,IF('DNSP Inputs General'!$B46='DNSP Inputs General'!$A$43,H$91,H$92))*'DNSP Inputs General'!$D46*'DNSP Inputs General'!O46 -> 10234.46465 | K99: =D99/'Charges Summary'!D$4 -> 8979.172154 | L99: =E99/'Charges Summary'!E$4 -> 9015.781399 | M99: =F99/'Charges Summary'!F$4 -> 9065.531624 | N99: =G99/'Charges Summary'!G$4 -> 9073.398633 | O99: =H99/'Charges Summary'!H$4 -> 9045.77546
A100: ='DNSP Inputs General'!A$47 -> Mercury vapour 50 watt | D100: =IF('DNSP Inputs General'!$B47='DNSP Inputs General'!$A$42,D$90,IF('DNSP Inputs General'!$B47='DNSP Inputs General'!$A$43,D$91,D$92))*'DNSP Inputs General'!$D47*'DNSP Inputs General'!K47 -> 6190.702431 | E100: =IF('DNSP Inputs General'!$B47='DNSP Inputs General'!$A$42,E$90,IF('DNSP Inputs General'!$B47='DNSP Inputs General'!$A$43,E$91,E$92))*'DNSP Inputs General'!$D47*'DNSP Inputs General'!L47 -> 5956.094882 | F100: =IF('DNSP Inputs General'!$B47='DNSP Inputs General'!$A$42,F$90,IF('DNSP Inputs General'!$B47='DNSP Inputs General'!$A$43,F$91,F$92))*'DNSP Inputs General'!$D47*'DNSP Inputs General'!M47 -> 5738.602129 | G100: =IF('DNSP Inputs General'!$B47='DNSP Inputs General'!$A$42,G$90,IF('DNSP Inputs General'!$B47='DNSP Inputs General'!$A$43,G$91,G$92))*'DNSP Inputs General'!$D47*'DNSP Inputs General'!N47 -> 5503.480513 | H100: =IF('DNSP Inputs General'!$B47='DNSP Inputs General'!$A$42,H$90,IF('DNSP Inputs General'!$B47='DNSP Inputs General'!$A$43,H$91,H$92))*'DNSP Inputs General'!$D47*'DNSP Inputs General'!O47 -> 5257.361591 | K100: =D100/'Charges Summary'!D$4 -> 6039.709689 | L100: =E100/'Charges Summary'!E$4 -> 5669.096853 | M100: =F100/'Charges Summary'!F$4 -> 5328.862557 | N100: =G100/'Charges Summary'!G$4 -> 4985.881719 | O100: =H100/'Charges Summary'!H$4 -> 4646.741584
A101: ='DNSP Inputs General'!A$48 -> Mercury vapour 125 watt | D101: =IF('DNSP Inputs General'!$B48='DNSP Inputs General'!$A$42,D$90,IF('DNSP Inputs General'!$B48='DNSP Inputs General'!$A$43,D$91,D$92))*'DNSP Inputs General'!$D48*'DNSP Inputs General'!K48 -> 58993.71708 | E101: =IF('DNSP Inputs General'!$B48='DNSP Inputs General'!$A$42,E$90,IF('DNSP Inputs General'!$B48='DNSP Inputs General'!$A$43,E$91,E$92))*'DNSP Inputs General'!$D48*'DNSP Inputs General'!L48 -> 57344.46512 | F101: =IF('DNSP Inputs General'!$B48='DNSP Inputs General'!$A$42,F$90,IF('DNSP Inputs General'!$B48='DNSP Inputs General'!$A$43,F$91,F$92))*'DNSP Inputs General'!$D48*'DNSP Inputs General'!M48 -> 55821.31726 | G101: =IF('DNSP Inputs General'!$B48='DNSP Inputs General'!$A$42,G$90,IF('DNSP Inputs General'!$B48='DNSP Inputs General'!$A$43,G$91,G$92))*'DNSP Inputs General'!$D48*'DNSP Inputs General'!N48 -> 54087.32032 | H101: =IF('DNSP Inputs General'!$B48='DNSP Inputs General'!$A$42,H$90,IF('DNSP Inputs General'!$B48='DNSP Inputs General'!$A$43,H$91,H$92))*'DNSP Inputs General'!$D48*'DNSP Inputs General'!O48 -> 52202.33716 | K101: =D101/'Charges Summary'!D$4 -> 57554.84593 | L101: =E101/'Charges Summary'!E$4 -> 54581.28744 | M101: =F101/'Charges Summary'!F$4 -> 51835.64233 | N101: =G101/'Charges Summary'!G$4 -> 49000.44272 | O101: =H101/'Charges Summary'!H$4 -> 46139.25952
A102: ='DNSP Inputs General'!A$49 -> Mercury vapour 250 watt | D102: =IF('DNSP Inputs General'!$B49='DNSP Inputs General'!$A$42,D$90,IF('DNSP Inputs General'!$B49='DNSP Inputs General'!$A$43,D$91,D$92))*'DNSP Inputs General'!$D49*'DNSP Inputs General'!K49 -> 15359.33201 | E102: =IF('DNSP Inputs General'!$B49='DNSP Inputs General'!$A$42,E$90,IF('DNSP Inputs General'!$B49='DNSP Inputs General'!$A$43,E$91,E$92))*'DNSP Inputs General'!$D49*'DNSP Inputs General'!L49 -> 14412.45293 | F102: =IF('DNSP Inputs General'!$B49='DNSP Inputs General'!$A$42,F$90,IF('DNSP Inputs General'!$B49='DNSP Inputs General'!$A$43,F$91,F$92))*'DNSP Inputs General'!$D49*'DNSP Inputs General'!M49 -> 13537.55484 | G102: =IF('DNSP Inputs General'!$B49='DNSP Inputs General'!$A$42,G$90,IF('DNSP Inputs General'!$B49='DNSP Inputs General'!$A$43,G$91,G$92))*'DNSP Inputs General'!$D49*'DNSP Inputs General'!N49 -> 12664.18059 | H102: =IF('DNSP Inputs General'!$B49='DNSP Inputs General'!$A$42,H$90,IF('DNSP Inputs General'!$B49='DNSP Inputs General'!$A$43,H$91,H$92))*'DNSP Inputs General'!$D49*'DNSP Inputs General'!O49 -> 11802.09996 | K102: =D102/'Charges Summary'!D$4 -> 14984.71416 | L102: =E102/'Charges Summary'!E$4 -> 13717.98019 | M102: =F102/'Charges Summary'!F$4 -> 12570.96545 | N102: =G102/'Charges Summary'!G$4 -> 11473.12258 | O102: =H102/'Charges Summary'!H$4 -> 10431.33665
A103: ='DNSP Inputs General'!A$50 -> Mercury vapour 400 watt | D103: =IF('DNSP Inputs General'!$B50='DNSP Inputs General'!$A$42,D$90,IF('DNSP Inputs General'!$B50='DNSP Inputs General'!$A$43,D$91,D$92))*'DNSP Inputs General'!$D50*'DNSP Inputs General'!K50 -> 7851.456909 | E103: =IF('DNSP Inputs General'!$B50='DNSP Inputs General'!$A$42,E$90,IF('DNSP Inputs General'!$B50='DNSP Inputs General'!$A$43,E$91,E$92))*'DNSP Inputs General'!$D50*'DNSP Inputs General'!L50 -> 7470.20281 | F103: =IF('DNSP Inputs General'!$B50='DNSP Inputs General'!$A$42,F$90,IF('DNSP Inputs General'!$B50='DNSP Inputs General'!$A$43,F$91,F$92))*'DNSP Inputs General'!$D50*'DNSP Inputs General'!M50 -> 7114.613095 | G103: =IF('DNSP Inputs General'!$B50='DNSP Inputs General'!$A$42,G$90,IF('DNSP Inputs General'!$B50='DNSP Inputs General'!$A$43,G$91,G$92))*'DNSP Inputs General'!$D50*'DNSP Inputs General'!N50 -> 6748.460669 | H103: =IF('DNSP Inputs General'!$B50='DNSP Inputs General'!$A$42,H$90,IF('DNSP Inputs General'!$B50='DNSP Inputs General'!$A$43,H$91,H$92))*'DNSP Inputs General'!$D50*'DNSP Inputs General'!O50 -> 6376.810076 | K103: =D103/'Charges Summary'!D$4 -> 7659.95796 | L103: =E103/'Charges Summary'!E$4 -> 7110.246577 | M103: =F103/'Charges Summary'!F$4 -> 6606.625529 | N103: =G103/'Charges Summary'!G$4 -> 6113.772295 | O103: =H103/'Charges Summary'!H$4 -> 5636.170927
A104: ='DNSP Inputs General'!A$51 -> Mercury vapour 700 watt | D104: =IF('DNSP Inputs General'!$B51='DNSP Inputs General'!$A$42,D$90,IF('DNSP Inputs General'!$B51='DNSP Inputs General'!$A$43,D$91,D$92))*'DNSP Inputs General'!$D51*'DNSP Inputs General'!K51 -> 0 | E104: =IF('DNSP Inputs General'!$B51='DNSP Inputs General'!$A$42,E$90,IF('DNSP Inputs General'!$B51='DNSP Inputs General'!$A$43,E$91,E$92))*'DNSP Inputs General'!$D51*'DNSP Inputs General'!L51 -> 0 | F104: =IF('DNSP Inputs General'!$B51='DNSP Inputs General'!$A$42,F$90,IF('DNSP Inputs General'!$B51='DNSP Inputs General'!$A$43,F$91,F$92))*'DNSP Inputs General'!$D51*'DNSP Inputs General'!M51 -> 0 | G104: =IF('DNSP Inputs General'!$B51='DNSP Inputs General'!$A$42,G$90,IF('DNSP Inputs General'!$B51='DNSP Inputs General'!$A$43,G$91,G$92))*'DNSP Inputs General'!$D51*'DNSP Inputs General'!N51 -> 0 | H104: =IF('DNSP Inputs General'!$B51='DNSP Inputs General'!$A$42,H$90,IF('DNSP Inputs General'!$B51='DNSP Inputs General'!$A$43,H$91,H$92))*'DNSP Inputs General'!$D51*'DNSP Inputs General'!O51 -> 0 | K104: =D104/'Charges Summary'!D$4 -> 0 | L104: =E104/'Charges Summary'!E$4 -> 0 | M104: =F104/'Charges Summary'!F$4 -> 0 | N104: =G104/'Charges Summary'!G$4 -> 0 | O104: =H104/'Charges Summary'!H$4 -> 0
A105: ='DNSP Inputs General'!A$52 -> Sodium high pressure 70 watt | D105: =IF('DNSP Inputs General'!$B52='DNSP Inputs General'!$A$42,D$90,IF('DNSP Inputs General'!$B52='DNSP Inputs General'!$A$43,D$91,D$92))*'DNSP Inputs General'!$D52*'DNSP Inputs General'!K52 -> 24405.55186 | E105: =IF('DNSP Inputs General'!$B52='DNSP Inputs General'!$A$42,E$90,IF('DNSP Inputs General'!$B52='DNSP Inputs General'!$A$43,E$91,E$92))*'DNSP Inputs General'!$D52*'DNSP Inputs General'!L52 -> 24768.3254 | F105: =IF('DNSP Inputs General'!$B52='DNSP Inputs General'!$A$42,F$90,IF('DNSP Inputs General'!$B52='DNSP Inputs General'!$A$43,F$91,F$92))*'DNSP Inputs General'!$D52*'DNSP Inputs General'!M52 -> 25172.56589 | G105: =IF('DNSP Inputs General'!$B52='DNSP Inputs General'!$A$42,G$90,IF('DNSP Inputs General'!$B52='DNSP Inputs General'!$A$43,G$91,G$92))*'DNSP Inputs General'!$D52*'DNSP Inputs General'!N52 -> 25465.08547 | H105: =IF('DNSP Inputs General'!$B52='DNSP Inputs General'!$A$42,H$90,IF('DNSP Inputs General'!$B52='DNSP Inputs General'!$A$43,H$91,H$92))*'DNSP Inputs General'!$D52*'DNSP Inputs General'!O52 -> 25660.30931 | K105: =D105/'Charges Summary'!D$4 -> 23810.29449 | L105: =E105/'Charges Summary'!E$4 -> 23574.84868 | M105: =F105/'Charges Summary'!F$4 -> 23375.22985 | N105: =G105/'Charges Summary'!G$4 -> 23070.1106 | O105: =H105/'Charges Summary'!H$4 -> 22679.97441
A106: ='DNSP Inputs General'!A$53 -> Sodium high pressure 100 watt | D106: =IF('DNSP Inputs General'!$B53='DNSP Inputs General'!$A$42,D$90,IF('DNSP Inputs General'!$B53='DNSP Inputs General'!$A$43,D$91,D$92))*'DNSP Inputs General'!$D53*'DNSP Inputs General'!K53 -> 12388.90158 | E106: =IF('DNSP Inputs General'!$B53='DNSP Inputs General'!$A$42,E$90,IF('DNSP Inputs General'!$B53='DNSP Inputs General'!$A$43,E$91,E$92))*'DNSP Inputs General'!$D53*'DNSP Inputs General'!L53 -> 12306.78299 | F106: =IF('DNSP Inputs General'!$B53='DNSP Inputs General'!$A$42,F$90,IF('DNSP Inputs General'!$B53='DNSP Inputs General'!$A$43,F$91,F$92))*'DNSP Inputs General'!$D53*'DNSP Inputs General'!M53 -> 12238.50123 | G106: =IF('DNSP Inputs General'!$B53='DNSP Inputs General'!$A$42,G$90,IF('DNSP Inputs General'!$B53='DNSP Inputs General'!$A$43,G$91,G$92))*'DNSP Inputs General'!$D53*'DNSP Inputs General'!N53 -> 12119.92404 | H106: =IF('DNSP Inputs General'!$B53='DNSP Inputs General'!$A$42,H$90,IF('DNSP Inputs General'!$B53='DNSP Inputs General'!$A$43,H$91,H$92))*'DNSP Inputs General'!$D53*'DNSP Inputs General'!O53 -> 11956.61827 | K106: =D106/'Charges Summary'!D$4 -> 12086.73325 | L106: =E106/'Charges Summary'!E$4 -> 11713.77322 | M106: =F106/'Charges Summary'!F$4 -> 11364.66503 | N106: =G106/'Charges Summary'!G$4 -> 10980.053 | O106: =H106/'Charges Summary'!H$4 -> 10567.90832
A107: ='DNSP Inputs General'!A$54 -> Sodium high pressure 220 watt | D107: =IF('DNSP Inputs General'!$B54='DNSP Inputs General'!$A$42,D$90,IF('DNSP Inputs General'!$B54='DNSP Inputs General'!$A$43,D$91,D$92))*'DNSP Inputs General'!$D54*'DNSP Inputs General'!K54 -> 64967.29786 | E107: =IF('DNSP Inputs General'!$B54='DNSP Inputs General'!$A$42,E$90,IF('DNSP Inputs General'!$B54='DNSP Inputs General'!$A$43,E$91,E$92))*'DNSP Inputs General'!$D54*'DNSP Inputs General'!L54 -> 64793.2047 | F107: =IF('DNSP Inputs General'!$B54='DNSP Inputs General'!$A$42,F$90,IF('DNSP Inputs General'!$B54='DNSP Inputs General'!$A$43,F$91,F$92))*'DNSP Inputs General'!$D54*'DNSP Inputs General'!M54 -> 64684.59619 | G107: =IF('DNSP Inputs General'!$B54='DNSP Inputs General'!$A$42,G$90,IF('DNSP Inputs General'!$B54='DNSP Inputs General'!$A$43,G$91,G$92))*'DNSP Inputs General'!$D54*'DNSP Inputs General'!N54 -> 64314.19244 | H107: =IF('DNSP Inputs General'!$B54='DNSP Inputs General'!$A$42,H$90,IF('DNSP Inputs General'!$B54='DNSP Inputs General'!$A$43,H$91,H$92))*'DNSP Inputs General'!$D54*'DNSP Inputs General'!O54 -> 63702.73781 | K107: =D107/'Charges Summary'!D$4 -> 63382.72962 | L107: =E107/'Charges Summary'!E$4 -> 61671.10501 | M107: =F107/'Charges Summary'!F$4 -> 60066.07791 | N107: =G107/'Charges Summary'!G$4 -> 58265.48411 | O107: =H107/'Charges Summary'!H$4 -> 56303.93794
A108: ='DNSP Inputs General'!A$55 -> Sodium high pressure 360 watt | D108: =IF('DNSP Inputs General'!$B55='DNSP Inputs General'!$A$42,D$90,IF('DNSP Inputs General'!$B55='DNSP Inputs General'!$A$43,D$91,D$92))*'DNSP Inputs General'!$D55*'DNSP Inputs General'!K55 -> 8399.96819 | E108: =IF('DNSP Inputs General'!$B55='DNSP Inputs General'!$A$42,E$90,IF('DNSP Inputs General'!$B55='DNSP Inputs General'!$A$43,E$91,E$92))*'DNSP Inputs General'!$D55*'DNSP Inputs General'!L55 -> 8599.554893 | F108: =IF('DNSP Inputs General'!$B55='DNSP Inputs General'!$A$42,F$90,IF('DNSP Inputs General'!$B55='DNSP Inputs General'!$A$43,F$91,F$92))*'DNSP Inputs General'!$D55*'DNSP Inputs General'!M55 -> 8812.742041 | G108: =IF('DNSP Inputs General'!$B55='DNSP Inputs General'!$A$42,G$90,IF('DNSP Inputs General'!$B55='DNSP Inputs General'!$A$43,G$91,G$92))*'DNSP Inputs General'!$D55*'DNSP Inputs General'!N55 -> 8994.575718 | H108: =IF('DNSP Inputs General'!$B55='DNSP Inputs General'!$A$42,H$90,IF('DNSP Inputs General'!$B55='DNSP Inputs General'!$A$43,H$91,H$92))*'DNSP Inputs General'!$D55*'DNSP Inputs General'!O55 -> 9145.251085 | K108: =D108/'Charges Summary'!D$4 -> 8195.090917 | L108: =E108/'Charges Summary'!E$4 -> 8185.180148 | M108: =F108/'Charges Summary'!F$4 -> 8183.507068 | N108: =G108/'Charges Summary'!G$4 -> 8148.641671 | O108: =H108/'Charges Summary'!H$4 -> 8083.069383
A109: ='DNSP Inputs General'!A$56 -> Sodium high pressure 400 watt | D109: =IF('DNSP Inputs General'!$B56='DNSP Inputs General'!$A$42,D$90,IF('DNSP Inputs General'!$B56='DNSP Inputs General'!$A$43,D$91,D$92))*'DNSP Inputs General'!$D56*'DNSP Inputs General'!K56 -> 15970.66934 | E109: =IF('DNSP Inputs General'!$B56='DNSP Inputs General'!$A$42,E$90,IF('DNSP Inputs General'!$B56='DNSP Inputs General'!$A$43,E$91,E$92))*'DNSP Inputs General'!$D56*'DNSP Inputs General'!L56 -> 16760.5977 | F109: =IF('DNSP Inputs General'!$B56='DNSP Inputs General'!$A$42,F$90,IF('DNSP Inputs General'!$B56='DNSP Inputs General'!$A$43,F$91,F$92))*'DNSP Inputs General'!$D56*'DNSP Inputs General'!M56 -> 17607.29495 | G109: =IF('DNSP Inputs General'!$B56='DNSP Inputs General'!$A$42,G$90,IF('DNSP Inputs General'!$B56='DNSP Inputs General'!$A$43,G$91,G$92))*'DNSP Inputs General'!$D56*'DNSP Inputs General'!N56 -> 18421.72589 | H109: =IF('DNSP Inputs General'!$B56='DNSP Inputs General'!$A$42,H$90,IF('DNSP Inputs General'!$B56='DNSP Inputs General'!$A$43,H$91,H$92))*'DNSP Inputs General'!$D56*'DNSP Inputs General'!O56 -> 19200.53456 | K109: =D109/'Charges Summary'!D$4 -> 15581.14082 | L109: =E109/'Charges Summary'!E$4 -> 15952.97818 | M109: =F109/'Charges Summary'!F$4 -> 16350.12372 | N109: =G109/'Charges Summary'!G$4 -> 16689.17445 | O109: =H109/'Charges Summary'!H$4 -> 16970.47479
A110: ='DNSP Inputs General'!A$57 -> Sodium high pressure 1000 watt | D110: =IF('DNSP Inputs General'!$B57='DNSP Inputs General'!$A$42,D$90,IF('DNSP Inputs General'!$B57='DNSP Inputs General'!$A$43,D$91,D$92))*'DNSP Inputs General'!$D57*'DNSP Inputs General'!K57 -> 0 | E110: =IF('DNSP Inputs General'!$B57='DNSP Inputs General'!$A$42,E$90,IF('DNSP Inputs General'!$B57='DNSP Inputs General'!$A$43,E$91,E$92))*'DNSP Inputs General'!$D57*'DNSP Inputs General'!L57 -> 0 | F110: =IF('DNSP Inputs General'!$B57='DNSP Inputs General'!$A$42,F$90,IF('DNSP Inputs General'!$B57='DNSP Inputs General'!$A$43,F$91,F$92))*'DNSP Inputs General'!$D57*'DNSP Inputs General'!M57 -> 0 | G110: =IF('DNSP Inputs General'!$B57='DNSP Inputs General'!$A$42,G$90,IF('DNSP Inputs General'!$B57='DNSP Inputs General'!$A$43,G$91,G$92))*'DNSP Inputs General'!$D57*'DNSP Inputs General'!N57 -> 0 | H110: =IF('DNSP Inputs General'!$B57='DNSP Inputs General'!$A$42,H$90,IF('DNSP Inputs General'!$B57='DNSP Inputs General'!$A$43,H$91,H$92))*'DNSP Inputs General'!$D57*'DNSP Inputs General'!O57 -> 0 | K110: =D110/'Charges Summary'!D$4 -> 0 | L110: =E110/'Charges Summary'!E$4 -> 0 | M110: =F110/'Charges Summary'!F$4 -> 0 | N110: =G110/'Charges Summary'!G$4 -> 0 | O110: =H110/'Charges Summary'!H$4 -> 0
A111: ='DNSP Inputs General'!A$58 -> Metal halide 70 watt | D111: =IF('DNSP Inputs General'!$B58='DNSP Inputs General'!$A$42,D$90,IF('DNSP Inputs General'!$B58='DNSP Inputs General'!$A$43,D$91,D$92))*'DNSP Inputs General'!$D58*'DNSP Inputs General'!K58 -> 77594.26153 | E111: =IF('DNSP Inputs General'!$B58='DNSP Inputs General'!$A$42,E$90,IF('DNSP Inputs General'!$B58='DNSP Inputs General'!$A$43,E$91,E$92))*'DNSP Inputs General'!$D58*'DNSP Inputs General'!L58 -> 83162.61294 | F111: =IF('DNSP Inputs General'!$B58='DNSP Inputs General'!$A$42,F$90,IF('DNSP Inputs General'!$B58='DNSP Inputs General'!$A$43,F$91,F$92))*'DNSP Inputs General'!$D58*'DNSP Inputs General'!M58 -> 89258.47809 | G111: =IF('DNSP Inputs General'!$B58='DNSP Inputs General'!$A$42,G$90,IF('DNSP Inputs General'!$B58='DNSP Inputs General'!$A$43,G$91,G$92))*'DNSP Inputs General'!$D58*'DNSP Inputs General'!N58 -> 95358.11097 | H111: =IF('DNSP Inputs General'!$B58='DNSP Inputs General'!$A$42,H$90,IF('DNSP Inputs General'!$B58='DNSP Inputs General'!$A$43,H$91,H$92))*'DNSP Inputs General'!$D58*'DNSP Inputs General'!O58 -> 101476.3641 | K111: =D111/'Charges Summary'!D$4 -> 75701.71857 | L111: =E111/'Charges Summary'!E$4 -> 79155.37222 | M111: =F111/'Charges Summary'!F$4 -> 82885.37017 | N111: =G111/'Charges Summary'!G$4 -> 86389.74212 | O111: =H111/'Charges Summary'!H$4 -> 89690.31946
A112: ='DNSP Inputs General'!A$59 -> Metal halide 100 watt | D112: =IF('DNSP Inputs General'!$B59='DNSP Inputs General'!$A$42,D$90,IF('DNSP Inputs General'!$B59='DNSP Inputs General'!$A$43,D$91,D$92))*'DNSP Inputs General'!$D59*'DNSP Inputs General'!K59 -> 7912.188423 | E112: =IF('DNSP Inputs General'!$B59='DNSP Inputs General'!$A$42,E$90,IF('DNSP Inputs General'!$B59='DNSP Inputs General'!$A$43,E$91,E$92))*'DNSP Inputs General'!$D59*'DNSP Inputs General'!L59 -> 7540.144539 | F112: =IF('DNSP Inputs General'!$B59='DNSP Inputs General'!$A$42,F$90,IF('DNSP Inputs General'!$B59='DNSP Inputs General'!$A$43,F$91,F$92))*'DNSP Inputs General'!$D59*'DNSP Inputs General'!M59 -> 7193.407681 | G112: =IF('DNSP Inputs General'!$B59='DNSP Inputs General'!$A$42,G$90,IF('DNSP Inputs General'!$B59='DNSP Inputs General'!$A$43,G$91,G$92))*'DNSP Inputs General'!$D59*'DNSP Inputs General'!N59 -> 6834.04205 | H112: =IF('DNSP Inputs General'!$B59='DNSP Inputs General'!$A$42,H$90,IF('DNSP Inputs General'!$B59='DNSP Inputs General'!$A$43,H$91,H$92))*'DNSP Inputs General'!$D59*'DNSP Inputs General'!O59 -> 6467.812523 | K112: =D112/'Charges Summary'!D$4 -> 7719.208218 | L112: =E112/'Charges Summary'!E$4 -> 7176.818122 | M112: =F112/'Charges Summary'!F$4 -> 6679.794135 | N112: =G112/'Charges Summary'!G$4 -> 6191.304802 | O112: =H112/'Charges Summary'!H$4 -> 5716.60383
A113: ='DNSP Inputs General'!A$60 -> Metal halide 150 watt | D113: =IF('DNSP Inputs General'!$B60='DNSP Inputs General'!$A$42,D$90,IF('DNSP Inputs General'!$B60='DNSP Inputs General'!$A$43,D$91,D$92))*'DNSP Inputs General'!$D60*'DNSP Inputs General'!K60 -> 17224.97579 | E113: =IF('DNSP Inputs General'!$B60='DNSP Inputs General'!$A$42,E$90,IF('DNSP Inputs General'!$B60='DNSP Inputs General'!$A$43,E$91,E$92))*'DNSP Inputs General'!$D60*'DNSP Inputs General'!L60 -> 16996.99095 | F113: =IF('DNSP Inputs General'!$B60='DNSP Inputs General'!$A$42,F$90,IF('DNSP Inputs General'!$B60='DNSP Inputs General'!$A$43,F$91,F$92))*'DNSP Inputs General'!$D60*'DNSP Inputs General'!M60 -> 16790.25994 | G113: =IF('DNSP Inputs General'!$B60='DNSP Inputs General'!$A$42,G$90,IF('DNSP Inputs General'!$B60='DNSP Inputs General'!$A$43,G$91,G$92))*'DNSP Inputs General'!$D60*'DNSP Inputs General'!N60 -> 16516.98465 | H113: =IF('DNSP Inputs General'!$B60='DNSP Inputs General'!$A$42,H$90,IF('DNSP Inputs General'!$B60='DNSP Inputs General'!$A$43,H$91,H$92))*'DNSP Inputs General'!$D60*'DNSP Inputs General'!O60 -> 16186.05138 | K113: =D113/'Charges Summary'!D$4 -> 16804.85443 | L113: =E113/'Charges Summary'!E$4 -> 16177.98068 | M113: =F113/'Charges Summary'!F$4 -> 15591.42549 | N113: =G113/'Charges Summary'!G$4 -> 14963.57289 | O113: =H113/'Charges Summary'!H$4 -> 14306.11091
A114: ='DNSP Inputs General'!A$61 -> Metal halide 250 watt | D114: =IF('DNSP Inputs General'!$B61='DNSP Inputs General'!$A$42,D$90,IF('DNSP Inputs General'!$B61='DNSP Inputs General'!$A$43,D$91,D$92))*'DNSP Inputs General'!$D61*'DNSP Inputs General'!K61 -> 33147.32448 | E114: =IF('DNSP Inputs General'!$B61='DNSP Inputs General'!$A$42,E$90,IF('DNSP Inputs General'!$B61='DNSP Inputs General'!$A$43,E$91,E$92))*'DNSP Inputs General'!$D61*'DNSP Inputs General'!L61 -> 38948.87034 | F114: =IF('DNSP Inputs General'!$B61='DNSP Inputs General'!$A$42,F$90,IF('DNSP Inputs General'!$B61='DNSP Inputs General'!$A$43,F$91,F$92))*'DNSP Inputs General'!$D61*'DNSP Inputs General'!M61 -> 45811.86855 | G114: =IF('DNSP Inputs General'!$B61='DNSP Inputs General'!$A$42,G$90,IF('DNSP Inputs General'!$B61='DNSP Inputs General'!$A$43,G$91,G$92))*'DNSP Inputs General'!$D61*'DNSP Inputs General'!N61 -> 53665.56238 | H114: =IF('DNSP Inputs General'!$B61='DNSP Inputs General'!$A$42,H$90,IF('DNSP Inputs General'!$B61='DNSP Inputs General'!$A$43,H$91,H$92))*'DNSP Inputs General'!$D61*'DNSP Inputs General'!O61 -> 62626.57935 | K114: =D114/'Charges Summary'!D$4 -> 32338.85315 | L114: =E114/'Charges Summary'!E$4 -> 37072.0955 | M114: =F114/'Charges Summary'!F$4 -> 42540.87415 | N114: =G114/'Charges Summary'!G$4 -> 48618.35084 | O114: =H114/'Charges Summary'!H$4 -> 55352.77068
A115: ='DNSP Inputs General'!A$62 -> Metal halide 400 watt | D115: =IF('DNSP Inputs General'!$B62='DNSP Inputs General'!$A$42,D$90,IF('DNSP Inputs General'!$B62='DNSP Inputs General'!$A$43,D$91,D$92))*'DNSP Inputs General'!$D62*'DNSP Inputs General'!K62 -> 56491.60907 | E115: =IF('DNSP Inputs General'!$B62='DNSP Inputs General'!$A$42,E$90,IF('DNSP Inputs General'!$B62='DNSP Inputs General'!$A$43,E$91,E$92))*'DNSP Inputs General'!$D62*'DNSP Inputs General'!L62 -> 59000.01725 | F115: =IF('DNSP Inputs General'!$B62='DNSP Inputs General'!$A$42,F$90,IF('DNSP Inputs General'!$B62='DNSP Inputs General'!$A$43,F$91,F$92))*'DNSP Inputs General'!$D62*'DNSP Inputs General'!M62 -> 61681.80663 | G115: =IF('DNSP Inputs General'!$B62='DNSP Inputs General'!$A$42,G$90,IF('DNSP Inputs General'!$B62='DNSP Inputs General'!$A$43,G$91,G$92))*'DNSP Inputs General'!$D62*'DNSP Inputs General'!N62 -> 64223.88476 | H115: =IF('DNSP Inputs General'!$B62='DNSP Inputs General'!$A$42,H$90,IF('DNSP Inputs General'!$B62='DNSP Inputs General'!$A$43,H$91,H$92))*'DNSP Inputs General'!$D62*'DNSP Inputs General'!O62 -> 66616.43461 | K115: =D115/'Charges Summary'!D$4 -> 55113.76495 | L115: =E115/'Charges Summary'!E$4 -> 56157.06579 | M115: =F115/'Charges Summary'!F$4 -> 57277.6893 | N115: =G115/'Charges Summary'!G$4 -> 58183.66981 | O115: =H115/'Charges Summary'!H$4 -> 58879.22136
A116: ='DNSP Inputs General'!A$63 -> Metal halide 1000 watt | D116: =IF('DNSP Inputs General'!$B63='DNSP Inputs General'!$A$42,D$90,IF('DNSP Inputs General'!$B63='DNSP Inputs General'!$A$43,D$91,D$92))*'DNSP Inputs General'!$D63*'DNSP Inputs General'!K63 -> 127.9354357 | E116: =IF('DNSP Inputs General'!$B63='DNSP Inputs General'!$A$42,E$90,IF('DNSP Inputs General'!$B63='DNSP Inputs General'!$A$43,E$91,E$92))*'DNSP Inputs General'!$D63*'DNSP Inputs General'!L63 -> 0 | F116: =IF('DNSP Inputs General'!$B63='DNSP Inputs General'!$A$42,F$90,IF('DNSP Inputs General'!$B63='DNSP Inputs General'!$A$43,F$91,F$92))*'DNSP Inputs General'!$D63*'DNSP Inputs General'!M63 -> 0 | G116: =IF('DNSP Inputs General'!$B63='DNSP Inputs General'!$A$42,G$90,IF('DNSP Inputs General'!$B63='DNSP Inputs General'!$A$43,G$91,G$92))*'DNSP Inputs General'!$D63*'DNSP Inputs General'!N63 -> 0 | H116: =IF('DNSP Inputs General'!$B63='DNSP Inputs General'!$A$42,H$90,IF('DNSP Inputs General'!$B63='DNSP Inputs General'!$A$43,H$91,H$92))*'DNSP Inputs General'!$D63*'DNSP Inputs General'!O63 -> 0 | K116: =D116/'Charges Summary'!D$4 -> 124.8150592 | L116: =E116/'Charges Summary'!E$4 -> 0 | M116: =F116/'Charges Summary'!F$4 -> 0 | N116: =G116/'Charges Summary'!G$4 -> 0 | O116: =H116/'Charges Summary'!H$4 -> 0
A119: ='DNSP Inputs General'!A$68 -> Energy Efficient Lights
A120: ='DNSP Inputs General'!A$69 -> T5 2X14W | D120: =SUM('Charges Summary'!D$85,'Charges Summary'!D$11)*'DNSP Inputs General'!$D69*'DNSP Inputs General'!K69 -> 177958.0736 | E120: =SUM('Charges Summary'!E$85,'Charges Summary'!E$11)*'DNSP Inputs General'!$D69*'DNSP Inputs General'!L69 -> 178195.0451 | F120: =SUM('Charges Summary'!F$85,'Charges Summary'!F$11)*'DNSP Inputs General'!$D69*'DNSP Inputs General'!M69 -> 172211.4192 | G120: =SUM('Charges Summary'!G$85,'Charges Summary'!G$11)*'DNSP Inputs General'!$D69*'DNSP Inputs General'!N69 -> 162539.2108 | H120: =SUM('Charges Summary'!H$85,'Charges Summary'!H$11)*'DNSP Inputs General'!$D69*'DNSP Inputs General'!O69 -> 151866.4471 | K120: =D120/'Charges Summary'!D$4 -> 173617.6327 | L120: =E120/'Charges Summary'!E$4 -> 169608.6092 | M120: =F120/'Charges Summary'!F$4 -> 159915.4224 | N120: =G120/'Charges Summary'!G$4 -> 147252.5028 | O120: =H120/'Charges Summary'!H$4 -> 134227.8104
A121: ='DNSP Inputs General'!B$70 -> T5 2X14W | D121: =SUM('Charges Summary'!D$85,'Charges Summary'!D$11)*'DNSP Inputs General'!$D70*'DNSP Inputs General'!K70 -> 29701.10315 | E121: =SUM('Charges Summary'!E$85,'Charges Summary'!E$11)*'DNSP Inputs General'!$D70*'DNSP Inputs General'!L70 -> 29740.65356 | F121: =SUM('Charges Summary'!F$85,'Charges Summary'!F$11)*'DNSP Inputs General'!$D70*'DNSP Inputs General'!M70 -> 28741.98974 | G121: =SUM('Charges Summary'!G$85,'Charges Summary'!G$11)*'DNSP Inputs General'!$D70*'DNSP Inputs General'!N70 -> 27127.70355 | H121: =SUM('Charges Summary'!H$85,'Charges Summary'!H$11)*'DNSP Inputs General'!$D70*'DNSP Inputs General'!O70 -> 25346.42526 | K121: =D121/'Charges Summary'!D$4 -> 28976.686 | L121: =E121/'Charges Summary'!E$4 -> 28307.58221 | M121: =F121/'Charges Summary'!F$4 -> 26689.79474 | N121: =G121/'Charges Summary'!G$4 -> 24576.36053 | O121: =H121/'Charges Summary'!H$4 -> 22402.54664
A122: ='DNSP Inputs General'!B$71 -> T5 2X14W | D122: =SUM('Charges Summary'!D$85,'Charges Summary'!D$11)*'DNSP Inputs General'!$D71*'DNSP Inputs General'!K71 -> 7513.801093 | E122: =SUM('Charges Summary'!E$85,'Charges Summary'!E$11)*'DNSP Inputs General'!$D71*'DNSP Inputs General'!L71 -> 7523.806577 | F122: =SUM('Charges Summary'!F$85,'Charges Summary'!F$11)*'DNSP Inputs General'!$D71*'DNSP Inputs General'!M71 -> 7271.164066 | G122: =SUM('Charges Summary'!G$85,'Charges Summary'!G$11)*'DNSP Inputs General'!$D71*'DNSP Inputs General'!N71 -> 6862.781076 | H122: =SUM('Charges Summary'!H$85,'Charges Summary'!H$11)*'DNSP Inputs General'!$D71*'DNSP Inputs General'!O71 -> 6412.152332 | K122: =D122/'Charges Summary'!D$4 -> 7330.537651 | L122: =E122/'Charges Summary'!E$4 -> 7161.267414 | M122: =F122/'Charges Summary'!F$4 -> 6751.998669 | N122: =G122/'Charges Summary'!G$4 -> 6217.340941 | O122: =H122/'Charges Summary'!H$4 -> 5667.408331
A123: ='DNSP Inputs General'!B$72 -> T5 2X14W | D123: =SUM('Charges Summary'!D$85,'Charges Summary'!D$11)*'DNSP Inputs General'!$D72*'DNSP Inputs General'!K72 -> 5845.440653 | E123: =SUM('Charges Summary'!E$85,'Charges Summary'!E$11)*'DNSP Inputs General'!$D72*'DNSP Inputs General'!L72 -> 5853.224524 | F123: =SUM('Charges Summary'!F$85,'Charges Summary'!F$11)*'DNSP Inputs General'!$D72*'DNSP Inputs General'!M72 -> 5656.678624 | G123: =SUM('Charges Summary'!G$85,'Charges Summary'!G$11)*'DNSP Inputs General'!$D72*'DNSP Inputs General'!N72 -> 5338.972778 | H123: =SUM('Charges Summary'!H$85,'Charges Summary'!H$11)*'DNSP Inputs General'!$D72*'DNSP Inputs General'!O72 -> 4988.401403 | K123: =D123/'Charges Summary'!D$4 -> 5702.868929 | L123: =E123/'Charges Summary'!E$4 -> 5571.183366 | M123: =F123/'Charges Summary'!F$4 -> 5252.788438 | N123: =G123/'Charges Summary'!G$4 -> 4836.84583 | O123: =H123/'Charges Summary'!H$4 -> 4409.019968
A124: ='DNSP Inputs General'!B$73 -> Category P LED 18 Watt | D124: =SUM('Charges Summary'!D$103,'Charges Summary'!D$11)*'DNSP Inputs General'!$D73*'DNSP Inputs General'!K73 -> 71684.85666 | E124: =SUM('Charges Summary'!E$103,'Charges Summary'!E$11)*'DNSP Inputs General'!$D73*'DNSP Inputs General'!L73 -> 80954.48392 | F124: =SUM('Charges Summary'!F$103,'Charges Summary'!F$11)*'DNSP Inputs General'!$D73*'DNSP Inputs General'!M73 -> 92250.88692 | G124: =SUM('Charges Summary'!G$103,'Charges Summary'!G$11)*'DNSP Inputs General'!$D73*'DNSP Inputs General'!N73 -> 112576.3763 | H124: =SUM('Charges Summary'!H$103,'Charges Summary'!H$11)*'DNSP Inputs General'!$D73*'DNSP Inputs General'!O73 -> 135945.6626 | K124: =D124/'Charges Summary'!D$4 -> 69936.44552 | L124: =E124/'Charges Summary'!E$4 -> 77053.64323 | M124: =F124/'Charges Summary'!F$4 -> 85664.11925 | N124: =G124/'Charges Summary'!G$4 -> 101988.6407 | O124: =H124/'Charges Summary'!H$4 -> 120156.1568
A125: ='DNSP Inputs General'!B$74 -> Category P LED 18 Watt | D125: =SUM('Charges Summary'!D$103,'Charges Summary'!D$11)*'DNSP Inputs General'!$D74*'DNSP Inputs General'!K74 -> 1149.349492 | E125: =SUM('Charges Summary'!E$103,'Charges Summary'!E$11)*'DNSP Inputs General'!$D74*'DNSP Inputs General'!L74 -> 1176.834834 | F125: =SUM('Charges Summary'!F$103,'Charges Summary'!F$11)*'DNSP Inputs General'!$D74*'DNSP Inputs General'!M74 -> 1226.575964 | G125: =SUM('Charges Summary'!G$103,'Charges Summary'!G$11)*'DNSP Inputs General'!$D74*'DNSP Inputs General'!N74 -> 1247.35456 | H125: =SUM('Charges Summary'!H$103,'Charges Summary'!H$11)*'DNSP Inputs General'!$D74*'DNSP Inputs General'!O74 -> 1255.239981 | K125: =D125/'Charges Summary'!D$4 -> 1121.316577 | L125: =E125/'Charges Summary'!E$4 -> 1120.128337 | M125: =F125/'Charges Summary'!F$4 -> 1138.997718 | N125: =G125/'Charges Summary'!G$4 -> 1130.041668 | O125: =H125/'Charges Summary'!H$4 -> 1109.449239
A127: Total Capital Charge | D127: =SUM(D95:D126) -> 1429425.78 | E127: =SUM(E95:E126) -> 1460923.188 | F127: =SUM(F95:F126) -> 1500495.884 | G127: =SUM(G95:G126) -> 1542800.502 | H127: =SUM(H95:H126) -> 1585494.936 | K127: =SUM(K95:K126) -> 1394561.737 | L127: =SUM(L95:L126) -> 1390527.722 | M127: =SUM(M95:M126) -> 1393359.594 | N127: =SUM(N95:N126) -> 1397701.11 | O127: =SUM(O95:O126) -> 1401346.497
A129: Check | C129: =SUM(D129:O129) -> 7.450580597e-09 | D129: =ABS(D39-SUM(D83,D127)) -> 9.313225746e-10 | E129: =ABS(E39-SUM(E83,E127)) -> 9.313225746e-10 | F129: =ABS(F39-SUM(F83,F127)) -> 4.656612873e-10 | G129: =ABS(G39-SUM(G83,G127)) -> 9.313225746e-10 | H129: =ABS(H39-SUM(H83,H127)) -> 9.313225746e-10 | K129: =ABS(K39-SUM(K83,K127)) -> 0 | L129: =ABS(L39-SUM(L83,L127)) -> 4.656612873e-10 | M129: =ABS(M39-SUM(M83,M127)) -> 4.656612873e-10 | N129: =ABS(N39-SUM(N83,N127)) -> 9.313225746e-10 | O129: =ABS(O39-SUM(O83,O127)) -> 1.396983862e-09
A131: Public Lighting - Capital Expenditure | D131: Forecast Capital Expenditure - Nominal | K131: Forecast Capital Expenditure - Real 2015 $
D132: =D$2 -> 2016 | E132: 2017 | F132: 2018 | G132: 2019 | H132: 2020 | K132: =K$2 -> 2016 | L132: 2017 | M132: 2018 | N132: 2019 | O132: 2020
A134: Total Capital Expenditure | D134: =K134*'Charges Summary'!D$4 -> 646294.3059 | E134: =L134*'Charges Summary'!E$4 -> 760128.7551 | F134: =M134*'Charges Summary'!F$4 -> 825075.4319 | G134: =N134*'Charges Summary'!G$4 -> 851649.0612 | H134: =O134*'Charges Summary'!H$4 -> 878689.7408 | K134: ='DNSP Inputs General'!K14 -> 630531.0302 | L134: ='DNSP Inputs General'!L14 -> 723501.492 | M134: ='DNSP Inputs General'!M14 -> 766164.5601 | N134: ='DNSP Inputs General'!N14 -> 771552.0161 | O134: ='DNSP Inputs General'!O14 -> 776633.6949
A135: Check | C135: =SUM(D135:H135) -> 4.656612873e-10 | D135: =ABS(D134-D142) -> 0 | E135: =ABS(E134-E142) -> 1.164153218e-10 | F135: =ABS(F134-F142) -> 2.328306437e-10 | G135: =ABS(G134-G142) -> 1.164153218e-10 | H135: =ABS(H134-H142) -> 0
A138: Public Lighting - RAB | D138: RAB - Historical Cost ($)
D139: =D$2 -> 2016 | E139: 2017 | F139: 2018 | G139: 2019 | H139: 2020
A141: Opening RAB | D141: ='Total RAB'!N139 -> 10838464.76 | E141: =D144 -> 10782637 | F141: =E144 -> 10808125.72 | G141: 10861646.18 | H141: 10902614.11
A142: Capex | D142: ='Total RAB'!N140 -> 646294.3059 | E142: ='Total RAB'!O140 -> 760128.7551 | F142: ='Total RAB'!P140 -> 825075.4319 | G142: ='Total RAB'!Q140 -> 851649.0612 | H142: ='Total RAB'!R140 -> 878689.7408
A143: Depreciation | D143: ='Total RAB'!N141 -> 702122.0659 | E143: ='Total RAB'!O141 -> 734640.0362 | F143: ='Total RAB'!P141 -> 771554.9739 | G143: ='Total RAB'!Q141 -> 810681.1345 | H143: ='Total RAB'!R141 -> 851068.318
A144: Closing RAB | D144: =D141+D142-D143 -> 10782637 | E144: =E141+E142-E143 -> 10808125.72 | F144: =F141+F142-F143 -> 10861646.18 | G144: =G141+G142-G143 -> 10902614.11 | H144: =H141+H142-H143 -> 10930235.53
A146: Average RAB | D146: =SUM(D141,D144)/2 -> 10810550.88 | E146: =SUM(E141,E144)/2 -> 10795381.36 | F146: =SUM(F141,F144)/2 -> 10834885.95 | G146: =SUM(G141,G144)/2 -> 10882130.14 | H146: =SUM(H141,H144)/2 -> 10916424.82
A148: =WACC!A$8 -> Nominal Pre Tax WACC | D148: =WACC!E$8 -> 0.06727721116 | E148: =WACC!F$8 -> 0.06727721116 | F148: =WACC!G$8 -> 0.06727721116 | G148: =WACC!H$8 -> 0.06727721116 | H148: =WACC!I$8 -> 0.06727721116
A150: Capital Charge | D150: Capital Charge - Nominal
D151: =D$2 -> 2016 | E151: 2017 | F151: 2018 | G151: 2019 | H151: 2020
A153: Depreciation | D153: =D143 -> 702122.0659 | E153: =E143 -> 734640.0362 | F153: =F143 -> 771554.9739 | G153: =G143 -> 810681.1345 | H153: =H143 -> 851068.318
A154: Return | D154: =D148*D146 -> 727303.7145 | E154: =E148*E146 -> 726283.1515 | F154: =F148*F146 -> 728940.91 | G154: =G148*G146 -> 732119.3675 | H154: =H148*H146 -> 734426.6176
D156: =SUM(D153:D155) -> 1429425.78 | E156: =SUM(E153:E155) -> 1460923.188 | F156: =SUM(F153:F155) -> 1500495.884 | G156: =SUM(G153:G155) -> 1542800.502 | H156: =SUM(H153:H155) -> 1585494.936
A158: Check | C158: =SUM(D158:H158) -> 1.396983862e-09 | D158: =ABS(D127-D156)*IF('DNSP Inputs General'!K78=0,0,1) -> 2.328306437e-10 | E158: =ABS(E127-E156)*IF('DNSP Inputs General'!L78=0,0,1) -> 4.656612873e-10 | F158: =ABS(F127-F156)*IF('DNSP Inputs General'!M78=0,0,1) -> 2.328306437e-10 | G158: =ABS(G127-G156)*IF('DNSP Inputs General'!N78=0,0,1) -> 4.656612873e-10 | H158: =ABS(H127-H156)*IF('DNSP Inputs General'!O78=0,0,1) -> 0

Sheet Charges Summary
A1: ='DNSP Inputs O & M'!$A$3 -> Citipower | D1: ='DNSP Inputs General'!K$2 -> 2016 | E1: ='DNSP Inputs General'!L$2 -> 2017 | F1: ='DNSP Inputs General'!M$2 -> 2018 | G1: ='DNSP Inputs General'!N$2 -> 2019 | H1: ='DNSP Inputs General'!O$2 -> 2020
A2: Nominal $
A4: ='Total RAB'!A20 -> CPI Index | D4: =(1+WACC!E6) -> 1.025 | E4: =D4*(1+WACC!F6) -> 1.050625 | F4: =E4*(1+WACC!G6) -> 1.076890625 | G4: =F4*(1+WACC!H6) -> 1.103812891 | H4: =G4*(1+WACC!I6) -> 1.131408213
A6: ='DNSP Inputs General'!$A$6 -> Poles and Brackets | D6: =D$1 -> 2016 | E6: =E$1 -> 2017 | F6: 2018 | G6: 2019 | H6: 2020
A7: O & M
A8: ='O & M 2016-2020'!A$10 -> Dedicated poles - inspection | D8: ='O & M 2016-2020'!$B$10*D$4 -> 0.7015834363 | E8: ='O & M 2016-2020'!$J$10*E$4 -> 0.7268548806 | F8: ='O & M 2016-2020'!$R$10*F$4 -> 0.7552587166 | G8: ='O & M 2016-2020'!$Z$10*G$4 -> 0.7859731059 | H8: ='O & M 2016-2020'!$AH$10*H$4 -> 0.8172827619
A10: Capital Charge
A11: Depreciation and Return | D11: ='Depn & WACC Post 2004'!H$81 -> 9.186175447 | E11: ='Depn & WACC Post 2004'!H$131 -> 9.217039295 | F11: ='Depn & WACC Post 2004'!H$181 -> 9.327628853 | G11: ='Depn & WACC Post 2004'!H$231 -> 9.292931207 | H11: ='Depn & WACC Post 2004'!H$281 -> 9.194553152
A13: Total Charge | D13: =SUM(D8,D11) -> 9.887758883 | E13: =SUM(E8,E11) -> 9.943894176 | F13: =SUM(F8,F11) -> 10.08288757 | G13: =SUM(G8,G11) -> 10.07890431 | H13: =SUM(H8,H11) -> 10.01183591
A18: ='DNSP Inputs General'!$A$8 -> Existing Lights
A20: ='O & M 2016-2020'!$A$8 -> MV80 | D20: =D$1 -> 2016 | E20: =E$1 -> 2017 | F20: 2018 | G20: 2019 | H20: 2020
A22: O & M Charge
A23: ='O & M 2016-2020'!A$9 -> Bulk change & repairs | D23: ='O & M 2016-2020'!$B$9*D$4 -> 26.33107524 | E23: ='O & M 2016-2020'!$J$9*E$4 -> 26.21539153 | F23: ='O & M 2016-2020'!$R$9*F$4 -> 27.00863408 | G23: ='O & M 2016-2020'!$Z$9*G$4 -> 27.93173302 | H23: ='O & M 2016-2020'!$AH$9*H$4 -> 28.83114832
A24: ='O & M 2016-2020'!A$11 -> Other costs | D24: ='O & M 2016-2020'!$B$11*D$4 -> 3.769551074 | E24: ='O & M 2016-2020'!$J$11*E$4 -> 3.897009634 | F24: ='O & M 2016-2020'!$R$11*F$4 -> 4.066225694 | G24: ='O & M 2016-2020'!$Z$11*G$4 -> 4.172691784 | H24: ='O & M 2016-2020'!$AH$11*H$4 -> 4.25046147
D25: =SUM(D23:D24) -> 30.10062631 | E25: =SUM(E23:E24) -> 30.11240116 | F25: =SUM(F23:F24) -> 31.07485977 | G25: =SUM(G23:G24) -> 32.1044248 | H25: =SUM(H23:H24) -> 33.08160979
A26: Capital Charge
A27: Depreciation and Return | D27: ='Depn & WACC Post 2004'!H$40 -> 21.69856099 | E27: ='Depn & WACC Post 2004'!H$90 -> 22.56888464 | F27: ='Depn & WACC Post 2004'!H$140 -> 23.43272691 | G27: ='Depn & WACC Post 2004'!H$190 -> 24.3155734 | H27: ='Depn & WACC Post 2004'!H$240 -> 25.14928795
A29: Poles & Brackets Charge | D29: =D$13 -> 9.887758883 | E29: =E$13 -> 9.943894176 | F29: =F$13 -> 10.08288757 | G29: =G$13 -> 10.07890431 | H29: =H$13 -> 10.01183591
A31: Total Charge | D31: =SUM(D25,D27,D29) -> 61.68694619 | E31: =SUM(E25,E27,E29) -> 62.62517998 | F31: =SUM(F25,F27,F29) -> 64.59047425 | G31: =SUM(G25,G27,G29) -> 66.49890251 | H31: =SUM(H25,H27,H29) -> 68.24273365
A33: WDV RAB - MV 80 Luminaire
A34: RAB WDV | D34: =MAX(0,'Depn & WACC Post 2004'!$I$8) -> 131.5096436 | E34: =MAX(0,'Depn & WACC Post 2004'!I$40) -> 134.3333882 | F34: =MAX(0,'Depn & WACC Post 2004'!I$90) -> 136.7404081 | G34: =MAX(0,'Depn & WACC Post 2004'!I$140) -> 138.5979107 | H34: =MAX(0,'Depn & WACC Post 2004'!I$190) -> 139.8654291
A36: Avoided Costs - MV 80 O & M
A37: Materials & labour - bulk lamp change | D37: ='O & M 2016-2020'!$G$9*D$4 -> -22.42724652 | E37: ='O & M 2016-2020'!$O$9*E$4 -> -23.08131657 | F37: ='O & M 2016-2020'!$W$9*F$4 -> -23.81273253 | G37: ='O & M 2016-2020'!$AE$9*G$4 -> -24.59336085 | H37: ='O & M 2016-2020'!$AM$9*H$4 -> -25.38662249
A38: Materials & Labour - repair of faults | D38: ='O & M 2016-2020'!$G$10*D$4 -> -4.925618466 | E38: ='O & M 2016-2020'!$O$10*E$4 -> -4.715827468 | F38: ='O & M 2016-2020'!$W$10*F$4 -> -4.8502705 | G38: ='O & M 2016-2020'!$AE$10*G$4 -> -5.024352993 | H38: ='O & M 2016-2020'!$AM$10*H$4 -> -5.185803707
D39: =SUM(D37:D38) -> -27.35286498 | E39: =SUM(E37:E38) -> -27.79714404 | F39: =SUM(F37:F38) -> -28.66300303 | G39: =SUM(G37:G38) -> -29.61771385 | H39: =SUM(H37:H38) -> -30.5724262
A44: ='O & M 2016-2020'!$A$14 -> S-HP 150 | D44: =D$1 -> 2016 | E44: =E$1 -> 2017 | F44: 2018 | G44: 2019 | H44: 2020
A46: O & M Charge
A47: ='O & M 2016-2020'!A$15 -> Patrols and repairs | D47: ='O & M 2016-2020'!$B$15*D$4 -> 63.43471641 | E47: ='O & M 2016-2020'!$J$15*E$4 -> 65.58106545 | F47: ='O & M 2016-2020'!$R$15*F$4 -> 67.92916894 | G47: ='O & M 2016-2020'!$Z$15*G$4 -> 70.3780052 | H47: ='O & M 2016-2020'!$AH$15*H$4 -> 72.87261349
A48: ='O & M 2016-2020'!A$17 -> Other costs | D48: ='O & M 2016-2020'!$B$17*D$4 -> 3.769551074 | E48: ='O & M 2016-2020'!$J$17*E$4 -> 3.897009634 | F48: ='O & M 2016-2020'!$R$17*F$4 -> 4.066225694 | G48: ='O & M 2016-2020'!$Z$17*G$4 -> 4.172691784 | H48: ='O & M 2016-2020'!$AH$17*H$4 -> 4.25046147
D49: =SUM(D47:D48) -> 67.20426748 | E49: =SUM(E47:E48) -> 69.47807508 | F49: =SUM(F47:F48) -> 71.99539464 | G49: =SUM(G47:G48) -> 74.55069699 | H49: =SUM(H47:H48) -> 77.12307496
A50: Capital Charge
A51: Depreciation and Return | D51: ='Depn & WACC Post 2004'!H$41 -> 25.52048661 | E51: ='Depn & WACC Post 2004'!H$91 -> 26.5441067 | F51: ='Depn & WACC Post 2004'!H$141 -> 27.5601038 | G51: ='Depn & WACC Post 2004'!H$191 -> 28.59845248 | H51: ='Depn & WACC Post 2004'!H$241 -> 29.57901524
A53: Poles & Brackets Charge | D53: =D$13 -> 9.887758883 | E53: =E$13 -> 9.943894176 | F53: =F$13 -> 10.08288757 | G53: =G$13 -> 10.07890431 | H53: =H$13 -> 10.01183591
A55: Total Charge | D55: =SUM(D49,D51,D53) -> 102.612513 | E55: =SUM(E49,E51,E53) -> 105.966076 | F55: =SUM(F49,F51,F53) -> 109.638386 | G55: =SUM(G49,G51,G53) -> 113.2280538 | H55: =SUM(H49,H51,H53) -> 116.7139261
A60: ='O & M 2016-2020'!$A$20 -> S-HP 250 | D60: =D$1 -> 2016 | E60: =E$1 -> 2017 | F60: 2018 | G60: 2019 | H60: 2020
A62: O & M Charge
A63: ='O & M 2016-2020'!A$21 -> Patrols and repairs | D63: ='O & M 2016-2020'!$B$21*D$4 -> 63.8283781 | E63: ='O & M 2016-2020'!$J$21*E$4 -> 65.9711129 | F63: ='O & M 2016-2020'!$R$21*F$4 -> 68.35372122 | G63: ='O & M 2016-2020'!$Z$21*G$4 -> 70.83465151 | H63: ='O & M 2016-2020'!$AH$21*H$4 -> 73.36243134
A64: ='O & M 2016-2020'!A$23 -> Other costs | D64: ='O & M 2016-2020'!$B$23*D$4 -> 3.769551074 | E64: ='O & M 2016-2020'!$J$23*E$4 -> 3.897009634 | F64: ='O & M 2016-2020'!$R$23*F$4 -> 4.066225694 | G64: ='O & M 2016-2020'!$Z$23*G$4 -> 4.172691784 | H64: ='O & M 2016-2020'!$AH$23*H$4 -> 4.25046147
D65: =SUM(D63:D64) -> 67.59792917 | E65: =SUM(E63:E64) -> 69.86812253 | F65: =SUM(F63:F64) -> 72.41994691 | G65: =SUM(G63:G64) -> 75.0073433 | H65: =SUM(H63:H64) -> 77.61289281
A66: Capital Charge
A67: Depreciation and Return | D67: ='Depn & WACC Post 2004'!H$42 -> 26.54997978 | E67: ='Depn & WACC Post 2004'!H$92 -> 27.61489258 | F67: ='Depn & WACC Post 2004'!H$142 -> 28.67187487 | G67: ='Depn & WACC Post 2004'!H$192 -> 29.7521104 | H67: ='Depn & WACC Post 2004'!H$242 -> 30.77222894
A69: Poles & Brackets Charge | D69: =D$13 -> 9.887758883 | E69: =E$13 -> 9.943894176 | F69: =F$13 -> 10.08288757 | G69: =G$13 -> 10.07890431 | H69: =H$13 -> 10.01183591
A71: Total Charge | D71: =SUM(D65,D67,D69) -> 104.0356678 | E71: =SUM(E65,E67,E69) -> 107.4269093 | F71: =SUM(F65,F67,F69) -> 111.1747094 | G71: =SUM(G65,G67,G69) -> 114.838358 | H71: =SUM(H65,H67,H69) -> 118.3969577
A76: ='DNSP Inputs General'!$A$11 -> Energy Efficient Lights
A78: ='O & M 2016-2020'!$A$26 -> T5 (2 X 14W) | D78: =D$1 -> 2016 | E78: =E$1 -> 2017 | F78: 2018 | G78: 2019 | H78: 2020
A80: O & M Charge
A81: ='O & M 2016-2020'!A$27 -> Bulk change & repairs | D81: ='O & M 2016-2020'!$B$27*D$4 -> 23.14974333 | E81: ='O & M 2016-2020'!$J$27*E$4 -> 23.8998558 | F81: ='O & M 2016-2020'!$R$27*F$4 -> 24.6368686 | G81: ='O & M 2016-2020'!$Z$27*G$4 -> 25.47998466 | H81: ='O & M 2016-2020'!$AH$27*H$4 -> 26.30501071
A82: ='O & M 2016-2020'!A$29 -> Other costs | D82: ='O & M 2016-2020'!$B$29*D$4 -> 3.769551074 | E82: ='O & M 2016-2020'!$J$29*E$4 -> 3.897009634 | F82: ='O & M 2016-2020'!$R$29*F$4 -> 4.066225694 | G82: ='O & M 2016-2020'!$Z$29*G$4 -> 4.172691784 | H82: ='O & M 2016-2020'!$AH$29*H$4 -> 4.25046147
D83: =SUM(D81:D82) -> 26.91929441 | E83: =SUM(E81:E82) -> 27.79686543 | F83: =SUM(F81:F82) -> 28.70309429 | G83: =SUM(G81:G82) -> 29.65267644 | H83: =SUM(H81:H82) -> 30.55547218
A84: Capital Charge
A85: Depreciation and Return | D85: ='Depn & WACC Post 2004'!$H$69 -> 3.831019605 | E85: ='Depn & WACC Post 2004'!$H$119 -> 4.083500433 | F85: ='Depn & WACC Post 2004'!$H$169 -> 4.493790316 | G85: ='Depn & WACC Post 2004'!$H$219 -> 4.734104113 | H85: ='Depn & WACC Post 2004'!$H$269 -> 4.897900923
A87: Poles & Brackets Charge | D87: =D$13 -> 9.887758883 | E87: =E$13 -> 9.943894176 | F87: =F$13 -> 10.08288757 | G87: =G$13 -> 10.07890431 | H87: =H$13 -> 10.01183591
A89: Total Charge | D89: =SUM(D83,D85,D87) -> 40.6380729 | E89: =SUM(E83,E85,E87) -> 41.82426004 | F89: =SUM(F83,F85,F87) -> 43.27977218 | G89: =SUM(G83,G85,G87) -> 44.46568487 | H89: =SUM(H83,H85,H87) -> 45.46520902
A94: ='DNSP Inputs General'!$A$11 -> Energy Efficient Lights
A96: ='O & M 2016-2020'!$A$32 -> Category P LED 18 Watt - Cost build-up | D96: =D$1 -> 2016 | E96: =E$1 -> 2017 | F96: 2018 | G96: 2019 | H96: 2020
A98: O & M Charge
A99: ='O & M 2016-2020'!A$27 -> Bulk change & repairs | D99: ='O & M 2016-2020'!$B$33*D$4 -> 8.647372509 | E99: ='O & M 2016-2020'!$J$33*E$4 -> 9.554953787 | F99: ='O & M 2016-2020'!$R$33*F$4 -> 10.36840906 | G99: ='O & M 2016-2020'!$Z$33*G$4 -> 10.73308372 | H99: ='O & M 2016-2020'!$AH$33*H$4 -> 11.07866564
A100: ='O & M 2016-2020'!A$29 -> Other costs | D100: ='O & M 2016-2020'!$B$35*D$4 -> 3.769551074 | E100: ='O & M 2016-2020'!$J$35*E$4 -> 3.897009634 | F100: ='O & M 2016-2020'!$R$35*F$4 -> 4.066225694 | G100: ='O & M 2016-2020'!$Z$35*G$4 -> 4.172691784 | H100: ='O & M 2016-2020'!$AH$35*H$4 -> 4.25046147
D101: =SUM(D99:D100) -> 12.41692358 | E101: =SUM(E99:E100) -> 13.45196342 | F101: 14.43463475 | G101: 14.90577551 | H101: 15.32912711
A102: Capital Charge
A103: Depreciation and Return | D103: ='Depn & WACC Post 2004'!$H$73 -> 4.496556599 | E103: ='Depn & WACC Post 2004'!$H$123 -> 4.792899205 | F103: ='Depn & WACC Post 2004'!$H$173 -> 5.274465961 | G103: ='Depn & WACC Post 2004'!$H$223 -> 5.55652784 | H103: ='Depn & WACC Post 2004'!$H$273 -> 5.748779956
A105: Poles & Brackets Charge | D105: =D$13 -> 9.887758883 | E105: =E$13 -> 9.943894176 | F105: =F$13 -> 10.08288757 | G105: =G$13 -> 10.07890431 | H105: =H$13 -> 10.01183591
A107: Total Charge | D107: =SUM(D101,D103,D105) -> 26.80123907 | E107: =SUM(E101,E103,E105) -> 28.1887568 | F107: =SUM(F101,F103,F105) -> 29.79198829 | G107: =SUM(G101,G103,G105) -> 30.54120766 | H107: =SUM(H101,H103,H105) -> 31.08974298

Sheet O & M 2016-2020
A1: ='DNSP Inputs O & M'!$A$3 -> Citipower
A3: Public Lighting O & M Costs | B3: Year | C3: 2016 | J3: Year | K3: =C3+1 -> 2017 | R3: Year | S3: =K3+1 -> 2018 | Z3: Year | AA3: =S3+1 -> 2019 | AH3: Year | AI3: =AA3+1 -> 2020
A4: ='DNSP Inputs O & M'!C5 -> Real 2015 $
A6: Summary
A8: =$A$65 -> MV80 | D8: Avoided Costs - MV 80 O & M | L8: Avoided Costs - MV 80 O & M | T8: Avoided Costs - MV 80 O & M | AB8: Avoided Costs - MV 80 O & M | AJ8: Avoided Costs - MV 80 O & M
A9: =$A$66 -> Bulk change & repairs | B9: =G86 -> 25.68885389 | D9: Materials & labour - bulk lamp change | G9: =-(G68+G77)*2 -> -21.88024051 | J9: =O86 -> 24.95218706 | L9: Materials & labour - bulk lamp change | O9: =-(O68+O77)*2 -> -21.9691294 | R9: =W86 -> 25.0802017 | T9: Materials & labour - bulk lamp change | W9: =-(W68+W77)*2 -> -22.1124894 | Z9: =AE86 -> 25.30477154 | AB9: Materials & labour - bulk lamp change | AE9: =-(AE68+AE77)*2 -> -22.28037112 | AH9: =AM86 -> 25.48253406 | AJ9: Materials & labour - bulk lamp change | AM9: =-(AM68+AM77)*2 -> -22.43807514
A10: =$A$88 -> Dedicated poles - inspection | B10: =G89*C38 -> 0.6844716452 | D10: Materials & Labour - repair of faults | G10: =-(G72+G80+G82)/2 -> -4.80548143 | J10: =O89*K38 -> 0.6918309393 | L10: Materials & Labour - repair of faults | O10: =-(O72+O80+O82)/2 -> -4.488592474 | R10: =W89*S38 -> 0.7013327993 | T10: Materials & Labour - repair of faults | W10: =-(W72+W80+W82)/2 -> -4.503958329 | Z10: =AE89*AA38 -> 0.7120528421 | AB10: Materials & Labour - repair of faults | AE10: =-(AE72+AE80+AE82)/2 -> -4.551815834 | AH10: =AM89*AI38 -> 0.7223588733 | AJ10: Materials & Labour - repair of faults | AM10: =-(AM72+AM80+AM82)/2 -> -4.583494841
A11: Other costs | B11: =IF(C47=0,0,C45/C47) -> 3.677610804 | G11: =SUM(G9:G10) -> -26.68572194 | J11: =IF(K47=0,0,K45/K47) -> 3.709229872 | O11: =SUM(O9:O10) -> -26.45772187 | R11: =IF(S47=0,0,S45/S47) -> 3.775894784 | W11: =SUM(W9:W10) -> -26.61644772 | Z11: =IF(AA47=0,0,AA45/AA47) -> 3.780252813 | AE11: =SUM(AE9:AE10) -> -26.83218696 | AH11: =IF(AI47=0,0,AI45/AI47) -> 3.756788594 | AM11: =SUM(AM9:AM10) -> -27.02156998
A14: =$A$106 -> S-HP 150
A15: =$A$107 -> Patrols and repairs | B15: =G123 -> 61.88752821 | J15: =O123 -> 62.42100221 | R15: =W123 -> 63.07898626 | Z15: =AE123 -> 63.75899919 | AH15: =AM123 -> 64.40877188
A16: =$A$10 -> Dedicated poles - inspection | B16: =B10 -> 0.6844716452 | J16: =J10 -> 0.6918309393 | R16: =R10 -> 0.7013327993 | Z16: =Z10 -> 0.7120528421 | AH16: =AH10 -> 0.7223588733
A17: =$A$11 -> Other costs | B17: =B11 -> 3.677610804 | J17: =J11 -> 3.709229872 | R17: =R11 -> 3.775894784 | Z17: =Z11 -> 3.780252813 | AH17: =AH11 -> 3.756788594
A20: =$A$138 -> S-HP 250
A21: =$A$139 -> Patrols and repairs | B21: =G155 -> 62.27158839 | J21: =O155 -> 62.79225499 | R21: =W155 -> 63.47322526 | Z21: =AE155 -> 64.17269821 | AH21: =AM155 -> 64.84169949
A22: =$A$10 -> Dedicated poles - inspection | B22: =B10 -> 0.6844716452 | J22: =J10 -> 0.6918309393 | R22: =R10 -> 0.7013327993 | Z22: =Z10 -> 0.7120528421 | AH22: =AH10 -> 0.7223588733
A23: =$A$11 -> Other costs | B23: =B11 -> 3.677610804 | J23: =J11 -> 3.709229872 | R23: =R11 -> 3.775894784 | Z23: =Z11 -> 3.780252813 | AH23: =AH11 -> 3.756788594
A26: =$A$172 -> T5 (2 X 14W)
A27: =$A$173 -> Bulk change & repairs | B27: =G193 -> 22.58511545 | J27: =O193 -> 22.74822682 | R27: =W193 -> 22.87778167 | Z27: =AE193 -> 23.08360853 | AH27: =AM193 -> 23.2497965
A28: =$A$10 -> Dedicated poles - inspection | B28: =B10 -> 0.6844716452 | J28: =J10 -> 0.6918309393 | R28: =R10 -> 0.7013327993 | Z28: =Z10 -> 0.7120528421 | AH28: =AH10 -> 0.7223588733
A29: =$A$11 -> Other costs | B29: =B11 -> 3.677610804 | J29: =J11 -> 3.709229872 | R29: =R11 -> 3.775894784 | Z29: =Z11 -> 3.780252813 | AH29: =AH11 -> 3.756788594
A32: =$A$198 -> Category P LED 18 Watt - Cost build-up
A33: =$A$211 -> Bulk change & repairs | B33: =G228 -> 8.436460985 | J33: =O228 -> 9.094542569 | R33: =W228 -> 9.628098546 | Z33: =AE228 -> 9.723644121 | AH33: =AM228 -> 9.791926131
A34: =$A$10 -> Dedicated poles - inspection | B34: =B10 -> 0.6844716452 | J34: =J10 -> 0.6918309393 | R34: =R10 -> 0.7013327993 | Z34: =Z10 -> 0.7120528421 | AH34: =AH10 -> 0.7223588733
A35: =$A$11 -> Other costs | B35: =B11 -> 3.677610804 | J35: =J11 -> 3.709229872 | R35: =R11 -> 3.775894784 | Z35: =Z11 -> 3.780252813 | AH35: =AH11 -> 3.756788594
A38: ='DNSP Inputs O & M'!A100 -> Proportion of lights on dedicated poles | C38: ='DNSP Inputs O & M'!$D$100 -> 0.1963308044 | K38: ='DNSP Inputs O & M'!$E$100 -> 0.1963308044 | S38: ='DNSP Inputs O & M'!$F$100 -> 0.1963308044 | AA38: ='DNSP Inputs O & M'!$G$100 -> 0.1963308044 | AI38: ='DNSP Inputs O & M'!$H$100 -> 0.1963308044
A40: ='DNSP Inputs O & M'!A104 -> Other direct costs
A41: ='DNSP Inputs O & M'!$A$105 -> Call centre | C41: ='DNSP Inputs O & M'!$D$108 -> 45031.56221 | K41: ='DNSP Inputs O & M'!$E$108 -> 45790.06187 | S41: ='DNSP Inputs O & M'!$F$108 -> 46561.33749 | AA41: ='DNSP Inputs O & M'!$G$108 -> 47345.60428 | AI41: ='DNSP Inputs O & M'!$H$108 -> 48143.08104
A42: ='DNSP Inputs O & M'!$A$110 -> GIS and other | C42: ='DNSP Inputs O & M'!$D$110 -> 113442.5434 | K42: ='DNSP Inputs O & M'!$E$110 -> 113442.5434 | S42: ='DNSP Inputs O & M'!$F$110 -> 113442.5434 | AA42: ='DNSP Inputs O & M'!$G$110 -> 113442.5434 | AI42: ='DNSP Inputs O & M'!$H$110 -> 113442.5434
A43: ='DNSP Inputs O & M'!A111 -> Complaints handling | C43: ='DNSP Inputs O & M'!$D$111 -> 34032.76303 | K43: ='DNSP Inputs O & M'!$E$111 -> 34032.76303 | S43: ='DNSP Inputs O & M'!$F$111 -> 34032.76303 | AA43: ='DNSP Inputs O & M'!$G$111 -> 34032.76303 | AI43: ='DNSP Inputs O & M'!$H$111 -> 34032.76303
A44: ='DNSP Inputs O & M'!A112 -> Accounts Manager | C44: ='DNSP Inputs O & M'!$D$112 -> 0 | K44: ='DNSP Inputs O & M'!$E$112 -> 0 | S44: ='DNSP Inputs O & M'!$F$112 -> 0 | AA44: ='DNSP Inputs O & M'!$G$112 -> 0 | AI44: ='DNSP Inputs O & M'!$H$112 -> 0
C45: =SUM(C41:C44) -> 192506.8687 | K45: =SUM(K41:K44) -> 193265.3684 | S45: =SUM(S41:S44) -> 194036.644 | AA45: =SUM(AA41:AA44) -> 194820.9108 | AI45: =SUM(AI41:AI44) -> 195618.3875
A47: ='DNSP Inputs General'!$A$78 -> Total Number of Lights | C47: ='DNSP Inputs General'!$K$78 -> 52345.63388 | K47: ='DNSP Inputs General'!$L$78 -> 52103.90702 | S47: ='DNSP Inputs General'!$M$78 -> 51388.25499 | AA47: ='DNSP Inputs General'!$N$78 -> 51536.47664 | AI47: ='DNSP Inputs General'!$O$78 -> 52070.64029
A53: Mercury Vapour 80 Watt Standard Light Type - Cost build-up
A55: Additional assumptions
A56: Proportion of lamps that will fail before bulk change | D56: ='DNSP Inputs O & M'!$D$26 -> 0.2313269938 | L56: ='DNSP Inputs O & M'!$E$26 -> 0.2313269938 | T56: ='DNSP Inputs O & M'!$F$26 -> 0.2313269938 | AB56: ='DNSP Inputs O & M'!$G$26 -> 0.2313269938 | AJ56: ='DNSP Inputs O & M'!$H$26 -> 0.2313269938
A57: Proportion of lamps that will fail before bulk change (per year) | D57: =D56/'DNSP Inputs O & M'!$D$24 -> 0.05783174846 | L57: =L56/'DNSP Inputs O & M'!$E$24 -> 0.05783174846 | T57: =T56/'DNSP Inputs O & M'!$F$24 -> 0.05783174846 | AB57: =AB56/'DNSP Inputs O & M'!$G$24 -> 0.05783174846 | AJ57: =AJ56/'DNSP Inputs O & M'!$H$24 -> 0.05783174846
A58: Overheads are applied to material and labour components
A59: All costs and charges are exclusive of GST
B61: Urban | J61: Urban | R61: Urban | Z61: Urban | AH61: Urban
B63: Unit rate | C63: Number | D63: Hours | E63: Cost | F63: Annualised | G63: Annualised | J63: Unit rate | K63: Number | L63: Hours | M63: Cost | N63: Annualised | O63: Annualised | R63: Unit rate | S63: Number | T63: Hours | U63: Cost | V63: Annualised | W63: Annualised | Z63: Unit rate | AA63: Number | AB63: Hours | AC63: Cost | AD63: Annualised | AE63: Annualised | AH63: Unit rate | AI63: Number | AJ63: Hours | AK63: Cost | AL63: Annualised | AM63: Annualised
F64: cost | G64: unit cost | N64: cost | O64: unit cost | V64: cost | W64: unit cost | AD64: cost | AE64: unit cost | AL64: cost | AM64: unit cost
A65: MV80
A66: Bulk change & repairs
A67: Materials - bulk lamp change
A68: Lamp | B68: ='DNSP Inputs O & M'!$D$27 -> 5.694427666 | C68: ='DNSP Inputs O & M'!$D$33 -> 86.4 | E68: =B68*C68 -> 491.9985503 | F68: =E68/'DNSP Inputs O & M'!$D$24*0.8 -> 98.39971007 | G68: =(F68+F69+F70)/C68 -> 4.26178692 | J68: ='DNSP Inputs O & M'!$E$27 -> 5.694427666 | K68: ='DNSP Inputs O & M'!$E$33 -> 86.4 | M68: =J68*K68 -> 491.9985503 | N68: =M68/'DNSP Inputs O & M'!$E$24*0.8 -> 98.39971007 | O68: =(N68+N69+N70)/K68 -> 4.26178692 | R68: ='DNSP Inputs O & M'!$F$27 -> 5.694427666 | S68: ='DNSP Inputs O & M'!$F$33 -> 86.4 | U68: =R68*S68 -> 491.9985503 | V68: =U68/'DNSP Inputs O & M'!$F$24*0.8 -> 98.39971007 | W68: =(V68+V69+V70)/S68 -> 4.26178692 | Z68: ='DNSP Inputs O & M'!$G$27 -> 5.694427666 | AA68: ='DNSP Inputs O & M'!$G$33 -> 86.4 | AC68: =Z68*AA68 -> 491.9985503 | AD68: =AC68/'DNSP Inputs O & M'!$G$24*0.8 -> 98.39971007 | AE68: =(AD68+AD69+AD70)/AA68 -> 4.26178692 | AH68: ='DNSP Inputs O & M'!$H$27 -> 5.694427666 | AI68: ='DNSP Inputs O & M'!$H$33 -> 86.4 | AK68: =AH68*AI68 -> 491.9985503 | AL68: =AK68/'DNSP Inputs O & M'!$H$24*0.8 -> 98.39971007 | AM68: =(AL68+AL69+AL70)/AI68 -> 4.26178692
A69: PE cell | B69: ='DNSP Inputs O & M'!$D$28 -> 22.98953839 | C69: =C68*'DNSP Inputs O & M'!$D$24/'DNSP Inputs O & M'!$D$25 -> 43.2 | E69: =B69*C69 -> 993.1480584 | F69: =E69/'DNSP Inputs O & M'!$D$24 -> 248.2870146 | J69: ='DNSP Inputs O & M'!$E$28 -> 22.98953839 | K69: =K68*'DNSP Inputs O & M'!$E$24/'DNSP Inputs O & M'!$E$25 -> 43.2 | M69: =J69*K69 -> 993.1480584 | N69: =M69/'DNSP Inputs O & M'!$E$24 -> 248.2870146 | R69: ='DNSP Inputs O & M'!$F$28 -> 22.98953839 | S69: =S68*'DNSP Inputs O & M'!$F$24/'DNSP Inputs O & M'!$F$25 -> 43.2 | U69: =R69*S69 -> 993.1480584 | V69: =U69/'DNSP Inputs O & M'!$F$24 -> 248.2870146 | Z69: ='DNSP Inputs O & M'!$G$28 -> 22.98953839 | AA69: =AA68*'DNSP Inputs O & M'!$G$24/'DNSP Inputs O & M'!$G$25 -> 43.2 | AC69: =Z69*AA69 -> 993.1480584 | AD69: =AC69/'DNSP Inputs O & M'!$G$24 -> 248.2870146 | AH69: ='DNSP Inputs O & M'!$H$28 -> 22.98953839 | AI69: =AI68*'DNSP Inputs O & M'!$H$24/'DNSP Inputs O & M'!$H$25 -> 43.2 | AK69: =AH69*AI69 -> 993.1480584 | AL69: =AK69/'DNSP Inputs O & M'!$H$24 -> 248.2870146
A70: Miscellaneous | B70: ='DNSP Inputs O & M'!$D$30 -> 1.246045441 | C70: ='DNSP Inputs O & M'!$D$33 -> 86.4 | E70: =B70*C70 -> 107.6583261 | F70: =E70/'DNSP Inputs O & M'!$D$24*0.8 -> 21.53166522 | J70: ='DNSP Inputs O & M'!$E$30 -> 1.246045441 | K70: ='DNSP Inputs O & M'!$E$33 -> 86.4 | M70: =J70*K70 -> 107.6583261 | N70: =M70/'DNSP Inputs O & M'!$E$24*0.8 -> 21.53166522 | R70: ='DNSP Inputs O & M'!$F$30 -> 1.246045441 | S70: ='DNSP Inputs O & M'!$F$33 -> 86.4 | U70: =R70*S70 -> 107.6583261 | V70: =U70/'DNSP Inputs O & M'!$F$24*0.8 -> 21.53166522 | Z70: ='DNSP Inputs O & M'!$G$30 -> 1.246045441 | AA70: ='DNSP Inputs O & M'!$G$33 -> 86.4 | AC70: =Z70*AA70 -> 107.6583261 | AD70: =AC70/'DNSP Inputs O & M'!$G$24*0.8 -> 21.53166522 | AH70: ='DNSP Inputs O & M'!$H$30 -> 1.246045441 | AI70: ='DNSP Inputs O & M'!$H$33 -> 86.4 | AK70: =AH70*AI70 -> 107.6583261 | AL70: =AK70/'DNSP Inputs O & M'!$H$24*0.8 -> 21.53166522
A71: Materials - repair of faults
A72: Lamp | B72: ='DNSP Inputs O & M'!$D$27 -> 5.694427666 | C72: ='DNSP Inputs O & M'!$D$34*'DNSP Inputs O & M'!$D$35 -> 17.28 | E72: =B72*C72 -> 98.39971007 | F72: =(E72+E73+E74+E75)/'DNSP Inputs O & M'!$D$34 -> 45.79154694 | G72: =F72*D57 -> 2.648205224 | J72: ='DNSP Inputs O & M'!$E$27 -> 5.694427666 | K72: ='DNSP Inputs O & M'!$E$34*'DNSP Inputs O & M'!$E$35 -> 17.28 | M72: =J72*K72 -> 98.39971007 | N72: =(M72+M73+M74+M75)/'DNSP Inputs O & M'!$E$34 -> 45.79154694 | O72: =N72*L57 -> 2.648205224 | R72: ='DNSP Inputs O & M'!$F$27 -> 5.694427666 | S72: ='DNSP Inputs O & M'!$F$34*'DNSP Inputs O & M'!$F$35 -> 17.28 | U72: =R72*S72 -> 98.39971007 | V72: =(U72+U73+U74+U75)/'DNSP Inputs O & M'!$F$34 -> 45.79154694 | W72: =V72*T57 -> 2.648205224 | Z72: ='DNSP Inputs O & M'!$G$27 -> 5.694427666 | AA72: ='DNSP Inputs O & M'!$G$34*'DNSP Inputs O & M'!$G$35 -> 17.28 | AC72: =Z72*AA72 -> 98.39971007 | AD72: =(AC72+AC73+AC74+AC75)/'DNSP Inputs O & M'!$G$34 -> 45.79154694 | AE72: =AD72*AB57 -> 2.648205224 | AH72: ='DNSP Inputs O & M'!$H$27 -> 5.694427666 | AI72: ='DNSP Inputs O & M'!$H$34*'DNSP Inputs O & M'!$H$35 -> 17.28 | AK72: =AH72*AI72 -> 98.39971007 | AL72: =(AK72+AK73+AK74+AK75)/'DNSP Inputs O & M'!$H$34 -> 45.79154694 | AM72: =AL72*AJ57 -> 2.648205224
A73: PE cell | B73: ='DNSP Inputs O & M'!$D$28 -> 22.98953839 | C73: ='DNSP Inputs O & M'!$D$34*'DNSP Inputs O & M'!$D$36 -> 14.4 | E73: =B73*C73 -> 331.0493528 | J73: ='DNSP Inputs O & M'!$E$28 -> 22.98953839 | K73: ='DNSP Inputs O & M'!$E$34*'DNSP Inputs O & M'!$E$36 -> 14.4 | M73: =J73*K73 -> 331.0493528 | R73: ='DNSP Inputs O & M'!$F$28 -> 22.98953839 | S73: ='DNSP Inputs O & M'!$F$34*'DNSP Inputs O & M'!$F$36 -> 14.4 | U73: =R73*S73 -> 331.0493528 | Z73: ='DNSP Inputs O & M'!$G$28 -> 22.98953839 | AA73: ='DNSP Inputs O & M'!$G$34*'DNSP Inputs O & M'!$G$36 -> 14.4 | AC73: =Z73*AA73 -> 331.0493528 | AH73: ='DNSP Inputs O & M'!$H$28 -> 22.98953839 | AI73: ='DNSP Inputs O & M'!$H$34*'DNSP Inputs O & M'!$H$36 -> 14.4 | AK73: =AH73*AI73 -> 331.0493528
A74: Luminaire | B74: ='DNSP Inputs O & M'!$D$29 -> 197.5605047 | C74: ='DNSP Inputs O & M'!$D$34*'DNSP Inputs O & M'!$D$37 -> 4.32 | E74: =B74*C74 -> 853.4613803 | J74: ='DNSP Inputs O & M'!$E$29 -> 197.5605047 | K74: ='DNSP Inputs O & M'!$E$34*'DNSP Inputs O & M'!$E$37 -> 4.32 | M74: =J74*K74 -> 853.4613803 | R74: ='DNSP Inputs O & M'!$F$29 -> 197.5605047 | S74: ='DNSP Inputs O & M'!$F$34*'DNSP Inputs O & M'!$F$37 -> 4.32 | U74: =R74*S74 -> 853.4613803 | Z74: ='DNSP Inputs O & M'!$G$29 -> 197.5605047 | AA74: ='DNSP Inputs O & M'!$G$34*'DNSP Inputs O & M'!$G$37 -> 4.32 | AC74: =Z74*AA74 -> 853.4613803 | AH74: ='DNSP Inputs O & M'!$H$29 -> 197.5605047 | AI74: ='DNSP Inputs O & M'!$H$34*'DNSP Inputs O & M'!$H$37 -> 4.32 | AK74: =AH74*AI74 -> 853.4613803
A75: Miscellaneous | B75: ='DNSP Inputs O & M'!$D$31 -> 12.46045441 | C75: ='DNSP Inputs O & M'!$D$34*'DNSP Inputs O & M'!$D$38 -> 2.88 | E75: =B75*C75 -> 35.8861087 | J75: ='DNSP Inputs O & M'!$E$31 -> 12.46045441 | K75: ='DNSP Inputs O & M'!$E$34*'DNSP Inputs O & M'!$E$38 -> 2.88 | M75: =J75*K75 -> 35.8861087 | R75: ='DNSP Inputs O & M'!$F$31 -> 12.46045441 | S75: ='DNSP Inputs O & M'!$F$34*'DNSP Inputs O & M'!$F$38 -> 2.88 | U75: =R75*S75 -> 35.8861087 | Z75: ='DNSP Inputs O & M'!$G$31 -> 12.46045441 | AA75: ='DNSP Inputs O & M'!$G$34*'DNSP Inputs O & M'!$G$38 -> 2.88 | AC75: =Z75*AA75 -> 35.8861087 | AH75: ='DNSP Inputs O & M'!$H$31 -> 12.46045441 | AI75: ='DNSP Inputs O & M'!$H$34*'DNSP Inputs O & M'!$H$38 -> 2.88 | AK75: =AH75*AI75 -> 35.8861087
A76: Labour - bulk lamp change
A77: Crew costs | B77: ='DNSP Inputs O & M'!$D$11 -> 100 | C77: ='DNSP Inputs O & M'!$D$32 -> 2 | D77: ='DNSP Inputs O & M'!$D$16 -> 8 | E77: =B77*C77*D77 -> 1600 | F77: =E77/'DNSP Inputs O & M'!$D$24*(C68+C69)/C68*0.8 -> 480 | G77: =(F77+F78)/C68 -> 6.678333333 | J77: ='DNSP Inputs O & M'!$E$11 -> 100.8 | K77: ='DNSP Inputs O & M'!$E$32 -> 2 | L77: ='DNSP Inputs O & M'!$E$16 -> 8 | M77: =J77*K77*L77 -> 1612.8 | N77: =M77/'DNSP Inputs O & M'!$E$24*(K68+K69)/K68*0.8 -> 483.84 | O77: =(N77+N78)/K68 -> 6.722777778 | R77: ='DNSP Inputs O & M'!$F$11 -> 102.09024 | S77: ='DNSP Inputs O & M'!$F$32 -> 2 | T77: ='DNSP Inputs O & M'!$F$16 -> 8 | U77: =R77*S77*T77 -> 1633.44384 | V77: =U77/'DNSP Inputs O & M'!$F$24*(S68+S69)/S68*0.8 -> 490.033152 | W77: =(V77+V78)/S68 -> 6.794457778 | Z77: ='DNSP Inputs O & M'!$G$11 -> 103.6011756 | AA77: ='DNSP Inputs O & M'!$G$32 -> 2 | AB77: ='DNSP Inputs O & M'!$G$16 -> 8 | AC77: =Z77*AA77*AB77 -> 1657.618809 | AD77: =AC77/'DNSP Inputs O & M'!$G$24*(AA68+AA69)/AA68*0.8 -> 497.2856426 | AE77: =(AD77+AD78)/AA68 -> 6.878398642 | AH77: ='DNSP Inputs O & M'!$H$11 -> 105.0205117 | AI77: ='DNSP Inputs O & M'!$H$32 -> 2 | AJ77: ='DNSP Inputs O & M'!$H$16 -> 8 | AK77: =AH77*AI77*AJ77 -> 1680.328187 | AL77: =AK77/'DNSP Inputs O & M'!$H$24*(AI68+AI69)/AI68*0.8 -> 504.098456 | AM77: =(AL77+AL78)/AI68 -> 6.957250648
A78: Elevated platform costs | B78: ='DNSP Inputs O & M'!$D$13 -> 40.42 | C78: 1 | D78: ='DNSP Inputs O & M'!$D$16 -> 8 | E78: =B78*C78*D78 -> 323.36 | F78: =E78/'DNSP Inputs O & M'!$D$24*(C68+C69)/C68*0.8 -> 97.008 | J78: ='DNSP Inputs O & M'!$E$13 -> 40.42 | K78: 1 | L78: ='DNSP Inputs O & M'!$E$16 -> 8 | M78: =J78*K78*L78 -> 323.36 | N78: =M78/'DNSP Inputs O & M'!$E$24*(K68+K69)/K68*0.8 -> 97.008 | R78: ='DNSP Inputs O & M'!$F$13 -> 40.42 | S78: 1 | T78: ='DNSP Inputs O & M'!$F$16 -> 8 | U78: =R78*S78*T78 -> 323.36 | V78: =U78/'DNSP Inputs O & M'!$F$24*(S68+S69)/S68*0.8 -> 97.008 | Z78: ='DNSP Inputs O & M'!$G$13 -> 40.42 | AA78: 1 | AB78: ='DNSP Inputs O & M'!$G$16 -> 8 | AC78: =Z78*AA78*AB78 -> 323.36 | AD78: =AC78/'DNSP Inputs O & M'!$G$24*(AA68+AA69)/AA68*0.8 -> 97.008 | AH78: ='DNSP Inputs O & M'!$H$13 -> 40.42 | AI78: 1 | AJ78: ='DNSP Inputs O & M'!$H$16 -> 8 | AK78: =AH78*AI78*AJ78 -> 323.36 | AL78: =AK78/'DNSP Inputs O & M'!$H$24*(AI68+AI69)/AI68*0.8 -> 97.008
A79: Labour - repair of faults
A80: Crew costs | B80: ='DNSP Inputs O & M'!$D$11 -> 100 | C80: ='DNSP Inputs O & M'!$D$32 -> 2 | D80: ='DNSP Inputs O & M'!$D$16 -> 8 | E80: =B80*C80*D80 -> 1600 | F80: =(E80+E81)/'DNSP Inputs O & M'!$D$34 -> 66.78333333 | G80: =F80*D57 -> 3.862196934 | J80: ='DNSP Inputs O & M'!$E$11 -> 100.8 | K80: ='DNSP Inputs O & M'!$E$32 -> 2 | L80: ='DNSP Inputs O & M'!$E$16 -> 8 | M80: =J80*K80*L80 -> 1612.8 | N80: =(M80+M81)/'DNSP Inputs O & M'!$E$34 -> 67.22777778 | O80: =N80*L57 -> 3.887899934 | R80: ='DNSP Inputs O & M'!$F$11 -> 102.09024 | S80: ='DNSP Inputs O & M'!$F$32 -> 2 | T80: ='DNSP Inputs O & M'!$F$16 -> 8 | U80: =R80*S80*T80 -> 1633.44384 | V80: =(U80+U81)/'DNSP Inputs O & M'!$F$34 -> 67.94457778 | W80: =V80*T57 -> 3.929353731 | Z80: ='DNSP Inputs O & M'!$G$11 -> 103.6011756 | AA80: ='DNSP Inputs O & M'!$G$32 -> 2 | AB80: ='DNSP Inputs O & M'!$G$16 -> 8 | AC80: =Z80*AA80*AB80 -> 1657.618809 | AD80: =(AC80+AC81)/'DNSP Inputs O & M'!$G$34 -> 68.78398642 | AE80: =AD80*AB57 -> 3.9778982 | AH80: ='DNSP Inputs O & M'!$H$11 -> 105.0205117 | AI80: ='DNSP Inputs O & M'!$H$32 -> 2 | AJ80: ='DNSP Inputs O & M'!$H$16 -> 8 | AK80: =AH80*AI80*AJ80 -> 1680.328187 | AL80: =(AK80+AK81)/'DNSP Inputs O & M'!$H$34 -> 69.57250648 | AM80: =AL80*AJ57 -> 4.023499694
A81: Elevated platform costs | B81: ='DNSP Inputs O & M'!$D$13 -> 40.42 | C81: 1 | D81: ='DNSP Inputs O & M'!$D$16 -> 8 | E81: =B81*C81*D81 -> 323.36 | J81: ='DNSP Inputs O & M'!$E$13 -> 40.42 | K81: 1 | L81: ='DNSP Inputs O & M'!$E$16 -> 8 | M81: =J81*K81*L81 -> 323.36 | R81: ='DNSP Inputs O & M'!$F$13 -> 40.42 | S81: 1 | T81: ='DNSP Inputs O & M'!$F$16 -> 8 | U81: =R81*S81*T81 -> 323.36 | Z81: ='DNSP Inputs O & M'!$G$13 -> 40.42 | AA81: 1 | AB81: ='DNSP Inputs O & M'!$G$16 -> 8 | AC81: =Z81*AA81*AB81 -> 323.36 | AH81: ='DNSP Inputs O & M'!$H$13 -> 40.42 | AI81: 1 | AJ81: ='DNSP Inputs O & M'!$H$16 -> 8 | AK81: =AH81*AI81*AJ81 -> 323.36
A82: Other Maintenance and Repair costs | G82: ='DNSP Inputs O & M'!$D$45 -> 3.100560701 | O82: ='DNSP Inputs O & M'!$E$45 -> 2.441079791 | W82: ='DNSP Inputs O & M'!$F$45 -> 2.430357703 | AE82: ='DNSP Inputs O & M'!$G$45 -> 2.477528243 | AM82: ='DNSP Inputs O & M'!$H$45 -> 2.495284765
A84: Overheads | B84: ='DNSP Inputs O & M'!$D$17 -> 0.25 | G84: =B84*SUM(G68:G82) -> 5.137770778 | J84: ='DNSP Inputs O & M'!$E$17 -> 0.25 | O84: =J84*SUM(O68:O82) -> 4.990437412 | R84: ='DNSP Inputs O & M'!$F$17 -> 0.25 | W84: =R84*SUM(W68:W82) -> 5.016040339 | Z84: ='DNSP Inputs O & M'!$G$17 -> 0.25 | AE84: =Z84*SUM(AE68:AE82) -> 5.060954307 | AH84: ='DNSP Inputs O & M'!$H$17 -> 0.25 | AM84: =AH84*SUM(AM68:AM82) -> 5.096506813
G86: =SUM(G68,G72,G77,G80,G82,G84) -> 25.68885389 | O86: =SUM(O68,O72,O77,O80,O82,O84) -> 24.95218706 | W86: =SUM(W68,W72,W77,W80,W82,W84) -> 25.0802017 | AE86: =SUM(AE68,AE72,AE77,AE80,AE82,AE84) -> 25.30477154 | AM86: =SUM(AM68,AM72,AM77,AM80,AM82,AM84) -> 25.48253406
A88: Dedicated poles - inspection
A89: Crew costs | B89: ='DNSP Inputs O & M'!$D$11 -> 100 | C89: 1 | D89: ='DNSP Inputs O & M'!$D$16 -> 8 | E89: =B89*C89*D89 -> 800 | F89: =(E89+E90+E91)/'DNSP Inputs O & M'!$D$97 -> 251.0149062 | G89: =F89/'DNSP Inputs O & M'!$D$98 -> 3.486318142 | J89: ='DNSP Inputs O & M'!$E$11 -> 100.8 | K89: 1 | L89: ='DNSP Inputs O & M'!$E$16 -> 8 | M89: =J89*K89*L89 -> 806.4 | N89: =(M89+M90+M91)/'DNSP Inputs O & M'!$E$97 -> 253.7137653 | O89: =N89/'DNSP Inputs O & M'!$E$98 -> 3.523802296 | R89: ='DNSP Inputs O & M'!$F$11 -> 102.09024 | S89: 1 | T89: ='DNSP Inputs O & M'!$F$16 -> 8 | U89: =R89*S89*T89 -> 816.72192 | V89: =(U89+U90+U91)/'DNSP Inputs O & M'!$F$97 -> 257.1983633 | W89: =V89/'DNSP Inputs O & M'!$F$98 -> 3.57219949 | Z89: ='DNSP Inputs O & M'!$G$11 -> 103.6011756 | AA89: 1 | AB89: ='DNSP Inputs O & M'!$G$16 -> 8 | AC89: =Z89*AA89*AB89 -> 828.8094044 | AD89: =(AC89+AC90+AC91)/'DNSP Inputs O & M'!$G$97 -> 261.1297029 | AE89: =AD89/'DNSP Inputs O & M'!$G$98 -> 3.62680143 | AH89: ='DNSP Inputs O & M'!$H$11 -> 105.0205117 | AI89: 1 | AJ89: ='DNSP Inputs O & M'!$H$16 -> 8 | AK89: =AH89*AI89*AJ89 -> 840.1640933 | AL89: =(AK89+AK90+AK91)/'DNSP Inputs O & M'!$H$97 -> 264.909213 | AM89: =AL89/'DNSP Inputs O & M'!$H$98 -> 3.679294624
A90: Vehicle costs | B90: ='DNSP Inputs O & M'!$D$15 -> 25.50745311 | C90: 1 | D90: ='DNSP Inputs O & M'!$D$16 -> 8 | E90: =B90*C90*D90 -> 204.0596249 | J90: ='DNSP Inputs O & M'!$E$15 -> 26.05688266 | K90: 1 | L90: ='DNSP Inputs O & M'!$E$16 -> 8 | M90: =J90*K90*L90 -> 208.4550612 | R90: ='DNSP Inputs O & M'!$F$15 -> 26.50894163 | S90: 1 | T90: ='DNSP Inputs O & M'!$F$16 -> 8 | U90: =R90*S90*T90 -> 212.0715331 | Z90: ='DNSP Inputs O & M'!$G$15 -> 26.96367591 | AA90: 1 | AB90: ='DNSP Inputs O & M'!$G$16 -> 8 | AC90: =Z90*AA90*AB90 -> 215.7094073 | AH90: ='DNSP Inputs O & M'!$H$15 -> 27.43409482 | AI90: 1 | AJ90: ='DNSP Inputs O & M'!$H$16 -> 8 | AK90: =AH90*AI90*AJ90 -> 219.4727586
A91: Overheads | B91: ='DNSP Inputs O & M'!$D$17 -> 0.25 | E91: =B91*(E89+E90) -> 251.0149062 | J91: ='DNSP Inputs O & M'!$E$17 -> 0.25 | M91: =J91*(M89+M90) -> 253.7137653 | R91: ='DNSP Inputs O & M'!$F$17 -> 0.25 | U91: =R91*(U89+U90) -> 257.1983633 | Z91: ='DNSP Inputs O & M'!$G$17 -> 0.25 | AC91: =Z91*(AC89+AC90) -> 261.1297029 | AH91: ='DNSP Inputs O & M'!$H$17 -> 0.25 | AK91: =AH91*(AK89+AK90) -> 264.909213
A96: Sodium High Pressure 150 Watt Standard Light Type - Cost build-up
A98: Additional assumptions
A99: Overheads are applied to material and labour components
A100: All costs and charges are exclusive of GST
B102: Urban | J102: Urban | R102: Urban | Z102: Urban | AH102: Urban
B104: Unit rate | C104: Number | D104: Hours | E104: Cost | F104: Annualised | G104: Annualised | J104: Unit rate | K104: Number | L104: Hours | M104: Cost | N104: Annualised | O104: Annualised | R104: Unit rate | S104: Number | T104: Hours | U104: Cost | V104: Annualised | W104: Annualised | Z104: Unit rate | AA104: Number | AB104: Hours | AC104: Cost | AD104: Annualised | AE104: Annualised | AH104: Unit rate | AI104: Number | AJ104: Hours | AK104: Cost | AL104: Annualised | AM104: Annualised
F105: cost | G105: unit cost | N105: cost | O105: unit cost | V105: cost | W105: unit cost | AD105: cost | AE105: unit cost | AL105: cost | AM105: unit cost
A106: S-HP 150
A107: Patrols and repairs
A108: Materials
A109: Lamp | B109: ='DNSP Inputs O & M'!$D$55 -> 41.18180183 | C109: ='DNSP Inputs O & M'!$D$61 -> 19.2 | E109: =B109*C109 -> 790.6905951 | F109: =(E109+E110+E111)/'DNSP Inputs O & M'!$D$61 -> 54.85715055 | G109: =F109/'DNSP Inputs O & M'!$D$53 -> 10.97143011 | J109: ='DNSP Inputs O & M'!$E$55 -> 41.18180183 | K109: ='DNSP Inputs O & M'!$E$61 -> 19.2 | M109: =J109*K109 -> 790.6905951 | N109: =(M109+M110+M111)/'DNSP Inputs O & M'!$E$61 -> 54.85715055 | O109: =N109/'DNSP Inputs O & M'!$E$53 -> 10.97143011 | R109: ='DNSP Inputs O & M'!$F$55 -> 41.18180183 | S109: ='DNSP Inputs O & M'!$F$61 -> 19.2 | U109: =R109*S109 -> 790.6905951 | V109: =(U109+U110+U111)/'DNSP Inputs O & M'!$F$61 -> 54.85715055 | W109: =V109/'DNSP Inputs O & M'!$F$53 -> 10.97143011 | Z109: ='DNSP Inputs O & M'!$G$55 -> 41.18180183 | AA109: ='DNSP Inputs O & M'!$G$61 -> 19.2 | AC109: =Z109*AA109 -> 790.6905951 | AD109: =(AC109+AC110+AC111)/'DNSP Inputs O & M'!$G$61 -> 54.85715055 | AE109: =AD109/'DNSP Inputs O & M'!$G$53 -> 10.97143011 | AH109: ='DNSP Inputs O & M'!$H$55 -> 41.18180183 | AI109: ='DNSP Inputs O & M'!$H$61 -> 19.2 | AK109: =AH109*AI109 -> 790.6905951 | AL109: =(AK109+AK110+AK111)/'DNSP Inputs O & M'!$H$61 -> 54.85715055 | AM109: =AL109/'DNSP Inputs O & M'!$H$53 -> 10.97143011
A110: PE cell | B110: ='DNSP Inputs O & M'!$D$56 -> 22.36651567 | C110: =C109*'DNSP Inputs O & M'!$D$53/'DNSP Inputs O & M'!$D$54 -> 9.6 | E110: =B110*C110 -> 214.7185504 | J110: ='DNSP Inputs O & M'!$E$56 -> 22.36651567 | K110: =K109*'DNSP Inputs O & M'!$E$53/'DNSP Inputs O & M'!$E$54 -> 9.6 | M110: =J110*K110 -> 214.7185504 | R110: ='DNSP Inputs O & M'!$F$56 -> 22.36651567 | S110: =S109*'DNSP Inputs O & M'!$F$53/'DNSP Inputs O & M'!$F$54 -> 9.6 | U110: =R110*S110 -> 214.7185504 | Z110: ='DNSP Inputs O & M'!$G$56 -> 22.36651567 | AA110: =AA109*'DNSP Inputs O & M'!$G$53/'DNSP Inputs O & M'!$G$54 -> 9.6 | AC110: =Z110*AA110 -> 214.7185504 | AH110: ='DNSP Inputs O & M'!$H$56 -> 22.36651567 | AI110: =AI109*'DNSP Inputs O & M'!$H$53/'DNSP Inputs O & M'!$H$54 -> 9.6 | AK110: =AH110*AI110 -> 214.7185504
A111: Miscellaneous | B111: ='DNSP Inputs O & M'!$D$57 -> 2.492090882 | C111: ='DNSP Inputs O & M'!$D$61 -> 19.2 | E111: =B111*C111 -> 47.84814494 | J111: ='DNSP Inputs O & M'!$E$57 -> 2.492090882 | K111: ='DNSP Inputs O & M'!$E$61 -> 19.2 | M111: =J111*K111 -> 47.84814494 | R111: ='DNSP Inputs O & M'!$F$57 -> 2.492090882 | S111: ='DNSP Inputs O & M'!$F$61 -> 19.2 | U111: =R111*S111 -> 47.84814494 | Z111: ='DNSP Inputs O & M'!$G$57 -> 2.492090882 | AA111: ='DNSP Inputs O & M'!$G$61 -> 19.2 | AC111: =Z111*AA111 -> 47.84814494 | AH111: ='DNSP Inputs O & M'!$H$57 -> 2.492090882 | AI111: ='DNSP Inputs O & M'!$H$61 -> 19.2 | AK111: =AH111*AI111 -> 47.84814494
A112: Labour - Patrol
A113: Crew costs | B113: ='DNSP Inputs O & M'!$D$12 -> 119.78 | C113: ='DNSP Inputs O & M'!$D$58 -> 2 | D113: ='DNSP Inputs O & M'!$D$16 -> 8 | E113: =B113*C113*D113 -> 1916.48 | F113: =(E113+E114)/'DNSP Inputs O & M'!$D$60 -> 0.7068465416 | G113: =F113*'DNSP Inputs O & M'!$D$52 -> 2.120539625 | J113: ='DNSP Inputs O & M'!$E$12 -> 120.73824 | K113: ='DNSP Inputs O & M'!$E$58 -> 2 | L113: ='DNSP Inputs O & M'!$E$16 -> 8 | M113: =J113*K113*L113 -> 1931.81184 | N113: =(M113+M114)/'DNSP Inputs O & M'!$E$60 -> 0.7134223004 | O113: =N113*'DNSP Inputs O & M'!$E$52 -> 2.140266901 | R113: ='DNSP Inputs O & M'!$F$12 -> 122.2836895 | S113: ='DNSP Inputs O & M'!$F$58 -> 2 | T113: ='DNSP Inputs O & M'!$F$16 -> 8 | U113: =R113*S113*T113 -> 1956.539032 | V113: =(U113+U114)/'DNSP Inputs O & M'!$F$60 -> 0.7228701882 | W113: =V113*'DNSP Inputs O & M'!$F$52 -> 2.168610565 | Z113: ='DNSP Inputs O & M'!$G$12 -> 124.0934881 | AA113: ='DNSP Inputs O & M'!$G$58 -> 2 | AB113: ='DNSP Inputs O & M'!$G$16 -> 8 | AC113: =Z113*AA113*AB113 -> 1985.495809 | AD113: =(AC113+AC114)/'DNSP Inputs O & M'!$G$60 -> 0.7337350722 | AE113: =AD113*'DNSP Inputs O & M'!$G$52 -> 2.201205217 | AH113: ='DNSP Inputs O & M'!$H$12 -> 125.7935689 | AI113: ='DNSP Inputs O & M'!$H$58 -> 2 | AJ113: ='DNSP Inputs O & M'!$H$16 -> 8 | AK113: =AH113*AI113*AJ113 -> 2012.697102 | AL113: =(AK113+AK114)/'DNSP Inputs O & M'!$H$60 -> 0.7440566201 | AM113: =AL113*'DNSP Inputs O & M'!$H$52 -> 2.23216986
A114: Vehicle costs | B114: ='DNSP Inputs O & M'!$D$15 -> 25.50745311 | C114: 1 | D114: ='DNSP Inputs O & M'!$D$16 -> 8 | E114: =B114*C114*D114 -> 204.0596249 | J114: ='DNSP Inputs O & M'!$E$15 -> 26.05688266 | K114: 1 | L114: ='DNSP Inputs O & M'!$E$16 -> 8 | M114: =J114*K114*L114 -> 208.4550612 | R114: ='DNSP Inputs O & M'!$F$15 -> 26.50894163 | S114: 1 | T114: ='DNSP Inputs O & M'!$F$16 -> 8 | U114: =R114*S114*T114 -> 212.0715331 | Z114: ='DNSP Inputs O & M'!$G$15 -> 26.96367591 | AA114: 1 | AB114: ='DNSP Inputs O & M'!$G$16 -> 8 | AC114: =Z114*AA114*AB114 -> 215.7094073 | AH114: ='DNSP Inputs O & M'!$H$15 -> 27.43409482 | AI114: 1 | AJ114: ='DNSP Inputs O & M'!$H$16 -> 8 | AK114: =AH114*AI114*AJ114 -> 219.4727586
A115: Labour - Repair of faults
A116: Crew costs | B116: ='DNSP Inputs O & M'!$D$11 -> 100 | C116: ='DNSP Inputs O & M'!$D$59 -> 2 | D116: ='DNSP Inputs O & M'!$D$16 -> 8 | E116: =B116*C116*D116 -> 1600 | F116: =(E116+E117)/'DNSP Inputs O & M'!$D$61*(C109+C110)/C109 -> 160.9709097 | G116: =F116/'DNSP Inputs O & M'!$D$53 -> 32.19418194 | J116: ='DNSP Inputs O & M'!$E$11 -> 100.8 | K116: ='DNSP Inputs O & M'!$E$59 -> 2 | L116: ='DNSP Inputs O & M'!$E$16 -> 8 | M116: =J116*K116*L116 -> 1612.8 | N116: =(M116+M117)/'DNSP Inputs O & M'!$E$61*(K109+K110)/K109 -> 162.7457217 | O116: =N116/'DNSP Inputs O & M'!$E$53 -> 32.54914434 | R116: ='DNSP Inputs O & M'!$F$11 -> 102.09024 | S116: ='DNSP Inputs O & M'!$F$59 -> 2 | T116: ='DNSP Inputs O & M'!$F$16 -> 8 | U116: =R116*S116*T116 -> 1633.44384 | V116: =(U116+U117)/'DNSP Inputs O & M'!$F$61*(S109+S110)/S109 -> 164.9960206 | W116: =V116/'DNSP Inputs O & M'!$F$53 -> 32.99920411 | Z116: ='DNSP Inputs O & M'!$G$11 -> 103.6011756 | AA116: ='DNSP Inputs O & M'!$G$59 -> 2 | AB116: ='DNSP Inputs O & M'!$G$16 -> 8 | AC116: =Z116*AA116*AB116 -> 1657.618809 | AD116: =(AC116+AC117)/'DNSP Inputs O & M'!$G$61*(AA109+AA110)/AA109 -> 167.5259616 | AE116: =AD116/'DNSP Inputs O & M'!$G$53 -> 33.50519233 | AH116: ='DNSP Inputs O & M'!$H$11 -> 105.0205117 | AI116: ='DNSP Inputs O & M'!$H$59 -> 2 | AJ116: ='DNSP Inputs O & M'!$H$16 -> 8 | AK116: =AH116*AI116*AJ116 -> 1680.328187 | AL116: =(AK116+AK117)/'DNSP Inputs O & M'!$H$61*(AI109+AI110)/AI109 -> 169.963522 | AM116: =AL116/'DNSP Inputs O & M'!$H$53 -> 33.99270441
A117: Elevated platform vehicle costs | B117: ='DNSP Inputs O & M'!$D$14 -> 57.55345553 | C117: 1 | D117: ='DNSP Inputs O & M'!$D$16 -> 8 | E117: =B117*C117*D117 -> 460.4276442 | J117: ='DNSP Inputs O & M'!$E$14 -> 58.79315472 | K117: 1 | L117: ='DNSP Inputs O & M'!$E$16 -> 8 | M117: =J117*K117*L117 -> 470.3452378 | R117: ='DNSP Inputs O & M'!$F$14 -> 59.81315292 | S117: 1 | T117: ='DNSP Inputs O & M'!$F$16 -> 8 | U117: =R117*S117*T117 -> 478.5052234 | Z117: ='DNSP Inputs O & M'!$G$14 -> 60.83918751 | AA117: 1 | AB117: ='DNSP Inputs O & M'!$G$16 -> 8 | AC117: =Z117*AA117*AB117 -> 486.7135001 | AH117: ='DNSP Inputs O & M'!$H$14 -> 61.90061193 | AI117: 1 | AJ117: ='DNSP Inputs O & M'!$H$16 -> 8 | AK117: =AH117*AI117*AJ117 -> 495.2048955
A119: Other Maintenance and Repair costs | G119: ='DNSP Inputs O & M'!$D$68 -> 4.223870889 | O119: ='DNSP Inputs O & M'!$E$68 -> 4.275960421 | W119: ='DNSP Inputs O & M'!$F$68 -> 4.323944223 | AE119: ='DNSP Inputs O & M'!$G$68 -> 4.329371702 | AM119: ='DNSP Inputs O & M'!$H$68 -> 4.330713128
A121: Overheads | B121: ='DNSP Inputs O & M'!$D$17 -> 0.25 | G121: =B121*(G109+G113+G116+G119) -> 12.37750564 | J121: ='DNSP Inputs O & M'!$E$17 -> 0.25 | O121: =J121*(O109+O113+O116+O119) -> 12.48420044 | R121: ='DNSP Inputs O & M'!$F$17 -> 0.25 | W121: =R121*(W109+W113+W116+W119) -> 12.61579725 | Z121: ='DNSP Inputs O & M'!$G$17 -> 0.25 | AE121: =Z121*(AE109+AE113+AE116+AE119) -> 12.75179984 | AH121: ='DNSP Inputs O & M'!$H$17 -> 0.25 | AM121: =AH121*(AM109+AM113+AM116+AM119) -> 12.88175438
G123: =SUM(G109,G113,G116,G119,G121) -> 61.88752821 | O123: =SUM(O109,O113,O116,O119,O121) -> 62.42100221 | W123: =SUM(W109,W113,W116,W119,W121) -> 63.07898626 | AE123: =SUM(AE109,AE113,AE116,AE119,AE121) -> 63.75899919 | AM123: =SUM(AM109,AM113,AM116,AM119,AM121) -> 64.40877188
A128: Sodium High Pressure 250 Watt Standard Light Type - Cost build-up
A130: Additional assumptions
A131: Overheads are applied to material and labour components
A132: All costs and charges are exclusive of GST
B134: Urban | J134: Urban | R134: Urban | Z134: Urban | AH134: Urban
B136: Unit rate | C136: Number | D136: Hours | E136: Cost | F136: Annualised | G136: Annualised | J136: Unit rate | K136: Number | L136: Hours | M136: Cost | N136: Annualised | O136: Annualised | R136: Unit rate | S136: Number | T136: Hours | U136: Cost | V136: Annualised | W136: Annualised | Z136: Unit rate | AA136: Number | AB136: Hours | AC136: Cost | AD136: Annualised | AE136: Annualised | AH136: Unit rate | AI136: Number | AJ136: Hours | AK136: Cost | AL136: Annualised | AM136: Annualised
F137: cost | G137: unit cost | N137: cost | O137: unit cost | V137: cost | W137: unit cost | AD137: cost | AE137: unit cost | AL137: cost | AM137: unit cost
A138: S-HP 250
A139: Patrols and repairs
A140: Materials
A141: Lamp | B141: ='DNSP Inputs O & M'!$D$78 -> 41.18180183 | C141: ='DNSP Inputs O & M'!$D$61 -> 19.2 | E141: =B141*C141 -> 790.6905951 | F141: =(E141+E142+E143)/'DNSP Inputs O & M'!$D$61 -> 54.85715055 | G141: =F141/'DNSP Inputs O & M'!$D$53 -> 10.97143011 | J141: ='DNSP Inputs O & M'!$E$78 -> 41.18180183 | K141: ='DNSP Inputs O & M'!$E$61 -> 19.2 | M141: =J141*K141 -> 790.6905951 | N141: =(M141+M142+M143)/'DNSP Inputs O & M'!$E$61 -> 54.85715055 | O141: =N141/'DNSP Inputs O & M'!$E$53 -> 10.97143011 | R141: ='DNSP Inputs O & M'!$F$78 -> 41.18180183 | S141: ='DNSP Inputs O & M'!$F$61 -> 19.2 | U141: =R141*S141 -> 790.6905951 | V141: =(U141+U142+U143)/'DNSP Inputs O & M'!$F$61 -> 54.85715055 | W141: =V141/'DNSP Inputs O & M'!$F$53 -> 10.97143011 | Z141: ='DNSP Inputs O & M'!$G$78 -> 41.18180183 | AA141: ='DNSP Inputs O & M'!$G$61 -> 19.2 | AC141: =Z141*AA141 -> 790.6905951 | AD141: =(AC141+AC142+AC143)/'DNSP Inputs O & M'!$G$61 -> 54.85715055 | AE141: =AD141/'DNSP Inputs O & M'!$G$53 -> 10.97143011 | AH141: ='DNSP Inputs O & M'!$H$78 -> 41.18180183 | AI141: ='DNSP Inputs O & M'!$H$61 -> 19.2 | AK141: =AH141*AI141 -> 790.6905951 | AL141: =(AK141+AK142+AK143)/'DNSP Inputs O & M'!$H$61 -> 54.85715055 | AM141: =AL141/'DNSP Inputs O & M'!$H$53 -> 10.97143011
A142: PE cell | B142: ='DNSP Inputs O & M'!$D$79 -> 22.36651567 | C142: =C141*'DNSP Inputs O & M'!$D$53/'DNSP Inputs O & M'!$D$54 -> 9.6 | E142: =B142*C142 -> 214.7185504 | J142: ='DNSP Inputs O & M'!$E$79 -> 22.36651567 | K142: =K141*'DNSP Inputs O & M'!$E$53/'DNSP Inputs O & M'!$E$54 -> 9.6 | M142: =J142*K142 -> 214.7185504 | R142: ='DNSP Inputs O & M'!$F$79 -> 22.36651567 | S142: =S141*'DNSP Inputs O & M'!$F$53/'DNSP Inputs O & M'!$F$54 -> 9.6 | U142: =R142*S142 -> 214.7185504 | Z142: ='DNSP Inputs O & M'!$G$79 -> 22.36651567 | AA142: =AA141*'DNSP Inputs O & M'!$G$53/'DNSP Inputs O & M'!$G$54 -> 9.6 | AC142: =Z142*AA142 -> 214.7185504 | AH142: ='DNSP Inputs O & M'!$H$79 -> 22.36651567 | AI142: =AI141*'DNSP Inputs O & M'!$H$53/'DNSP Inputs O & M'!$H$54 -> 9.6 | AK142: =AH142*AI142 -> 214.7185504
A143: Miscellaneous | B143: ='DNSP Inputs O & M'!$D$80 -> 2.492090882 | C143: ='DNSP Inputs O & M'!$D$61 -> 19.2 | E143: =B143*C143 -> 47.84814494 | J143: ='DNSP Inputs O & M'!$E$80 -> 2.492090882 | K143: ='DNSP Inputs O & M'!$E$61 -> 19.2 | M143: =J143*K143 -> 47.84814494 | R143: ='DNSP Inputs O & M'!$F$80 -> 2.492090882 | S143: ='DNSP Inputs O & M'!$F$61 -> 19.2 | U143: =R143*S143 -> 47.84814494 | Z143: ='DNSP Inputs O & M'!$G$80 -> 2.492090882 | AA143: ='DNSP Inputs O & M'!$G$61 -> 19.2 | AC143: =Z143*AA143 -> 47.84814494 | AH143: ='DNSP Inputs O & M'!$H$80 -> 2.492090882 | AI143: ='DNSP Inputs O & M'!$H$61 -> 19.2 | AK143: =AH143*AI143 -> 47.84814494
A144: Labour - Patrol
A145: Crew costs | B145: ='DNSP Inputs O & M'!$D$12 -> 119.78 | C145: ='DNSP Inputs O & M'!$D$58 -> 2 | D145: ='DNSP Inputs O & M'!$D$16 -> 8 | E145: =B145*C145*D145 -> 1916.48 | F145: =(E145+E146)/'DNSP Inputs O & M'!$D$60 -> 0.7068465416 | G145: =F145*'DNSP Inputs O & M'!$D$52 -> 2.120539625 | J145: ='DNSP Inputs O & M'!$E$12 -> 120.73824 | K145: ='DNSP Inputs O & M'!$E$58 -> 2 | L145: ='DNSP Inputs O & M'!$E$16 -> 8 | M145: =J145*K145*L145 -> 1931.81184 | N145: =(M145+M146)/'DNSP Inputs O & M'!$E$60 -> 0.7134223004 | O145: =N145*'DNSP Inputs O & M'!$E$52 -> 2.140266901 | R145: ='DNSP Inputs O & M'!$F$12 -> 122.2836895 | S145: ='DNSP Inputs O & M'!$F$58 -> 2 | T145: ='DNSP Inputs O & M'!$F$16 -> 8 | U145: =R145*S145*T145 -> 1956.539032 | V145: =(U145+U146)/'DNSP Inputs O & M'!$F$60 -> 0.7228701882 | W145: =V145*'DNSP Inputs O & M'!$F$52 -> 2.168610565 | Z145: ='DNSP Inputs O & M'!$G$12 -> 124.0934881 | AA145: ='DNSP Inputs O & M'!$G$58 -> 2 | AB145: ='DNSP Inputs O & M'!$G$16 -> 8 | AC145: =Z145*AA145*AB145 -> 1985.495809 | AD145: =(AC145+AC146)/'DNSP Inputs O & M'!$G$60 -> 0.7337350722 | AE145: =AD145*'DNSP Inputs O & M'!$G$52 -> 2.201205217 | AH145: ='DNSP Inputs O & M'!$H$12 -> 125.7935689 | AI145: ='DNSP Inputs O & M'!$H$58 -> 2 | AJ145: ='DNSP Inputs O & M'!$H$16 -> 8 | AK145: =AH145*AI145*AJ145 -> 2012.697102 | AL145: =(AK145+AK146)/'DNSP Inputs O & M'!$H$60 -> 0.7440566201 | AM145: =AL145*'DNSP Inputs O & M'!$H$52 -> 2.23216986
A146: Vehicle costs | B146: ='DNSP Inputs O & M'!$D$15 -> 25.50745311 | C146: 1 | D146: ='DNSP Inputs O & M'!$D$16 -> 8 | E146: =B146*C146*D146 -> 204.0596249 | J146: ='DNSP Inputs O & M'!$E$15 -> 26.05688266 | K146: 1 | L146: ='DNSP Inputs O & M'!$E$16 -> 8 | M146: =J146*K146*L146 -> 208.4550612 | R146: ='DNSP Inputs O & M'!$F$15 -> 26.50894163 | S146: 1 | T146: ='DNSP Inputs O & M'!$F$16 -> 8 | U146: =R146*S146*T146 -> 212.0715331 | Z146: ='DNSP Inputs O & M'!$G$15 -> 26.96367591 | AA146: 1 | AB146: ='DNSP Inputs O & M'!$G$16 -> 8 | AC146: =Z146*AA146*AB146 -> 215.7094073 | AH146: ='DNSP Inputs O & M'!$H$15 -> 27.43409482 | AI146: 1 | AJ146: ='DNSP Inputs O & M'!$H$16 -> 8 | AK146: =AH146*AI146*AJ146 -> 219.4727586
A147: Labour - Repair of faults
A148: Crew costs | B148: ='DNSP Inputs O & M'!$D$11 -> 100 | C148: ='DNSP Inputs O & M'!$D$59 -> 2 | D148: ='DNSP Inputs O & M'!$D$16 -> 8 | E148: =B148*C148*D148 -> 1600 | F148: =(E148+E149)/'DNSP Inputs O & M'!$D$61*(C141+C142)/C141 -> 160.9709097 | G148: =F148/'DNSP Inputs O & M'!$D$53 -> 32.19418194 | J148: ='DNSP Inputs O & M'!$E$11 -> 100.8 | K148: ='DNSP Inputs O & M'!$E$59 -> 2 | L148: ='DNSP Inputs O & M'!$E$16 -> 8 | M148: =J148*K148*L148 -> 1612.8 | N148: =(M148+M149)/'DNSP Inputs O & M'!$E$61*(K141+K142)/K141 -> 162.7457217 | O148: =N148/'DNSP Inputs O & M'!$E$53 -> 32.54914434 | R148: ='DNSP Inputs O & M'!$F$11 -> 102.09024 | S148: ='DNSP Inputs O & M'!$F$59 -> 2 | T148: ='DNSP Inputs O & M'!$F$16 -> 8 | U148: =R148*S148*T148 -> 1633.44384 | V148: =(U148+U149)/'DNSP Inputs O & M'!$F$61*(S141+S142)/S141 -> 164.9960206 | W148: =V148/'DNSP Inputs O & M'!$F$53 -> 32.99920411 | Z148: ='DNSP Inputs O & M'!$G$11 -> 103.6011756 | AA148: ='DNSP Inputs O & M'!$G$59 -> 2 | AB148: ='DNSP Inputs O & M'!$G$16 -> 8 | AC148: =Z148*AA148*AB148 -> 1657.618809 | AD148: =(AC148+AC149)/'DNSP Inputs O & M'!$G$61*(AA141+AA142)/AA141 -> 167.5259616 | AE148: =AD148/'DNSP Inputs O & M'!$G$53 -> 33.50519233 | AH148: ='DNSP Inputs O & M'!$H$11 -> 105.0205117 | AI148: ='DNSP Inputs O & M'!$H$59 -> 2 | AJ148: ='DNSP Inputs O & M'!$H$16 -> 8 | AK148: =AH148*AI148*AJ148 -> 1680.328187 | AL148: =(AK148+AK149)/'DNSP Inputs O & M'!$H$61*(AI141+AI142)/AI141 -> 169.963522 | AM148: =AL148/'DNSP Inputs O & M'!$H$53 -> 33.99270441
A149: Elevated platform vehicle costs | B149: ='DNSP Inputs O & M'!$D$14 -> 57.55345553 | C149: 1 | D149: ='DNSP Inputs O & M'!$D$16 -> 8 | E149: =B149*C149*D149 -> 460.4276442 | J149: ='DNSP Inputs O & M'!$E$14 -> 58.79315472 | K149: 1 | L149: ='DNSP Inputs O & M'!$E$16 -> 8 | M149: =J149*K149*L149 -> 470.3452378 | R149: ='DNSP Inputs O & M'!$F$14 -> 59.81315292 | S149: 1 | T149: ='DNSP Inputs O & M'!$F$16 -> 8 | U149: =R149*S149*T149 -> 478.5052234 | Z149: ='DNSP Inputs O & M'!$G$14 -> 60.83918751 | AA149: 1 | AB149: ='DNSP Inputs O & M'!$G$16 -> 8 | AC149: =Z149*AA149*AB149 -> 486.7135001 | AH149: ='DNSP Inputs O & M'!$H$14 -> 61.90061193 | AI149: 1 | AJ149: ='DNSP Inputs O & M'!$H$16 -> 8 | AK149: =AH149*AI149*AJ149 -> 495.2048955
A151: Other Maintenance and Repair costs | G151: ='DNSP Inputs O & M'!$D$91 -> 4.531119034 | O151: ='DNSP Inputs O & M'!$E$91 -> 4.572962641 | W151: ='DNSP Inputs O & M'!$F$91 -> 4.639335418 | AE151: ='DNSP Inputs O & M'!$G$91 -> 4.660330918 | AM151: ='DNSP Inputs O & M'!$H$91 -> 4.677055216
A153: Overheads | B153: ='DNSP Inputs O & M'!$D$17 -> 0.25 | G153: =B153*(G141+G145+G148+G151) -> 12.45431768 | J153: ='DNSP Inputs O & M'!$E$17 -> 0.25 | O153: =J153*(O141+O145+O148+O151) -> 12.558451 | R153: ='DNSP Inputs O & M'!$F$17 -> 0.25 | W153: =R153*(W141+W145+W148+W151) -> 12.69464505 | Z153: ='DNSP Inputs O & M'!$G$17 -> 0.25 | AE153: =Z153*(AE141+AE145+AE148+AE151) -> 12.83453964 | AH153: ='DNSP Inputs O & M'!$H$17 -> 0.25 | AM153: =AH153*(AM141+AM145+AM148+AM151) -> 12.9683399
G155: =SUM(G141,G145,G148,G151,G153) -> 62.27158839 | O155: =SUM(O141,O145,O148,O151,O153) -> 62.79225499 | W155: =SUM(W141,W145,W148,W151,W153) -> 63.47322526 | AE155: =SUM(AE141,AE145,AE148,AE151,AE153) -> 64.17269821 | AM155: =SUM(AM141,AM145,AM148,AM151,AM153) -> 64.84169949
A160: T5 (2 X 14W) - Cost build-up
A162: Additional assumptions
A163: Proportion of luminaire that will fail before bulk change | D163: ='DNSP Inputs O & M'!$D$123 -> 0.114 | L163: ='DNSP Inputs O & M'!$E$123 -> 0.114 | T163: ='DNSP Inputs O & M'!$F$123 -> 0.114 | AB163: ='DNSP Inputs O & M'!$G$123 -> 0.114 | AJ163: ='DNSP Inputs O & M'!$H$123 -> 0.114
A164: Proportion of lamps that will fail before bulk change (per year) | D164: =D163/'DNSP Inputs O & M'!$D$120 -> 0.0285 | L164: =L163/'DNSP Inputs O & M'!$E$120 -> 0.0285 | T164: =T163/'DNSP Inputs O & M'!$F$120 -> 0.0285 | AB164: =AB163/'DNSP Inputs O & M'!$G$120 -> 0.0285 | AJ164: =AJ163/'DNSP Inputs O & M'!$H$120 -> 0.0285
A165: Overheads are applied to material and labour components
A166: All costs and charges are exclusive of GST
B168: Urban | J168: Urban | R168: Urban | Z168: Urban | AH168: Urban
B170: Unit rate | C170: Number | D170: Hours | E170: Cost | F170: Annualised | G170: Annualised | J170: Unit rate | K170: Number | L170: Hours | M170: Cost | N170: Annualised | O170: Annualised | R170: Unit rate | S170: Number | T170: Hours | U170: Cost | V170: Annualised | W170: Annualised | Z170: Unit rate | AA170: Number | AB170: Hours | AC170: Cost | AD170: Annualised | AE170: Annualised | AH170: Unit rate | AI170: Number | AJ170: Hours | AK170: Cost | AL170: Annualised | AM170: Annualised
F171: cost | G171: unit cost | N171: cost | O171: unit cost | V171: cost | W171: unit cost | AD171: cost | AE171: unit cost | AL171: cost | AM171: unit cost
A172: T5 (2 X 14W)
A173: Bulk change & repairs
A174: Materials - bulk lamp change
A175: Lamp | B175: ='DNSP Inputs O & M'!$D$124 -> 9.968363529 | C175: ='DNSP Inputs O & M'!$D$130 -> 73.92 | E175: =B175*C175 -> 736.8614321 | F175: =E175/'DNSP Inputs O & M'!$D$120*0.8 -> 147.3722864 | G175: =(F175+F176+F177)/C175 -> 4.345583476 | J175: ='DNSP Inputs O & M'!$E$124 -> 9.968363529 | K175: ='DNSP Inputs O & M'!$E$130 -> 73.92 | M175: =J175*K175 -> 736.8614321 | N175: =M175/'DNSP Inputs O & M'!$E$120*0.8 -> 147.3722864 | O175: =(N175+N176+N177)/K175 -> 4.345583476 | R175: ='DNSP Inputs O & M'!$F$124 -> 9.968363529 | S175: ='DNSP Inputs O & M'!$F$130 -> 73.92 | U175: =R175*S175 -> 736.8614321 | V175: =U175/'DNSP Inputs O & M'!$F$120*0.8 -> 147.3722864 | W175: =(V175+V176+V177)/S175 -> 4.345583476 | Z175: ='DNSP Inputs O & M'!$G$124 -> 9.968363529 | AA175: ='DNSP Inputs O & M'!$G$130 -> 73.92 | AC175: =Z175*AA175 -> 736.8614321 | AD175: =AC175/'DNSP Inputs O & M'!$G$120*0.8 -> 147.3722864 | AE175: =(AD175+AD176+AD177)/AA175 -> 4.345583476 | AH175: ='DNSP Inputs O & M'!$H$124 -> 9.968363529 | AI175: ='DNSP Inputs O & M'!$H$130 -> 73.92 | AK175: =AH175*AI175 -> 736.8614321 | AL175: =AK175/'DNSP Inputs O & M'!$H$120*0.8 -> 147.3722864 | AM175: =(AL175+AL176+AL177)/AI175 -> 4.345583476
A176: PE cell | B176: ='DNSP Inputs O & M'!$D$125 -> 16.82161346 | C176: =C175*'DNSP Inputs O & M'!$D$120/'DNSP Inputs O & M'!$D$121 -> 36.96 | E176: =B176*C176 -> 621.7268333 | F176: =E176/'DNSP Inputs O & M'!$D$120 -> 155.4317083 | J176: ='DNSP Inputs O & M'!$E$125 -> 16.82161346 | K176: =K175*'DNSP Inputs O & M'!$E$120/'DNSP Inputs O & M'!$E$121 -> 36.96 | M176: =J176*K176 -> 621.7268333 | N176: =M176/'DNSP Inputs O & M'!$E$120 -> 155.4317083 | R176: ='DNSP Inputs O & M'!$F$125 -> 16.82161346 | S176: =S175*'DNSP Inputs O & M'!$F$120/'DNSP Inputs O & M'!$F$121 -> 36.96 | U176: =R176*S176 -> 621.7268333 | V176: =U176/'DNSP Inputs O & M'!$F$120 -> 155.4317083 | Z176: ='DNSP Inputs O & M'!$G$125 -> 16.82161346 | AA176: =AA175*'DNSP Inputs O & M'!$G$120/'DNSP Inputs O & M'!$G$121 -> 36.96 | AC176: =Z176*AA176 -> 621.7268333 | AD176: =AC176/'DNSP Inputs O & M'!$G$120 -> 155.4317083 | AH176: ='DNSP Inputs O & M'!$H$125 -> 16.82161346 | AI176: =AI175*'DNSP Inputs O & M'!$H$120/'DNSP Inputs O & M'!$H$121 -> 36.96 | AK176: =AH176*AI176 -> 621.7268333 | AL176: =AK176/'DNSP Inputs O & M'!$H$120 -> 155.4317083
A177: Miscellaneous | B177: ='DNSP Inputs O & M'!$D$127 -> 1.246045441 | C177: ='DNSP Inputs O & M'!$D$130 -> 73.92 | E177: =B177*C177 -> 92.10767901 | F177: =E177/'DNSP Inputs O & M'!$D$120*0.8 -> 18.4215358 | J177: ='DNSP Inputs O & M'!$E$127 -> 1.246045441 | K177: ='DNSP Inputs O & M'!$E$130 -> 73.92 | M177: =J177*K177 -> 92.10767901 | N177: =M177/'DNSP Inputs O & M'!$E$120*0.8 -> 18.4215358 | R177: ='DNSP Inputs O & M'!$F$127 -> 1.246045441 | S177: ='DNSP Inputs O & M'!$F$130 -> 73.92 | U177: =R177*S177 -> 92.10767901 | V177: =U177/'DNSP Inputs O & M'!$F$120*0.8 -> 18.4215358 | Z177: ='DNSP Inputs O & M'!$G$127 -> 1.246045441 | AA177: ='DNSP Inputs O & M'!$G$130 -> 73.92 | AC177: =Z177*AA177 -> 92.10767901 | AD177: =AC177/'DNSP Inputs O & M'!$G$120*0.8 -> 18.4215358 | AH177: ='DNSP Inputs O & M'!$H$127 -> 1.246045441 | AI177: ='DNSP Inputs O & M'!$H$130 -> 73.92 | AK177: =AH177*AI177 -> 92.10767901 | AL177: =AK177/'DNSP Inputs O & M'!$H$120*0.8 -> 18.4215358
A178: Materials - repair of faults
A179: Lamp | B179: ='DNSP Inputs O & M'!$D$124 -> 9.968363529 | C179: ='DNSP Inputs O & M'!$D$131*'DNSP Inputs O & M'!$D$132 -> 14.976 | E179: =B179*C179 -> 149.2862122 | F179: =(E179+E180+E181+E182)/'DNSP Inputs O & M'!$D$131 -> 60.71605621 | G179: =F179*D164 -> 1.730407602 | J179: ='DNSP Inputs O & M'!$E$124 -> 9.968363529 | K179: ='DNSP Inputs O & M'!$E$131*'DNSP Inputs O & M'!$E$132 -> 14.976 | M179: =J179*K179 -> 149.2862122 | N179: =(M179+M180+M181+M182)/'DNSP Inputs O & M'!$E$131 -> 60.71605621 | O179: =N179*L164 -> 1.730407602 | R179: ='DNSP Inputs O & M'!$F$124 -> 9.968363529 | S179: ='DNSP Inputs O & M'!$F$131*'DNSP Inputs O & M'!$F$132 -> 14.976 | U179: =R179*S179 -> 149.2862122 | V179: =(U179+U180+U181+U182)/'DNSP Inputs O & M'!$F$131 -> 60.71605621 | W179: =V179*T164 -> 1.730407602 | Z179: ='DNSP Inputs O & M'!$G$124 -> 9.968363529 | AA179: ='DNSP Inputs O & M'!$G$131*'DNSP Inputs O & M'!$G$132 -> 14.976 | AC179: =Z179*AA179 -> 149.2862122 | AD179: =(AC179+AC180+AC181+AC182)/'DNSP Inputs O & M'!$G$131 -> 60.71605621 | AE179: =AD179*AB164 -> 1.730407602 | AH179: ='DNSP Inputs O & M'!$H$124 -> 9.968363529 | AI179: ='DNSP Inputs O & M'!$H$131*'DNSP Inputs O & M'!$H$132 -> 14.976 | AK179: =AH179*AI179 -> 149.2862122 | AL179: =(AK179+AK180+AK181+AK182)/'DNSP Inputs O & M'!$H$131 -> 60.71605621 | AM179: =AL179*AJ164 -> 1.730407602
A180: PE cell | B180: ='DNSP Inputs O & M'!$D$125 -> 16.82161346 | C180: ='DNSP Inputs O & M'!$D$131*'DNSP Inputs O & M'!$D$133 -> 12.48 | E180: =B180*C180 -> 209.9337359 | J180: ='DNSP Inputs O & M'!$E$125 -> 16.82161346 | K180: ='DNSP Inputs O & M'!$E$131*'DNSP Inputs O & M'!$E$133 -> 12.48 | M180: =J180*K180 -> 209.9337359 | R180: ='DNSP Inputs O & M'!$F$125 -> 16.82161346 | S180: ='DNSP Inputs O & M'!$F$131*'DNSP Inputs O & M'!$F$133 -> 12.48 | U180: =R180*S180 -> 209.9337359 | Z180: ='DNSP Inputs O & M'!$G$125 -> 16.82161346 | AA180: ='DNSP Inputs O & M'!$G$131*'DNSP Inputs O & M'!$G$133 -> 12.48 | AC180: =Z180*AA180 -> 209.9337359 | AH180: ='DNSP Inputs O & M'!$H$125 -> 16.82161346 | AI180: ='DNSP Inputs O & M'!$H$131*'DNSP Inputs O & M'!$H$133 -> 12.48 | AK180: =AH180*AI180 -> 209.9337359
A181: Luminaire | B181: ='DNSP Inputs O & M'!$D$126 -> 300.5212395 | C181: ='DNSP Inputs O & M'!$D$131*'DNSP Inputs O & M'!$D$134 -> 3.744 | E181: =B181*C181 -> 1125.151521 | J181: ='DNSP Inputs O & M'!$E$126 -> 300.5212395 | K181: ='DNSP Inputs O & M'!$E$131*'DNSP Inputs O & M'!$E$134 -> 3.744 | M181: =J181*K181 -> 1125.151521 | R181: ='DNSP Inputs O & M'!$F$126 -> 300.5212395 | S181: ='DNSP Inputs O & M'!$F$131*'DNSP Inputs O & M'!$F$134 -> 3.744 | U181: =R181*S181 -> 1125.151521 | Z181: ='DNSP Inputs O & M'!$G$126 -> 300.5212395 | AA181: ='DNSP Inputs O & M'!$G$131*'DNSP Inputs O & M'!$G$134 -> 3.744 | AC181: =Z181*AA181 -> 1125.151521 | AH181: ='DNSP Inputs O & M'!$H$126 -> 300.5212395 | AI181: ='DNSP Inputs O & M'!$H$131*'DNSP Inputs O & M'!$H$134 -> 3.744 | AK181: =AH181*AI181 -> 1125.151521
A182: Miscellaneous | B182: ='DNSP Inputs O & M'!$D$128 -> 12.46045441 | C182: ='DNSP Inputs O & M'!$D$131*'DNSP Inputs O & M'!$D$135 -> 2.496 | E182: =B182*C182 -> 31.10129421 | J182: ='DNSP Inputs O & M'!$E$128 -> 12.46045441 | K182: ='DNSP Inputs O & M'!$E$131*'DNSP Inputs O & M'!$E$135 -> 2.496 | M182: =J182*K182 -> 31.10129421 | R182: ='DNSP Inputs O & M'!$F$128 -> 12.46045441 | S182: ='DNSP Inputs O & M'!$F$131*'DNSP Inputs O & M'!$F$135 -> 2.496 | U182: =R182*S182 -> 31.10129421 | Z182: ='DNSP Inputs O & M'!$G$128 -> 12.46045441 | AA182: ='DNSP Inputs O & M'!$G$131*'DNSP Inputs O & M'!$G$135 -> 2.496 | AC182: =Z182*AA182 -> 31.10129421 | AH182: ='DNSP Inputs O & M'!$H$128 -> 12.46045441 | AI182: ='DNSP Inputs O & M'!$H$131*'DNSP Inputs O & M'!$H$135 -> 2.496 | AK182: =AH182*AI182 -> 31.10129421
A183: Labour - bulk lamp change
A184: Crew costs | B184: ='DNSP Inputs O & M'!$D$11 -> 100 | C184: ='DNSP Inputs O & M'!$D$129 -> 2 | D184: ='DNSP Inputs O & M'!$D$16 -> 8 | E184: =B184*C184*D184 -> 1600 | F184: =E184/'DNSP Inputs O & M'!$D$120*(C175+C176)/C175*0.8 -> 480 | G184: =(F184+F185)/C175 -> 7.805844156 | J184: ='DNSP Inputs O & M'!$E$11 -> 100.8 | K184: ='DNSP Inputs O & M'!$E$129 -> 2 | L184: ='DNSP Inputs O & M'!$E$16 -> 8 | M184: =J184*K184*L184 -> 1612.8 | N184: =M184/'DNSP Inputs O & M'!$E$120*(K175+K176)/K175*0.8 -> 483.84 | O184: =(N184+N185)/K175 -> 7.857792208 | R184: ='DNSP Inputs O & M'!$F$11 -> 102.09024 | S184: ='DNSP Inputs O & M'!$F$129 -> 2 | T184: ='DNSP Inputs O & M'!$F$16 -> 8 | U184: =R184*S184*T184 -> 1633.44384 | V184: =U184/'DNSP Inputs O & M'!$F$120*(S175+S176)/S175*0.8 -> 490.033152 | W184: =(V184+V185)/S175 -> 7.941574026 | Z184: ='DNSP Inputs O & M'!$G$11 -> 103.6011756 | AA184: ='DNSP Inputs O & M'!$G$129 -> 2 | AB184: ='DNSP Inputs O & M'!$G$16 -> 8 | AC184: =Z184*AA184*AB184 -> 1657.618809 | AD184: =AC184/'DNSP Inputs O & M'!$G$120*(AA175+AA176)/AA175*0.8 -> 497.2856426 | AE184: =(AD184+AD185)/AA175 -> 8.039686724 | AH184: ='DNSP Inputs O & M'!$H$11 -> 105.0205117 | AI184: ='DNSP Inputs O & M'!$H$129 -> 2 | AJ184: ='DNSP Inputs O & M'!$H$16 -> 8 | AK184: =AH184*AI184*AJ184 -> 1680.328187 | AL184: =AK184/'DNSP Inputs O & M'!$H$120*(AI175+AI176)/AI175*0.8 -> 504.098456 | AM184: =(AL184+AL185)/AI175 -> 8.131851406
A185: Elevated platform vehicle costs | B185: ='DNSP Inputs O & M'!$D$13 -> 40.42 | C185: 1 | D185: ='DNSP Inputs O & M'!$D$16 -> 8 | E185: =B185*C185*D185 -> 323.36 | F185: =E185/'DNSP Inputs O & M'!$D$120*(C175+C176)/C175*0.8 -> 97.008 | J185: ='DNSP Inputs O & M'!$E$13 -> 40.42 | K185: 1 | L185: ='DNSP Inputs O & M'!$E$16 -> 8 | M185: =J185*K185*L185 -> 323.36 | N185: =M185/'DNSP Inputs O & M'!$E$120*(K175+K176)/K175*0.8 -> 97.008 | R185: ='DNSP Inputs O & M'!$F$13 -> 40.42 | S185: 1 | T185: ='DNSP Inputs O & M'!$F$16 -> 8 | U185: =R185*S185*T185 -> 323.36 | V185: =U185/'DNSP Inputs O & M'!$F$120*(S175+S176)/S175*0.8 -> 97.008 | Z185: ='DNSP Inputs O & M'!$G$13 -> 40.42 | AA185: 1 | AB185: ='DNSP Inputs O & M'!$G$16 -> 8 | AC185: =Z185*AA185*AB185 -> 323.36 | AD185: =AC185/'DNSP Inputs O & M'!$G$120*(AA175+AA176)/AA175*0.8 -> 97.008 | AH185: ='DNSP Inputs O & M'!$H$13 -> 40.42 | AI185: 1 | AJ185: ='DNSP Inputs O & M'!$H$16 -> 8 | AK185: =AH185*AI185*AJ185 -> 323.36 | AL185: =AK185/'DNSP Inputs O & M'!$H$120*(AI175+AI176)/AI175*0.8 -> 97.008
A186: Labour - repair of faults
